Workbook

Sheet Range Holdem
J2: Range | K2: =L2/100 -> 0.08 | L2: 8 | P2: Общее количество комбинаций | U2: =SUMIF(C6:C174,"<="&K2,G6:G174) -> 82 | X2: EV | Y2: =Z2/100 -> 0.34 | Z2: 34 | AB2: =VLOOKUP(X7,Лист1!B3:CX171,MATCH('Range Holdem'!K2,Лист1!B2:CX2,0),0) -> 0.8430183333 | AD2: Hand | AE2: Jx7x
AD3: EV | AE3: =VLOOKUP($AE$2,Лист1!$B$3:$CX$171,MATCH($K$2,Лист1!$B$2:$CX$2,0),0) -> 0.3037725
J4: 2 | K4: 3 | L4: 4 | M4: 5 | N4: 6 | O4: 7 | P4: 8 | Q4: 9 | R4: T | S4: J | T4: Q | U4: K | V4: A
J5: =J22/$U$2 -> 0 | K5: 0 | L5: 0 | M5: 0 | N5: 0 | O5: 0 | P5: 0.07317073171 | Q5: 0.07317073171 | R5: 0.1219512195 | S5: 0.1219512195 | T5: 0.2682926829 | U5: 0.2682926829 | V5: =V22/$U$2 -> 0.5609756098
A6: 1 | B6: AyAx | C6: =A6/169 -> 0.005917159763 | D6: =CONCATENATE(LEFT(RIGHT(B6,3),1),RIGHT(B6,1)) -> yx | E6: =LEFT(B6,1) -> A | F6: =LEFT(RIGHT(B6,2),1) -> A | G6: 6 | H6: =IF(E6=F6,"пара","не пара") -> пара
A7: 2 | B7: KyKx | C7: =A7/169 -> 0.01183431953 | D7: =CONCATENATE(LEFT(RIGHT(B7,3),1),RIGHT(B7,1)) -> yx | E7: =LEFT(B7,1) -> K | F7: =LEFT(RIGHT(B7,2),1) -> K | G7: 6 | H7: =IF(E7=F7,"пара","не пара") -> пара | J7: AyAx | K7: AxKx | L7: AxQx | M7: AxJx | N7: AxTx | O7: Ax9x | P7: Ax8x | Q7: Ax7x | R7: Ax6x | S7: Ax5x | T7: Ax4x | U7: Ax3x | V7: Ax2x | X7: AyAx | Y7: AxKx | Z7: AxQx | AA7: AxJx | AB7: AxTx | AC7: Ax9x | AD7: Ax8x | AE7: Ax7x | AF7: Ax6x | AG7: Ax5x | AH7: Ax4x | AI7: Ax3x | AJ7: Ax2x
A8: 3 | B8: QyQx | C8: =A8/169 -> 0.01775147929 | D8: yx | E8: Q | F8: Q | G8: 6 | H8: пара | J8: AyKx | K8: KyKx | L8: KxQx | M8: KxJx | N8: KxTx | O8: Kx9x | P8: Kx8x | Q8: Kx7x | R8: Kx6x | S8: Kx5x | T8: Kx4x | U8: Kx3x | V8: Kx2x | X8: AyKx | Y8: KyKx | Z8: KxQx | AA8: KxJx | AB8: KxTx | AC8: Kx9x | AD8: Kx8x | AE8: Kx7x | AF8: Kx6x | AG8: Kx5x | AH8: Kx4x | AI8: Kx3x | AJ8: Kx2x
A9: 4 | B9: JyJx | C9: =A9/169 -> 0.02366863905 | D9: yx | E9: J | F9: J | G9: 6 | H9: пара | J9: AyQx | K9: KyQx | L9: QyQx | M9: QxJx | N9: QxTx | O9: Qx9x | P9: Qx8x | Q9: Qx7x | R9: Qx6x | S9: Qx5x | T9: Qx4x | U9: Qx3x | V9: Qx2x | X9: AyQx | Y9: KyQx | Z9: QyQx | AA9: QxJx | AB9: QxTx | AC9: Qx9x | AD9: Qx8x | AE9: Qx7x | AF9: Qx6x | AG9: Qx5x | AH9: Qx4x | AI9: Qx3x | AJ9: Qx2x
A10: 5 | B10: TyTx | C10: =A10/169 -> 0.02958579882 | D10: yx | E10: T | F10: T | G10: 6 | H10: пара | J10: AyJx | K10: KyJx | L10: QyJx | M10: JyJx | N10: JxTx | O10: Jx9x | P10: Jx8x | Q10: Jx7x | R10: Jx6x | S10: Jx5x | T10: Jx4x | U10: Jx3x | V10: Jx2x | X10: AyJx | Y10: KyJx | Z10: QyJx | AA10: JyJx | AB10: JxTx | AC10: Jx9x | AD10: Jx8x | AE10: Jx7x | AF10: Jx6x | AG10: Jx5x | AH10: Jx4x | AI10: Jx3x | AJ10: Jx2x
A11: 6 | B11: AxKx | C11: =A11/169 -> 0.03550295858 | D11: xx | E11: A | F11: K | G11: 4 | H11: =IF(E11=F11,"пара","не пара") -> не пара | J11: AyTx | K11: KyTx | L11: QyTx | M11: JyTx | N11: TyTx | O11: Tx9x | P11: Tx8x | Q11: Tx7x | R11: Tx6x | S11: Tx5x | T11: Tx4x | U11: Tx3x | V11: Tx2x | X11: AyTx | Y11: KyTx | Z11: QyTx | AA11: JyTx | AB11: TyTx | AC11: Tx9x | AD11: Tx8x | AE11: Tx7x | AF11: Tx6x | AG11: Tx5x | AH11: Tx4x | AI11: Tx3x | AJ11: Tx2x
A12: 7 | B12: AyKx | C12: =A12/169 -> 0.04142011834 | D12: yx | E12: A | F12: K | G12: 12 | H12: =IF(E12=F12,"пара","не пара") -> не пара | J12: Ay9x | K12: Ky9x | L12: Qy9x | M12: Jy9x | N12: Ty9x | O12: 9y9x | P12: 9x8x | Q12: 9x7x | R12: 9x6x | S12: 9x5x | T12: 9x4x | U12: 9x3x | V12: 9x2x | X12: Ay9x | Y12: Ky9x | Z12: Qy9x | AA12: Jy9x | AB12: Ty9x | AC12: 9y9x | AD12: 9x8x | AE12: 9x7x | AF12: 9x6x | AG12: 9x5x | AH12: 9x4x | AI12: 9x3x | AJ12: 9x2x
A13: 8 | B13: AxQx | C13: =A13/169 -> 0.04733727811 | D13: xx | E13: A | F13: Q | G13: 4 | H13: не пара | J13: Ay8x | K13: Ky8x | L13: Qy8x | M13: Jy8x | N13: Ty8x | O13: 9y8x | P13: 8y8x | Q13: 8x7x | R13: 8x6x | S13: 8x5x | T13: 8x4x | U13: 8x3x | V13: 8x2x | X13: Ay8x | Y13: Ky8x | Z13: Qy8x | AA13: Jy8x | AB13: Ty8x | AC13: 9y8x | AD13: 8y8x | AE13: 8x7x | AF13: 8x6x | AG13: 8x5x | AH13: 8x4x | AI13: 8x3x | AJ13: 8x2x
A14: 9 | B14: 9y9x | C14: =A14/169 -> 0.05325443787 | D14: yx | E14: 9 | F14: 9 | G14: 6 | H14: пара | J14: Ay7x | K14: Ky7x | L14: Qy7x | M14: Jy7x | N14: Ty7x | O14: 9y7x | P14: 8y7x | Q14: 7y7x | R14: 7x6x | S14: 7x5x | T14: 7x4x | U14: 7x3x | V14: 7x2x | X14: Ay7x | Y14: Ky7x | Z14: Qy7x | AA14: Jy7x | AB14: Ty7x | AC14: 9y7x | AD14: 8y7x | AE14: 7y7x | AF14: 7x6x | AG14: 7x5x | AH14: 7x4x | AI14: 7x3x | AJ14: 7x2x
A15: 10 | B15: AxJx | C15: =A15/169 -> 0.05917159763 | D15: xx | E15: A | F15: J | G15: 4 | H15: не пара | J15: Ay6x | K15: Ky6x | L15: Qy6x | M15: Jy6x | N15: Ty6x | O15: 9y6x | P15: 8y6x | Q15: 7y6x | R15: 6y6x | S15: 6x5x | T15: 6x4x | U15: 6x3x | V15: 6x2x | X15: Ay6x | Y15: Ky6x | Z15: Qy6x | AA15: Jy6x | AB15: Ty6x | AC15: 9y6x | AD15: 8y6x | AE15: 7y6x | AF15: 6y6x | AG15: 6x5x | AH15: 6x4x | AI15: 6x3x | AJ15: 6x2x
A16: 11 | B16: AyQx | C16: =A16/169 -> 0.0650887574 | D16: yx | E16: A | F16: Q | G16: 12 | H16: не пара | J16: Ay5x | K16: Ky5x | L16: Qy5x | M16: Jy5x | N16: Ty5x | O16: 9y5x | P16: 8y5x | Q16: 7y5x | R16: 6y5x | S16: 5y5x | T16: 5x4x | U16: 5x3x | V16: 5x2x | X16: Ay5x | Y16: Ky5x | Z16: Qy5x | AA16: Jy5x | AB16: Ty5x | AC16: 9y5x | AD16: 8y5x | AE16: 7y5x | AF16: 6y5x | AG16: 5y5x | AH16: 5x4x | AI16: 5x3x | AJ16: 5x2x
A17: 12 | B17: 8y8x | C17: =A17/169 -> 0.07100591716 | D17: yx | E17: 8 | F17: 8 | G17: 6 | H17: пара | J17: Ay4x | K17: Ky4x | L17: Qy4x | M17: Jy4x | N17: Ty4x | O17: 9y4x | P17: 8y4x | Q17: 7y4x | R17: 6y4x | S17: 5y4x | T17: 4y4x | U17: 4x3x | V17: 4x2x | X17: Ay4x | Y17: Ky4x | Z17: Qy4x | AA17: Jy4x | AB17: Ty4x | AC17: 9y4x | AD17: 8y4x | AE17: 7y4x | AF17: 6y4x | AG17: 5y4x | AH17: 4y4x | AI17: 4x3x | AJ17: 4x2x
A18: 13 | B18: AxTx | C18: =A18/169 -> 0.07692307692 | D18: xx | E18: A | F18: T | G18: 4 | H18: не пара | J18: Ay3x | K18: Ky3x | L18: Qy3x | M18: Jy3x | N18: Ty3x | O18: 9y3x | P18: 8y3x | Q18: 7y3x | R18: 6y3x | S18: 5y3x | T18: 4y3x | U18: 3y3x | V18: 3x2x | X18: Ay3x | Y18: Ky3x | Z18: Qy3x | AA18: Jy3x | AB18: Ty3x | AC18: 9y3x | AD18: 8y3x | AE18: 7y3x | AF18: 6y3x | AG18: 5y3x | AH18: 4y3x | AI18: 3y3x | AJ18: 3x2x
A19: 14 | B19: AyJx | C19: =A19/169 -> 0.08284023669 | D19: yx | E19: A | F19: J | G19: 12 | H19: не пара | J19: Ay2x | K19: Ky2x | L19: Qy2x | M19: Jy2x | N19: Ty2x | O19: 9y2x | P19: 8y2x | Q19: 7y2x | R19: 6y2x | S19: 5y2x | T19: 4y2x | U19: 3y2x | V19: 2y2x | X19: Ay2x | Y19: Ky2x | Z19: Qy2x | AA19: Jy2x | AB19: Ty2x | AC19: 9y2x | AD19: 8y2x | AE19: 7y2x | AF19: 6y2x | AG19: 5y2x | AH19: 4y2x | AI19: 3y2x | AJ19: 2y2x
A20: 15 | B20: KxQx | C20: =A20/169 -> 0.08875739645 | D20: xx | E20: K | F20: Q | G20: 4 | H20: не пара
A21: 16 | B21: 7y7x | C21: =A21/169 -> 0.09467455621 | D21: yx | E21: 7 | F21: 7 | G21: 6 | H21: пара | J21: 2 | K21: 3 | L21: 4 | M21: 5 | N21: 6 | O21: 7 | P21: 8 | Q21: 9 | R21: T | S21: J | T21: Q | U21: K | V21: A
A22: 17 | B22: KxJx | C22: =A22/169 -> 0.100591716 | D22: xx | E22: K | F22: J | G22: 4 | H22: не пара | J22: =SUMIFS($G$6:$G$174,$C$6:$C$174,"<="&$K$2,$E$6:$E$174,J$21)+SUMIFS($G$6:$G$174,$C$6:$C$174,"<="&$K$2,$F$6:$F$174,J$21)-SUMIFS($G$6:$G$174,$C$6:$C$174,"<="&$K$2,$H$6:$H$174,"пара",$E$6:$E$174,J$21) -> 0 | K22: 0 | L22: 0 | M22: 0 | N22: 0 | O22: 0 | P22: 6 | Q22: 6 | R22: 10 | S22: 10 | T22: 22 | U22: =SUMIFS($G$6:$G$174,$C$6:$C$174,"<="&$K$2,$E$6:$E$174,U$21)+SUMIFS($G$6:$G$174,$C$6:$C$174,"<="&$K$2,$F$6:$F$174,U$21)-SUMIFS($G$6:$G$174,$C$6:$C$174,"<="&$K$2,$H$6:$H$174,"пара",$E$6:$E$174,U$21) -> 22 | V22: =SUMIFS($G$6:$G$174,$C$6:$C$174,"<="&$K$2,$E$6:$E$174,V$21)+SUMIFS($G$6:$G$174,$C$6:$C$174,"<="&$K$2,$F$6:$F$174,V$21)-SUMIFS($G$6:$G$174,$C$6:$C$174,"<="&$K$2,$H$6:$H$174,"пара",$E$6:$E$174,V$21) -> 46
A23: 18 | B23: AyTx | C23: =A23/169 -> 0.1065088757 | D23: yx | E23: A | F23: T | G23: 12 | H23: не пара
A24: 19 | B24: KyQx | C24: =A24/169 -> 0.1124260355 | D24: yx | E24: K | F24: Q | G24: 12 | H24: не пара
A25: 20 | B25: Ax9x | C25: =A25/169 -> 0.1183431953 | D25: xx | E25: A | F25: 9 | G25: 4 | H25: не пара
A26: 21 | B26: KxTx | C26: =A26/169 -> 0.124260355 | D26: xx | E26: K | F26: T | G26: 4 | H26: не пара
A27: 22 | B27: 6y6x | C27: =A27/169 -> 0.1301775148 | D27: yx | E27: 6 | F27: 6 | G27: 6 | H27: пара
A28: 23 | B28: Ax8x | C28: =A28/169 -> 0.1360946746 | D28: xx | E28: A | F28: 8 | G28: 4 | H28: не пара
A29: 24 | B29: QxJx | C29: =A29/169 -> 0.1420118343 | D29: xx | E29: Q | F29: J | G29: 4 | H29: не пара
A30: 25 | B30: Ax7x | C30: =A30/169 -> 0.1479289941 | D30: xx | E30: A | F30: 7 | G30: 4 | H30: не пара
A31: 26 | B31: KyJx | C31: =A31/169 -> 0.1538461538 | D31: yx | E31: K | F31: J | G31: 12 | H31: не пара
A32: 27 | B32: QxTx | C32: =A32/169 -> 0.1597633136 | D32: xx | E32: Q | F32: T | G32: 4 | H32: не пара
A33: 28 | B33: Ax5x | C33: =A33/169 -> 0.1656804734 | D33: xx | E33: A | F33: 5 | G33: 4 | H33: не пара
A34: 29 | B34: Ay9x | C34: =A34/169 -> 0.1715976331 | D34: yx | E34: A | F34: 9 | G34: 12 | H34: не пара
A35: 30 | B35: Ax6x | C35: =A35/169 -> 0.1775147929 | D35: xx | E35: A | F35: 6 | G35: 4 | H35: не пара
A36: 31 | B36: JxTx | C36: =A36/169 -> 0.1834319527 | D36: xx | E36: J | F36: T | G36: 4 | H36: не пара
A37: 32 | B37: 5y5x | C37: =A37/169 -> 0.1893491124 | D37: yx | E37: 5 | F37: 5 | G37: 6 | H37: пара
A38: 33 | B38: Kx9x | C38: =A38/169 -> 0.1952662722 | D38: xx | E38: K | F38: 9 | G38: 4 | H38: не пара
A39: 34 | B39: Ax4x | C39: =A39/169 -> 0.201183432 | D39: xx | E39: A | F39: 4 | G39: 4 | H39: не пара
A40: 35 | B40: KyTx | C40: =A40/169 -> 0.2071005917 | D40: yx | E40: K | F40: T | G40: 12 | H40: не пара
A41: 36 | B41: Ax3x | C41: =A41/169 -> 0.2130177515 | D41: xx | E41: A | F41: 3 | G41: 4 | H41: не пара
A42: 37 | B42: Ay8x | C42: =A42/169 -> 0.2189349112 | D42: yx | E42: A | F42: 8 | G42: 12 | H42: не пара
A43: 38 | B43: QyJx | C43: =A43/169 -> 0.224852071 | D43: yx | E43: Q | F43: J | G43: 12 | H43: не пара
A44: 39 | B44: Qx9x | C44: =A44/169 -> 0.2307692308 | D44: xx | E44: Q | F44: 9 | G44: 4 | H44: не пара
A45: 40 | B45: Ax2x | C45: =A45/169 -> 0.2366863905 | D45: xx | E45: A | F45: 2 | G45: 4 | H45: не пара
A46: 41 | B46: Kx8x | C46: =A46/169 -> 0.2426035503 | D46: xx | E46: K | F46: 8 | G46: 4 | H46: не пара
A47: 42 | B47: Jx9x | C47: =A47/169 -> 0.2485207101 | D47: xx | E47: J | F47: 9 | G47: 4 | H47: не пара
A48: 43 | B48: 4y4x | C48: =A48/169 -> 0.2544378698 | D48: yx | E48: 4 | F48: 4 | G48: 6 | H48: пара
A49: 44 | B49: Kx7x | C49: =A49/169 -> 0.2603550296 | D49: xx | E49: K | F49: 7 | G49: 4 | H49: не пара
A50: 45 | B50: Tx9x | C50: =A50/169 -> 0.2662721893 | D50: xx | E50: T | F50: 9 | G50: 4 | H50: не пара
A51: 46 | B51: QyTx | C51: =A51/169 -> 0.2721893491 | D51: yx | E51: Q | F51: T | G51: 12 | H51: не пара
A52: 47 | B52: Ay7x | C52: =A52/169 -> 0.2781065089 | D52: yx | E52: A | F52: 7 | G52: 12 | H52: не пара
A53: 48 | B53: Kx6x | C53: =A53/169 -> 0.2840236686 | D53: xx | E53: K | F53: 6 | G53: 4 | H53: не пара
A54: 49 | B54: Ay5x | C54: =A54/169 -> 0.2899408284 | D54: yx | E54: A | F54: 5 | G54: 12 | H54: не пара
A55: 50 | B55: JyTx | C55: =A55/169 -> 0.2958579882 | D55: yx | E55: J | F55: T | G55: 12 | H55: не пара
A56: 51 | B56: Qx8x | C56: =A56/169 -> 0.3017751479 | D56: xx | E56: Q | F56: 8 | G56: 4 | H56: не пара
A57: 52 | B57: Ky9x | C57: =A57/169 -> 0.3076923077 | D57: yx | E57: K | F57: 9 | G57: 12 | H57: не пара
A58: 53 | B58: Ay6x | C58: =A58/169 -> 0.3136094675 | D58: yx | E58: A | F58: 6 | G58: 12 | H58: не пара
A59: 54 | B59: Kx5x | C59: =A59/169 -> 0.3195266272 | D59: xx | E59: K | F59: 5 | G59: 4 | H59: не пара
A60: 55 | B60: Jx8x | C60: =A60/169 -> 0.325443787 | D60: xx | E60: J | F60: 8 | G60: 4 | H60: не пара
A61: 56 | B61: Tx8x | C61: =A61/169 -> 0.3313609467 | D61: xx | E61: T | F61: 8 | G61: 4 | H61: не пара
A62: 57 | B62: Ay4x | C62: =A62/169 -> 0.3372781065 | D62: yx | E62: A | F62: 4 | G62: 12 | H62: не пара
A63: 58 | B63: 3y3x | C63: =A63/169 -> 0.3431952663 | D63: yx | E63: 3 | F63: 3 | G63: 6 | H63: пара
A64: 59 | B64: 9x8x | C64: =A64/169 -> 0.349112426 | D64: xx | E64: 9 | F64: 8 | G64: 4 | H64: не пара
A65: 60 | B65: Kx4x | C65: =A65/169 -> 0.3550295858 | D65: xx | E65: K | F65: 4 | G65: 4 | H65: не пара
A66: 61 | B66: Ay3x | C66: =A66/169 -> 0.3609467456 | D66: yx | E66: A | F66: 3 | G66: 12 | H66: не пара
A67: 62 | B67: Qx7x | C67: =A67/169 -> 0.3668639053 | D67: xx | E67: Q | F67: 7 | G67: 4 | H67: не пара
A68: 63 | B68: Qx6x | C68: =A68/169 -> 0.3727810651 | D68: xx | E68: Q | F68: 6 | G68: 4 | H68: не пара
A69: 64 | B69: Qy9x | C69: =A69/169 -> 0.3786982249 | D69: yx | E69: Q | F69: 9 | G69: 12 | H69: не пара
A70: 65 | B70: Kx3x | C70: =A70/169 -> 0.3846153846 | D70: xx | E70: K | F70: 3 | G70: 4 | H70: не пара
A71: 66 | B71: Kx2x | C71: =A71/169 -> 0.3905325444 | D71: =CONCATENATE(LEFT(RIGHT(B71,3),1),RIGHT(B71,1)) -> xx | E71: =LEFT(B71,1) -> K | F71: =LEFT(RIGHT(B71,2),1) -> 2 | G71: 4 | H71: не пара
A72: 67 | B72: Ay2x | C72: =A72/169 -> 0.3964497041 | D72: yx | E72: A | F72: 2 | G72: 12 | H72: не пара
A73: 68 | B73: Jx7x | C73: =A73/169 -> 0.4023668639 | D73: xx | E73: J | F73: 7 | G73: 4 | H73: не пара
A74: 69 | B74: Ky8x | C74: =A74/169 -> 0.4082840237 | D74: yx | E74: K | F74: 8 | G74: 12 | H74: не пара
A75: 70 | B75: Jy9x | C75: =A75/169 -> 0.4142011834 | D75: yx | E75: J | F75: 9 | G75: 12 | H75: не пара
A76: 71 | B76: Tx7x | C76: =A76/169 -> 0.4201183432 | D76: xx | E76: T | F76: 7 | G76: 4 | H76: =IF(E76=F76,"пара","не пара") -> не пара
A77: 72 | B77: 8x7x | C77: =A77/169 -> 0.426035503 | D77: xx | E77: 8 | F77: 7 | G77: 4 | H77: не пара
A78: 73 | B78: Ty9x | C78: =A78/169 -> 0.4319526627 | D78: yx | E78: T | F78: 9 | G78: 12 | H78: не пара
A79: 74 | B79: Qx5x | C79: =A79/169 -> 0.4378698225 | D79: xx | E79: Q | F79: 5 | G79: 4 | H79: не пара
A80: 75 | B80: 9x7x | C80: =A80/169 -> 0.4437869822 | D80: xx | E80: 9 | F80: 7 | G80: 4 | H80: не пара
A81: 76 | B81: Ky7x | C81: =A81/169 -> 0.449704142 | D81: yx | E81: K | F81: 7 | G81: 12 | H81: не пара
A82: 77 | B82: 2y2x | C82: =A82/169 -> 0.4556213018 | D82: yx | E82: 2 | F82: 2 | G82: 6 | H82: пара
A83: 78 | B83: Qx4x | C83: =A83/169 -> 0.4615384615 | D83: xx | E83: Q | F83: 4 | G83: 4 | H83: не пара
A84: 79 | B84: Ky6x | C84: =A84/169 -> 0.4674556213 | D84: yx | E84: K | F84: 6 | G84: 12 | H84: не пара
A85: 80 | B85: Jx6x | C85: =A85/169 -> 0.4733727811 | D85: xx | E85: J | F85: 6 | G85: 4 | H85: не пара
A86: 81 | B86: Qy8x | C86: =A86/169 -> 0.4792899408 | D86: yx | E86: Q | F86: 8 | G86: 12 | H86: не пара
A87: 82 | B87: 8x6x | C87: =A87/169 -> 0.4852071006 | D87: xx | E87: 8 | F87: 6 | G87: 4 | H87: не пара
A88: 83 | B88: 7x6x | C88: =A88/169 -> 0.4911242604 | D88: xx | E88: 7 | F88: 6 | G88: 4 | H88: не пара
A89: 84 | B89: Tx6x | C89: =A89/169 -> 0.4970414201 | D89: xx | E89: T | F89: 6 | G89: 4 | H89: не пара
A90: 85 | B90: Qx3x | C90: =A90/169 -> 0.5029585799 | D90: xx | E90: Q | F90: 3 | G90: 4 | H90: не пара
A91: 86 | B91: Ky5x | C91: =A91/169 -> 0.5088757396 | D91: yx | E91: K | F91: 5 | G91: 12 | H91: не пара
A92: 87 | B92: 9x6x | C92: =A92/169 -> 0.5147928994 | D92: xx | E92: 9 | F92: 6 | G92: 4 | H92: не пара
A93: 88 | B93: Jy8x | C93: =A93/169 -> 0.5207100592 | D93: yx | E93: J | F93: 8 | G93: 12 | H93: не пара
A94: 89 | B94: Jx5x | C94: =A94/169 -> 0.5266272189 | D94: xx | E94: J | F94: 5 | G94: 4 | H94: не пара
A95: 90 | B95: Ty8x | C95: =A95/169 -> 0.5325443787 | D95: yx | E95: T | F95: 8 | G95: 12 | H95: не пара
A96: 91 | B96: Qx2x | C96: =A96/169 -> 0.5384615385 | D96: xx | E96: Q | F96: 2 | G96: 4 | H96: не пара
A97: 92 | B97: 9y8x | C97: =A97/169 -> 0.5443786982 | D97: yx | E97: 9 | F97: 8 | G97: 12 | H97: не пара
A98: 93 | B98: Ky4x | C98: =A98/169 -> 0.550295858 | D98: yx | E98: K | F98: 4 | G98: 12 | H98: не пара
A99: 94 | B99: 6x5x | C99: =A99/169 -> 0.5562130178 | D99: xx | E99: 6 | F99: 5 | G99: 4 | H99: не пара
A100: 95 | B100: Jx4x | C100: =A100/169 -> 0.5621301775 | D100: xx | E100: J | F100: 4 | G100: 4 | H100: не пара
A101: 96 | B101: Qy7x | C101: =A101/169 -> 0.5680473373 | D101: yx | E101: Q | F101: 7 | G101: 12 | H101: не пара
A102: 97 | B102: 7x5x | C102: =A102/169 -> 0.573964497 | D102: xx | E102: 7 | F102: 5 | G102: 4 | H102: не пара
A103: 98 | B103: Qy6x | C103: =A103/169 -> 0.5798816568 | D103: yx | E103: Q | F103: 6 | G103: 12 | H103: не пара
A104: 99 | B104: Jx3x | C104: =A104/169 -> 0.5857988166 | D104: xx | E104: J | F104: 3 | G104: 4 | H104: не пара
A105: 100 | B105: Ky3x | C105: =A105/169 -> 0.5917159763 | D105: yx | E105: K | F105: 3 | G105: 12 | H105: не пара
A106: 101 | B106: Jy7x | C106: =A106/169 -> 0.5976331361 | D106: yx | E106: J | F106: 7 | G106: 12 | H106: не пара
A107: 102 | B107: 9x5x | C107: =A107/169 -> 0.6035502959 | D107: xx | E107: 9 | F107: 5 | G107: 4 | H107: не пара
A108: 103 | B108: 8x5x | C108: =A108/169 -> 0.6094674556 | D108: xx | E108: 8 | F108: 5 | G108: 4 | H108: не пара
A109: 104 | B109: Tx5x | C109: =A109/169 -> 0.6153846154 | D109: xx | E109: T | F109: 5 | G109: 4 | H109: не пара
A110: 105 | B110: Ty7x | C110: =A110/169 -> 0.6213017751 | D110: yx | E110: T | F110: 7 | G110: 12 | H110: не пара
A111: 106 | B111: Ky2x | C111: =A111/169 -> 0.6272189349 | D111: yx | E111: K | F111: 2 | G111: 12 | H111: не пара
A112: 107 | B112: 8y7x | C112: =A112/169 -> 0.6331360947 | D112: yx | E112: 8 | F112: 7 | G112: 12 | H112: не пара
A113: 108 | B113: 5x4x | C113: =A113/169 -> 0.6390532544 | D113: xx | E113: 5 | F113: 4 | G113: 4 | H113: не пара
A114: 109 | B114: Jx2x | C114: =A114/169 -> 0.6449704142 | D114: xx | E114: J | F114: 2 | G114: 4 | H114: не пара
A115: 110 | B115: 9y7x | C115: =A115/169 -> 0.650887574 | D115: yx | E115: 9 | F115: 7 | G115: 12 | H115: не пара
A116: 111 | B116: Qy5x | C116: =A116/169 -> 0.6568047337 | D116: yx | E116: Q | F116: 5 | G116: 12 | H116: не пара
A117: 112 | B117: Tx4x | C117: =A117/169 -> 0.6627218935 | D117: xx | E117: T | F117: 4 | G117: 4 | H117: не пара
A118: 113 | B118: 6x4x | C118: =A118/169 -> 0.6686390533 | D118: xx | E118: 6 | F118: 4 | G118: 4 | H118: не пара
A119: 114 | B119: Tx3x | C119: =A119/169 -> 0.674556213 | D119: xx | E119: T | F119: 3 | G119: 4 | H119: не пара
A120: 115 | B120: 7x4x | C120: =A120/169 -> 0.6804733728 | D120: xx | E120: 7 | F120: 4 | G120: 4 | H120: не пара
A121: 116 | B121: Qy4x | C121: =A121/169 -> 0.6863905325 | D121: yx | E121: Q | F121: 4 | G121: 12 | H121: не пара
A122: 117 | B122: 7y6x | C122: =A122/169 -> 0.6923076923 | D122: yx | E122: 7 | F122: 6 | G122: 12 | H122: не пара
A123: 118 | B123: Jy6x | C123: =A123/169 -> 0.6982248521 | D123: yx | E123: J | F123: 6 | G123: 12 | H123: не пара
A124: 119 | B124: 8x4x | C124: =A124/169 -> 0.7041420118 | D124: xx | E124: 8 | F124: 4 | G124: 4 | H124: не пара
A125: 120 | B125: Tx2x | C125: =A125/169 -> 0.7100591716 | D125: xx | E125: T | F125: 2 | G125: 4 | H125: не пара
A126: 121 | B126: 9x4x | C126: =A126/169 -> 0.7159763314 | D126: xx | E126: 9 | F126: 4 | G126: 4 | H126: не пара
A127: 122 | B127: Ty6x | C127: =A127/169 -> 0.7218934911 | D127: yx | E127: T | F127: 6 | G127: 12 | H127: не пара
A128: 123 | B128: 5x3x | C128: =A128/169 -> 0.7278106509 | D128: xx | E128: 5 | F128: 3 | G128: 4 | H128: не пара
A129: 124 | B129: Qy3x | C129: =A129/169 -> 0.7337278107 | D129: yx | E129: Q | F129: 3 | G129: 12 | H129: не пара
A130: 125 | B130: 8y6x | C130: =A130/169 -> 0.7396449704 | D130: yx | E130: 8 | F130: 6 | G130: 12 | H130: не пара
A131: 126 | B131: Jy5x | C131: =A131/169 -> 0.7455621302 | D131: yx | E131: J | F131: 5 | G131: 12 | H131: не пара
A132: 127 | B132: 9x3x | C132: =A132/169 -> 0.7514792899 | D132: xx | E132: 9 | F132: 3 | G132: 4 | H132: не пара
A133: 128 | B133: 9y6x | C133: =A133/169 -> 0.7573964497 | D133: yx | E133: 9 | F133: 6 | G133: 12 | H133: не пара
A134: 129 | B134: Qy2x | C134: =A134/169 -> 0.7633136095 | D134: yx | E134: Q | F134: 2 | G134: 12 | H134: не пара
A135: 130 | B135: 6x3x | C135: =A135/169 -> 0.7692307692 | D135: =CONCATENATE(LEFT(RIGHT(B135,3),1),RIGHT(B135,1)) -> xx | E135: =LEFT(B135,1) -> 6 | F135: =LEFT(RIGHT(B135,2),1) -> 3 | G135: 4 | H135: не пара
A136: 131 | B136: 9x2x | C136: =A136/169 -> 0.775147929 | D136: xx | E136: 9 | F136: 2 | G136: 4 | H136: не пара
A137: 132 | B137: 6y5x | C137: =A137/169 -> 0.7810650888 | D137: yx | E137: 6 | F137: 5 | G137: 12 | H137: не пара
A138: 133 | B138: 4x3x | C138: =A138/169 -> 0.7869822485 | D138: xx | E138: 4 | F138: 3 | G138: 4 | H138: не пара
A139: 134 | B139: Jy4x | C139: =A139/169 -> 0.7928994083 | D139: yx | E139: J | F139: 4 | G139: 12 | H139: не пара
A140: 135 | B140: 7x3x | C140: =A140/169 -> 0.798816568 | D140: xx | E140: 7 | F140: 3 | G140: 4 | H140: =IF(E140=F140,"пара","не пара") -> не пара
A141: 136 | B141: 7y5x | C141: =A141/169 -> 0.8047337278 | D141: yx | E141: 7 | F141: 5 | G141: 12 | H141: не пара
A142: 137 | B142: 8x3x | C142: =A142/169 -> 0.8106508876 | D142: xx | E142: 8 | F142: 3 | G142: 4 | H142: не пара
A143: 138 | B143: 5x2x | C143: =A143/169 -> 0.8165680473 | D143: xx | E143: 5 | F143: 2 | G143: 4 | H143: не пара
A144: 139 | B144: Jy3x | C144: =A144/169 -> 0.8224852071 | D144: yx | E144: J | F144: 3 | G144: 12 | H144: не пара
A145: 140 | B145: 8y5x | C145: =A145/169 -> 0.8284023669 | D145: yx | E145: 8 | F145: 5 | G145: 12 | H145: не пара
A146: 141 | B146: Ty5x | C146: =A146/169 -> 0.8343195266 | D146: yx | E146: T | F146: 5 | G146: 12 | H146: не пара
A147: 142 | B147: 8x2x | C147: =A147/169 -> 0.8402366864 | D147: xx | E147: 8 | F147: 2 | G147: 4 | H147: не пара
A148: 143 | B148: 9y5x | C148: =A148/169 -> 0.8461538462 | D148: yx | E148: 9 | F148: 5 | G148: 12 | H148: не пара
A149: 144 | B149: 5y4x | C149: =A149/169 -> 0.8520710059 | D149: yx | E149: 5 | F149: 4 | G149: 12 | H149: не пара
A150: 145 | B150: Jy2x | C150: =A150/169 -> 0.8579881657 | D150: yx | E150: J | F150: 2 | G150: 12 | H150: не пара
A151: 146 | B151: 4x2x | C151: =A151/169 -> 0.8639053254 | D151: xx | E151: 4 | F151: 2 | G151: 4 | H151: не пара
A152: 147 | B152: Ty4x | C152: =A152/169 -> 0.8698224852 | D152: yx | E152: T | F152: 4 | G152: 12 | H152: не пара
A153: 148 | B153: 6x2x | C153: =A153/169 -> 0.875739645 | D153: xx | E153: 6 | F153: 2 | G153: 4 | H153: не пара
A154: 149 | B154: 6y4x | C154: =A154/169 -> 0.8816568047 | D154: yx | E154: 6 | F154: 4 | G154: 12 | H154: не пара
A155: 150 | B155: 7x2x | C155: =A155/169 -> 0.8875739645 | D155: xx | E155: 7 | F155: 2 | G155: 4 | H155: не пара
A156: 151 | B156: 3x2x | C156: =A156/169 -> 0.8934911243 | D156: xx | E156: 3 | F156: 2 | G156: 4 | H156: не пара
A157: 152 | B157: Ty3x | C157: =A157/169 -> 0.899408284 | D157: yx | E157: T | F157: 3 | G157: 12 | H157: не пара
A158: 153 | B158: 7y4x | C158: =A158/169 -> 0.9053254438 | D158: yx | E158: 7 | F158: 4 | G158: 12 | H158: не пара
A159: 154 | B159: 8y4x | C159: =A159/169 -> 0.9112426036 | D159: yx | E159: 8 | F159: 4 | G159: 12 | H159: не пара
A160: 155 | B160: Ty2x | C160: =A160/169 -> 0.9171597633 | D160: yx | E160: T | F160: 2 | G160: 12 | H160: не пара
A161: 156 | B161: 5y3x | C161: =A161/169 -> 0.9230769231 | D161: yx | E161: 5 | F161: 3 | G161: 12 | H161: не пара
A162: 157 | B162: 9y4x | C162: =A162/169 -> 0.9289940828 | D162: yx | E162: 9 | F162: 4 | G162: 12 | H162: не пара
A163: 158 | B163: 9y3x | C163: =A163/169 -> 0.9349112426 | D163: yx | E163: 9 | F163: 3 | G163: 12 | H163: не пара
A164: 159 | B164: 4y3x | C164: =A164/169 -> 0.9408284024 | D164: yx | E164: 4 | F164: 3 | G164: 12 | H164: не пара
A165: 160 | B165: 6y3x | C165: =A165/169 -> 0.9467455621 | D165: yx | E165: 6 | F165: 3 | G165: 12 | H165: не пара
A166: 161 | B166: 9y2x | C166: =A166/169 -> 0.9526627219 | D166: yx | E166: 9 | F166: 2 | G166: 12 | H166: не пара
A167: 162 | B167: 7y3x | C167: =A167/169 -> 0.9585798817 | D167: yx | E167: 7 | F167: 3 | G167: 12 | H167: не пара
A168: 163 | B168: 8y3x | C168: =A168/169 -> 0.9644970414 | D168: yx | E168: 8 | F168: 3 | G168: 12 | H168: не пара
A169: 164 | B169: 5y2x | C169: =A169/169 -> 0.9704142012 | D169: yx | E169: 5 | F169: 2 | G169: 12 | H169: не пара
A170: 165 | B170: 8y2x | C170: =A170/169 -> 0.9763313609 | D170: yx | E170: 8 | F170: 2 | G170: 12 | H170: не пара
A171: 166 | B171: 4y2x | C171: =A171/169 -> 0.9822485207 | D171: yx | E171: 4 | F171: 2 | G171: 12 | H171: не пара
A172: 167 | B172: 6y2x | C172: =A172/169 -> 0.9881656805 | D172: yx | E172: 6 | F172: 2 | G172: 12 | H172: не пара
A173: 168 | B173: 7y2x | C173: =A173/169 -> 0.9940828402 | D173: yx | E173: 7 | F173: 2 | G173: 12 | H173: не пара
A174: 169 | B174: 3y2x | C174: =A174/169 -> 1 | D174: yx | E174: 3 | F174: 2 | G174: 12 | H174: не пара

Sheet Лист1
C2: 0.01 | D2: 0.02 | E2: 0.03 | F2: 0.04 | G2: 0.05 | H2: 0.06 | I2: 0.07 | J2: 0.08 | K2: 0.09 | L2: 0.1 | M2: 0.11 | N2: 0.12 | O2: 0.13 | P2: 0.14 | Q2: 0.15 | R2: 0.16 | S2: 0.17 | T2: 0.18 | U2: 0.19 | V2: 0.2 | W2: 0.21 | X2: 0.22 | Y2: 0.23 | Z2: 0.24 | AA2: 0.25 | AB2: 0.26 | AC2: 0.27 | AD2: 0.28 | AE2: 0.29 | AF2: 0.3 | AG2: 0.31 | AH2: 0.32 | AI2: 0.33 | AJ2: 0.34 | AK2: 0.35 | AL2: 0.36 | AM2: 0.37 | AN2: 0.38 | AO2: 0.39 | AP2: 0.4 | AQ2: 0.41 | AR2: 0.42 | AS2: 0.43 | AT2: 0.44 | AU2: 0.45 | AV2: 0.46 | AW2: 0.47 | AX2: 0.48 | AY2: 0.49 | AZ2: 0.5 | BA2: 0.51 | BB2: 0.52 | BC2: 0.53 | BD2: 0.54 | BE2: 0.55 | BF2: 0.56 | BG2: 0.57 | BH2: 0.58 | BI2: 0.59 | BJ2: 0.6 | BK2: 0.61 | BL2: 0.62 | BM2: 0.63 | BN2: 0.64 | BO2: 0.65 | BP2: 0.66 | BQ2: 0.67 | BR2: 0.68 | BS2: 0.69 | BT2: 0.7 | BU2: 0.71 | BV2: 0.72 | BW2: 0.73 | BX2: 0.74 | BY2: 0.75 | BZ2: 0.76 | CA2: 0.77 | CB2: 0.78 | CC2: 0.79 | CD2: 0.8 | CE2: 0.81 | CF2: 0.82 | CG2: 0.83 | CH2: 0.84 | CI2: 0.85 | CJ2: 0.86 | CK2: 0.87 | CL2: 0.88 | CM2: 0.89 | CN2: 0.9 | CO2: 0.91 | CP2: 0.92 | CQ2: 0.93 | CR2: 0.94 | CS2: 0.95 | CT2: 0.96 | CU2: 0.97 | CV2: 0.98 | CW2: 0.99 | CX2: 1
B3: 3x2x | C3: 0.176955 | D3: 0.1800766667 | E3: 0.2015441667 | F3: 0.2564175 | G3: 0.2556175 | H3: 0.2693275 | I3: 0.27184 | J3: 0.2821375 | K3: 0.285545 | L3: 0.30206 | M3: 0.3045558333 | N3: 0.3023683333 | O3: 0.3088875 | P3: 0.3089466667 | Q3: 0.3162433333 | R3: 0.31168 | S3: 0.3166783333 | T3: 0.3149841667 | U3: 0.3193441667 | V3: 0.3220591667 | W3: 0.3194516667 | X3: 0.3199958333 | Y3: 0.32077 | Z3: 0.3246691667 | AA3: 0.3247741667 | AB3: 0.3277725 | AC3: 0.3296125 | AD3: 0.3313966667 | AE3: 0.33255 | AF3: 0.3318275 | AG3: 0.3317525 | AH3: 0.3299158333 | AI3: 0.3311975 | AJ3: 0.3313166667 | AK3: 0.33098 | AL3: 0.3330191667 | AM3: 0.3336933333 | AN3: 0.3346975 | AO3: 0.3349916667 | AP3: 0.3360791667 | AQ3: 0.3373725 | AR3: 0.3365675 | AS3: 0.3389941667 | AT3: 0.3396933333 | AU3: 0.3393758333 | AV3: 0.340735 | AW3: 0.341305 | AX3: 0.341235 | AY3: 0.3424241667 | AZ3: 0.3428791667 | BA3: 0.342655 | BB3: 0.3426133333 | BC3: 0.3442625 | BD3: 0.3434975 | BE3: 0.3442133333 | BF3: 0.3458008333 | BG3: 0.3451666667 | BH3: 0.3448983333 | BI3: 0.3438375 | BJ3: 0.3461858333 | BK3: 0.3461766667 | BL3: 0.346005 | BM3: 0.3468541667 | BN3: 0.3468841667 | BO3: 0.3480641667 | BP3: 0.349635 | BQ3: 0.3480825 | BR3: 0.3473575 | BS3: 0.3490175 | BT3: 0.3485508333 | BU3: 0.3487816667 | BV3: 0.3494808333 | BW3: 0.3497283333 | BX3: 0.3503358333 | BY3: 0.350565 | BZ3: 0.3517908333 | CA3: 0.3509341667 | CB3: 0.3518716667 | CC3: 0.35124 | CD3: 0.353745 | CE3: 0.3537983333 | CF3: 0.3541508333 | CG3: 0.3528183333 | CH3: 0.3553333333 | CI3: 0.3542183333 | CJ3: 0.3543333333 | CK3: 0.354555 | CL3: 0.35501 | CM3: 0.3548 | CN3: 0.3567333333 | CO3: 0.3569191667 | CP3: 0.3569466667 | CQ3: 0.3571566667 | CR3: 0.3571683333 | CS3: 0.3569391667 | CT3: 0.3585541667 | CU3: 0.3580416667 | CV3: 0.3592208333 | CW3: 0.3596175 | CX3: 0.3598491667
B4: 4x2x | C4: 0.1816 | D4: 0.1841308333 | E4: 0.2064091667 | F4: 0.2608108333 | G4: 0.2591383333 | H4: 0.2720633333 | I4: 0.2762558333 | J4: 0.2867366667 | K4: 0.2884866667 | L4: 0.3052016667 | M4: 0.3075058333 | N4: 0.3074416667 | O4: 0.3122008333 | P4: 0.3132075 | Q4: 0.3197741667 | R4: 0.3141408333 | S4: 0.3183633333 | T4: 0.3183783333 | U4: 0.3230075 | V4: 0.3250383333 | W4: 0.3249316667 | X4: 0.3245408333 | Y4: 0.32668 | Z4: 0.3282416667 | AA4: 0.3308825 | AB4: 0.3328441667 | AC4: 0.3338216667 | AD4: 0.3362475 | AE4: 0.336345 | AF4: 0.3354283333 | AG4: 0.3347666667 | AH4: 0.338335 | AI4: 0.3388408333 | AJ4: 0.3381433333 | AK4: 0.3388616667 | AL4: 0.339535 | AM4: 0.33973 | AN4: 0.340745 | AO4: 0.34092 | AP4: 0.3412575 | AQ4: 0.34272 | AR4: 0.3426033333 | AS4: 0.3445916667 | AT4: 0.3435783333 | AU4: 0.3450025 | AV4: 0.3460108333 | AW4: 0.3464408333 | AX4: 0.3465058333 | AY4: 0.3463541667 | AZ4: 0.3460683333 | BA4: 0.3478208333 | BB4: 0.3472116667 | BC4: 0.3491075 | BD4: 0.34929 | BE4: 0.3484575 | BF4: 0.3514125 | BG4: 0.3502175 | BH4: 0.351155 | BI4: 0.3515416667 | BJ4: 0.3521208333 | BK4: 0.3531658333 | BL4: 0.3519375 | BM4: 0.3505583333 | BN4: 0.3511225 | BO4: 0.3522566667 | BP4: 0.3527883333 | BQ4: 0.3530733333 | BR4: 0.3532975 | BS4: 0.3555791667 | BT4: 0.3550575 | BU4: 0.3550758333 | BV4: 0.3558733333 | BW4: 0.355875 | BX4: 0.3555975 | BY4: 0.3560625 | BZ4: 0.3561291667 | CA4: 0.3583466667 | CB4: 0.3571275 | CC4: 0.3593291667 | CD4: 0.3591633333 | CE4: 0.3600283333 | CF4: 0.358585 | CG4: 0.3578533333 | CH4: 0.360525 | CI4: 0.36066 | CJ4: 0.3594941667 | CK4: 0.3604783333 | CL4: 0.360645 | CM4: 0.3607133333 | CN4: 0.3617283333 | CO4: 0.3632883333 | CP4: 0.3640625 | CQ4: 0.3641475 | CR4: 0.3654133333 | CS4: 0.3653841667 | CT4: 0.3662116667 | CU4: 0.3658391667 | CV4: 0.3668 | CW4: 0.36695 | CX4: 0.3687083333
B5: 5x2x | C5: 0.1847566667 | D5: 0.1883125 | E5: 0.2099641667 | F5: 0.2646516667 | G5: 0.2627133333 | H5: 0.2764025 | I5: 0.2805266667 | J5: 0.2895133333 | K5: 0.2937566667 | L5: 0.3084766667 | M5: 0.311335 | N5: 0.3083666667 | O5: 0.3164308333 | P5: 0.3151716667 | Q5: 0.3205825 | R5: 0.3201625 | S5: 0.323885 | T5: 0.3248641667 | U5: 0.3293175 | V5: 0.3290783333 | W5: 0.3312966667 | X5: 0.3328041667 | Y5: 0.3335025 | Z5: 0.3363925 | AA5: 0.3338475 | AB5: 0.3372183333 | AC5: 0.3380058333 | AD5: 0.339125 | AE5: 0.3393125 | AF5: 0.34137 | AG5: 0.342485 | AH5: 0.3433275 | AI5: 0.3453175 | AJ5: 0.3455766667 | AK5: 0.3440591667 | AL5: 0.344795 | AM5: 0.3451833333 | AN5: 0.3467316667 | AO5: 0.34584 | AP5: 0.3480391667 | AQ5: 0.3494416667 | AR5: 0.3489283333 | AS5: 0.35004 | AT5: 0.3509225 | AU5: 0.350145 | AV5: 0.3492625 | AW5: 0.350835 | AX5: 0.35101 | AY5: 0.3522683333 | AZ5: 0.3528975 | BA5: 0.3534283333 | BB5: 0.3539316667 | BC5: 0.35475 | BD5: 0.3550541667 | BE5: 0.3550433333 | BF5: 0.3552033333 | BG5: 0.3539841667 | BH5: 0.3569466667 | BI5: 0.3559475 | BJ5: 0.3558691667 | BK5: 0.3567858333 | BL5: 0.3588008333 | BM5: 0.3574625 | BN5: 0.3574608333 | BO5: 0.3586708333 | BP5: 0.3595941667 | BQ5: 0.360165 | BR5: 0.3603308333 | BS5: 0.3602466667 | BT5: 0.3612333333 | BU5: 0.3603958333 | BV5: 0.3610358333 | BW5: 0.3613416667 | BX5: 0.361545 | BY5: 0.3617133333 | BZ5: 0.3638625 | CA5: 0.3617116667 | CB5: 0.3633308333 | CC5: 0.3635558333 | CD5: 0.3636466667 | CE5: 0.3644266667 | CF5: 0.3648525 | CG5: 0.3661266667 | CH5: 0.3662833333 | CI5: 0.3671533333 | CJ5: 0.3678075 | CK5: 0.3679425 | CL5: 0.3682625 | CM5: 0.3690441667 | CN5: 0.3701658333 | CO5: 0.3727341667 | CP5: 0.3713691667 | CQ5: 0.3719525 | CR5: 0.3731333333 | CS5: 0.3740533333 | CT5: 0.3744608333 | CU5: 0.3745525 | CV5: 0.37684 | CW5: 0.3768625 | CX5: 0.3788
B6: 6x2x | C6: 0.1754141667 | D6: 0.1750475 | E6: 0.1946766667 | F6: 0.2498816667 | G6: 0.2491591667 | H6: 0.2626216667 | I6: 0.2658491667 | J6: 0.2758308333 | K6: 0.2798516667 | L6: 0.29503 | M6: 0.2982966667 | N6: 0.29891 | O6: 0.3039041667 | P6: 0.3057091667 | Q6: 0.3095241667 | R6: 0.3129983333 | S6: 0.3149091667 | T6: 0.316295 | U6: 0.3199858333 | V6: 0.3220508333 | W6: 0.3219566667 | X6: 0.3224208333 | Y6: 0.3244633333 | Z6: 0.3248383333 | AA6: 0.3292058333 | AB6: 0.3298616667 | AC6: 0.3319975 | AD6: 0.3300108333 | AE6: 0.3307558333 | AF6: 0.3334316667 | AG6: 0.3339033333 | AH6: 0.3339516667 | AI6: 0.336955 | AJ6: 0.3352883333 | AK6: 0.3357416667 | AL6: 0.335235 | AM6: 0.3370725 | AN6: 0.3375733333 | AO6: 0.3380866667 | AP6: 0.3387658333 | AQ6: 0.3376066667 | AR6: 0.3382466667 | AS6: 0.3386666667 | AT6: 0.33774 | AU6: 0.3403158333 | AV6: 0.3409708333 | AW6: 0.3418733333 | AX6: 0.3417491667 | AY6: 0.3433658333 | AZ6: 0.3433025 | BA6: 0.3436216667 | BB6: 0.3429833333 | BC6: 0.3447533333 | BD6: 0.3450241667 | BE6: 0.3460216667 | BF6: 0.3453741667 | BG6: 0.3457816667 | BH6: 0.3460591667 | BI6: 0.3468183333 | BJ6: 0.3468975 | BK6: 0.347915 | BL6: 0.3488175 | BM6: 0.3497525 | BN6: 0.3492375 | BO6: 0.3484058333 | BP6: 0.3478291667 | BQ6: 0.3497408333 | BR6: 0.3499308333 | BS6: 0.3491891667 | BT6: 0.3507433333 | BU6: 0.3496483333 | BV6: 0.3511666667 | BW6: 0.3524866667 | BX6: 0.3526225 | BY6: 0.3548158333 | BZ6: 0.35602 | CA6: 0.3556666667 | CB6: 0.3570658333 | CC6: 0.35649 | CD6: 0.3591358333 | CE6: 0.3589466667 | CF6: 0.3592033333 | CG6: 0.3601533333 | CH6: 0.3622266667 | CI6: 0.3623641667 | CJ6: 0.3634125 | CK6: 0.3644866667 | CL6: 0.3630875 | CM6: 0.3646208333 | CN6: 0.3672641667 | CO6: 0.3674466667 | CP6: 0.3694241667 | CQ6: 0.3688141667 | CR6: 0.3701233333 | CS6: 0.371275 | CT6: 0.3715675 | CU6: 0.3718666667 | CV6: 0.3746891667 | CW6: 0.3752116667 | CX6: 0.3769358333
B7: 7x2x | C7: 0.1615225 | D7: 0.1614558333 | E7: 0.1811391667 | F7: 0.2379483333 | G7: 0.2363683333 | H7: 0.2486366667 | I7: 0.2535825 | J7: 0.2642491667 | K7: 0.26674 | L7: 0.2836966667 | M7: 0.2877466667 | N7: 0.2902225 | O7: 0.2949891667 | P7: 0.2984191667 | Q7: 0.3028458333 | R7: 0.3054808333 | S7: 0.3086991667 | T7: 0.3094075 | U7: 0.3120725 | V7: 0.3122483333 | W7: 0.3139816667 | X7: 0.3142891667 | Y7: 0.3161458333 | Z7: 0.3148925 | AA7: 0.3155575 | AB7: 0.3185883333 | AC7: 0.3196175 | AD7: 0.3227666667 | AE7: 0.3231875 | AF7: 0.3245633333 | AG7: 0.3256725 | AH7: 0.3272091667 | AI7: 0.3295808333 | AJ7: 0.3289716667 | AK7: 0.3274591667 | AL7: 0.3283408333 | AM7: 0.3280983333 | AN7: 0.3297408333 | AO7: 0.3293425 | AP7: 0.3281058333 | AQ7: 0.3301066667 | AR7: 0.3309158333 | AS7: 0.3321766667 | AT7: 0.33174 | AU7: 0.3339733333 | AV7: 0.3341683333 | AW7: 0.334905 | AX7: 0.3345825 | AY7: 0.3345808333 | AZ7: 0.3365983333 | BA7: 0.3374683333 | BB7: 0.3382958333 | BC7: 0.3371516667 | BD7: 0.3388275 | BE7: 0.3379583333 | BF7: 0.3382025 | BG7: 0.3370883333 | BH7: 0.3378058333 | BI7: 0.33796 | BJ7: 0.3387408333 | BK7: 0.3407958333 | BL7: 0.340755 | BM7: 0.3428308333 | BN7: 0.3438833333 | BO7: 0.3427233333 | BP7: 0.345005 | BQ7: 0.3462083333 | BR7: 0.3454508333 | BS7: 0.3476508333 | BT7: 0.3474883333 | BU7: 0.3478716667 | BV7: 0.3507316667 | BW7: 0.3512466667 | BX7: 0.3521733333 | BY7: 0.3533583333 | BZ7: 0.3539583333 | CA7: 0.3544008333 | CB7: 0.354905 | CC7: 0.3551041667 | CD7: 0.3579383333 | CE7: 0.3578216667 | CF7: 0.3577391667 | CG7: 0.3593958333 | CH7: 0.3631083333 | CI7: 0.36359 | CJ7: 0.3638475 | CK7: 0.3634875 | CL7: 0.3640491667 | CM7: 0.3674258333 | CN7: 0.3673016667 | CO7: 0.3693958333 | CP7: 0.3715825 | CQ7: 0.3716583333 | CR7: 0.3724116667 | CS7: 0.37213 | CT7: 0.3747833333 | CU7: 0.3755008333 | CV7: 0.3763091667 | CW7: 0.3786008333 | CX7: 0.3828825
B8: 8x2x | C8: 0.1628491667 | D8: 0.1636125 | E8: 0.1830625 | F8: 0.2394491667 | G8: 0.2383358333 | H8: 0.2532375 | I8: 0.2577908333 | J8: 0.2765391667 | K8: 0.2784525 | L8: 0.294135 | M8: 0.2956891667 | N8: 0.2991975 | O8: 0.3037783333 | P8: 0.3059816667 | Q8: 0.3102583333 | R8: 0.3127883333 | S8: 0.3146 | T8: 0.3169416667 | U8: 0.3147175 | V8: 0.316165 | W8: 0.3175275 | X8: 0.3173958333 | Y8: 0.3181716667 | Z8: 0.3214916667 | AA8: 0.3259675 | AB8: 0.3248225 | AC8: 0.3265 | AD8: 0.3286825 | AE8: 0.3283866667 | AF8: 0.33055 | AG8: 0.3308616667 | AH8: 0.3330666667 | AI8: 0.334255 | AJ8: 0.3347541667 | AK8: 0.332455 | AL8: 0.332075 | AM8: 0.3340833333 | AN8: 0.3335541667 | AO8: 0.3343916667 | AP8: 0.3354233333 | AQ8: 0.3364608333 | AR8: 0.3387833333 | AS8: 0.33954 | AT8: 0.3375291667 | AU8: 0.3408933333 | AV8: 0.3389033333 | AW8: 0.3371466667 | AX8: 0.3381866667 | AY8: 0.3395966667 | AZ8: 0.34019 | BA8: 0.3420375 | BB8: 0.3455075 | BC8: 0.345365 | BD8: 0.3471516667 | BE8: 0.3463483333 | BF8: 0.3476275 | BG8: 0.3448933333 | BH8: 0.3494158333 | BI8: 0.3479316667 | BJ8: 0.3481391667 | BK8: 0.3514533333 | BL8: 0.3526 | BM8: 0.3567525 | BN8: 0.3567441667 | BO8: 0.3555708333 | BP8: 0.3579691667 | BQ8: 0.3571416667 | BR8: 0.3586891667 | BS8: 0.3598116667 | BT8: 0.3607333333 | BU8: 0.3600741667 | BV8: 0.3630016667 | BW8: 0.3631191667 | BX8: 0.3658575 | BY8: 0.3700583333 | BZ8: 0.3696225 | CA8: 0.3711058333 | CB8: 0.3709625 | CC8: 0.3711466667 | CD8: 0.3736991667 | CE8: 0.373865 | CF8: 0.37448 | CG8: 0.373975 | CH8: 0.3790366667 | CI8: 0.3793116667 | CJ8: 0.379935 | CK8: 0.382095 | CL8: 0.382695 | CM8: 0.3828516667 | CN8: 0.3836266667 | CO8: 0.3864683333 | CP8: 0.3888616667 | CQ8: 0.388185 | CR8: 0.3906516667 | CS8: 0.3918058333 | CT8: 0.3930433333 | CU8: 0.3940966667 | CV8: 0.3946633333 | CW8: 0.3979933333 | CX8: 0.4029066667
B9: 9x2x | C9: 0.1632633333 | D9: 0.1612183333 | E9: 0.1818433333 | F9: 0.2366216667 | G9: 0.2366483333 | H9: 0.2635075 | I9: 0.2666116667 | J9: 0.2837275 | K9: 0.2852816667 | L9: 0.2989891667 | M9: 0.2974208333 | N9: 0.3036116667 | O9: 0.3074558333 | P9: 0.3080033333 | Q9: 0.3095575 | R9: 0.3098191667 | S9: 0.3128058333 | T9: 0.3129933333 | U9: 0.3181041667 | V9: 0.3191933333 | W9: 0.3209208333 | X9: 0.3192983333 | Y9: 0.3207691667 | Z9: 0.32454 | AA9: 0.3254683333 | AB9: 0.3267325 | AC9: 0.3264558333 | AD9: 0.3295658333 | AE9: 0.3294475 | AF9: 0.3320991667 | AG9: 0.3332708333 | AH9: 0.3354991667 | AI9: 0.3337258333 | AJ9: 0.3338558333 | AK9: 0.3339066667 | AL9: 0.3350408333 | AM9: 0.3363191667 | AN9: 0.336025 | AO9: 0.3362966667 | AP9: 0.3382916667 | AQ9: 0.3398441667 | AR9: 0.3396908333 | AS9: 0.34367 | AT9: 0.3439 | AU9: 0.3446758333 | AV9: 0.3481141667 | AW9: 0.3468625 | AX9: 0.3468016667 | AY9: 0.3476766667 | AZ9: 0.3486708333 | BA9: 0.3518058333 | BB9: 0.3529308333 | BC9: 0.3527908333 | BD9: 0.3545658333 | BE9: 0.3556933333 | BF9: 0.3563175 | BG9: 0.3553825 | BH9: 0.3605841667 | BI9: 0.3606975 | BJ9: 0.3620166667 | BK9: 0.3629666667 | BL9: 0.3642416667 | BM9: 0.3650666667 | BN9: 0.3672575 | BO9: 0.3678433333 | BP9: 0.3697816667 | BQ9: 0.3700316667 | BR9: 0.3726691667 | BS9: 0.3734941667 | BT9: 0.374265 | BU9: 0.3734766667 | BV9: 0.3775483333 | BW9: 0.3773008333 | BX9: 0.3792891667 | BY9: 0.3828291667 | BZ9: 0.3834708333 | CA9: 0.38692 | CB9: 0.386685 | CC9: 0.3881183333 | CD9: 0.3907483333 | CE9: 0.390115 | CF9: 0.3906441667 | CG9: 0.3904575 | CH9: 0.3954425 | CI9: 0.3956025 | CJ9: 0.3978008333 | CK9: 0.3990083333 | CL9: 0.3996833333 | CM9: 0.4004158333 | CN9: 0.4010816667 | CO9: 0.40418 | CP9: 0.4059316667 | CQ9: 0.4065083333 | CR9: 0.4091658333 | CS9: 0.411925 | CT9: 0.4133741667 | CU9: 0.4162333333 | CV9: 0.4176391667 | CW9: 0.4189933333 | CX9: 0.4239416667
B10: Tx2x | C10: 0.1627416667 | D10: 0.15996 | E10: 0.1780325 | F10: 0.2363 | G10: 0.250925 | H10: 0.2725925 | I10: 0.2728991667 | J10: 0.2880725 | K10: 0.288825 | L10: 0.2934925 | M10: 0.29445 | N10: 0.3005808333 | O10: 0.3044058333 | P10: 0.3059325 | Q10: 0.31234 | R10: 0.3138225 | S10: 0.31419 | T10: 0.3149208333 | U10: 0.3188758333 | V10: 0.3203966667 | W10: 0.3234741667 | X10: 0.3225308333 | Y10: 0.3214966667 | Z10: 0.3253725 | AA10: 0.327425 | AB10: 0.3269283333 | AC10: 0.3279508333 | AD10: 0.3325616667 | AE10: 0.3326941667 | AF10: 0.3377966667 | AG10: 0.3372158333 | AH10: 0.3397975 | AI10: 0.3411341667 | AJ10: 0.3418891667 | AK10: 0.3405408333 | AL10: 0.3423891667 | AM10: 0.3440091667 | AN10: 0.3443291667 | AO10: 0.3467025 | AP10: 0.34819 | AQ10: 0.3493383333 | AR10: 0.3491308333 | AS10: 0.3536291667 | AT10: 0.3536383333 | AU10: 0.3553175 | AV10: 0.3559566667 | AW10: 0.3563441667 | AX10: 0.3603358333 | AY10: 0.3616291667 | AZ10: 0.36212 | BA10: 0.3648758333 | BB10: 0.3650958333 | BC10: 0.3652841667 | BD10: 0.3670141667 | BE10: 0.3695608333 | BF10: 0.3696658333 | BG10: 0.3691775 | BH10: 0.3714825 | BI10: 0.3746408333 | BJ10: 0.37587 | BK10: 0.3776508333 | BL10: 0.3792741667 | BM10: 0.3819375 | BN10: 0.3824116667 | BO10: 0.3845483333 | BP10: 0.3855183333 | BQ10: 0.38571 | BR10: 0.3880608333 | BS10: 0.3898991667 | BT10: 0.3924133333 | BU10: 0.3919408333 | BV10: 0.3954366667 | BW10: 0.3959583333 | BX10: 0.3980791667 | BY10: 0.4009108333 | BZ10: 0.4013516667 | CA10: 0.403455 | CB10: 0.4053766667 | CC10: 0.4060391667 | CD10: 0.4094141667 | CE10: 0.4092416667 | CF10: 0.4102333333 | CG10: 0.4112508333 | CH10: 0.4137883333 | CI10: 0.4161008333 | CJ10: 0.4172691667 | CK10: 0.41885 | CL10: 0.4197875 | CM10: 0.4218241667 | CN10: 0.4240833333 | CO10: 0.4272241667 | CP10: 0.43035 | CQ10: 0.4315466667 | CR10: 0.4322591667 | CS10: 0.43534 | CT10: 0.4382316667 | CU10: 0.440505 | CV10: 0.44195 | CW10: 0.4441308333 | CX10: 0.4480366667
B11: Jx2x | C11: 0.1575366667 | D11: 0.1517441667 | E11: 0.2043933333 | F11: 0.2539641667 | G11: 0.2600591667 | H11: 0.2794541667 | I11: 0.2839233333 | J11: 0.2873316667 | K11: 0.286385 | L11: 0.3009341667 | M11: 0.3039808333 | N11: 0.3084575 | O11: 0.3081366667 | P11: 0.3086783333 | Q11: 0.3160625 | R11: 0.318735 | S11: 0.3220025 | T11: 0.3225116667 | U11: 0.3264791667 | V11: 0.3253658333 | W11: 0.327135 | X11: 0.3301666667 | Y11: 0.3299633333 | Z11: 0.3348733333 | AA11: 0.3359666667 | AB11: 0.3366925 | AC11: 0.3380016667 | AD11: 0.3401133333 | AE11: 0.3433625 | AF11: 0.3473 | AG11: 0.3477533333 | AH11: 0.3485016667 | AI11: 0.349475 | AJ11: 0.3483716667 | AK11: 0.3479158333 | AL11: 0.3496583333 | AM11: 0.3538541667 | AN11: 0.3577266667 | AO11: 0.3604075 | AP11: 0.361155 | AQ11: 0.3622658333 | AR11: 0.36082 | AS11: 0.3677575 | AT11: 0.3665725 | AU11: 0.3685091667 | AV11: 0.3694375 | AW11: 0.3726533333 | AX11: 0.3768741667 | AY11: 0.37748 | AZ11: 0.3798616667 | BA11: 0.3805566667 | BB11: 0.381145 | BC11: 0.3812858333 | BD11: 0.38214 | BE11: 0.3845783333 | BF11: 0.3884058333 | BG11: 0.3870941667 | BH11: 0.3919766667 | BI11: 0.3946941667 | BJ11: 0.3959308333 | BK11: 0.3991791667 | BL11: 0.3982108333 | BM11: 0.4012458333 | BN11: 0.403165 | BO11: 0.4043741667 | BP11: 0.4079625 | BQ11: 0.4083616667 | BR11: 0.4105075 | BS11: 0.4128608333 | BT11: 0.4145841667 | BU11: 0.4141325 | BV11: 0.4169225 | BW11: 0.4181975 | BX11: 0.4190575 | BY11: 0.4235533333 | BZ11: 0.4247508333 | CA11: 0.4253416667 | CB11: 0.4288225 | CC11: 0.4322216667 | CD11: 0.4325533333 | CE11: 0.4347325 | CF11: 0.435275 | CG11: 0.4366833333 | CH11: 0.4410116667 | CI11: 0.4421758333 | CJ11: 0.4445358333 | CK11: 0.4468225 | CL11: 0.44829 | CM11: 0.4493441667 | CN11: 0.45098 | CO11: 0.4538958333 | CP11: 0.4554025 | CQ11: 0.4582075 | CR11: 0.45966 | CS11: 0.4618175 | CT11: 0.4641041667 | CU11: 0.4663016667 | CV11: 0.4675391667 | CW11: 0.4696658333 | CX11: 0.4728791667
B12: Qx2x | C12: 0.15382 | D12: 0.1912308333 | E12: 0.2310225 | F12: 0.2655066667 | G12: 0.2765375 | H12: 0.2801816667 | I12: 0.2843658333 | J12: 0.2977175 | K12: 0.3007191667 | L12: 0.3060791667 | M12: 0.3086216667 | N12: 0.3135025 | O12: 0.3179941667 | P12: 0.3186908333 | Q12: 0.3291975 | R12: 0.331665 | S12: 0.3334158333 | T12: 0.3338475 | U12: 0.3375516667 | V12: 0.334755 | W12: 0.3389966667 | X12: 0.3423525 | Y12: 0.3423858333 | Z12: 0.3446975 | AA12: 0.345355 | AB12: 0.3543916667 | AC12: 0.3554758333 | AD12: 0.358595 | AE12: 0.3613 | AF12: 0.3643133333 | AG12: 0.3641483333 | AH12: 0.3648233333 | AI12: 0.3653825 | AJ12: 0.3651683333 | AK12: 0.36462 | AL12: 0.3648083333 | AM12: 0.374095 | AN12: 0.3792041667 | AO12: 0.381205 | AP12: 0.3819483333 | AQ12: 0.383585 | AR12: 0.3833016667 | AS12: 0.3872491667 | AT12: 0.3877116667 | AU12: 0.3890316667 | AV12: 0.3950958333 | AW12: 0.3997991667 | AX12: 0.4029666667 | AY12: 0.40252 | AZ12: 0.4047291667 | BA12: 0.4048108333 | BB12: 0.4070083333 | BC12: 0.4075008333 | BD12: 0.411635 | BE12: 0.4138325 | BF12: 0.4165391667 | BG12: 0.41521 | BH12: 0.4187341667 | BI12: 0.42275 | BJ12: 0.4228225 | BK12: 0.4255 | BL12: 0.4274316667 | BM12: 0.42865 | BN12: 0.4315008333 | BO12: 0.43336 | BP12: 0.4361816667 | BQ12: 0.4375641667 | BR12: 0.4393833333 | BS12: 0.4439583333 | BT12: 0.444375 | BU12: 0.4445666667 | BV12: 0.4483558333 | BW12: 0.4486808333 | BX12: 0.4523125 | BY12: 0.4549975 | BZ12: 0.4568591667 | CA12: 0.4592216667 | CB12: 0.4623933333 | CC12: 0.463805 | CD12: 0.4634216667 | CE12: 0.4681016667 | CF12: 0.4697358333 | CG12: 0.4699258333 | CH12: 0.4732975 | CI12: 0.47488 | CJ12: 0.4758216667 | CK12: 0.4772533333 | CL12: 0.479405 | CM12: 0.480235 | CN12: 0.4824758333 | CO12: 0.4859166667 | CP12: 0.486845 | CQ12: 0.487295 | CR12: 0.4887725 | CS12: 0.4914425 | CT12: 0.4926191667 | CU12: 0.4944083333 | CV12: 0.4965016667 | CW12: 0.4983458333 | CX12: 0.5007958333
B13: Kx2x | C13: 0.1364875 | D13: 0.23287 | E13: 0.2513266667 | F13: 0.2640616667 | G13: 0.2773391667 | H13: 0.29874 | I13: 0.3021625 | J13: 0.3124758333 | K13: 0.311345 | L13: 0.3172066667 | M13: 0.3185583333 | N13: 0.3275825 | O13: 0.3269733333 | P13: 0.3326591667 | Q13: 0.3421183333 | R13: 0.3413791667 | S13: 0.3408208333 | T13: 0.3404683333 | U13: 0.3442008333 | V13: 0.3580691667 | W13: 0.3618908333 | X13: 0.364645 | Y13: 0.3734266667 | Z13: 0.3751883333 | AA13: 0.3739416667 | AB13: 0.38398 | AC13: 0.3842716667 | AD13: 0.3869208333 | AE13: 0.3882358333 | AF13: 0.3894233333 | AG13: 0.38977 | AH13: 0.3933566667 | AI13: 0.3992033333 | AJ13: 0.4007475 | AK13: 0.3992708333 | AL13: 0.3994183333 | AM13: 0.4060108333 | AN13: 0.4115825 | AO13: 0.41402 | AP13: 0.413785 | AQ13: 0.4155275 | AR13: 0.4163616667 | AS13: 0.4236366667 | AT13: 0.4252966667 | AU13: 0.4255066667 | AV13: 0.4314416667 | AW13: 0.4353158333 | AX13: 0.4391733333 | AY13: 0.4392308333 | AZ13: 0.44118 | BA13: 0.444935 | BB13: 0.4489233333 | BC13: 0.4497675 | BD13: 0.4543808333 | BE13: 0.4549416667 | BF13: 0.4573916667 | BG13: 0.4572233333 | BH13: 0.4619991667 | BI13: 0.4617908333 | BJ13: 0.465815 | BK13: 0.468085 | BL13: 0.470495 | BM13: 0.4726166667 | BN13: 0.4738016667 | BO13: 0.4755841667 | BP13: 0.4781141667 | BQ13: 0.4804758333 | BR13: 0.4809875 | BS13: 0.48379 | BT13: 0.4858108333 | BU13: 0.4877283333 | BV13: 0.4898175 | BW13: 0.4901041667 | BX13: 0.4939008333 | BY13: 0.4953991667 | BZ13: 0.4973966667 | CA13: 0.49719 | CB13: 0.5009 | CC13: 0.5018016667 | CD13: 0.5025266667 | CE13: 0.5047175 | CF13: 0.5069316667 | CG13: 0.5066575 | CH13: 0.5090458333 | CI13: 0.5101816667 | CJ13: 0.5123466667 | CK13: 0.5123591667 | CL13: 0.5140683333 | CM13: 0.51517 | CN13: 0.5158616667 | CO13: 0.5180641667 | CP13: 0.5190008333 | CQ13: 0.5204383333 | CR13: 0.5220816667 | CS13: 0.522975 | CT13: 0.5241075 | CU13: 0.5251116667 | CV13: 0.5276516667 | CW13: 0.52719 | CX13: 0.5321858333
B14: Ax2x | C14: 0.2552316667 | D14: 0.2931091667 | E14: 0.2997775 | F14: 0.2983575 | G14: 0.3032025 | H14: 0.3066608333 | I14: 0.30611 | J14: 0.3214791667 | K14: 0.3327391667 | L14: 0.3617483333 | M14: 0.3673483333 | N14: 0.37075 | O14: 0.3909091667 | P14: 0.3952475 | Q14: 0.3974325 | R14: 0.3995633333 | S14: 0.4115175 | T14: 0.4126641667 | U14: 0.41071 | V14: 0.427795 | W14: 0.4309291667 | X14: 0.4308416667 | Y14: 0.4380425 | Z14: 0.4409625 | AA14: 0.4411133333 | AB14: 0.4485466667 | AC14: 0.4551908333 | AD14: 0.4561083333 | AE14: 0.4582358333 | AF14: 0.4580141667 | AG14: 0.4597641667 | AH14: 0.4632516667 | AI14: 0.4685416667 | AJ14: 0.4710691667 | AK14: 0.47201 | AL14: 0.4770275 | AM14: 0.48091 | AN14: 0.4834608333 | AO14: 0.4854275 | AP14: 0.4885683333 | AQ14: 0.49203 | AR14: 0.4922291667 | AS14: 0.4969408333 | AT14: 0.4978825 | AU14: 0.5016308333 | AV14: 0.5030066667 | AW14: 0.5062383333 | AX14: 0.5077791667 | AY14: 0.5105091667 | AZ14: 0.5115775 | BA14: 0.5137183333 | BB14: 0.5164208333 | BC14: 0.5171416667 | BD14: 0.5206541667 | BE14: 0.5214208333 | BF14: 0.5221083333 | BG14: 0.5249966667 | BH14: 0.5276175 | BI14: 0.5288558333 | BJ14: 0.529735 | BK14: 0.5318575 | BL14: 0.5325366667 | BM14: 0.532715 | BN14: 0.5346058333 | BO14: 0.5355775 | BP14: 0.5373375 | BQ14: 0.538135 | BR14: 0.5381933333 | BS14: 0.5394508333 | BT14: 0.54114 | BU14: 0.5435108333 | BV14: 0.5444591667 | BW14: 0.5459125 | BX14: 0.5455591667 | BY14: 0.5472825 | BZ14: 0.548555 | CA14: 0.5488308333 | CB14: 0.5492933333 | CC14: 0.5522191667 | CD14: 0.5518508333 | CE14: 0.5544625 | CF14: 0.555425 | CG14: 0.55539 | CH14: 0.5565208333 | CI14: 0.55697 | CJ14: 0.557855 | CK14: 0.5580216667 | CL14: 0.5595833333 | CM14: 0.5599541667 | CN14: 0.5613508333 | CO14: 0.5618916667 | CP14: 0.5626691667 | CQ14: 0.5645633333 | CR14: 0.5650116667 | CS14: 0.5662216667 | CT14: 0.5672575 | CU14: 0.5677708333 | CV14: 0.5702508333 | CW14: 0.5700783333 | CX14: 0.5745766667
B15: 2y2x | C15: 0.1797141667 | D15: 0.1806991667 | E15: 0.2187116667 | F15: 0.3148875 | G15: 0.3131525 | H15: 0.3363983333 | I15: 0.343115 | J15: 0.3607825 | K15: 0.3653833333 | L15: 0.3919816667 | M15: 0.3976541667 | N15: 0.3956475 | O15: 0.4056033333 | P15: 0.4078625 | Q15: 0.4180066667 | R15: 0.4147483333 | S15: 0.4183216667 | T15: 0.4204283333 | U15: 0.426275 | V15: 0.4336691667 | W15: 0.43042 | X15: 0.4297025 | Y15: 0.4317625 | Z15: 0.4374091667 | AA15: 0.4400375 | AB15: 0.4413816667 | AC15: 0.4457566667 | AD15: 0.45041 | AE15: 0.449065 | AF15: 0.448305 | AG15: 0.4482033333 | AH15: 0.4515191667 | AI15: 0.4519566667 | AJ15: 0.4538533333 | AK15: 0.45717 | AL15: 0.4589808333 | AM15: 0.459755 | AN15: 0.4608883333 | AO15: 0.461175 | AP15: 0.4632525 | AQ15: 0.4653591667 | AR15: 0.4653675 | AS15: 0.4664916667 | AT15: 0.4666616667 | AU15: 0.4684208333 | AV15: 0.4689866667 | AW15: 0.4703775 | AX15: 0.4702633333 | AY15: 0.4726566667 | AZ15: 0.4724641667 | BA15: 0.4729683333 | BB15: 0.4741283333 | BC15: 0.474935 | BD15: 0.4762566667 | BE15: 0.4756225 | BF15: 0.476785 | BG15: 0.4784775 | BH15: 0.4786533333 | BI15: 0.4791533333 | BJ15: 0.4802583333 | BK15: 0.480475 | BL15: 0.482595 | BM15: 0.4808225 | BN15: 0.4815083333 | BO15: 0.4813366667 | BP15: 0.4825375 | BQ15: 0.4839525 | BR15: 0.48382 | BS15: 0.484595 | BT15: 0.4847366667 | BU15: 0.486545 | BV15: 0.4873808333 | BW15: 0.4864908333 | BX15: 0.4875583333 | BY15: 0.48863 | BZ15: 0.4891916667 | CA15: 0.4882725 | CB15: 0.4878825 | CC15: 0.4893416667 | CD15: 0.4914125 | CE15: 0.4921216667 | CF15: 0.4923891667 | CG15: 0.4911375 | CH15: 0.4932925 | CI15: 0.49343 | CJ15: 0.4943766667 | CK15: 0.4942733333 | CL15: 0.4951666667 | CM15: 0.4960458333 | CN15: 0.4961816667 | CO15: 0.4970591667 | CP15: 0.49711 | CQ15: 0.4966258333 | CR15: 0.4978783333 | CS15: 0.4987566667 | CT15: 0.49881 | CU15: 0.499985 | CV15: 0.5011258333 | CW15: 0.500305 | CX15: 0.50376
B16: 3y2x | C16: 0.1348583333 | D16: 0.1393283333 | E16: 0.1617875 | F16: 0.2176875 | G16: 0.2168366667 | H16: 0.2308066667 | I16: 0.2350216667 | J16: 0.2445391667 | K16: 0.2481483333 | L16: 0.2643466667 | M16: 0.2673108333 | N16: 0.2664408333 | O16: 0.2714741667 | P16: 0.2733216667 | Q16: 0.2785425 | R16: 0.2762241667 | S16: 0.2789383333 | T16: 0.2782558333 | U16: 0.2819791667 | V16: 0.2843791667 | W16: 0.2811358333 | X16: 0.2827066667 | Y16: 0.2854333333 | Z16: 0.2856325 | AA16: 0.2876841667 | AB16: 0.2907125 | AC16: 0.2926425 | AD16: 0.2948766667 | AE16: 0.2944233333 | AF16: 0.2942408333 | AG16: 0.2939416667 | AH16: 0.2946733333 | AI16: 0.2947833333 | AJ16: 0.29365 | AK16: 0.2937916667 | AL16: 0.2949341667 | AM16: 0.297035 | AN16: 0.2974183333 | AO16: 0.2993583333 | AP16: 0.2989375 | AQ16: 0.300455 | AR16: 0.3006933333 | AS16: 0.3015958333 | AT16: 0.3017091667 | AU16: 0.3025008333 | AV16: 0.3025725 | AW16: 0.3030333333 | AX16: 0.304065 | AY16: 0.3049875 | AZ16: 0.3057166667 | BA16: 0.3059008333 | BB16: 0.3070908333 | BC16: 0.3067208333 | BD16: 0.3068208333 | BE16: 0.3073608333 | BF16: 0.3076275 | BG16: 0.3067891667 | BH16: 0.3090225 | BI16: 0.3084691667 | BJ16: 0.3094983333 | BK16: 0.3084508333 | BL16: 0.3090708333 | BM16: 0.3105833333 | BN16: 0.310195 | BO16: 0.3109933333 | BP16: 0.3108908333 | BQ16: 0.3118925 | BR16: 0.310505 | BS16: 0.31208 | BT16: 0.3127325 | BU16: 0.3113225 | BV16: 0.3112066667 | BW16: 0.3138258333 | BX16: 0.3125641667 | BY16: 0.3132841667 | BZ16: 0.3131983333 | CA16: 0.3142833333 | CB16: 0.3142858333 | CC16: 0.3149816667 | CD16: 0.3148325 | CE16: 0.3153625 | CF16: 0.3168108333 | CG16: 0.3163 | CH16: 0.3173791667 | CI16: 0.3166825 | CJ16: 0.3175708333 | CK16: 0.3182991667 | CL16: 0.3168291667 | CM16: 0.3191158333 | CN16: 0.3184925 | CO16: 0.3187825 | CP16: 0.3196633333 | CQ16: 0.3199116667 | CR16: 0.3204875 | CS16: 0.3191791667 | CT16: 0.3206966667 | CU16: 0.3195316667 | CV16: 0.3201 | CW16: 0.3213283333 | CX16: 0.3228266667
B17: 4y2x | C17: 0.1402758333 | D17: 0.1443566667 | E17: 0.1665891667 | F17: 0.2219475 | G17: 0.2212125 | H17: 0.2329325 | I17: 0.2380391667 | J17: 0.2495133333 | K17: 0.25153 | L17: 0.2678116667 | M17: 0.270375 | N17: 0.2687416667 | O17: 0.2743716667 | P17: 0.2771258333 | Q17: 0.2819491667 | R17: 0.2777433333 | S17: 0.2804741667 | T17: 0.2824733333 | U17: 0.2858283333 | V17: 0.2884691667 | W17: 0.2882158333 | X17: 0.2881916667 | Y17: 0.2911141667 | Z17: 0.2927416667 | AA17: 0.2934633333 | AB17: 0.2959641667 | AC17: 0.2977875 | AD17: 0.299755 | AE17: 0.3002175 | AF17: 0.2979558333 | AG17: 0.2995016667 | AH17: 0.3003158333 | AI17: 0.3013441667 | AJ17: 0.3020958333 | AK17: 0.3021491667 | AL17: 0.3036558333 | AM17: 0.3034825 | AN17: 0.3044075 | AO17: 0.3056025 | AP17: 0.3058766667 | AQ17: 0.3068508333 | AR17: 0.3063683333 | AS17: 0.3079441667 | AT17: 0.30775 | AU17: 0.309495 | AV17: 0.3108125 | AW17: 0.3084308333 | AX17: 0.3106908333 | AY17: 0.3105658333 | AZ17: 0.3095916667 | BA17: 0.3098391667 | BB17: 0.3114291667 | BC17: 0.3125066667 | BD17: 0.3133308333 | BE17: 0.31399 | BF17: 0.3152475 | BG17: 0.3136816667 | BH17: 0.3143316667 | BI17: 0.3147391667 | BJ17: 0.3154875 | BK17: 0.3160825 | BL17: 0.3145841667 | BM17: 0.3140666667 | BN17: 0.3146566667 | BO17: 0.3151533333 | BP17: 0.31625 | BQ17: 0.316805 | BR17: 0.3177683333 | BS17: 0.3183516667 | BT17: 0.318315 | BU17: 0.31863 | BV17: 0.3195283333 | BW17: 0.3190491667 | BX17: 0.3191833333 | BY17: 0.3203225 | BZ17: 0.3212008333 | CA17: 0.3209266667 | CB17: 0.3223225 | CC17: 0.3201825 | CD17: 0.321985 | CE17: 0.3220208333 | CF17: 0.3224241667 | CG17: 0.322015 | CH17: 0.3221583333 | CI17: 0.3230825 | CJ17: 0.3241716667 | CK17: 0.3233458333 | CL17: 0.324545 | CM17: 0.3253233333 | CN17: 0.3236733333 | CO17: 0.3274208333 | CP17: 0.3269833333 | CQ17: 0.3267316667 | CR17: 0.3274833333 | CS17: 0.3287258333 | CT17: 0.3283391667 | CU17: 0.3291808333 | CV17: 0.330545 | CW17: 0.3308441667 | CX17: 0.3319008333
B18: 5y2x | C18: 0.1445208333 | D18: 0.1482516667 | E18: 0.1700025 | F18: 0.2255458333 | G18: 0.2245458333 | H18: 0.2379658333 | I18: 0.2417675 | J18: 0.2520933333 | K18: 0.2548866667 | L18: 0.2719758333 | M18: 0.2746341667 | N18: 0.2728733333 | O18: 0.2779758333 | P18: 0.277415 | Q18: 0.2849933333 | R18: 0.2836258333 | S18: 0.286955 | T18: 0.2881791667 | U18: 0.29024 | V18: 0.2941675 | W18: 0.2959025 | X18: 0.2966091667 | Y18: 0.2978791667 | Z18: 0.2994408333 | AA18: 0.2985383333 | AB18: 0.29852 | AC18: 0.3008883333 | AD18: 0.3030975 | AE18: 0.30227 | AF18: 0.3048058333 | AG18: 0.3052725 | AH18: 0.3086958333 | AI18: 0.3099666667 | AJ18: 0.3091241667 | AK18: 0.3078133333 | AL18: 0.3105508333 | AM18: 0.3106533333 | AN18: 0.3104758333 | AO18: 0.3114366667 | AP18: 0.3123741667 | AQ18: 0.3131025 | AR18: 0.3131375 | AS18: 0.3134025 | AT18: 0.31339 | AU18: 0.3135825 | AV18: 0.314 | AW18: 0.31459 | AX18: 0.3152766667 | AY18: 0.3162041667 | AZ18: 0.3173616667 | BA18: 0.3171591667 | BB18: 0.3182875 | BC18: 0.3182608333 | BD18: 0.3196416667 | BE18: 0.31935 | BF18: 0.3202366667 | BG18: 0.3179308333 | BH18: 0.3199725 | BI18: 0.3193658333 | BJ18: 0.3194525 | BK18: 0.3205675 | BL18: 0.3211666667 | BM18: 0.3213408333 | BN18: 0.3236016667 | BO18: 0.3215591667 | BP18: 0.3222358333 | BQ18: 0.3239508333 | BR18: 0.3234475 | BS18: 0.3234866667 | BT18: 0.32427 | BU18: 0.3240691667 | BV18: 0.3241566667 | BW18: 0.325395 | BX18: 0.3254225 | BY18: 0.3259783333 | BZ18: 0.3269891667 | CA18: 0.3264625 | CB18: 0.3270858333 | CC18: 0.32648 | CD18: 0.3274916667 | CE18: 0.3275025 | CF18: 0.3295058333 | CG18: 0.3284033333 | CH18: 0.3294608333 | CI18: 0.329825 | CJ18: 0.3304966667 | CK18: 0.3322866667 | CL18: 0.3319108333 | CM18: 0.3338008333 | CN18: 0.3334616667 | CO18: 0.3358766667 | CP18: 0.3372216667 | CQ18: 0.3360191667 | CR18: 0.3367066667 | CS18: 0.3374016667 | CT18: 0.3394133333 | CU18: 0.3388683333 | CV18: 0.3407025 | CW18: 0.3415116667 | CX18: 0.3435833333
B19: 6y2x | C19: 0.1329141667 | D19: 0.1323525 | E19: 0.15479 | F19: 0.2124408333 | G19: 0.2112283333 | H19: 0.2234833333 | I19: 0.2286741667 | J19: 0.2381708333 | K19: 0.24079 | L19: 0.25787 | M19: 0.2602533333 | N19: 0.26243 | O19: 0.264025 | P19: 0.2692916667 | Q19: 0.2736708333 | R19: 0.2757341667 | S19: 0.2786716667 | T19: 0.2783866667 | U19: 0.28139 | V19: 0.2850891667 | W19: 0.2869891667 | X19: 0.2859566667 | Y19: 0.2880191667 | Z19: 0.2883566667 | AA19: 0.2920716667 | AB19: 0.2919525 | AC19: 0.2941116667 | AD19: 0.2932441667 | AE19: 0.2931566667 | AF19: 0.2957025 | AG19: 0.2964075 | AH19: 0.2975575 | AI19: 0.2983733333 | AJ19: 0.2988991667 | AK19: 0.2994316667 | AL19: 0.2982641667 | AM19: 0.2992208333 | AN19: 0.300785 | AO19: 0.3013783333 | AP19: 0.3025091667 | AQ19: 0.3022641667 | AR19: 0.3012458333 | AS19: 0.3007416667 | AT19: 0.3012025 | AU19: 0.30397 | AV19: 0.3032441667 | AW19: 0.3036266667 | AX19: 0.3035366667 | AY19: 0.30506 | AZ19: 0.3050275 | BA19: 0.3072291667 | BB19: 0.3049983333 | BC19: 0.3061833333 | BD19: 0.3072608333 | BE19: 0.3080841667 | BF19: 0.3091466667 | BG19: 0.3076041667 | BH19: 0.3084441667 | BI19: 0.3095833333 | BJ19: 0.3096958333 | BK19: 0.3120333333 | BL19: 0.3121191667 | BM19: 0.3126683333 | BN19: 0.3116525 | BO19: 0.31046 | BP19: 0.3124291667 | BQ19: 0.312355 | BR19: 0.3133375 | BS19: 0.3128966667 | BT19: 0.31338 | BU19: 0.3134008333 | BV19: 0.313395 | BW19: 0.3157333333 | BX19: 0.31556 | BY19: 0.3180166667 | BZ19: 0.3178108333 | CA19: 0.3183733333 | CB19: 0.3189158333 | CC19: 0.3195333333 | CD19: 0.3222716667 | CE19: 0.3219275 | CF19: 0.3223058333 | CG19: 0.3239175 | CH19: 0.3263833333 | CI19: 0.3264675 | CJ19: 0.325925 | CK19: 0.3265316667 | CL19: 0.3253466667 | CM19: 0.3276558333 | CN19: 0.3288116667 | CO19: 0.3312783333 | CP19: 0.3331375 | CQ19: 0.332525 | CR19: 0.3331258333 | CS19: 0.3337108333 | CT19: 0.3359366667 | CU19: 0.3361566667 | CV19: 0.3372033333 | CW19: 0.3386291667 | CX19: 0.3401566667
B20: 7y2x | C20: 0.1195758333 | D20: 0.118365 | E20: 0.1403833333 | F20: 0.197395 | G20: 0.1953366667 | H20: 0.2096883333 | I20: 0.2136116667 | J20: 0.225195 | K20: 0.2294433333 | L20: 0.2448283333 | M20: 0.2484333333 | N20: 0.2519941667 | O20: 0.2564291667 | P20: 0.2590325 | Q20: 0.2663341667 | R20: 0.2676966667 | S20: 0.2708258333 | T20: 0.2708408333 | U20: 0.2744333333 | V20: 0.2763166667 | W20: 0.2759116667 | X20: 0.2763208333 | Y20: 0.2779325 | Z20: 0.2770108333 | AA20: 0.2794758333 | AB20: 0.2807133333 | AC20: 0.2820275 | AD20: 0.2862225 | AE20: 0.2863291667 | AF20: 0.2880233333 | AG20: 0.2885708333 | AH20: 0.2897466667 | AI20: 0.2921808333 | AJ20: 0.2908475 | AK20: 0.290125 | AL20: 0.2915716667 | AM20: 0.2908533333 | AN20: 0.2915866667 | AO20: 0.2905166667 | AP20: 0.2903875 | AQ20: 0.292935 | AR20: 0.2931341667 | AS20: 0.2946466667 | AT20: 0.2944841667 | AU20: 0.2957775 | AV20: 0.29704 | AW20: 0.2958958333 | AX20: 0.2960091667 | AY20: 0.29723 | AZ20: 0.2987075 | BA20: 0.2989141667 | BB20: 0.2992566667 | BC20: 0.3005191667 | BD20: 0.3004316667 | BE20: 0.3011183333 | BF20: 0.3009825 | BG20: 0.2992066667 | BH20: 0.3011366667 | BI20: 0.3002233333 | BJ20: 0.3013191667 | BK20: 0.3027925 | BL20: 0.3037391667 | BM20: 0.3050633333 | BN20: 0.3062541667 | BO20: 0.3056066667 | BP20: 0.3077816667 | BQ20: 0.3079416667 | BR20: 0.30855 | BS20: 0.308565 | BT20: 0.3100766667 | BU20: 0.3104083333 | BV20: 0.3125316667 | BW20: 0.3130075 | BX20: 0.3141816667 | BY20: 0.3167875 | BZ20: 0.3170275 | CA20: 0.3177833333 | CB20: 0.3170166667 | CC20: 0.3179058333 | CD20: 0.3219216667 | CE20: 0.3209091667 | CF20: 0.3209925 | CG20: 0.3225558333 | CH20: 0.3274883333 | CI20: 0.3263358333 | CJ20: 0.3271658333 | CK20: 0.3280125 | CL20: 0.3271483333 | CM20: 0.3287133333 | CN20: 0.3302866667 | CO20: 0.3325575 | CP20: 0.3336058333 | CQ20: 0.3349783333 | CR20: 0.3358858333 | CS20: 0.3356841667 | CT20: 0.3377366667 | CU20: 0.3376858333 | CV20: 0.3401933333 | CW20: 0.3427808333 | CX20: 0.345835
B21: 8y2x | C21: 0.1225041667 | D21: 0.1216675 | E21: 0.1426316667 | F21: 0.19967 | G21: 0.199015 | H21: 0.213055 | I21: 0.21769 | J21: 0.23746 | K21: 0.2388266667 | L21: 0.254885 | M21: 0.2578158333 | N21: 0.2610141667 | O21: 0.2641975 | P21: 0.2684516667 | Q21: 0.2722933333 | R21: 0.273795 | S21: 0.2783141667 | T21: 0.2781875 | U21: 0.2774166667 | V21: 0.2785883333 | W21: 0.2796158333 | X21: 0.2794833333 | Y21: 0.2803 | Z21: 0.2846916667 | AA21: 0.2873366667 | AB21: 0.28733 | AC21: 0.2883841667 | AD21: 0.2910191667 | AE21: 0.2906283333 | AF21: 0.2929758333 | AG21: 0.2939941667 | AH21: 0.296215 | AI21: 0.2978025 | AJ21: 0.2969391667 | AK21: 0.2960533333 | AL21: 0.2953258333 | AM21: 0.2959091667 | AN21: 0.2955441667 | AO21: 0.2959616667 | AP21: 0.2988933333 | AQ21: 0.2987058333 | AR21: 0.30048 | AS21: 0.3008691667 | AT21: 0.3012608333 | AU21: 0.3025841667 | AV21: 0.3022466667 | AW21: 0.3018291667 | AX21: 0.3009391667 | AY21: 0.302735 | AZ21: 0.3033366667 | BA21: 0.3056491667 | BB21: 0.3069333333 | BC21: 0.3090016667 | BD21: 0.307475 | BE21: 0.3086883333 | BF21: 0.3100666667 | BG21: 0.3095433333 | BH21: 0.3113841667 | BI21: 0.3098691667 | BJ21: 0.3113683333 | BK21: 0.3151158333 | BL21: 0.3149833333 | BM21: 0.3184941667 | BN21: 0.3192808333 | BO21: 0.3193308333 | BP21: 0.320935 | BQ21: 0.3210033333 | BR21: 0.3220333333 | BS21: 0.3234508333 | BT21: 0.3232366667 | BU21: 0.3239408333 | BV21: 0.3260666667 | BW21: 0.328115 | BX21: 0.3281875 | BY21: 0.3333075 | BZ21: 0.3330758333 | CA21: 0.3340658333 | CB21: 0.3341166667 | CC21: 0.3339666667 | CD21: 0.3375758333 | CE21: 0.3366066667 | CF21: 0.3374125 | CG21: 0.3381716667 | CH21: 0.34257 | CI21: 0.344705 | CJ21: 0.3453091667 | CK21: 0.347195 | CL21: 0.3457425 | CM21: 0.3480058333 | CN21: 0.3488683333 | CO21: 0.3508975 | CP21: 0.3531783333 | CQ21: 0.3515816667 | CR21: 0.3547191667 | CS21: 0.3552433333 | CT21: 0.3587208333 | CU21: 0.3588308333 | CV21: 0.3609825 | CW21: 0.3631833333 | CX21: 0.3682841667
B22: 9y2x | C22: 0.1197008333 | D22: 0.1193166667 | E22: 0.1404708333 | F22: 0.1973583333 | G22: 0.1970525 | H22: 0.2235066667 | I22: 0.2267666667 | J22: 0.2448141667 | K22: 0.2464808333 | L22: 0.2587241667 | M22: 0.2604741667 | N22: 0.2658733333 | O22: 0.2695033333 | P22: 0.2716483333 | Q22: 0.2717633333 | R22: 0.2730991667 | S22: 0.2752325 | T22: 0.2758966667 | U22: 0.2792991667 | V22: 0.2810383333 | W22: 0.28263 | X22: 0.2817658333 | Y22: 0.2830383333 | Z22: 0.2875091667 | AA22: 0.2890391667 | AB22: 0.2896 | AC22: 0.29004 | AD22: 0.2918241667 | AE22: 0.2916108333 | AF22: 0.2949875 | AG22: 0.2958516667 | AH22: 0.2978733333 | AI22: 0.2970166667 | AJ22: 0.2958691667 | AK22: 0.2955858333 | AL22: 0.2981825 | AM22: 0.2987558333 | AN22: 0.2984866667 | AO22: 0.2979908333 | AP22: 0.3007033333 | AQ22: 0.3020208333 | AR22: 0.3027441667 | AS22: 0.3069991667 | AT22: 0.3064866667 | AU22: 0.3074466667 | AV22: 0.3089991667 | AW22: 0.309805 | AX22: 0.3097875 | AY22: 0.3112325 | AZ22: 0.3120125 | BA22: 0.313575 | BB22: 0.3153266667 | BC22: 0.3171333333 | BD22: 0.3174 | BE22: 0.3192291667 | BF22: 0.3194491667 | BG22: 0.3180691667 | BH22: 0.322615 | BI22: 0.3223508333 | BJ22: 0.3241375 | BK22: 0.3261125 | BL22: 0.326755 | BM22: 0.3303283333 | BN22: 0.3295758333 | BO22: 0.3321633333 | BP22: 0.33242 | BQ22: 0.3332158333 | BR22: 0.3362416667 | BS22: 0.3372175 | BT22: 0.3375533333 | BU22: 0.33821 | BV22: 0.3410941667 | BW22: 0.341945 | BX22: 0.34336 | BY22: 0.3474341667 | BZ22: 0.3465216667 | CA22: 0.3503575 | CB22: 0.3507108333 | CC22: 0.3522108333 | CD22: 0.3545108333 | CE22: 0.3551308333 | CF22: 0.3544275 | CG22: 0.3541883333 | CH22: 0.3600133333 | CI22: 0.3586158333 | CJ22: 0.3622541667 | CK22: 0.36475 | CL22: 0.3641358333 | CM22: 0.3651616667 | CN22: 0.3673091667 | CO22: 0.3689683333 | CP22: 0.3705716667 | CQ22: 0.3721058333 | CR22: 0.3752683333 | CS22: 0.3758941667 | CT22: 0.37829 | CU22: 0.38152 | CV22: 0.3843175 | CW22: 0.3862683333 | CX22: 0.3915766667
B23: Ty2x | C23: 0.1204066667 | D23: 0.1179041667 | E23: 0.1366716667 | F23: 0.1971533333 | G23: 0.2123966667 | H23: 0.2347616667 | I23: 0.2335341667 | J23: 0.2489808333 | K23: 0.250315 | L23: 0.2540516667 | M23: 0.2563575 | N23: 0.2632466667 | O23: 0.2659366667 | P23: 0.2665983333 | Q23: 0.2742891667 | R23: 0.2789608333 | S23: 0.2760891667 | T23: 0.2756441667 | U23: 0.2821283333 | V23: 0.283595 | W23: 0.2853266667 | X23: 0.2845225 | Y23: 0.2838908333 | Z23: 0.2883783333 | AA23: 0.2900066667 | AB23: 0.29007 | AC23: 0.2918141667 | AD23: 0.2944808333 | AE23: 0.2950391667 | AF23: 0.3000516667 | AG23: 0.2995658333 | AH23: 0.3036775 | AI23: 0.3052416667 | AJ23: 0.3031466667 | AK23: 0.3034941667 | AL23: 0.3044033333 | AM23: 0.3081508333 | AN23: 0.3050983333 | AO23: 0.3084008333 | AP23: 0.31155 | AQ23: 0.31146 | AR23: 0.31278 | AS23: 0.316365 | AT23: 0.31615 | AU23: 0.3199533333 | AV23: 0.3199083333 | AW23: 0.3206975 | AX23: 0.32355 | AY23: 0.3239533333 | AZ23: 0.325655 | BA23: 0.3281216667 | BB23: 0.329525 | BC23: 0.3291916667 | BD23: 0.3311733333 | BE23: 0.332495 | BF23: 0.3323083333 | BG23: 0.3313041667 | BH23: 0.3359633333 | BI23: 0.3385041667 | BJ23: 0.3402608333 | BK23: 0.342495 | BL23: 0.3429041667 | BM23: 0.34698 | BN23: 0.3473316667 | BO23: 0.3479716667 | BP23: 0.3503941667 | BQ23: 0.3503275 | BR23: 0.3517566667 | BS23: 0.3533016667 | BT23: 0.3566358333 | BU23: 0.3559416667 | BV23: 0.36008 | BW23: 0.3613941667 | BX23: 0.3619733333 | BY23: 0.3674491667 | BZ23: 0.36583 | CA23: 0.3682633333 | CB23: 0.3710266667 | CC23: 0.3725725 | CD23: 0.3749425 | CE23: 0.3747325 | CF23: 0.3759 | CG23: 0.37656 | CH23: 0.3811116667 | CI23: 0.3812141667 | CJ23: 0.382725 | CK23: 0.3860775 | CL23: 0.3860283333 | CM23: 0.3882491667 | CN23: 0.3907208333 | CO23: 0.3944016667 | CP23: 0.3961333333 | CQ23: 0.3984933333 | CR23: 0.4004908333 | CS23: 0.4038958333 | CT23: 0.4046716667 | CU23: 0.407035 | CV23: 0.4102966667 | CW23: 0.4129416667 | CX23: 0.4164991667
B24: Jy2x | C24: 0.1158833333 | D24: 0.10656 | E24: 0.16337 | F24: 0.2135825 | G24: 0.2203475 | H24: 0.23952 | I24: 0.24501 | J24: 0.2469675 | K24: 0.2462633333 | L24: 0.2620408333 | M24: 0.2671083333 | N24: 0.2709583333 | O24: 0.2679883333 | P24: 0.2706116667 | Q24: 0.2774241667 | R24: 0.2816058333 | S24: 0.2833533333 | T24: 0.2847191667 | U24: 0.2888808333 | V24: 0.2871175 | W24: 0.2888008333 | X24: 0.2919975 | Y24: 0.293195 | Z24: 0.2962741667 | AA24: 0.2989708333 | AB24: 0.2987358333 | AC24: 0.3004266667 | AD24: 0.3027633333 | AE24: 0.3056858333 | AF24: 0.3095116667 | AG24: 0.3097841667 | AH24: 0.3119275 | AI24: 0.3122908333 | AJ24: 0.3129333333 | AK24: 0.3118991667 | AL24: 0.3122133333 | AM24: 0.3162591667 | AN24: 0.3216141667 | AO24: 0.3235391667 | AP24: 0.3236991667 | AQ24: 0.3251458333 | AR24: 0.32555 | AS24: 0.3309358333 | AT24: 0.3306066667 | AU24: 0.333085 | AV24: 0.3326216667 | AW24: 0.3380041667 | AX24: 0.3411625 | AY24: 0.3416383333 | AZ24: 0.3431741667 | BA24: 0.3455941667 | BB24: 0.3445233333 | BC24: 0.3456941667 | BD24: 0.347415 | BE24: 0.3505866667 | BF24: 0.3529075 | BG24: 0.3519716667 | BH24: 0.3563191667 | BI24: 0.3596116667 | BJ24: 0.3611683333 | BK24: 0.3630008333 | BL24: 0.3635283333 | BM24: 0.3657325 | BN24: 0.367925 | BO24: 0.3707508333 | BP24: 0.3744133333 | BQ24: 0.3732908333 | BR24: 0.3758925 | BS24: 0.3777483333 | BT24: 0.3802208333 | BU24: 0.3795291667 | BV24: 0.3832091667 | BW24: 0.3830616667 | BX24: 0.3845658333 | BY24: 0.3896033333 | BZ24: 0.3897058333 | CA24: 0.3911925 | CB24: 0.3952741667 | CC24: 0.3974533333 | CD24: 0.3999833333 | CE24: 0.4012358333 | CF24: 0.4035716667 | CG24: 0.4040641667 | CH24: 0.4077225 | CI24: 0.40973 | CJ24: 0.4121058333 | CK24: 0.412945 | CL24: 0.4162375 | CM24: 0.416485 | CN24: 0.4205558333 | CO24: 0.4227391667 | CP24: 0.4259233333 | CQ24: 0.4278658333 | CR24: 0.4279233333 | CS24: 0.4305483333 | CT24: 0.4324641667 | CU24: 0.4361425 | CV24: 0.4376725 | CW24: 0.4404941667 | CX24: 0.4433258333
B25: Qy2x | C25: 0.1115183333 | D25: 0.14872 | E25: 0.1908716667 | F25: 0.2247216667 | G25: 0.2381075 | H25: 0.2399141667 | I25: 0.2439675 | J25: 0.2587558333 | K25: 0.2611808333 | L25: 0.2671133333 | M25: 0.2709141667 | N25: 0.27386 | O25: 0.2799408333 | P25: 0.28044 | Q25: 0.2915375 | R25: 0.2939 | S25: 0.2966391667 | T25: 0.2966233333 | U25: 0.2984525 | V25: 0.2983108333 | W25: 0.30149 | X25: 0.3064816667 | Y25: 0.3045908333 | Z25: 0.3057608333 | AA25: 0.30833 | AB25: 0.3176225 | AC25: 0.3189983333 | AD25: 0.3234091667 | AE25: 0.3250666667 | AF25: 0.3279216667 | AG25: 0.3284341667 | AH25: 0.32899 | AI25: 0.3283466667 | AJ25: 0.3280108333 | AK25: 0.3278625 | AL25: 0.3294858333 | AM25: 0.3380091667 | AN25: 0.3440025 | AO25: 0.3459366667 | AP25: 0.3470216667 | AQ25: 0.3465033333 | AR25: 0.3473883333 | AS25: 0.35246 | AT25: 0.3523808333 | AU25: 0.3533083333 | AV25: 0.3587166667 | AW25: 0.362775 | AX25: 0.3672183333 | AY25: 0.3676925 | AZ25: 0.3709983333 | BA25: 0.369225 | BB25: 0.3713666667 | BC25: 0.3717608333 | BD25: 0.3758916667 | BE25: 0.3786133333 | BF25: 0.3821825 | BG25: 0.37994 | BH25: 0.3855733333 | BI25: 0.3875375 | BJ25: 0.3903791667 | BK25: 0.3917741667 | BL25: 0.3925808333 | BM25: 0.3940733333 | BN25: 0.3983808333 | BO25: 0.4003416667 | BP25: 0.4042158333 | BQ25: 0.4049441667 | BR25: 0.4068066667 | BS25: 0.4101016667 | BT25: 0.4124108333 | BU25: 0.4135083333 | BV25: 0.4166266667 | BW25: 0.4170825 | BX25: 0.4206775 | BY25: 0.4234208333 | BZ25: 0.4250191667 | CA25: 0.4279066667 | CB25: 0.4295941667 | CC25: 0.4312708333 | CD25: 0.4341883333 | CE25: 0.4365966667 | CF25: 0.4381683333 | CG25: 0.4393075 | CH25: 0.4421866667 | CI25: 0.4446941667 | CJ25: 0.4457258333 | CK25: 0.4467066667 | CL25: 0.4493033333 | CM25: 0.4509658333 | CN25: 0.4520666667 | CO25: 0.4553733333 | CP25: 0.4565341667 | CQ25: 0.4578416667 | CR25: 0.46056 | CS25: 0.460625 | CT25: 0.4636041667 | CU25: 0.4658775 | CV25: 0.46631 | CW25: 0.4690733333 | CX25: 0.4725566667
B26: Ky2x | C26: 0.08890833333 | D26: 0.1928925 | E26: 0.2102333333 | F26: 0.2238458333 | G26: 0.2380258333 | H26: 0.2601108333 | I26: 0.26358 | J26: 0.2738025 | K26: 0.2733491667 | L26: 0.2785458333 | M26: 0.2798983333 | N26: 0.2910891667 | O26: 0.2879883333 | P26: 0.2940225 | Q26: 0.30445 | R26: 0.3053808333 | S26: 0.3021133333 | T26: 0.3032458333 | U26: 0.3062166667 | V26: 0.3214441667 | W26: 0.3252425 | X26: 0.3294033333 | Y26: 0.3375483333 | Z26: 0.33952 | AA26: 0.3392358333 | AB26: 0.3495466667 | AC26: 0.3486958333 | AD26: 0.352025 | AE26: 0.352545 | AF26: 0.3537108333 | AG26: 0.355055 | AH26: 0.3580566667 | AI26: 0.3650041667 | AJ26: 0.3664583333 | AK26: 0.3659566667 | AL26: 0.3625633333 | AM26: 0.3712575 | AN26: 0.3760975 | AO26: 0.3795366667 | AP26: 0.379425 | AQ26: 0.3801875 | AR26: 0.381485 | AS26: 0.3896166667 | AT26: 0.3906758333 | AU26: 0.393085 | AV26: 0.3970158333 | AW26: 0.4028825 | AX26: 0.4051716667 | AY26: 0.406665 | AZ26: 0.4081808333 | BA26: 0.4123308333 | BB26: 0.4170916667 | BC26: 0.4166083333 | BD26: 0.4220175 | BE26: 0.4223441667 | BF26: 0.4247075 | BG26: 0.4254516667 | BH26: 0.4293633333 | BI26: 0.43307 | BJ26: 0.4348375 | BK26: 0.4349158333 | BL26: 0.4385316667 | BM26: 0.4402875 | BN26: 0.444145 | BO26: 0.4449333333 | BP26: 0.4474408333 | BQ26: 0.4498816667 | BR26: 0.45161 | BS26: 0.4549225 | BT26: 0.4556133333 | BU26: 0.4577491667 | BV26: 0.4626316667 | BW26: 0.4612308333 | BX26: 0.4630808333 | BY26: 0.4658508333 | BZ26: 0.46657 | CA26: 0.4693083333 | CB26: 0.4708933333 | CC26: 0.4727441667 | CD26: 0.4736066667 | CE26: 0.4756916667 | CF26: 0.4773758333 | CG26: 0.4788833333 | CH26: 0.4804066667 | CI26: 0.4819058333 | CJ26: 0.4812741667 | CK26: 0.4832658333 | CL26: 0.4853983333 | CM26: 0.4875608333 | CN26: 0.4868833333 | CO26: 0.4884958333 | CP26: 0.4898083333 | CQ26: 0.4929266667 | CR26: 0.4931108333 | CS26: 0.4950866667 | CT26: 0.4950483333 | CU26: 0.4985791667 | CV26: 0.4992541667 | CW26: 0.5019225 | CX26: 0.5049266667
B27: Ay2x | C27: 0.2136025 | D27: 0.2553941667 | E27: 0.2598133333 | F27: 0.2601675 | G27: 0.2638541667 | H27: 0.2670108333 | I27: 0.267405 | J27: 0.282495 | K27: 0.2943016667 | L27: 0.3231108333 | M27: 0.3303483333 | N27: 0.3361608333 | O27: 0.3538933333 | P27: 0.3589958333 | Q27: 0.3628158333 | R27: 0.3645841667 | S27: 0.3787775 | T27: 0.3802875 | U27: 0.3780616667 | V27: 0.3939491667 | W27: 0.3977016667 | X27: 0.3985125 | Y27: 0.40565 | Z27: 0.4077416667 | AA27: 0.4075366667 | AB27: 0.4152033333 | AC27: 0.4223716667 | AD27: 0.42652 | AE27: 0.4261683333 | AF27: 0.4267133333 | AG27: 0.4280108333 | AH27: 0.4320891667 | AI27: 0.4383908333 | AJ27: 0.4403075 | AK27: 0.44283 | AL27: 0.4462 | AM27: 0.4516791667 | AN27: 0.4541591667 | AO27: 0.4555758333 | AP27: 0.4591591667 | AQ27: 0.46154 | AR27: 0.46352 | AS27: 0.4672191667 | AT27: 0.4687616667 | AU27: 0.4722725 | AV27: 0.4740458333 | AW27: 0.4777916667 | AX27: 0.4785133333 | AY27: 0.4816575 | AZ27: 0.4828741667 | BA27: 0.4864833333 | BB27: 0.487485 | BC27: 0.4898391667 | BD27: 0.4919283333 | BE27: 0.4934775 | BF27: 0.4946291667 | BG27: 0.498405 | BH27: 0.5000691667 | BI27: 0.5002983333 | BJ27: 0.5024166667 | BK27: 0.5033725 | BL27: 0.5049591667 | BM27: 0.50645 | BN27: 0.50714 | BO27: 0.5086391667 | BP27: 0.5092225 | BQ27: 0.5103375 | BR27: 0.5106241667 | BS27: 0.5126883333 | BT27: 0.5134033333 | BU27: 0.5163058333 | BV27: 0.5184141667 | BW27: 0.51734 | BX27: 0.5187925 | BY27: 0.5203366667 | BZ27: 0.522055 | CA27: 0.5227675 | CB27: 0.5222808333 | CC27: 0.5239158333 | CD27: 0.5258458333 | CE27: 0.5273608333 | CF27: 0.5288866667 | CG27: 0.5285383333 | CH27: 0.5313683333 | CI27: 0.5303358333 | CJ27: 0.5324783333 | CK27: 0.532665 | CL27: 0.5341941667 | CM27: 0.5350666667 | CN27: 0.5352933333 | CO27: 0.5368425 | CP27: 0.5383941667 | CQ27: 0.5381508333 | CR27: 0.5395416667 | CS27: 0.5408908333 | CT27: 0.5409358333 | CU27: 0.5430741667 | CV27: 0.5453266667 | CW27: 0.5458791667 | CX27: 0.5490633333
B28: 4x3x | C28: 0.1982708333 | D28: 0.2004308333 | E28: 0.2215191667 | F28: 0.2755058333 | G28: 0.2740908333 | H28: 0.28744 | I28: 0.291045 | J28: 0.30061 | K28: 0.30254 | L28: 0.3199583333 | M28: 0.3223891667 | N28: 0.319735 | O28: 0.3250558333 | P28: 0.3261558333 | Q28: 0.3309933333 | R28: 0.3279925 | S28: 0.3318283333 | T28: 0.3308991667 | U28: 0.3334266667 | V28: 0.3388316667 | W28: 0.3377591667 | X28: 0.338075 | Y28: 0.339635 | Z28: 0.3419683333 | AA28: 0.3439341667 | AB28: 0.3459033333 | AC28: 0.347825 | AD28: 0.3486758333 | AE28: 0.34975 | AF28: 0.3475483333 | AG28: 0.3493791667 | AH28: 0.348845 | AI28: 0.3495616667 | AJ28: 0.3505791667 | AK28: 0.3537025 | AL28: 0.3536791667 | AM28: 0.3559541667 | AN28: 0.3552316667 | AO28: 0.3567525 | AP28: 0.3573783333 | AQ28: 0.3583575 | AR28: 0.3583175 | AS28: 0.3603541667 | AT28: 0.3596716667 | AU28: 0.3612041667 | AV28: 0.36093 | AW28: 0.3627875 | AX28: 0.3619208333 | AY28: 0.36142 | AZ28: 0.3626641667 | BA28: 0.3625891667 | BB28: 0.36254 | BC28: 0.3616733333 | BD28: 0.3639658333 | BE28: 0.3634433333 | BF28: 0.3634691667 | BG28: 0.3647775 | BH28: 0.366115 | BI28: 0.3675075 | BJ28: 0.3669866667 | BK28: 0.3670025 | BL28: 0.3658333333 | BM28: 0.3673491667 | BN28: 0.3668425 | BO28: 0.36781 | BP28: 0.36783 | BQ28: 0.3681883333 | BR28: 0.3669508333 | BS28: 0.3696141667 | BT28: 0.3686516667 | BU28: 0.3698116667 | BV28: 0.3715225 | BW28: 0.372045 | BX28: 0.37071 | BY28: 0.3728083333 | BZ28: 0.3718016667 | CA28: 0.3715716667 | CB28: 0.3724883333 | CC28: 0.3726425 | CD28: 0.3717925 | CE28: 0.3757891667 | CF28: 0.3750658333 | CG28: 0.3755933333 | CH28: 0.3766183333 | CI28: 0.37647 | CJ28: 0.3759575 | CK28: 0.3753966667 | CL28: 0.3771316667 | CM28: 0.3774558333 | CN28: 0.3766758333 | CO28: 0.3765491667 | CP28: 0.3775341667 | CQ28: 0.3775416667 | CR28: 0.3787908333 | CS28: 0.37791 | CT28: 0.3810158333 | CU28: 0.3815516667 | CV28: 0.3829883333 | CW28: 0.3839358333 | CX28: 0.3864541667
B29: 5x3x | C29: 0.201475 | D29: 0.2053316667 | E29: 0.2249116667 | F29: 0.2798583333 | G29: 0.2782891667 | H29: 0.2915841667 | I29: 0.2949591667 | J29: 0.3036883333 | K29: 0.305605 | L29: 0.321545 | M29: 0.3252583333 | N29: 0.322205 | O29: 0.3267641667 | P29: 0.3283158333 | Q29: 0.334585 | R29: 0.3340766667 | S29: 0.3362933333 | T29: 0.335485 | U29: 0.33966 | V29: 0.3449941667 | W29: 0.3450216667 | X29: 0.3451625 | Y29: 0.3470958333 | Z29: 0.34976 | AA29: 0.3479775 | AB29: 0.3505358333 | AC29: 0.3511058333 | AD29: 0.3534758333 | AE29: 0.3520533333 | AF29: 0.3550066667 | AG29: 0.3546266667 | AH29: 0.3554891667 | AI29: 0.3563241667 | AJ29: 0.3554233333 | AK29: 0.3583891667 | AL29: 0.3605966667 | AM29: 0.3608858333 | AN29: 0.3617583333 | AO29: 0.3615366667 | AP29: 0.3645616667 | AQ29: 0.3659491667 | AR29: 0.365645 | AS29: 0.36578 | AT29: 0.3662516667 | AU29: 0.3654525 | AV29: 0.3659466667 | AW29: 0.3668066667 | AX29: 0.36653 | AY29: 0.3688558333 | AZ29: 0.3691691667 | BA29: 0.3688958333 | BB29: 0.3689641667 | BC29: 0.3688841667 | BD29: 0.3690208333 | BE29: 0.3698566667 | BF29: 0.369525 | BG29: 0.3710175 | BH29: 0.3713 | BI29: 0.3723366667 | BJ29: 0.37221 | BK29: 0.3724733333 | BL29: 0.3726858333 | BM29: 0.3734008333 | BN29: 0.3743325 | BO29: 0.374375 | BP29: 0.3750591667 | BQ29: 0.3747091667 | BR29: 0.3754991667 | BS29: 0.3748258333 | BT29: 0.3749941667 | BU29: 0.3756225 | BV29: 0.3770508333 | BW29: 0.3772875 | BX29: 0.3773991667 | BY29: 0.3784158333 | BZ29: 0.3777625 | CA29: 0.3778216667 | CB29: 0.37792 | CC29: 0.3773158333 | CD29: 0.3781233333 | CE29: 0.3799866667 | CF29: 0.3809366667 | CG29: 0.3815483333 | CH29: 0.3821116667 | CI29: 0.3827516667 | CJ29: 0.3830883333 | CK29: 0.3842841667 | CL29: 0.3839475 | CM29: 0.3854933333 | CN29: 0.3872383333 | CO29: 0.3875941667 | CP29: 0.3873741667 | CQ29: 0.3896991667 | CR29: 0.3892933333 | CS29: 0.3886233333 | CT29: 0.3903108333 | CU29: 0.391555 | CV29: 0.392995 | CW29: 0.3942658333 | CX29: 0.3968275
B30: 6x3x | C30: 0.1928641667 | D30: 0.1908175 | E30: 0.211175 | F30: 0.2666975 | G30: 0.2637991667 | H30: 0.2785458333 | I30: 0.282145 | J30: 0.2898558333 | K30: 0.2925616667 | L30: 0.3097491667 | M30: 0.3114675 | N30: 0.3130341667 | O30: 0.3163775 | P30: 0.3184075 | Q30: 0.3240491667 | R30: 0.3261533333 | S30: 0.3285483333 | T30: 0.3278025 | U30: 0.3310675 | V30: 0.3358116667 | W30: 0.3364808333 | X30: 0.3367483333 | Y30: 0.3387591667 | Z30: 0.3390675 | AA30: 0.3425291667 | AB30: 0.343605 | AC30: 0.344085 | AD30: 0.3436141667 | AE30: 0.3436075 | AF30: 0.3462691667 | AG30: 0.346895 | AH30: 0.3462391667 | AI30: 0.3465516667 | AJ30: 0.3478083333 | AK30: 0.349895 | AL30: 0.350225 | AM30: 0.351785 | AN30: 0.3518633333 | AO30: 0.3526875 | AP30: 0.3553641667 | AQ30: 0.3536441667 | AR30: 0.3535441667 | AS30: 0.3529333333 | AT30: 0.3549225 | AU30: 0.3561216667 | AV30: 0.355965 | AW30: 0.3564458333 | AX30: 0.3567625 | AY30: 0.3580658333 | AZ30: 0.35852 | BA30: 0.3591533333 | BB30: 0.3587225 | BC30: 0.3582633333 | BD30: 0.3588208333 | BE30: 0.3583358333 | BF30: 0.3588416667 | BG30: 0.3611141667 | BH30: 0.3632091667 | BI30: 0.3620241667 | BJ30: 0.3632908333 | BK30: 0.3640575 | BL30: 0.364645 | BM30: 0.3645508333 | BN30: 0.3638975 | BO30: 0.3645616667 | BP30: 0.3661883333 | BQ30: 0.3651808333 | BR30: 0.3634883333 | BS30: 0.3643991667 | BT30: 0.3645475 | BU30: 0.3654233333 | BV30: 0.3667583333 | BW30: 0.36941 | BX30: 0.3677366667 | BY30: 0.371965 | BZ30: 0.3704475 | CA30: 0.3711066667 | CB30: 0.37283 | CC30: 0.372615 | CD30: 0.3738491667 | CE30: 0.3773708333 | CF30: 0.3754433333 | CG30: 0.3757966667 | CH30: 0.37915 | CI30: 0.3797083333 | CJ30: 0.3789816667 | CK30: 0.3797591667 | CL30: 0.3804516667 | CM30: 0.3818158333 | CN30: 0.3823983333 | CO30: 0.3860158333 | CP30: 0.3850475 | CQ30: 0.3870991667 | CR30: 0.3854225 | CS30: 0.385965 | CT30: 0.3885825 | CU30: 0.3888258333 | CV30: 0.390655 | CW30: 0.39217 | CX30: 0.3949141667
B31: 7x3x | C31: 0.1780508333 | D31: 0.1772308333 | E31: 0.1977375 | F31: 0.2528591667 | G31: 0.2501108333 | H31: 0.2639175 | I31: 0.2670016667 | J31: 0.2796191667 | K31: 0.2823575 | L31: 0.2985183333 | M31: 0.3028616667 | N31: 0.3043508333 | O31: 0.3082366667 | P31: 0.3109541667 | Q31: 0.3177583333 | R31: 0.3183341667 | S31: 0.321055 | T31: 0.3214733333 | U31: 0.3237058333 | V31: 0.3274116667 | W31: 0.3283025 | X31: 0.3291125 | Y31: 0.3296375 | Z31: 0.3282841667 | AA31: 0.3312075 | AB31: 0.3315266667 | AC31: 0.3347383333 | AD31: 0.3375066667 | AE31: 0.3362808333 | AF31: 0.3375683333 | AG31: 0.3388291667 | AH31: 0.3381316667 | AI31: 0.3394333333 | AJ31: 0.3393533333 | AK31: 0.3424625 | AL31: 0.3426291667 | AM31: 0.3427016667 | AN31: 0.3435125 | AO31: 0.3436966667 | AP31: 0.3444766667 | AQ31: 0.3458633333 | AR31: 0.3461916667 | AS31: 0.347135 | AT31: 0.3481575 | AU31: 0.3481608333 | AV31: 0.34878 | AW31: 0.3502608333 | AX31: 0.3492991667 | AY31: 0.3505508333 | AZ31: 0.353175 | BA31: 0.3517041667 | BB31: 0.3534175 | BC31: 0.3530333333 | BD31: 0.3509441667 | BE31: 0.3516641667 | BF31: 0.3519341667 | BG31: 0.3525983333 | BH31: 0.3534758333 | BI31: 0.3543708333 | BJ31: 0.3551633333 | BK31: 0.3560283333 | BL31: 0.3565891667 | BM31: 0.35848 | BN31: 0.3594316667 | BO31: 0.3601258333 | BP31: 0.3608008333 | BQ31: 0.3597108333 | BR31: 0.3608933333 | BS31: 0.3604141667 | BT31: 0.3620158333 | BU31: 0.3638616667 | BV31: 0.3670425 | BW31: 0.3675741667 | BX31: 0.3680866667 | BY31: 0.369735 | BZ31: 0.3699791667 | CA31: 0.3695866667 | CB31: 0.370515 | CC31: 0.3707533333 | CD31: 0.3741658333 | CE31: 0.3747041667 | CF31: 0.374495 | CG31: 0.3766566667 | CH31: 0.3788691667 | CI31: 0.3785633333 | CJ31: 0.3791225 | CK31: 0.3808666667 | CL31: 0.3820025 | CM31: 0.3833341667 | CN31: 0.3840141667 | CO31: 0.3858466667 | CP31: 0.3882658333 | CQ31: 0.3886658333 | CR31: 0.3889583333 | CS31: 0.3895875 | CT31: 0.3910933333 | CU31: 0.3924908333 | CV31: 0.394065 | CW31: 0.3969408333 | CX31: 0.4010891667
B32: 8x3x | C32: 0.1647316667 | D32: 0.162985 | E32: 0.1840766667 | F32: 0.2402541667 | G32: 0.2389983333 | H32: 0.2541733333 | I32: 0.2570358333 | J32: 0.2773183333 | K32: 0.278195 | L32: 0.2932916667 | M32: 0.2978925 | N32: 0.2996991667 | O32: 0.3037766667 | P32: 0.3050758333 | Q32: 0.310985 | R32: 0.3125941667 | S32: 0.3158691667 | T32: 0.3141225 | U32: 0.3139175 | V32: 0.31712 | W32: 0.3173716667 | X32: 0.3181016667 | Y32: 0.3192516667 | Z32: 0.3226708333 | AA32: 0.3243758333 | AB32: 0.3256025 | AC32: 0.3266791667 | AD32: 0.3297133333 | AE32: 0.3285016667 | AF32: 0.3315608333 | AG32: 0.3311208333 | AH32: 0.3313175 | AI32: 0.3315841667 | AJ32: 0.3326741667 | AK32: 0.3345216667 | AL32: 0.333665 | AM32: 0.3351958333 | AN32: 0.3352233333 | AO32: 0.3354358333 | AP32: 0.3385191667 | AQ32: 0.3404908333 | AR32: 0.3413216667 | AS32: 0.3403883333 | AT32: 0.3421591667 | AU32: 0.3417191667 | AV32: 0.3424475 | AW32: 0.3420333333 | AX32: 0.3407066667 | AY32: 0.3428125 | AZ32: 0.3429666667 | BA32: 0.3462475 | BB32: 0.3468833333 | BC32: 0.3456725 | BD32: 0.3463716667 | BE32: 0.34844 | BF32: 0.3484358333 | BG32: 0.3494641667 | BH32: 0.3519575 | BI32: 0.3524066667 | BJ32: 0.3522183333 | BK32: 0.3536825 | BL32: 0.3557533333 | BM32: 0.3588108333 | BN32: 0.3605616667 | BO32: 0.3590175 | BP32: 0.3607383333 | BQ32: 0.36063 | BR32: 0.3615883333 | BS32: 0.3619575 | BT32: 0.3610516667 | BU32: 0.3632933333 | BV32: 0.3656666667 | BW32: 0.3681316667 | BX32: 0.3690416667 | BY32: 0.3726783333 | BZ32: 0.372855 | CA32: 0.3727916667 | CB32: 0.372435 | CC32: 0.3738533333 | CD32: 0.3752075 | CE32: 0.3786916667 | CF32: 0.3781116667 | CG32: 0.3790975 | CH32: 0.3831975 | CI32: 0.3809233333 | CJ32: 0.3836891667 | CK32: 0.385225 | CL32: 0.3854216667 | CM32: 0.3881075 | CN32: 0.3885391667 | CO32: 0.3900633333 | CP32: 0.3922633333 | CQ32: 0.3932441667 | CR32: 0.3946966667 | CS32: 0.3961483333 | CT32: 0.3985216667 | CU32: 0.3989491667 | CV32: 0.40244 | CW32: 0.4030091667 | CX32: 0.4086125
B33: 9x3x | C33: 0.1664283333 | D33: 0.1662483333 | E33: 0.1851283333 | F33: 0.240475 | G33: 0.2421183333 | H33: 0.2666633333 | I33: 0.2698366667 | J33: 0.2871316667 | K33: 0.2901383333 | L33: 0.30177 | M33: 0.3033366667 | N33: 0.3070116667 | O33: 0.3112508333 | P33: 0.3133366667 | Q33: 0.3139533333 | R33: 0.3135216667 | S33: 0.3171091667 | T33: 0.316345 | U33: 0.31972 | V33: 0.3238466667 | W33: 0.3239166667 | X33: 0.3231766667 | Y33: 0.3254516667 | Z33: 0.3285683333 | AA33: 0.3297233333 | AB33: 0.3307775 | AC33: 0.3297283333 | AD33: 0.332435 | AE33: 0.333545 | AF33: 0.3356291667 | AG33: 0.335505 | AH33: 0.3359983333 | AI33: 0.3340508333 | AJ33: 0.334445 | AK33: 0.33967 | AL33: 0.3394983333 | AM33: 0.3408266667 | AN33: 0.3397308333 | AO33: 0.3396075 | AP33: 0.3435083333 | AQ33: 0.3444675 | AR33: 0.3452658333 | AS33: 0.3499375 | AT33: 0.3494358333 | AU33: 0.349745 | AV33: 0.3524758333 | AW33: 0.3529308333 | AX33: 0.3530241667 | AY33: 0.35294 | AZ33: 0.3543066667 | BA33: 0.3563916667 | BB33: 0.3577575 | BC33: 0.3556441667 | BD33: 0.3570825 | BE33: 0.3584875 | BF33: 0.3591341667 | BG33: 0.3605658333 | BH33: 0.3645091667 | BI33: 0.3655408333 | BJ33: 0.3668508333 | BK33: 0.3677708333 | BL33: 0.3691308333 | BM33: 0.3710983333 | BN33: 0.3724575 | BO33: 0.3734283333 | BP33: 0.374385 | BQ33: 0.3740875 | BR33: 0.3767216667 | BS33: 0.3780391667 | BT33: 0.3775858333 | BU33: 0.3809283333 | BV33: 0.3835675 | BW33: 0.3855308333 | BX33: 0.3850591667 | BY33: 0.3887708333 | BZ33: 0.3884275 | CA33: 0.3926591667 | CB33: 0.392695 | CC33: 0.3922725 | CD33: 0.3951775 | CE33: 0.3978341667 | CF33: 0.3969083333 | CG33: 0.3960533333 | CH33: 0.4015083333 | CI33: 0.4014175 | CJ33: 0.4027816667 | CK33: 0.40368 | CL33: 0.4055833333 | CM33: 0.4075383333 | CN33: 0.4088366667 | CO33: 0.4114708333 | CP33: 0.41504 | CQ33: 0.41453 | CR33: 0.4175133333 | CS33: 0.4194133333 | CT33: 0.4218983333 | CU33: 0.4251775 | CV33: 0.4258575 | CW33: 0.42845 | CX33: 0.43355
B34: Tx3x | C34: 0.1668166667 | D34: 0.1648466667 | E34: 0.1832666667 | F34: 0.2408675 | G34: 0.2561283333 | H34: 0.278895 | I34: 0.2762033333 | J34: 0.2904358333 | K34: 0.2933308333 | L34: 0.2969933333 | M34: 0.299745 | N34: 0.30502 | O34: 0.3079683333 | P34: 0.3101741667 | Q34: 0.315375 | R34: 0.3202858333 | S34: 0.3166908333 | T34: 0.3172308333 | U34: 0.3211283333 | V34: 0.3244066667 | W34: 0.3270225 | X34: 0.3271716667 | Y34: 0.3244858333 | Z34: 0.3294208333 | AA34: 0.3313708333 | AB34: 0.33142 | AC34: 0.3315091667 | AD34: 0.3361325 | AE34: 0.3358666667 | AF34: 0.3405041667 | AG34: 0.3413891667 | AH34: 0.3413491667 | AI34: 0.3415366667 | AJ34: 0.34179 | AK34: 0.3445783333 | AL34: 0.3465208333 | AM34: 0.3487691667 | AN34: 0.3489483333 | AO34: 0.3509191667 | AP34: 0.3539833333 | AQ34: 0.3547466667 | AR34: 0.3554075 | AS34: 0.3584166667 | AT34: 0.3584841667 | AU34: 0.361355 | AV34: 0.3616316667 | AW34: 0.3614741667 | AX34: 0.3656758333 | AY34: 0.3661391667 | AZ34: 0.3685858333 | BA34: 0.3700908333 | BB34: 0.3687125 | BC34: 0.3684558333 | BD34: 0.3708 | BE34: 0.3718291667 | BF34: 0.3730383333 | BG34: 0.3735175 | BH34: 0.3781025 | BI34: 0.3815533333 | BJ34: 0.3814783333 | BK34: 0.384535 | BL34: 0.384615 | BM34: 0.3866041667 | BN34: 0.3880783333 | BO34: 0.3920241667 | BP34: 0.3915691667 | BQ34: 0.3901891667 | BR34: 0.3926791667 | BS34: 0.3937941667 | BT34: 0.3970441667 | BU34: 0.3977416667 | BV34: 0.40117 | BW34: 0.4039108333 | BX34: 0.4029766667 | BY34: 0.407355 | BZ34: 0.4069441667 | CA34: 0.4092475 | CB34: 0.4110966667 | CC34: 0.4127033333 | CD34: 0.4145583333 | CE34: 0.4160458333 | CF34: 0.4170383333 | CG34: 0.4183691667 | CH34: 0.421615 | CI34: 0.4228316667 | CJ34: 0.4243108333 | CK34: 0.4264141667 | CL34: 0.4264416667 | CM34: 0.4288875 | CN34: 0.4315783333 | CO34: 0.4353833333 | CP34: 0.4378458333 | CQ34: 0.4410908333 | CR34: 0.4420683333 | CS34: 0.4451175 | CT34: 0.4467416667 | CU34: 0.4477183333 | CV34: 0.4511425 | CW34: 0.4534841667 | CX34: 0.4579658333
B35: Jx3x | C35: 0.1632391667 | D35: 0.1547658333 | E35: 0.2076775 | F35: 0.25703 | G35: 0.2636516667 | H35: 0.2842975 | I35: 0.2877291667 | J35: 0.2912958333 | K35: 0.29031 | L35: 0.30501 | M35: 0.3096158333 | N35: 0.3112558333 | O35: 0.3098583333 | P35: 0.3136875 | Q35: 0.3199408333 | R35: 0.3229541667 | S35: 0.3267658333 | T35: 0.3253091667 | U35: 0.3287958333 | V35: 0.3286875 | W35: 0.3308008333 | X35: 0.3334583333 | Y35: 0.3349433333 | Z35: 0.3387358333 | AA35: 0.3394925 | AB35: 0.3403583333 | AC35: 0.3430958333 | AD35: 0.34316 | AE35: 0.3456041667 | AF35: 0.3506316667 | AG35: 0.3505416667 | AH35: 0.349405 | AI35: 0.3502825 | AJ35: 0.3506316667 | AK35: 0.3545116667 | AL35: 0.3549966667 | AM35: 0.3560608333 | AN35: 0.3618275 | AO35: 0.3642983333 | AP35: 0.3672133333 | AQ35: 0.36848 | AR35: 0.368885 | AS35: 0.3731825 | AT35: 0.3728408333 | AU35: 0.3743216667 | AV35: 0.3740016667 | AW35: 0.3789908333 | AX35: 0.3830758333 | AY35: 0.3833008333 | AZ35: 0.3847833333 | BA35: 0.3851566667 | BB35: 0.3877725 | BC35: 0.3855375 | BD35: 0.3864483333 | BE35: 0.3892216667 | BF35: 0.3918566667 | BG35: 0.3920366667 | BH35: 0.3987091667 | BI35: 0.4004916667 | BJ35: 0.4022725 | BK35: 0.4043783333 | BL35: 0.404355 | BM35: 0.4063041667 | BN35: 0.4086033333 | BO35: 0.4107325 | BP35: 0.4132466667 | BQ35: 0.4124533333 | BR35: 0.413735 | BS35: 0.4176666667 | BT35: 0.419025 | BU35: 0.4211491667 | BV35: 0.4229041667 | BW35: 0.4251358333 | BX35: 0.4269125 | BY35: 0.4295558333 | BZ35: 0.429855 | CA35: 0.4320991667 | CB35: 0.4353158333 | CC35: 0.4383808333 | CD35: 0.4388366667 | CE35: 0.44124 | CF35: 0.4434341667 | CG35: 0.4438808333 | CH35: 0.446975 | CI35: 0.4493616667 | CJ35: 0.4503583333 | CK35: 0.4531133333 | CL35: 0.4542133333 | CM35: 0.4584025 | CN35: 0.4591166667 | CO35: 0.4630491667 | CP35: 0.4646575 | CQ35: 0.4682258333 | CR35: 0.4704675 | CS35: 0.47237 | CT35: 0.4741183333 | CU35: 0.4747525 | CV35: 0.4764858333 | CW35: 0.4794766667 | CX35: 0.4816516667
B36: Qx3x | C36: 0.1587775 | D36: 0.1956641667 | E36: 0.2348475 | F36: 0.26867 | G36: 0.2802108333 | H36: 0.282665 | I36: 0.287155 | J36: 0.3016091667 | K36: 0.305925 | L36: 0.3094283333 | M36: 0.3130233333 | N36: 0.3169933333 | O36: 0.3220241667 | P36: 0.3220791667 | Q36: 0.3324341667 | R36: 0.3350008333 | S36: 0.3366608333 | T36: 0.3365866667 | U36: 0.340825 | V36: 0.3388325 | W36: 0.3436483333 | X36: 0.346855 | Y36: 0.3451366667 | Z36: 0.3476991667 | AA36: 0.3486416667 | AB36: 0.35702 | AC36: 0.3586358333 | AD36: 0.3634583333 | AE36: 0.3642066667 | AF36: 0.3669116667 | AG36: 0.3666766667 | AH36: 0.36508 | AI36: 0.3655808333 | AJ36: 0.3656358333 | AK36: 0.3688141667 | AL36: 0.3694816667 | AM36: 0.3802516667 | AN36: 0.38379 | AO36: 0.3851691667 | AP36: 0.3873383333 | AQ36: 0.3893433333 | AR36: 0.38919 | AS36: 0.3920033333 | AT36: 0.3934908333 | AU36: 0.3944525 | AV36: 0.4006283333 | AW36: 0.4032941667 | AX36: 0.4073183333 | AY36: 0.4087766667 | AZ36: 0.4105675 | BA36: 0.410435 | BB36: 0.4121675 | BC36: 0.4117183333 | BD36: 0.4155341667 | BE36: 0.4172791667 | BF36: 0.4193341667 | BG36: 0.4204225 | BH36: 0.424845 | BI36: 0.4284925 | BJ36: 0.4292575 | BK36: 0.43198 | BL36: 0.4314808333 | BM36: 0.4347783333 | BN36: 0.4381283333 | BO36: 0.4402075 | BP36: 0.4435333333 | BQ36: 0.442875 | BR36: 0.4447266667 | BS36: 0.4484866667 | BT36: 0.4518158333 | BU36: 0.4530941667 | BV36: 0.4562908333 | BW36: 0.456625 | BX36: 0.4586108333 | BY36: 0.4610975 | BZ36: 0.4655616667 | CA36: 0.4673016667 | CB36: 0.4679116667 | CC36: 0.4710925 | CD36: 0.4721308333 | CE36: 0.4758425 | CF36: 0.4767525 | CG36: 0.4778191667 | CH36: 0.4807058333 | CI36: 0.4822516667 | CJ36: 0.4829475 | CK36: 0.4848858333 | CL36: 0.4876358333 | CM36: 0.488265 | CN36: 0.4906475 | CO36: 0.4943041667 | CP36: 0.4967 | CQ36: 0.4969583333 | CR36: 0.5000175 | CS36: 0.50073 | CT36: 0.5035391667 | CU36: 0.5039641667 | CV36: 0.5062266667 | CW36: 0.5065425 | CX36: 0.5102225
B37: Kx3x | C37: 0.1405916667 | D37: 0.2373816667 | E37: 0.2549666667 | F37: 0.2680858333 | G37: 0.28198 | H37: 0.3036 | I37: 0.304875 | J37: 0.3163483333 | K37: 0.3151866667 | L37: 0.3208316667 | M37: 0.3223541667 | N37: 0.3321158333 | O37: 0.3304575 | P37: 0.3366841667 | Q37: 0.3454466667 | R37: 0.3458625 | S37: 0.3448016667 | T37: 0.3425533333 | U37: 0.3451975 | V37: 0.36335 | W37: 0.3636408333 | X37: 0.366955 | Y37: 0.37564 | Z37: 0.377935 | AA37: 0.3773166667 | AB37: 0.3873841667 | AC37: 0.3868025 | AD37: 0.3898558333 | AE37: 0.3908825 | AF37: 0.3926616667 | AG37: 0.3926091667 | AH37: 0.394635 | AI37: 0.4012658333 | AJ37: 0.4024616667 | AK37: 0.4040425 | AL37: 0.404355 | AM37: 0.41099 | AN37: 0.4148266667 | AO37: 0.4181308333 | AP37: 0.4197725 | AQ37: 0.42021 | AR37: 0.4212358333 | AS37: 0.4290858333 | AT37: 0.4294191667 | AU37: 0.4324675 | AV37: 0.4372483333 | AW37: 0.4408258333 | AX37: 0.4434658333 | AY37: 0.4438341667 | AZ37: 0.4464683333 | BA37: 0.4519175 | BB37: 0.4546516667 | BC37: 0.4545783333 | BD37: 0.45848 | BE37: 0.4600358333 | BF37: 0.46188 | BG37: 0.4637408333 | BH37: 0.4668083333 | BI37: 0.4694266667 | BJ37: 0.4721066667 | BK37: 0.473895 | BL37: 0.4753758333 | BM37: 0.4777016667 | BN37: 0.4800316667 | BO37: 0.4819966667 | BP37: 0.4842808333 | BQ37: 0.4877775 | BR37: 0.4882433333 | BS37: 0.4911025 | BT37: 0.4915758333 | BU37: 0.4955041667 | BV37: 0.498385 | BW37: 0.49726 | BX37: 0.4997891667 | BY37: 0.5022775 | BZ37: 0.503825 | CA37: 0.505265 | CB37: 0.5078525 | CC37: 0.5093641667 | CD37: 0.5090983333 | CE37: 0.513005 | CF37: 0.513155 | CG37: 0.5137425 | CH37: 0.5160683333 | CI37: 0.5179116667 | CJ37: 0.5189233333 | CK37: 0.5188075 | CL37: 0.5214841667 | CM37: 0.523435 | CN37: 0.5234683333 | CO37: 0.5278525 | CP37: 0.527605 | CQ37: 0.5301158333 | CR37: 0.531635 | CS37: 0.5330241667 | CT37: 0.5338983333 | CU37: 0.5359266667 | CV37: 0.5368158333 | CW37: 0.5374391667 | CX37: 0.540425
B38: Ax3x | C38: 0.2590575 | D38: 0.29673 | E38: 0.3030775 | F38: 0.3038166667 | G38: 0.3074725 | H38: 0.3111858333 | I38: 0.3113491667 | J38: 0.3253325 | K38: 0.3359408333 | L38: 0.3628991667 | M38: 0.3697541667 | N38: 0.3745391667 | O38: 0.3936875 | P38: 0.3978083333 | Q38: 0.4006041667 | R38: 0.40393 | S38: 0.4161733333 | T38: 0.4160116667 | U38: 0.4154491667 | V38: 0.43072 | W38: 0.4325091667 | X38: 0.433835 | Y38: 0.4427625 | Z38: 0.4434483333 | AA38: 0.4447425 | AB38: 0.4510683333 | AC38: 0.4571558333 | AD38: 0.4604316667 | AE38: 0.4606133333 | AF38: 0.46232 | AG38: 0.4638616667 | AH38: 0.4663283333 | AI38: 0.4734533333 | AJ38: 0.4750741667 | AK38: 0.4780508333 | AL38: 0.4825858333 | AM38: 0.4868466667 | AN38: 0.4885858333 | AO38: 0.4908766667 | AP38: 0.494005 | AQ38: 0.4979616667 | AR38: 0.4986166667 | AS38: 0.502935 | AT38: 0.5036741667 | AU38: 0.5063858333 | AV38: 0.5103891667 | AW38: 0.5115033333 | AX38: 0.5131191667 | AY38: 0.515525 | AZ38: 0.5161816667 | BA38: 0.5186558333 | BB38: 0.5208258333 | BC38: 0.5251916667 | BD38: 0.52672 | BE38: 0.5279933333 | BF38: 0.5285316667 | BG38: 0.5315208333 | BH38: 0.5335483333 | BI38: 0.5320666667 | BJ38: 0.53565 | BK38: 0.5367741667 | BL38: 0.5380291667 | BM38: 0.5388433333 | BN38: 0.54008 | BO38: 0.5410625 | BP38: 0.5421966667 | BQ38: 0.5451475 | BR38: 0.5460775 | BS38: 0.5475733333 | BT38: 0.54801 | BU38: 0.551145 | BV38: 0.551665 | BW38: 0.552595 | BX38: 0.5533908333 | BY38: 0.554895 | BZ38: 0.5555158333 | CA38: 0.5575091667 | CB38: 0.5576783333 | CC38: 0.5592133333 | CD38: 0.5593483333 | CE38: 0.5611583333 | CF38: 0.5619191667 | CG38: 0.5623091667 | CH38: 0.5621391667 | CI38: 0.5636058333 | CJ38: 0.5649225 | CK38: 0.5652 | CL38: 0.5669108333 | CM38: 0.5669583333 | CN38: 0.5681933333 | CO38: 0.5722075 | CP38: 0.5719216667 | CQ38: 0.5732925 | CR38: 0.5754391667 | CS38: 0.5758933333 | CT38: 0.5784383333 | CU38: 0.5786858333 | CV38: 0.5787308333 | CW38: 0.5804225 | CX38: 0.5812641667
B39: 3y3x | C39: 0.1843216667 | D39: 0.1847216667 | E39: 0.2221541667 | F39: 0.3213225 | G39: 0.318775 | H39: 0.3403033333 | I39: 0.3493233333 | J39: 0.3652291667 | K39: 0.3696858333 | L39: 0.39795 | M39: 0.4032158333 | N39: 0.4004416667 | O39: 0.4102366667 | P39: 0.4135616667 | Q39: 0.42343 | R39: 0.4210458333 | S39: 0.4255516667 | T39: 0.4277958333 | U39: 0.4340308333 | V39: 0.4405983333 | W39: 0.4377716667 | X39: 0.4365825 | Y39: 0.4416191667 | Z39: 0.4453466667 | AA39: 0.4479333333 | AB39: 0.4509116667 | AC39: 0.4545766667 | AD39: 0.4574891667 | AE39: 0.4571625 | AF39: 0.459635 | AG39: 0.4602875 | AH39: 0.4639166667 | AI39: 0.466475 | AJ39: 0.4699591667 | AK39: 0.4737466667 | AL39: 0.4765358333 | AM39: 0.4763283333 | AN39: 0.4760183333 | AO39: 0.478565 | AP39: 0.4822866667 | AQ39: 0.4854458333 | AR39: 0.4848875 | AS39: 0.4854175 | AT39: 0.4863283333 | AU39: 0.4865291667 | AV39: 0.4882825 | AW39: 0.4896791667 | AX39: 0.4905608333 | AY39: 0.4906533333 | AZ39: 0.4909783333 | BA39: 0.4922416667 | BB39: 0.4914516667 | BC39: 0.4949208333 | BD39: 0.493745 | BE39: 0.4945583333 | BF39: 0.4957225 | BG39: 0.4986425 | BH39: 0.4984183333 | BI39: 0.4999583333 | BJ39: 0.500035 | BK39: 0.5010075 | BL39: 0.5008733333 | BM39: 0.5007308333 | BN39: 0.5009441667 | BO39: 0.5027891667 | BP39: 0.50286 | BQ39: 0.5038441667 | BR39: 0.5035241667 | BS39: 0.5048216667 | BT39: 0.5051458333 | BU39: 0.508 | BV39: 0.50884 | BW39: 0.5090316667 | BX39: 0.5110766667 | BY39: 0.5103783333 | BZ39: 0.51215 | CA39: 0.5120958333 | CB39: 0.5118383333 | CC39: 0.5126775 | CD39: 0.5135325 | CE39: 0.5139733333 | CF39: 0.5146566667 | CG39: 0.5171075 | CH39: 0.5168483333 | CI39: 0.5183308333 | CJ39: 0.5181158333 | CK39: 0.51877 | CL39: 0.5199625 | CM39: 0.5210616667 | CN39: 0.5217825 | CO39: 0.5242266667 | CP39: 0.5235125 | CQ39: 0.5245808333 | CR39: 0.5270033333 | CS39: 0.5265466667 | CT39: 0.5290666667 | CU39: 0.5298191667 | CV39: 0.5314733333 | CW39: 0.5327641667 | CX39: 0.5384241667
B40: 4y3x | C40: 0.1574341667 | D40: 0.1621866667 | E40: 0.1830791667 | F40: 0.2385841667 | G40: 0.2369058333 | H40: 0.2490116667 | I40: 0.2545241667 | J40: 0.2636775 | K40: 0.2662858333 | L40: 0.2821416667 | M40: 0.2848491667 | N40: 0.282905 | O40: 0.2867258333 | P40: 0.2905891667 | Q40: 0.2962533333 | R40: 0.2924533333 | S40: 0.29531 | T40: 0.2952583333 | U40: 0.2987141667 | V40: 0.3029225 | W40: 0.3023566667 | X40: 0.302795 | Y40: 0.3043341667 | Z40: 0.3073708333 | AA40: 0.3086191667 | AB40: 0.3087775 | AC40: 0.3116625 | AD40: 0.3145775 | AE40: 0.3152975 | AF40: 0.3140666667 | AG40: 0.3122925 | AH40: 0.3131216667 | AI40: 0.31297 | AJ40: 0.3138775 | AK40: 0.316125 | AL40: 0.3180183333 | AM40: 0.3193733333 | AN40: 0.3207433333 | AO40: 0.3195283333 | AP40: 0.3219358333 | AQ40: 0.3235791667 | AR40: 0.3228466667 | AS40: 0.3245991667 | AT40: 0.3245791667 | AU40: 0.3251816667 | AV40: 0.325415 | AW40: 0.3267233333 | AX40: 0.3265225 | AY40: 0.32658 | AZ40: 0.327165 | BA40: 0.3283941667 | BB40: 0.3282875 | BC40: 0.3280225 | BD40: 0.3278033333 | BE40: 0.3278283333 | BF40: 0.3288175 | BG40: 0.3310341667 | BH40: 0.33077 | BI40: 0.3308058333 | BJ40: 0.3313275 | BK40: 0.3319083333 | BL40: 0.3309691667 | BM40: 0.3311783333 | BN40: 0.3306408333 | BO40: 0.3321991667 | BP40: 0.3317708333 | BQ40: 0.3315291667 | BR40: 0.3317491667 | BS40: 0.3323783333 | BT40: 0.3330458333 | BU40: 0.3354633333 | BV40: 0.3352758333 | BW40: 0.3355283333 | BX40: 0.335405 | BY40: 0.3356666667 | BZ40: 0.3355666667 | CA40: 0.3358483333 | CB40: 0.3374825 | CC40: 0.3375691667 | CD40: 0.3383616667 | CE40: 0.3392475 | CF40: 0.3383858333 | CG40: 0.3387541667 | CH40: 0.3402691667 | CI40: 0.3402 | CJ40: 0.3403333333 | CK40: 0.3404266667 | CL40: 0.3417766667 | CM40: 0.3411716667 | CN40: 0.34096 | CO40: 0.3417316667 | CP40: 0.343005 | CQ40: 0.34373 | CR40: 0.3442208333 | CS40: 0.3440908333 | CT40: 0.3459808333 | CU40: 0.3452975 | CV40: 0.3471275 | CW40: 0.3483583333 | CX40: 0.3517375
B41: 5y3x | C41: 0.1619391667 | D41: 0.1653758333 | E41: 0.18745 | F41: 0.2420333333 | G41: 0.2413141667 | H41: 0.253255 | I41: 0.2580141667 | J41: 0.2665258333 | K41: 0.2698308333 | L41: 0.2870958333 | M41: 0.28869 | N41: 0.2876508333 | O41: 0.2924075 | P41: 0.2935058333 | Q41: 0.2993491667 | R41: 0.29844 | S41: 0.3007891667 | T41: 0.3010316667 | U41: 0.3041233333 | V41: 0.3088525 | W41: 0.3090425 | X41: 0.3112833333 | Y41: 0.3121416667 | Z41: 0.3133591667 | AA41: 0.3121358333 | AB41: 0.3144733333 | AC41: 0.316305 | AD41: 0.3174675 | AE41: 0.3175083333 | AF41: 0.31906 | AG41: 0.3202208333 | AH41: 0.3198475 | AI41: 0.3202433333 | AJ41: 0.3214583333 | AK41: 0.3244991667 | AL41: 0.3248091667 | AM41: 0.3262016667 | AN41: 0.3270541667 | AO41: 0.3268325 | AP41: 0.3296666667 | AQ41: 0.329635 | AR41: 0.3296733333 | AS41: 0.3302808333 | AT41: 0.3297866667 | AU41: 0.330095 | AV41: 0.33113 | AW41: 0.3308641667 | AX41: 0.3322916667 | AY41: 0.3321291667 | AZ41: 0.3331583333 | BA41: 0.3339325 | BB41: 0.3337591667 | BC41: 0.3335208333 | BD41: 0.33334 | BE41: 0.33445 | BF41: 0.3336833333 | BG41: 0.3348175 | BH41: 0.3361825 | BI41: 0.3378733333 | BJ41: 0.3349658333 | BK41: 0.33686 | BL41: 0.3371858333 | BM41: 0.3371875 | BN41: 0.3377225 | BO41: 0.3388858333 | BP41: 0.3403916667 | BQ41: 0.3401566667 | BR41: 0.3401258333 | BS41: 0.3375283333 | BT41: 0.3395616667 | BU41: 0.3407141667 | BV41: 0.3417075 | BW41: 0.3413175 | BX41: 0.3427041667 | BY41: 0.34333 | BZ41: 0.3426391667 | CA41: 0.3427475 | CB41: 0.3418433333 | CC41: 0.3434075 | CD41: 0.3431708333 | CE41: 0.34494 | CF41: 0.3463416667 | CG41: 0.3462783333 | CH41: 0.3481441667 | CI41: 0.3481766667 | CJ41: 0.3476108333 | CK41: 0.3488858333 | CL41: 0.3504791667 | CM41: 0.3506283333 | CN41: 0.3515625 | CO41: 0.3531941667 | CP41: 0.3533733333 | CQ41: 0.3543016667 | CR41: 0.3543833333 | CS41: 0.3532625 | CT41: 0.3554841667 | CU41: 0.3563775 | CV41: 0.3584016667 | CW41: 0.3596233333 | CX41: 0.3619075
B42: 6y3x | C42: 0.1514925 | D42: 0.1508083333 | E42: 0.1712708333 | F42: 0.2280725 | G42: 0.2274225 | H42: 0.240085 | I42: 0.24291 | J42: 0.2525391667 | K42: 0.2547575 | L42: 0.2720333333 | M42: 0.2754158333 | N42: 0.2756 | O42: 0.2805991667 | P42: 0.2834275 | Q42: 0.2873241667 | R42: 0.2893033333 | S42: 0.292265 | T42: 0.2926991667 | U42: 0.2943566667 | V42: 0.2995016667 | W42: 0.3017483333 | X42: 0.3008266667 | Y42: 0.3027233333 | Z42: 0.302705 | AA42: 0.3068008333 | AB42: 0.3067275 | AC42: 0.3084666667 | AD42: 0.3087633333 | AE42: 0.3080641667 | AF42: 0.3102958333 | AG42: 0.30958 | AH42: 0.310075 | AI42: 0.3099058333 | AJ42: 0.31092 | AK42: 0.3137625 | AL42: 0.3148783333 | AM42: 0.3155666667 | AN42: 0.3163933333 | AO42: 0.3165558333 | AP42: 0.3201866667 | AQ42: 0.3190691667 | AR42: 0.3187416667 | AS42: 0.3188916667 | AT42: 0.317865 | AU42: 0.3181466667 | AV42: 0.3197066667 | AW42: 0.321605 | AX42: 0.3215075 | AY42: 0.3221641667 | AZ42: 0.3227533333 | BA42: 0.3234575 | BB42: 0.323135 | BC42: 0.3220291667 | BD42: 0.3218425 | BE42: 0.3231775 | BF42: 0.3243716667 | BG42: 0.3239266667 | BH42: 0.3260933333 | BI42: 0.327715 | BJ42: 0.3285558333 | BK42: 0.3291716667 | BL42: 0.329135 | BM42: 0.32819 | BN42: 0.3293908333 | BO42: 0.3295325 | BP42: 0.3299091667 | BQ42: 0.32941 | BR42: 0.3285983333 | BS42: 0.3297108333 | BT42: 0.3284416667 | BU42: 0.3298491667 | BV42: 0.3321416667 | BW42: 0.3333341667 | BX42: 0.3332433333 | BY42: 0.3325833333 | BZ42: 0.3343341667 | CA42: 0.3348575 | CB42: 0.3355666667 | CC42: 0.3357983333 | CD42: 0.3386741667 | CE42: 0.3403166667 | CF42: 0.3405116667 | CG42: 0.3398316667 | CH42: 0.3427658333 | CI42: 0.3424875 | CJ42: 0.3436533333 | CK42: 0.3433091667 | CL42: 0.3447866667 | CM42: 0.34645 | CN42: 0.3469191667 | CO42: 0.3497175 | CP42: 0.3495691667 | CQ42: 0.3517225 | CR42: 0.3512841667 | CS42: 0.3515025 | CT42: 0.3540183333 | CU42: 0.3533491667 | CV42: 0.3566033333 | CW42: 0.3588475 | CX42: 0.3613083333
B43: 7y3x | C43: 0.1371858333 | D43: 0.1363283333 | E43: 0.1576 | F43: 0.2146091667 | G43: 0.2112716667 | H43: 0.2246025 | I43: 0.22891 | J43: 0.2411366667 | K43: 0.2448366667 | L43: 0.2608933333 | M43: 0.2636416667 | N43: 0.2682983333 | O43: 0.2716475 | P43: 0.2743941667 | Q43: 0.2806058333 | R43: 0.2822533333 | S43: 0.2854691667 | T43: 0.2850541667 | U43: 0.2860591667 | V43: 0.2896958333 | W43: 0.2916333333 | X43: 0.2922483333 | Y43: 0.2924516667 | Z43: 0.2913583333 | AA43: 0.2947216667 | AB43: 0.2954966667 | AC43: 0.2964341667 | AD43: 0.2994516667 | AE43: 0.3001408333 | AF43: 0.3014866667 | AG43: 0.3018291667 | AH43: 0.3013266667 | AI43: 0.3021925 | AJ43: 0.302405 | AK43: 0.3058891667 | AL43: 0.3069741667 | AM43: 0.3062608333 | AN43: 0.3074983333 | AO43: 0.3074483333 | AP43: 0.3086483333 | AQ43: 0.3088975 | AR43: 0.3101883333 | AS43: 0.3112958333 | AT43: 0.3100766667 | AU43: 0.3120591667 | AV43: 0.3136066667 | AW43: 0.3139966667 | AX43: 0.3138208333 | AY43: 0.3154825 | AZ43: 0.3156683333 | BA43: 0.3151225 | BB43: 0.3171191667 | BC43: 0.3147116667 | BD43: 0.3147116667 | BE43: 0.3151133333 | BF43: 0.3155775 | BG43: 0.3167558333 | BH43: 0.3178108333 | BI43: 0.3162041667 | BJ43: 0.3186716667 | BK43: 0.31901 | BL43: 0.3192475 | BM43: 0.3213691667 | BN43: 0.3222625 | BO43: 0.3221541667 | BP43: 0.3251925 | BQ43: 0.3233766667 | BR43: 0.3247033333 | BS43: 0.3249458333 | BT43: 0.3251816667 | BU43: 0.3277375 | BV43: 0.3309866667 | BW43: 0.3311733333 | BX43: 0.33174 | BY43: 0.3347158333 | BZ43: 0.3328258333 | CA43: 0.33541 | CB43: 0.3335666667 | CC43: 0.3348341667 | CD43: 0.3370591667 | CE43: 0.3397766667 | CF43: 0.3399416667 | CG43: 0.3399675 | CH43: 0.3456108333 | CI43: 0.3436333333 | CJ43: 0.3450241667 | CK43: 0.3451575 | CL43: 0.345745 | CM43: 0.3481275 | CN43: 0.3490316667 | CO43: 0.3510125 | CP43: 0.352705 | CQ43: 0.3538325 | CR43: 0.3538208333 | CS43: 0.3539191667 | CT43: 0.3565366667 | CU43: 0.3568241667 | CV43: 0.3614225 | CW43: 0.3628525 | CX43: 0.3666883333
B44: 8y3x | C44: 0.121635 | D44: 0.121125 | E44: 0.1425325 | F44: 0.200065 | G44: 0.1985125 | H44: 0.2145033333 | I44: 0.2186825 | J44: 0.238995 | K44: 0.2402125 | L44: 0.2550466667 | M44: 0.2584033333 | N44: 0.261665 | O44: 0.2651608333 | P44: 0.2682233333 | Q44: 0.2737108333 | R44: 0.2755041667 | S44: 0.2771166667 | T44: 0.2782716667 | U44: 0.2761016667 | V44: 0.2802183333 | W44: 0.2802608333 | X44: 0.2806541667 | Y44: 0.2819566667 | Z44: 0.2856233333 | AA44: 0.2874766667 | AB44: 0.2887533333 | AC44: 0.2887641667 | AD44: 0.2919533333 | AE44: 0.2910308333 | AF44: 0.2923416667 | AG44: 0.2935441667 | AH44: 0.2937108333 | AI44: 0.2937416667 | AJ44: 0.2949633333 | AK44: 0.2974358333 | AL44: 0.2959008333 | AM44: 0.2981616667 | AN44: 0.29704 | AO44: 0.2978925 | AP44: 0.3012041667 | AQ44: 0.3023008333 | AR44: 0.30395 | AS44: 0.3042925 | AT44: 0.3040783333 | AU44: 0.305085 | AV44: 0.3046233333 | AW44: 0.3044166667 | AX44: 0.3042741667 | AY44: 0.3045341667 | AZ44: 0.3063483333 | BA44: 0.3085966667 | BB44: 0.3091425 | BC44: 0.3088275 | BD44: 0.3083366667 | BE44: 0.3103508333 | BF44: 0.3107408333 | BG44: 0.3125233333 | BH44: 0.314355 | BI44: 0.3138816667 | BJ44: 0.315495 | BK44: 0.3177758333 | BL44: 0.3181891667 | BM44: 0.3213758333 | BN44: 0.3238216667 | BO44: 0.3235908333 | BP44: 0.3254941667 | BQ44: 0.3248 | BR44: 0.324035 | BS44: 0.3250816667 | BT44: 0.3244133333 | BU44: 0.3270875 | BV44: 0.330265 | BW44: 0.3306425 | BX44: 0.3320008333 | BY44: 0.336335 | BZ44: 0.335265 | CA44: 0.3366341667 | CB44: 0.3381508333 | CC44: 0.3376916667 | CD44: 0.33959 | CE44: 0.3415766667 | CF44: 0.3426525 | CG44: 0.3430533333 | CH44: 0.3474991667 | CI44: 0.3454416667 | CJ44: 0.3479166667 | CK44: 0.351375 | CL44: 0.3506283333 | CM44: 0.352965 | CN44: 0.3531533333 | CO44: 0.3555616667 | CP44: 0.3573741667 | CQ44: 0.3579933333 | CR44: 0.3608933333 | CS44: 0.36129 | CT44: 0.3635308333 | CU44: 0.3653341667 | CV44: 0.3666166667 | CW44: 0.3705675 | CX44: 0.3740416667
B45: 9y3x | C45: 0.1251333333 | D45: 0.1231141667 | E45: 0.1446033333 | F45: 0.2010816667 | G45: 0.2010508333 | H45: 0.2263041667 | I45: 0.2315383333 | J45: 0.2480983333 | K45: 0.2518241667 | L45: 0.262735 | M45: 0.26455 | N45: 0.26952 | O45: 0.2735033333 | P45: 0.2748825 | Q45: 0.2752883333 | R45: 0.2764825 | S45: 0.278645 | T45: 0.2780433333 | U45: 0.2822566667 | V45: 0.285425 | W45: 0.2875416667 | X45: 0.287135 | Y45: 0.28732 | Z45: 0.2909225 | AA45: 0.2938216667 | AB45: 0.2933958333 | AC45: 0.2935283333 | AD45: 0.2953625 | AE45: 0.2952183333 | AF45: 0.2986933333 | AG45: 0.298465 | AH45: 0.2992525 | AI45: 0.2968725 | AJ45: 0.2981175 | AK45: 0.300305 | AL45: 0.3022083333 | AM45: 0.3035316667 | AN45: 0.3027466667 | AO45: 0.3026308333 | AP45: 0.3052275 | AQ45: 0.30755 | AR45: 0.307305 | AS45: 0.3122875 | AT45: 0.3120766667 | AU45: 0.3140641667 | AV45: 0.3136516667 | AW45: 0.3153291667 | AX45: 0.3160166667 | AY45: 0.3153033333 | AZ45: 0.3181841667 | BA45: 0.31975 | BB45: 0.3210625 | BC45: 0.3212683333 | BD45: 0.3206933333 | BE45: 0.32124 | BF45: 0.3227625 | BG45: 0.3240483333 | BH45: 0.3285641667 | BI45: 0.3289983333 | BJ45: 0.3290558333 | BK45: 0.3320191667 | BL45: 0.3324933333 | BM45: 0.33543 | BN45: 0.3369983333 | BO45: 0.3377383333 | BP45: 0.3379775 | BQ45: 0.33685 | BR45: 0.3407208333 | BS45: 0.3412183333 | BT45: 0.3422108333 | BU45: 0.34311 | BV45: 0.3470308333 | BW45: 0.3493166667 | BX45: 0.3497058333 | BY45: 0.3552058333 | BZ45: 0.3525858333 | CA45: 0.3560783333 | CB45: 0.3561633333 | CC45: 0.3566841667 | CD45: 0.3605725 | CE45: 0.3610966667 | CF45: 0.3615741667 | CG45: 0.3619675 | CH45: 0.3675758333 | CI45: 0.3661575 | CJ45: 0.3681033333 | CK45: 0.3702733333 | CL45: 0.3718008333 | CM45: 0.374555 | CN45: 0.3739375 | CO45: 0.3775783333 | CP45: 0.3800883333 | CQ45: 0.3790575 | CR45: 0.3842366667 | CS45: 0.38646 | CT45: 0.388935 | CU45: 0.3914816667 | CV45: 0.3928916667 | CW45: 0.3959766667 | CX45: 0.4005875
B46: Ty3x | C46: 0.1249708333 | D46: 0.1223858333 | E46: 0.1408966667 | F46: 0.2017758333 | G46: 0.216405 | H46: 0.2390891667 | I46: 0.2383116667 | J46: 0.2533916667 | K46: 0.2539933333 | L46: 0.2589825 | M46: 0.2605541667 | N46: 0.2676608333 | O46: 0.2702516667 | P46: 0.270675 | Q46: 0.2778333333 | R46: 0.28089 | S46: 0.2791125 | T46: 0.2782875 | U46: 0.2838433333 | V46: 0.2873191667 | W46: 0.2894475 | X46: 0.28857 | Y46: 0.28728 | Z46: 0.2920175 | AA46: 0.2936883333 | AB46: 0.2934391667 | AC46: 0.2947225 | AD46: 0.2980825 | AE46: 0.2993375 | AF46: 0.3042816667 | AG46: 0.3043458333 | AH46: 0.3037191667 | AI46: 0.3047375 | AJ46: 0.3051583333 | AK46: 0.3080208333 | AL46: 0.3094758333 | AM46: 0.3123025 | AN46: 0.3120275 | AO46: 0.313755 | AP46: 0.317375 | AQ46: 0.3171766667 | AR46: 0.3190416667 | AS46: 0.3223591667 | AT46: 0.3229341667 | AU46: 0.3247325 | AV46: 0.3253891667 | AW46: 0.325375 | AX46: 0.3292625 | AY46: 0.3310575 | AZ46: 0.3312666667 | BA46: 0.3329241667 | BB46: 0.3331033333 | BC46: 0.33357 | BD46: 0.33394 | BE46: 0.3370891667 | BF46: 0.3364341667 | BG46: 0.33677 | BH46: 0.3403125 | BI46: 0.3457466667 | BJ46: 0.3468658333 | BK46: 0.347905 | BL46: 0.3480866667 | BM46: 0.3519541667 | BN46: 0.3522316667 | BO46: 0.3551775 | BP46: 0.355455 | BQ46: 0.35485 | BR46: 0.3584108333 | BS46: 0.3592133333 | BT46: 0.3620483333 | BU46: 0.3637225 | BV46: 0.3671166667 | BW46: 0.3692675 | BX46: 0.3694875 | BY46: 0.3733833333 | BZ46: 0.372855 | CA46: 0.3747241667 | CB46: 0.3749558333 | CC46: 0.3801391667 | CD46: 0.3804366667 | CE46: 0.3821533333 | CF46: 0.38368 | CG46: 0.3841825 | CH46: 0.3886058333 | CI46: 0.3881258333 | CJ46: 0.3898375 | CK46: 0.3925016667 | CL46: 0.3942116667 | CM46: 0.3969675 | CN46: 0.3975475 | CO46: 0.4032808333 | CP46: 0.4054616667 | CQ46: 0.40911 | CR46: 0.4117583333 | CS46: 0.4138458333 | CT46: 0.4151208333 | CU46: 0.41776 | CV46: 0.4196716667 | CW46: 0.4236016667 | CX46: 0.42489
B47: Jy3x | C47: 0.1200791667 | D47: 0.1115908333 | E47: 0.167565 | F47: 0.2170983333 | G47: 0.2246508333 | H47: 0.2447533333 | I47: 0.2485541667 | J47: 0.2522191667 | K47: 0.2512875 | L47: 0.2662258333 | M47: 0.26981 | N47: 0.2752933333 | O47: 0.2722608333 | P47: 0.2752808333 | Q47: 0.2821141667 | R47: 0.2832158333 | S47: 0.289 | T47: 0.2870475 | U47: 0.2914233333 | V47: 0.2908766667 | W47: 0.2928825 | X47: 0.2955483333 | Y47: 0.2977933333 | Z47: 0.300915 | AA47: 0.3027491667 | AB47: 0.3027708333 | AC47: 0.3038333333 | AD47: 0.3062016667 | AE47: 0.3092333333 | AF47: 0.3133833333 | AG47: 0.3139875 | AH47: 0.3125733333 | AI47: 0.3123641667 | AJ47: 0.3134175 | AK47: 0.3149516667 | AL47: 0.3175033333 | AM47: 0.32122 | AN47: 0.3261416667 | AO47: 0.3284208333 | AP47: 0.3300883333 | AQ47: 0.3311033333 | AR47: 0.3320225 | AS47: 0.3380091667 | AT47: 0.3368833333 | AU47: 0.3384808333 | AV47: 0.3388166667 | AW47: 0.3430666667 | AX47: 0.3484658333 | AY47: 0.3474391667 | AZ47: 0.3485633333 | BA47: 0.3495241667 | BB47: 0.3510325 | BC47: 0.3494891667 | BD47: 0.3511216667 | BE47: 0.3531658333 | BF47: 0.3570191667 | BG47: 0.3576425 | BH47: 0.3641791667 | BI47: 0.3651925 | BJ47: 0.3672216667 | BK47: 0.3701558333 | BL47: 0.3695033333 | BM47: 0.3731391667 | BN47: 0.3740008333 | BO47: 0.3752858333 | BP47: 0.3798291667 | BQ47: 0.3789158333 | BR47: 0.3811416667 | BS47: 0.3826958333 | BT47: 0.3859591667 | BU47: 0.3882741667 | BV47: 0.3898141667 | BW47: 0.3912291667 | BX47: 0.3932366667 | BY47: 0.39584 | BZ47: 0.3981458333 | CA47: 0.3993666667 | CB47: 0.4037758333 | CC47: 0.4047325 | CD47: 0.4058533333 | CE47: 0.4084191667 | CF47: 0.4100341667 | CG47: 0.4109808333 | CH47: 0.4158608333 | CI47: 0.416685 | CJ47: 0.4191558333 | CK47: 0.420995 | CL47: 0.4239766667 | CM47: 0.4264225 | CN47: 0.4272125 | CO47: 0.43171 | CP47: 0.4344266667 | CQ47: 0.4374591667 | CR47: 0.4387025 | CS47: 0.442025 | CT47: 0.441555 | CU47: 0.4453991667 | CV47: 0.4472891667 | CW47: 0.4483941667 | CX47: 0.4527733333
B48: Qy3x | C48: 0.1159708333 | D48: 0.1531275 | E48: 0.1956108333 | F48: 0.2286941667 | G48: 0.24153 | H48: 0.2439816667 | I48: 0.2483066667 | J48: 0.2618291667 | K48: 0.2655516667 | L48: 0.2699475 | M48: 0.2746691667 | N48: 0.2792425 | O48: 0.2838275 | P48: 0.2848675 | Q48: 0.2950425 | R48: 0.297175 | S48: 0.2998133333 | T48: 0.2986083333 | U48: 0.3014266667 | V48: 0.3017925 | W48: 0.3060016667 | X48: 0.3089458333 | Y48: 0.3085716667 | Z48: 0.310405 | AA48: 0.3133608333 | AB48: 0.3213275 | AC48: 0.3225216667 | AD48: 0.3263366667 | AE48: 0.32862 | AF48: 0.3318583333 | AG48: 0.3312408333 | AH48: 0.3301816667 | AI48: 0.3284116667 | AJ48: 0.3286483333 | AK48: 0.3331916667 | AL48: 0.333345 | AM48: 0.3425733333 | AN48: 0.34763 | AO48: 0.3506625 | AP48: 0.35255 | AQ48: 0.3535508333 | AR48: 0.3539625 | AS48: 0.3573991667 | AT48: 0.356585 | AU48: 0.358935 | AV48: 0.3660641667 | AW48: 0.369885 | AX48: 0.373645 | AY48: 0.3732091667 | AZ48: 0.3757241667 | BA48: 0.3757233333 | BB48: 0.3781966667 | BC48: 0.3772533333 | BD48: 0.3802625 | BE48: 0.3830408333 | BF48: 0.3857183333 | BG48: 0.385075 | BH48: 0.3913233333 | BI48: 0.3943141667 | BJ48: 0.3955841667 | BK48: 0.3981191667 | BL48: 0.3995066667 | BM48: 0.4021358333 | BN48: 0.4048783333 | BO48: 0.4070733333 | BP48: 0.4104975 | BQ48: 0.410785 | BR48: 0.4137275 | BS48: 0.4168325 | BT48: 0.4189858333 | BU48: 0.42131 | BV48: 0.4223616667 | BW48: 0.42419 | BX48: 0.427675 | BY48: 0.4310416667 | BZ48: 0.43384 | CA48: 0.435645 | CB48: 0.4368525 | CC48: 0.4398108333 | CD48: 0.4407658333 | CE48: 0.4444325 | CF48: 0.4457708333 | CG48: 0.4472816667 | CH48: 0.4496616667 | CI48: 0.4527483333 | CJ48: 0.4539833333 | CK48: 0.4547758333 | CL48: 0.4564325 | CM48: 0.4595691667 | CN48: 0.4611316667 | CO48: 0.4649833333 | CP48: 0.4657416667 | CQ48: 0.4690158333 | CR48: 0.470795 | CS48: 0.4722733333 | CT48: 0.4740658333 | CU48: 0.4754025 | CV48: 0.4790258333 | CW48: 0.4777125 | CX48: 0.4823583333
B49: Ky3x | C49: 0.09400666667 | D49: 0.1965175 | E49: 0.2146158333 | F49: 0.2275258333 | G49: 0.2414091667 | H49: 0.2640541667 | I49: 0.2664191667 | J49: 0.2772625 | K49: 0.2780141667 | L49: 0.2822333333 | M49: 0.2846383333 | N49: 0.2937516667 | O49: 0.2938891667 | P49: 0.2982733333 | Q49: 0.3079833333 | R49: 0.308805 | S49: 0.3077916667 | T49: 0.3049658333 | U49: 0.3085208333 | V49: 0.326535 | W49: 0.3291375 | X49: 0.3312883333 | Y49: 0.3409241667 | Z49: 0.3430483333 | AA49: 0.3423691667 | AB49: 0.353065 | AC49: 0.3511675 | AD49: 0.3553216667 | AE49: 0.3577733333 | AF49: 0.3577525 | AG49: 0.3583416667 | AH49: 0.3600316667 | AI49: 0.3667525 | AJ49: 0.367775 | AK49: 0.3696541667 | AL49: 0.3690241667 | AM49: 0.3765366667 | AN49: 0.3811666667 | AO49: 0.3842375 | AP49: 0.3852408333 | AQ49: 0.3866025 | AR49: 0.3869883333 | AS49: 0.395255 | AT49: 0.397545 | AU49: 0.3977958333 | AV49: 0.4036916667 | AW49: 0.4089225 | AX49: 0.41121 | AY49: 0.41157 | AZ49: 0.4133483333 | BA49: 0.4175966667 | BB49: 0.4223466667 | BC49: 0.4239591667 | BD49: 0.4259041667 | BE49: 0.4300658333 | BF49: 0.4311225 | BG49: 0.4327625 | BH49: 0.4368391667 | BI49: 0.4373841667 | BJ49: 0.4413158333 | BK49: 0.4412708333 | BL49: 0.4449291667 | BM49: 0.4476883333 | BN49: 0.4504925 | BO49: 0.452095 | BP49: 0.453935 | BQ49: 0.4566216667 | BR49: 0.4579766667 | BS49: 0.4610975 | BT49: 0.4637033333 | BU49: 0.46663 | BV49: 0.4675691667 | BW49: 0.469375 | BX49: 0.4708308333 | BY49: 0.473265 | BZ49: 0.4759766667 | CA49: 0.477995 | CB49: 0.4789341667 | CC49: 0.4806383333 | CD49: 0.4834141667 | CE49: 0.4829508333 | CF49: 0.4861191667 | CG49: 0.4846758333 | CH49: 0.4873383333 | CI49: 0.4895408333 | CJ49: 0.4910791667 | CK49: 0.4919716667 | CL49: 0.4937533333 | CM49: 0.4958933333 | CN49: 0.4967341667 | CO49: 0.4989216667 | CP49: 0.5017033333 | CQ49: 0.5030725 | CR49: 0.5049533333 | CS49: 0.5060616667 | CT49: 0.5079425 | CU49: 0.5083716667 | CV49: 0.5099275 | CW49: 0.5118641667 | CX49: 0.5145033333
B50: Ay3x | C50: 0.2166241667 | D50: 0.2594341667 | E50: 0.2658916667 | F50: 0.2643325 | G50: 0.2678125 | H50: 0.2720416667 | I50: 0.2727016667 | J50: 0.2871808333 | K50: 0.2982891667 | L50: 0.3270416667 | M50: 0.3346258333 | N50: 0.3395108333 | O50: 0.357805 | P50: 0.364115 | Q50: 0.3659466667 | R50: 0.3691275 | S50: 0.380655 | T50: 0.3807958333 | U50: 0.3805225 | V50: 0.3988916667 | W50: 0.4014725 | X50: 0.40126 | Y50: 0.4088608333 | Z50: 0.410915 | AA50: 0.411745 | AB50: 0.4193325 | AC50: 0.4259475 | AD50: 0.4280875 | AE50: 0.43009 | AF50: 0.4315158333 | AG50: 0.4317266667 | AH50: 0.4368458333 | AI50: 0.4437666667 | AJ50: 0.4456125 | AK50: 0.44791 | AL50: 0.4524566667 | AM50: 0.4578833333 | AN50: 0.4590908333 | AO50: 0.4604891667 | AP50: 0.4656908333 | AQ50: 0.467855 | AR50: 0.4690633333 | AS50: 0.4739116667 | AT50: 0.4747083333 | AU50: 0.47677 | AV50: 0.479885 | AW50: 0.4835358333 | AX50: 0.4842766667 | AY50: 0.4875633333 | AZ50: 0.4875375 | BA50: 0.4902858333 | BB50: 0.4935675 | BC50: 0.4975283333 | BD50: 0.499585 | BE50: 0.499265 | BF50: 0.501635 | BG50: 0.5058158333 | BH50: 0.5054916667 | BI50: 0.5066241667 | BJ50: 0.5087491667 | BK50: 0.5101708333 | BL50: 0.5121883333 | BM50: 0.5109108333 | BN50: 0.514375 | BO50: 0.514435 | BP50: 0.5153841667 | BQ50: 0.5188658333 | BR50: 0.5183433333 | BS50: 0.5212741667 | BT50: 0.5212266667 | BU50: 0.5245675 | BV50: 0.5244316667 | BW50: 0.5256675 | BX50: 0.5267425 | BY50: 0.5280241667 | BZ50: 0.529775 | CA50: 0.5312808333 | CB50: 0.534005 | CC50: 0.5342375 | CD50: 0.5340966667 | CE50: 0.5357575 | CF50: 0.5375966667 | CG50: 0.53509 | CH50: 0.5380041667 | CI50: 0.5386516667 | CJ50: 0.540165 | CK50: 0.540775 | CL50: 0.5419891667 | CM50: 0.5445466667 | CN50: 0.5448241667 | CO50: 0.5462425 | CP50: 0.5492708333 | CQ50: 0.5496741667 | CR50: 0.5513483333 | CS50: 0.5535775 | CT50: 0.5534575 | CU50: 0.5557041667 | CV50: 0.5544466667 | CW50: 0.5564183333 | CX50: 0.5586975
B51: 5x4x | C51: 0.2189008333 | D51: 0.2219075 | E51: 0.24205 | F51: 0.2930291667 | G51: 0.2915708333 | H51: 0.3040683333 | I51: 0.3076016667 | J51: 0.3164916667 | K51: 0.3183425 | L51: 0.3349 | M51: 0.3389333333 | N51: 0.3356833333 | O51: 0.3414825 | P51: 0.34227 | Q51: 0.34761 | R51: 0.3442925 | S51: 0.3477716667 | T51: 0.3493025 | U51: 0.3527341667 | V51: 0.3581158333 | W51: 0.357975 | X51: 0.3582358333 | Y51: 0.3603891667 | Z51: 0.361925 | AA51: 0.3610933333 | AB51: 0.3633158333 | AC51: 0.365415 | AD51: 0.3654875 | AE51: 0.3662158333 | AF51: 0.3681541667 | AG51: 0.3670733333 | AH51: 0.3702241667 | AI51: 0.3720716667 | AJ51: 0.37259 | AK51: 0.375605 | AL51: 0.3779716667 | AM51: 0.3774283333 | AN51: 0.3773466667 | AO51: 0.3766891667 | AP51: 0.3789183333 | AQ51: 0.3801475 | AR51: 0.3808833333 | AS51: 0.3816708333 | AT51: 0.3812766667 | AU51: 0.3817625 | AV51: 0.3808116667 | AW51: 0.3807066667 | AX51: 0.38256 | AY51: 0.3805283333 | AZ51: 0.3819425 | BA51: 0.3827883333 | BB51: 0.3823558333 | BC51: 0.3843533333 | BD51: 0.384415 | BE51: 0.3843183333 | BF51: 0.3855216667 | BG51: 0.3866283333 | BH51: 0.3878791667 | BI51: 0.3867683333 | BJ51: 0.3860758333 | BK51: 0.3878675 | BL51: 0.3865125 | BM51: 0.3873683333 | BN51: 0.3878341667 | BO51: 0.3871241667 | BP51: 0.38858 | BQ51: 0.3903025 | BR51: 0.3905458333 | BS51: 0.3893833333 | BT51: 0.3898541667 | BU51: 0.3917041667 | BV51: 0.3926991667 | BW51: 0.393615 | BX51: 0.3927566667 | BY51: 0.3931683333 | BZ51: 0.3947933333 | CA51: 0.3948308333 | CB51: 0.3939341667 | CC51: 0.3943525 | CD51: 0.3949558333 | CE51: 0.39641 | CF51: 0.3961933333 | CG51: 0.3971675 | CH51: 0.3974408333 | CI51: 0.3968075 | CJ51: 0.3975116667 | CK51: 0.3980925 | CL51: 0.3984141667 | CM51: 0.4006916667 | CN51: 0.40051 | CO51: 0.4032875 | CP51: 0.4051008333 | CQ51: 0.4043916667 | CR51: 0.4053758333 | CS51: 0.4061091667 | CT51: 0.4069866667 | CU51: 0.4082583333 | CV51: 0.4103308333 | CW51: 0.4122341667 | CX51: 0.4144375
B52: 6x4x | C52: 0.2080825 | D52: 0.2074308333 | E52: 0.2279025 | F52: 0.28043 | G52: 0.2786816667 | H52: 0.2911091667 | I52: 0.29454 | J52: 0.3034375 | K52: 0.3057416667 | L52: 0.3222208333 | M52: 0.3271225 | N52: 0.3248291667 | O52: 0.3301516667 | P52: 0.3332908333 | Q52: 0.3374516667 | R52: 0.3381425 | S52: 0.3407541667 | T52: 0.3412416667 | U52: 0.34448 | V52: 0.3494141667 | W52: 0.3503816667 | X52: 0.3492966667 | Y52: 0.3522991667 | Z52: 0.3537616667 | AA52: 0.3561525 | AB52: 0.3583075 | AC52: 0.3585108333 | AD52: 0.3583841667 | AE52: 0.3578466667 | AF52: 0.3596658333 | AG52: 0.3598866667 | AH52: 0.3620133333 | AI52: 0.36389 | AJ52: 0.3648858333 | AK52: 0.3679441667 | AL52: 0.3675216667 | AM52: 0.3679241667 | AN52: 0.3690341667 | AO52: 0.3688175 | AP52: 0.369705 | AQ52: 0.3703933333 | AR52: 0.36951 | AS52: 0.3691066667 | AT52: 0.3700875 | AU52: 0.3718333333 | AV52: 0.3716316667 | AW52: 0.3728758333 | AX52: 0.3723741667 | AY52: 0.3724066667 | AZ52: 0.3716508333 | BA52: 0.3728591667 | BB52: 0.37347 | BC52: 0.3746341667 | BD52: 0.3744141667 | BE52: 0.3745641667 | BF52: 0.3755741667 | BG52: 0.377855 | BH52: 0.3776483333 | BI52: 0.3793225 | BJ52: 0.3793633333 | BK52: 0.3786733333 | BL52: 0.3780816667 | BM52: 0.3781716667 | BN52: 0.3778791667 | BO52: 0.3784675 | BP52: 0.3781975 | BQ52: 0.3814483333 | BR52: 0.3807116667 | BS52: 0.3803791667 | BT52: 0.3807008333 | BU52: 0.383295 | BV52: 0.3836241667 | BW52: 0.3836483333 | BX52: 0.3848175 | BY52: 0.38556 | BZ52: 0.386485 | CA52: 0.3875683333 | CB52: 0.3880133333 | CC52: 0.3886183333 | CD52: 0.3909066667 | CE52: 0.3925008333 | CF52: 0.3915508333 | CG52: 0.3912125 | CH52: 0.3947758333 | CI52: 0.3945708333 | CJ52: 0.3949116667 | CK52: 0.3945975 | CL52: 0.3944866667 | CM52: 0.3971483333 | CN52: 0.3978066667 | CO52: 0.3999116667 | CP52: 0.4025183333 | CQ52: 0.4029841667 | CR52: 0.40429 | CS52: 0.4027483333 | CT52: 0.4058741667 | CU52: 0.4070983333 | CV52: 0.4100766667 | CW52: 0.4104258333 | CX52: 0.4143916667
B53: 7x4x | C53: 0.1948183333 | D53: 0.1940425 | E53: 0.2131825 | F53: 0.2675416667 | G53: 0.2669508333 | H53: 0.2788925 | I53: 0.2814191667 | J53: 0.2934025 | K53: 0.2960258333 | L53: 0.3127566667 | M53: 0.3156008333 | N53: 0.3171583333 | O53: 0.3212108333 | P53: 0.3241983333 | Q53: 0.3304266667 | R53: 0.3305491667 | S53: 0.3326775 | T53: 0.3352066667 | U53: 0.3378158333 | V53: 0.340845 | W53: 0.34103 | X53: 0.3412958333 | Y53: 0.3419866667 | Z53: 0.3419791667 | AA53: 0.3454158333 | AB53: 0.3466675 | AC53: 0.3479658333 | AD53: 0.3510641667 | AE53: 0.3513425 | AF53: 0.351855 | AG53: 0.3510008333 | AH53: 0.3551766667 | AI53: 0.3564841667 | AJ53: 0.3571641667 | AK53: 0.3594533333 | AL53: 0.3596491667 | AM53: 0.3594108333 | AN53: 0.3590658333 | AO53: 0.35943 | AP53: 0.3593916667 | AQ53: 0.3623391667 | AR53: 0.3619766667 | AS53: 0.3640866667 | AT53: 0.36336 | AU53: 0.36494 | AV53: 0.3636475 | AW53: 0.3669791667 | AX53: 0.3662666667 | AY53: 0.3651491667 | AZ53: 0.3663183333 | BA53: 0.3666758333 | BB53: 0.3675616667 | BC53: 0.3699875 | BD53: 0.3689341667 | BE53: 0.3693125 | BF53: 0.3677575 | BG53: 0.3692183333 | BH53: 0.3711358333 | BI53: 0.3701075 | BJ53: 0.3704775 | BK53: 0.3727208333 | BL53: 0.371565 | BM53: 0.373445 | BN53: 0.3739858333 | BO53: 0.374045 | BP53: 0.3744883333 | BQ53: 0.37625 | BR53: 0.37702 | BS53: 0.3775491667 | BT53: 0.3782008333 | BU53: 0.3794125 | BV53: 0.3817525 | BW53: 0.3820833333 | BX53: 0.3832916667 | BY53: 0.3858666667 | BZ53: 0.3861991667 | CA53: 0.3863925 | CB53: 0.3866625 | CC53: 0.3883016667 | CD53: 0.3905475 | CE53: 0.3915925 | CF53: 0.3918508333 | CG53: 0.39241 | CH53: 0.3961041667 | CI53: 0.3961133333 | CJ53: 0.3973966667 | CK53: 0.3974525 | CL53: 0.3980558333 | CM53: 0.4002008333 | CN53: 0.3998516667 | CO53: 0.4019933333 | CP53: 0.4054791667 | CQ53: 0.4058141667 | CR53: 0.406545 | CS53: 0.4069941667 | CT53: 0.4092433333 | CU53: 0.4104966667 | CV53: 0.412715 | CW53: 0.4145783333 | CX53: 0.4184758333
B54: 8x4x | C54: 0.1800683333 | D54: 0.1800066667 | E54: 0.1994775 | F54: 0.2557816667 | G54: 0.2532241667 | H54: 0.2695883333 | I54: 0.2722091667 | J54: 0.29051 | K54: 0.2927641667 | L54: 0.3079625 | M54: 0.3101483333 | N54: 0.31231 | O54: 0.317025 | P54: 0.3194008333 | Q54: 0.3244816667 | R54: 0.3241875 | S54: 0.3258808333 | T54: 0.329175 | U54: 0.328175 | V54: 0.3312758333 | W54: 0.33214 | X54: 0.3305383333 | Y54: 0.3338708333 | Z54: 0.3369541667 | AA54: 0.3396841667 | AB54: 0.3401391667 | AC54: 0.3400241667 | AD54: 0.34263 | AE54: 0.3424375 | AF54: 0.3431891667 | AG54: 0.343295 | AH54: 0.347325 | AI54: 0.3482125 | AJ54: 0.3490025 | AK54: 0.3525216667 | AL54: 0.3505041667 | AM54: 0.3507066667 | AN54: 0.3503591667 | AO54: 0.3527366667 | AP54: 0.3546866667 | AQ54: 0.3559383333 | AR54: 0.3551708333 | AS54: 0.3559066667 | AT54: 0.35759 | AU54: 0.3583033333 | AV54: 0.357965 | AW54: 0.3579633333 | AX54: 0.3565875 | AY54: 0.3557875 | AZ54: 0.3566033333 | BA54: 0.358665 | BB54: 0.3613683333 | BC54: 0.3610716667 | BD54: 0.3636075 | BE54: 0.3630166667 | BF54: 0.3650275 | BG54: 0.3656525 | BH54: 0.3671083333 | BI54: 0.3685933333 | BJ54: 0.3676308333 | BK54: 0.3704433333 | BL54: 0.3703583333 | BM54: 0.3719341667 | BN54: 0.3735475 | BO54: 0.3738308333 | BP54: 0.37443 | BQ54: 0.3765716667 | BR54: 0.3772025 | BS54: 0.37752 | BT54: 0.379195 | BU54: 0.3814825 | BV54: 0.38283 | BW54: 0.3832591667 | BX54: 0.3838758333 | BY54: 0.3877191667 | BZ54: 0.3878483333 | CA54: 0.3899975 | CB54: 0.3899175 | CC54: 0.391095 | CD54: 0.3928516667 | CE54: 0.3942741667 | CF54: 0.3929533333 | CG54: 0.3944358333 | CH54: 0.3986016667 | CI54: 0.4005666667 | CJ54: 0.402145 | CK54: 0.4036275 | CL54: 0.4036258333 | CM54: 0.4056408333 | CN54: 0.4058475 | CO54: 0.4074716667 | CP54: 0.4099883333 | CQ54: 0.4111033333 | CR54: 0.4145975 | CS54: 0.41456 | CT54: 0.4158033333 | CU54: 0.4186633333 | CV54: 0.419635 | CW54: 0.42361 | CX54: 0.4263425
B55: 9x4x | C55: 0.1663283333 | D55: 0.1650866667 | E55: 0.1853341667 | F55: 0.2408191667 | G55: 0.2417841667 | H55: 0.2683733333 | I55: 0.2714366667 | J55: 0.2877858333 | K55: 0.2893783333 | L55: 0.3029233333 | M55: 0.3028225 | N55: 0.3083558333 | O55: 0.3116816667 | P55: 0.31318 | Q55: 0.3125658333 | R55: 0.312635 | S55: 0.31461 | T55: 0.31698 | U55: 0.32129 | V55: 0.3230091667 | W55: 0.322965 | X55: 0.3237041667 | Y55: 0.3249966667 | Z55: 0.3281233333 | AA55: 0.3297691667 | AB55: 0.3321583333 | AC55: 0.3296725 | AD55: 0.3339316667 | AE55: 0.3339283333 | AF55: 0.3347141667 | AG55: 0.3354133333 | AH55: 0.3390866667 | AI55: 0.3366975 | AJ55: 0.3387566667 | AK55: 0.3406883333 | AL55: 0.3426275 | AM55: 0.344875 | AN55: 0.3438466667 | AO55: 0.3440658333 | AP55: 0.3473358333 | AQ55: 0.3469466667 | AR55: 0.3484091667 | AS55: 0.352255 | AT55: 0.3502875 | AU55: 0.3539275 | AV55: 0.3533 | AW55: 0.3559541667 | AX55: 0.3552933333 | AY55: 0.3547941667 | AZ55: 0.3558133333 | BA55: 0.358545 | BB55: 0.35934 | BC55: 0.3597141667 | BD55: 0.36011 | BE55: 0.3613041667 | BF55: 0.3621275 | BG55: 0.3633516667 | BH55: 0.3693325 | BI55: 0.369545 | BJ55: 0.3698566667 | BK55: 0.3710725 | BL55: 0.3700958333 | BM55: 0.3735108333 | BN55: 0.3749916667 | BO55: 0.3754225 | BP55: 0.3779575 | BQ55: 0.3786216667 | BR55: 0.3816458333 | BS55: 0.3815558333 | BT55: 0.3826566667 | BU55: 0.3851708333 | BV55: 0.3873941667 | BW55: 0.3877341667 | BX55: 0.3883066667 | BY55: 0.3917625 | BZ55: 0.3932266667 | CA55: 0.3962216667 | CB55: 0.3962591667 | CC55: 0.3980541667 | CD55: 0.3992025 | CE55: 0.4005183333 | CF55: 0.4003391667 | CG55: 0.4017116667 | CH55: 0.4053816667 | CI55: 0.4048783333 | CJ55: 0.4085016667 | CK55: 0.4106416667 | CL55: 0.411375 | CM55: 0.4124291667 | CN55: 0.4132541667 | CO55: 0.4162641667 | CP55: 0.4195233333 | CQ55: 0.42033 | CR55: 0.4233833333 | CS55: 0.4250541667 | CT55: 0.4274041667 | CU55: 0.4298091667 | CV55: 0.4325525 | CW55: 0.4348458333 | CX55: 0.4381258333
B56: Tx4x | C56: 0.170755 | D56: 0.16829 | E56: 0.1862375 | F56: 0.2450683333 | G56: 0.2593716667 | H56: 0.2803841667 | I56: 0.2805433333 | J56: 0.2965966667 | K56: 0.2965658333 | L56: 0.3012491667 | M56: 0.3032966667 | N56: 0.30666 | O56: 0.3108583333 | P56: 0.3126116667 | Q56: 0.3194075 | R56: 0.3207558333 | S56: 0.3194475 | T56: 0.3199033333 | U56: 0.3248383333 | V56: 0.3279008333 | W56: 0.3287666667 | X56: 0.3307041667 | Y56: 0.328785 | Z56: 0.33182 | AA56: 0.3353841667 | AB56: 0.3337741667 | AC56: 0.336025 | AD56: 0.3385133333 | AE56: 0.3400816667 | AF56: 0.342975 | AG56: 0.3425733333 | AH56: 0.3453533333 | AI56: 0.3485833333 | AJ56: 0.3477558333 | AK56: 0.3523791667 | AL56: 0.3525708333 | AM56: 0.3534441667 | AN56: 0.35325 | AO56: 0.3559675 | AP56: 0.3592008333 | AQ56: 0.3606433333 | AR56: 0.3595416667 | AS56: 0.3645491667 | AT56: 0.36485 | AU56: 0.3658216667 | AV56: 0.36679 | AW56: 0.3674991667 | AX56: 0.3708691667 | AY56: 0.3694791667 | AZ56: 0.3710258333 | BA56: 0.3732191667 | BB56: 0.3731041667 | BC56: 0.3753258333 | BD56: 0.3774016667 | BE56: 0.3774 | BF56: 0.3775458333 | BG56: 0.3774608333 | BH56: 0.3849025 | BI56: 0.3881166667 | BJ56: 0.3872083333 | BK56: 0.3909233333 | BL56: 0.3894875 | BM56: 0.3913483333 | BN56: 0.3922108333 | BO56: 0.394675 | BP56: 0.3963816667 | BQ56: 0.3977433333 | BR56: 0.3995608333 | BS56: 0.4008666667 | BT56: 0.4034008333 | BU56: 0.404925 | BV56: 0.40976 | BW56: 0.4104341667 | BX56: 0.40883 | BY56: 0.41352 | BZ56: 0.4145541667 | CA56: 0.41608 | CB56: 0.4168983333 | CC56: 0.4199766667 | CD56: 0.422375 | CE56: 0.4236 | CF56: 0.42357 | CG56: 0.424335 | CH56: 0.428095 | CI56: 0.4295308333 | CJ56: 0.43273 | CK56: 0.4347766667 | CL56: 0.4353683333 | CM56: 0.4372208333 | CN56: 0.4403583333 | CO56: 0.4456475 | CP56: 0.4461116667 | CQ56: 0.4493075 | CR56: 0.4513733333 | CS56: 0.4533458333 | CT56: 0.4559591667 | CU56: 0.4577091667 | CV56: 0.4594125 | CW56: 0.4612758333 | CX56: 0.4646916667
B57: Jx4x | C57: 0.1661333333 | D57: 0.1595966667 | E57: 0.2124716667 | F57: 0.260695 | G57: 0.2666008333 | H57: 0.2866966667 | I57: 0.290485 | J57: 0.2939483333 | K57: 0.2928908333 | L57: 0.3086683333 | M57: 0.3128125 | N57: 0.314945 | O57: 0.3128808333 | P57: 0.3157791667 | Q57: 0.3225566667 | R57: 0.3224975 | S57: 0.3269616667 | T57: 0.328405 | U57: 0.3316491667 | V57: 0.3332383333 | W57: 0.33366 | X57: 0.3372908333 | Y57: 0.339245 | Z57: 0.340805 | AA57: 0.34331 | AB57: 0.3424216667 | AC57: 0.3455741667 | AD57: 0.3476925 | AE57: 0.3502816667 | AF57: 0.35277 | AG57: 0.3515016667 | AH57: 0.3545433333 | AI57: 0.3550441667 | AJ57: 0.3569766667 | AK57: 0.3585433333 | AL57: 0.3606291667 | AM57: 0.3635483333 | AN57: 0.3692516667 | AO57: 0.3696891667 | AP57: 0.3728391667 | AQ57: 0.37249 | AR57: 0.3729025 | AS57: 0.3776691667 | AT57: 0.37769 | AU57: 0.3804991667 | AV57: 0.3790258333 | AW57: 0.3839841667 | AX57: 0.38816 | AY57: 0.3868375 | AZ57: 0.3878758333 | BA57: 0.3898808333 | BB57: 0.390625 | BC57: 0.391855 | BD57: 0.3929008333 | BE57: 0.395545 | BF57: 0.3984425 | BG57: 0.3998658333 | BH57: 0.404255 | BI57: 0.4072566667 | BJ57: 0.4084175 | BK57: 0.4115925 | BL57: 0.4104008333 | BM57: 0.411665 | BN57: 0.4136008333 | BO57: 0.4157808333 | BP57: 0.419715 | BQ57: 0.4203566667 | BR57: 0.4228283333 | BS57: 0.4238141667 | BT57: 0.4276 | BU57: 0.4266158333 | BV57: 0.4306791667 | BW57: 0.4301391667 | BX57: 0.4324425 | BY57: 0.43678 | BZ57: 0.4365791667 | CA57: 0.4403058333 | CB57: 0.4410225 | CC57: 0.44472 | CD57: 0.4466091667 | CE57: 0.4480208333 | CF57: 0.4516966667 | CG57: 0.4525641667 | CH57: 0.456375 | CI57: 0.4576525 | CJ57: 0.4607258333 | CK57: 0.4629508333 | CL57: 0.4647216667 | CM57: 0.466955 | CN57: 0.4692058333 | CO57: 0.47229 | CP57: 0.4749608333 | CQ57: 0.4766275 | CR57: 0.4785525 | CS57: 0.4799941667 | CT57: 0.4815675 | CU57: 0.4825941667 | CV57: 0.4847691667 | CW57: 0.48674 | CX57: 0.491085
B58: Qx4x | C58: 0.1625525 | D58: 0.199645 | E58: 0.238675 | F58: 0.27303 | G58: 0.2831166667 | H58: 0.2867266667 | I58: 0.2910758333 | J58: 0.3049933333 | K58: 0.3084816667 | L58: 0.3129716667 | M58: 0.317625 | N58: 0.321075 | O58: 0.3249475 | P58: 0.3266666667 | Q58: 0.3360616667 | R58: 0.33598 | S58: 0.3387816667 | T58: 0.3397191667 | U58: 0.3425891667 | V58: 0.3434366667 | W58: 0.346995 | X58: 0.3507008333 | Y58: 0.3492966667 | Z58: 0.3513925 | AA58: 0.3522516667 | AB58: 0.361155 | AC58: 0.36278 | AD58: 0.3657933333 | AE58: 0.3690566667 | AF58: 0.3704516667 | AG58: 0.3690408333 | AH58: 0.371885 | AI58: 0.3708816667 | AJ58: 0.37227 | AK58: 0.3755808333 | AL58: 0.3768291667 | AM58: 0.3840658333 | AN58: 0.38956 | AO58: 0.39225 | AP58: 0.3938641667 | AQ58: 0.39343 | AR58: 0.39478 | AS58: 0.3999416667 | AT58: 0.3994966667 | AU58: 0.4006683333 | AV58: 0.4051483333 | AW58: 0.4099483333 | AX58: 0.4129391667 | AY58: 0.4111033333 | AZ58: 0.4141166667 | BA58: 0.4140875 | BB58: 0.4169175 | BC58: 0.4170275 | BD58: 0.4210966667 | BE58: 0.4229658333 | BF58: 0.4272258333 | BG58: 0.4255958333 | BH58: 0.4310433333 | BI58: 0.4335825 | BJ58: 0.4342975 | BK58: 0.4378233333 | BL58: 0.4378375 | BM58: 0.4403075 | BN58: 0.4449808333 | BO58: 0.4465983333 | BP58: 0.4495475 | BQ58: 0.4504991667 | BR58: 0.4523183333 | BS58: 0.4563408333 | BT58: 0.4577391667 | BU58: 0.4605058333 | BV58: 0.4623341667 | BW58: 0.4624225 | BX58: 0.4665375 | BY58: 0.4703166667 | BZ58: 0.4721341667 | CA58: 0.4733541667 | CB58: 0.4756683333 | CC58: 0.4772216667 | CD58: 0.48015 | CE58: 0.48288 | CF58: 0.4857533333 | CG58: 0.4857675 | CH58: 0.4891083333 | CI58: 0.4903091667 | CJ58: 0.4916583333 | CK58: 0.4950575 | CL58: 0.4965908333 | CM58: 0.498055 | CN58: 0.501135 | CO58: 0.5035558333 | CP58: 0.505845 | CQ58: 0.5063275 | CR58: 0.507845 | CS58: 0.5102716667 | CT58: 0.5103316667 | CU58: 0.51295 | CV58: 0.5153133333 | CW58: 0.5153941667 | CX58: 0.5182066667
B59: Kx4x | C59: 0.1443925 | D59: 0.2410566667 | E59: 0.25941 | F59: 0.27353 | G59: 0.2837291667 | H59: 0.3063875 | I59: 0.3087858333 | J59: 0.3198358333 | K59: 0.3193358333 | L59: 0.3253216667 | M59: 0.3260716667 | N59: 0.3352975 | O59: 0.3330941667 | P59: 0.3404275 | Q59: 0.3482241667 | R59: 0.3467366667 | S59: 0.346455 | T59: 0.3473108333 | U59: 0.3499433333 | V59: 0.3653633333 | W59: 0.3685366667 | X59: 0.3717341667 | Y59: 0.381 | Z59: 0.38153 | AA59: 0.3825016667 | AB59: 0.3913233333 | AC59: 0.3899833333 | AD59: 0.3928408333 | AE59: 0.3959683333 | AF59: 0.3952266667 | AG59: 0.3959066667 | AH59: 0.4009925 | AI59: 0.4076525 | AJ59: 0.4082458333 | AK59: 0.4101983333 | AL59: 0.4103225 | AM59: 0.4187833333 | AN59: 0.4216391667 | AO59: 0.4226041667 | AP59: 0.4257425 | AQ59: 0.4263541667 | AR59: 0.4269491667 | AS59: 0.4349583333 | AT59: 0.4366825 | AU59: 0.4377391667 | AV59: 0.4418158333 | AW59: 0.446545 | AX59: 0.4501283333 | AY59: 0.44981 | AZ59: 0.45198 | BA59: 0.4562708333 | BB59: 0.4605041667 | BC59: 0.4617875 | BD59: 0.46377 | BE59: 0.4659733333 | BF59: 0.4689941667 | BG59: 0.4700875 | BH59: 0.4725325 | BI59: 0.4746533333 | BJ59: 0.4787983333 | BK59: 0.48194 | BL59: 0.4851116667 | BM59: 0.4853416667 | BN59: 0.4882816667 | BO59: 0.4901333333 | BP59: 0.492655 | BQ59: 0.49473 | BR59: 0.49579 | BS59: 0.4981791667 | BT59: 0.49972 | BU59: 0.5021783333 | BV59: 0.5030466667 | BW59: 0.5038658333 | BX59: 0.5081975 | BY59: 0.5098566667 | BZ59: 0.5114725 | CA59: 0.5128891667 | CB59: 0.5146116667 | CC59: 0.5155025 | CD59: 0.5186633333 | CE59: 0.5195916667 | CF59: 0.5216591667 | CG59: 0.5222483333 | CH59: 0.5249875 | CI59: 0.5270433333 | CJ59: 0.5279008333 | CK59: 0.5309125 | CL59: 0.5324233333 | CM59: 0.5319691667 | CN59: 0.5345341667 | CO59: 0.5377458333 | CP59: 0.5375966667 | CQ59: 0.5397233333 | CR59: 0.5405275 | CS59: 0.5421791667 | CT59: 0.5416183333 | CU59: 0.543585 | CV59: 0.5453841667 | CW59: 0.5462316667 | CX59: 0.5492216667
B60: Ax4x | C60: 0.262235 | D60: 0.3008416667 | E60: 0.3069683333 | F60: 0.3082866667 | G60: 0.3091333333 | H60: 0.3134158333 | I60: 0.313775 | J60: 0.3282466667 | K60: 0.3403183333 | L60: 0.3664158333 | M60: 0.3732483333 | N60: 0.3779091667 | O60: 0.3972841667 | P60: 0.4007408333 | Q60: 0.4025008333 | R60: 0.4061858333 | S60: 0.4181575 | T60: 0.4182858333 | U60: 0.4173833333 | V60: 0.4332375 | W60: 0.437645 | X60: 0.43965 | Y60: 0.4456025 | Z60: 0.4480725 | AA60: 0.4479391667 | AB60: 0.4559583333 | AC60: 0.46006 | AD60: 0.4633183333 | AE60: 0.4659316667 | AF60: 0.4677841667 | AG60: 0.4694166667 | AH60: 0.4740433333 | AI60: 0.4790675 | AJ60: 0.4809616667 | AK60: 0.4843283333 | AL60: 0.4876808333 | AM60: 0.492235 | AN60: 0.4945033333 | AO60: 0.4961891667 | AP60: 0.5003925 | AQ60: 0.5036716667 | AR60: 0.5042408333 | AS60: 0.5076291667 | AT60: 0.5100475 | AU60: 0.5124616667 | AV60: 0.5156025 | AW60: 0.5177533333 | AX60: 0.5188658333 | AY60: 0.5228991667 | AZ60: 0.5235108333 | BA60: 0.5261375 | BB60: 0.5285425 | BC60: 0.5305275 | BD60: 0.5339041667 | BE60: 0.5338475 | BF60: 0.5353358333 | BG60: 0.5378375 | BH60: 0.5401025 | BI60: 0.539535 | BJ60: 0.5421375 | BK60: 0.54484 | BL60: 0.5455391667 | BM60: 0.546035 | BN60: 0.549375 | BO60: 0.5506875 | BP60: 0.55122 | BQ60: 0.5534941667 | BR60: 0.5543225 | BS60: 0.5544208333 | BT60: 0.5566083333 | BU60: 0.5571608333 | BV60: 0.5582858333 | BW60: 0.557705 | BX60: 0.5595708333 | BY60: 0.5626566667 | BZ60: 0.5627883333 | CA60: 0.56363 | CB60: 0.5634733333 | CC60: 0.566155 | CD60: 0.5670891667 | CE60: 0.56899 | CF60: 0.5706716667 | CG60: 0.5692358333 | CH60: 0.5737083333 | CI60: 0.5741825 | CJ60: 0.5748291667 | CK60: 0.575855 | CL60: 0.5776508333 | CM60: 0.5788016667 | CN60: 0.5792025 | CO60: 0.58238 | CP60: 0.5829958333 | CQ60: 0.5845491667 | CR60: 0.5837658333 | CS60: 0.5852825 | CT60: 0.5858233333 | CU60: 0.5859908333 | CV60: 0.587375 | CW60: 0.5890058333 | CX60: 0.59161
B61: 4y4x | C61: 0.1887583333 | D61: 0.1887083333 | E61: 0.2280075 | F61: 0.3253716667 | G61: 0.3232716667 | H61: 0.3467608333 | I61: 0.353825 | J61: 0.3709741667 | K61: 0.3753033333 | L61: 0.4025166667 | M61: 0.4077366667 | N61: 0.408225 | O61: 0.4160025 | P61: 0.4203533333 | Q61: 0.430615 | R61: 0.4271125 | S61: 0.4308725 | T61: 0.4350783333 | U61: 0.4411041667 | V61: 0.4497991667 | W61: 0.4519733333 | X61: 0.45202 | Y61: 0.4544558333 | Z61: 0.4587725 | AA61: 0.4616591667 | AB61: 0.4630558333 | AC61: 0.4653341667 | AD61: 0.4701225 | AE61: 0.4701083333 | AF61: 0.4783916667 | AG61: 0.4805708333 | AH61: 0.4866083333 | AI61: 0.4881408333 | AJ61: 0.4908641667 | AK61: 0.497305 | AL61: 0.4979216667 | AM61: 0.4967116667 | AN61: 0.4984316667 | AO61: 0.4982533333 | AP61: 0.50301 | AQ61: 0.5046966667 | AR61: 0.50356 | AS61: 0.503595 | AT61: 0.5049875 | AU61: 0.5064775 | AV61: 0.5066183333 | AW61: 0.5078291667 | AX61: 0.5077616667 | AY61: 0.5097816667 | AZ61: 0.5089425 | BA61: 0.5101483333 | BB61: 0.5119241667 | BC61: 0.5160016667 | BD61: 0.5160308333 | BE61: 0.5169075 | BF61: 0.5143591667 | BG61: 0.5194691667 | BH61: 0.5195975 | BI61: 0.5198725 | BJ61: 0.5195033333 | BK61: 0.5211991667 | BL61: 0.5217791667 | BM61: 0.5224516667 | BN61: 0.5244425 | BO61: 0.5232116667 | BP61: 0.5248816667 | BQ61: 0.5277675 | BR61: 0.52625 | BS61: 0.52868 | BT61: 0.5281275 | BU61: 0.53104 | BV61: 0.5310183333 | BW61: 0.5315775 | BX61: 0.53401 | BY61: 0.5339716667 | BZ61: 0.5365225 | CA61: 0.5373275 | CB61: 0.5370391667 | CC61: 0.5379016667 | CD61: 0.5378058333 | CE61: 0.5400008333 | CF61: 0.5412108333 | CG61: 0.541685 | CH61: 0.5429075 | CI61: 0.5448025 | CJ61: 0.5457683333 | CK61: 0.5466741667 | CL61: 0.5479941667 | CM61: 0.5502091667 | CN61: 0.5508441667 | CO61: 0.55482 | CP61: 0.5549125 | CQ61: 0.5557608333 | CR61: 0.5579625 | CS61: 0.5596208333 | CT61: 0.5609883333 | CU61: 0.5629191667 | CV61: 0.5648925 | CW61: 0.5653008333 | CX61: 0.5701733333
B62: 5y4x | C62: 0.18002 | D62: 0.1833516667 | E62: 0.2044583333 | F62: 0.2574833333 | G62: 0.2562308333 | H62: 0.2683808333 | I62: 0.2720183333 | J62: 0.2794566667 | K62: 0.2833483333 | L62: 0.2997625 | M62: 0.3032625 | N62: 0.3008066667 | O62: 0.3060991667 | P62: 0.306275 | Q62: 0.3125991667 | R62: 0.3090916667 | S62: 0.3124133333 | T62: 0.315045 | U62: 0.31724 | V62: 0.3231233333 | W62: 0.3240158333 | X62: 0.3247475 | Y62: 0.3263908333 | Z62: 0.3285258333 | AA62: 0.3272966667 | AB62: 0.3278425 | AC62: 0.3296616667 | AD62: 0.3306583333 | AE62: 0.3320866667 | AF62: 0.332835 | AG62: 0.3339066667 | AH62: 0.3364575 | AI62: 0.3375041667 | AJ62: 0.3394916667 | AK62: 0.3406966667 | AL62: 0.3422566667 | AM62: 0.3429383333 | AN62: 0.3431841667 | AO62: 0.341575 | AP62: 0.3453091667 | AQ62: 0.3462766667 | AR62: 0.3462791667 | AS62: 0.3473333333 | AT62: 0.3471275 | AU62: 0.3464208333 | AV62: 0.3471083333 | AW62: 0.34762 | AX62: 0.3483975 | AY62: 0.3474191667 | AZ62: 0.3462366667 | BA62: 0.3483083333 | BB62: 0.3490933333 | BC62: 0.3509233333 | BD62: 0.3503991667 | BE62: 0.35052 | BF62: 0.3514675 | BG62: 0.3523716667 | BH62: 0.35321 | BI62: 0.3523691667 | BJ62: 0.3518583333 | BK62: 0.3520375 | BL62: 0.3528925 | BM62: 0.3523608333 | BN62: 0.3519541667 | BO62: 0.3540058333 | BP62: 0.3541 | BQ62: 0.3555108333 | BR62: 0.3550916667 | BS62: 0.3554383333 | BT62: 0.3560425 | BU62: 0.3572466667 | BV62: 0.3573075 | BW62: 0.3578808333 | BX62: 0.35801 | BY62: 0.3594966667 | BZ62: 0.3610466667 | CA62: 0.3599583333 | CB62: 0.3599433333 | CC62: 0.3593983333 | CD62: 0.3610883333 | CE62: 0.3620425 | CF62: 0.3617925 | CG62: 0.3617916667 | CH62: 0.3632433333 | CI62: 0.3633425 | CJ62: 0.3658458333 | CK62: 0.3636825 | CL62: 0.3654775 | CM62: 0.3673691667 | CN62: 0.3659916667 | CO62: 0.3696258333 | CP62: 0.3709341667 | CQ62: 0.3712341667 | CR62: 0.3716125 | CS62: 0.3724191667 | CT62: 0.3742541667 | CU62: 0.3758608333 | CV62: 0.3780208333 | CW62: 0.3790083333 | CX62: 0.3814866667
B63: 6y4x | C63: 0.1692083333 | D63: 0.1682475 | E63: 0.1883641667 | F63: 0.2444325 | G63: 0.2429391667 | H63: 0.2545391667 | I63: 0.2586066667 | J63: 0.2683658333 | K63: 0.2693516667 | L63: 0.2861383333 | M63: 0.28881 | N63: 0.29047 | O63: 0.2943408333 | P63: 0.2971375 | Q63: 0.3016366667 | R63: 0.3021508333 | S63: 0.3058525 | T63: 0.3079583333 | U63: 0.3101683333 | V63: 0.3137266667 | W63: 0.3144608333 | X63: 0.3151366667 | Y63: 0.3165675 | Z63: 0.317355 | AA63: 0.3203508333 | AB63: 0.3209025 | AC63: 0.32278 | AD63: 0.3226075 | AE63: 0.3224925 | AF63: 0.3242758333 | AG63: 0.3243875 | AH63: 0.3262733333 | AI63: 0.3287658333 | AJ63: 0.3284816667 | AK63: 0.3327308333 | AL63: 0.3334216667 | AM63: 0.3333716667 | AN63: 0.3335141667 | AO63: 0.334425 | AP63: 0.3360975 | AQ63: 0.3355833333 | AR63: 0.3340725 | AS63: 0.3338291667 | AT63: 0.3356358333 | AU63: 0.33496 | AV63: 0.336275 | AW63: 0.3373475 | AX63: 0.33845 | AY63: 0.3383425 | AZ63: 0.338045 | BA63: 0.3380225 | BB63: 0.3375391667 | BC63: 0.3387366667 | BD63: 0.3402416667 | BE63: 0.3411225 | BF63: 0.3395266667 | BG63: 0.3416058333 | BH63: 0.3434683333 | BI63: 0.3427875 | BJ63: 0.3448916667 | BK63: 0.3450275 | BL63: 0.3442625 | BM63: 0.3441658333 | BN63: 0.3433525 | BO63: 0.3432633333 | BP63: 0.3437533333 | BQ63: 0.34422 | BR63: 0.3446525 | BS63: 0.3461233333 | BT63: 0.3458558333 | BU63: 0.3468833333 | BV63: 0.3470275 | BW63: 0.3489075 | BX63: 0.3488366667 | BY63: 0.3512833333 | BZ63: 0.3532275 | CA63: 0.3517275 | CB63: 0.3530116667 | CC63: 0.3535325 | CD63: 0.3559466667 | CE63: 0.3573558333 | CF63: 0.3572633333 | CG63: 0.3583791667 | CH63: 0.3594691667 | CI63: 0.3601808333 | CJ63: 0.3606133333 | CK63: 0.3608791667 | CL63: 0.3613416667 | CM63: 0.3645583333 | CN63: 0.36401 | CO63: 0.3670883333 | CP63: 0.3672175 | CQ63: 0.3687958333 | CR63: 0.3698341667 | CS63: 0.3707375 | CT63: 0.3722083333 | CU63: 0.3748425 | CV63: 0.3758791667 | CW63: 0.376655 | CX63: 0.38095
B64: 7y4x | C64: 0.155485 | D64: 0.1541508333 | E64: 0.1750783333 | F64: 0.2304908333 | G64: 0.2278283333 | H64: 0.23946 | I64: 0.244135 | J64: 0.2552666667 | K64: 0.2581758333 | L64: 0.2739775 | M64: 0.2782975 | N64: 0.2816525 | O64: 0.2865408333 | P64: 0.28786 | Q64: 0.2943616667 | R64: 0.2948683333 | S64: 0.2970408333 | T64: 0.2995991667 | U64: 0.3022075 | V64: 0.3058541667 | W64: 0.306715 | X64: 0.3055541667 | Y64: 0.307695 | Z64: 0.3078341667 | AA64: 0.3098716667 | AB64: 0.309825 | AC64: 0.3119058333 | AD64: 0.31356 | AE64: 0.3142308333 | AF64: 0.3154866667 | AG64: 0.317605 | AH64: 0.31914 | AI64: 0.31987 | AJ64: 0.3208508333 | AK64: 0.3229041667 | AL64: 0.3240141667 | AM64: 0.3249458333 | AN64: 0.324455 | AO64: 0.32421 | AP64: 0.3238366667 | AQ64: 0.3257591667 | AR64: 0.3261358333 | AS64: 0.3284841667 | AT64: 0.3276208333 | AU64: 0.3292058333 | AV64: 0.3285158333 | AW64: 0.3307383333 | AX64: 0.3296075 | AY64: 0.3289666667 | AZ64: 0.3314375 | BA64: 0.3300333333 | BB64: 0.3315683333 | BC64: 0.3320816667 | BD64: 0.3320325 | BE64: 0.3332866667 | BF64: 0.3308366667 | BG64: 0.3348583333 | BH64: 0.3351441667 | BI64: 0.3341541667 | BJ64: 0.3351275 | BK64: 0.336735 | BL64: 0.3363291667 | BM64: 0.3367016667 | BN64: 0.3357958333 | BO64: 0.3384183333 | BP64: 0.3389358333 | BQ64: 0.3399883333 | BR64: 0.34136 | BS64: 0.34146 | BT64: 0.3420958333 | BU64: 0.3443341667 | BV64: 0.3480991667 | BW64: 0.3486541667 | BX64: 0.3483716667 | BY64: 0.3505533333 | BZ64: 0.3508375 | CA64: 0.351235 | CB64: 0.3520158333 | CC64: 0.352485 | CD64: 0.3553991667 | CE64: 0.3562458333 | CF64: 0.3564391667 | CG64: 0.3567608333 | CH64: 0.3615158333 | CI64: 0.36173 | CJ64: 0.36485 | CK64: 0.3618708333 | CL64: 0.3635725 | CM64: 0.366445 | CN64: 0.3664583333 | CO64: 0.3681641667 | CP64: 0.3717925 | CQ64: 0.371415 | CR64: 0.3738708333 | CS64: 0.373765 | CT64: 0.3758483333 | CU64: 0.3774025 | CV64: 0.3781908333 | CW64: 0.381415 | CX64: 0.3857041667
B65: 8y4x | C65: 0.1395658333 | D65: 0.1393483333 | E65: 0.1587991667 | F65: 0.2158766667 | G65: 0.2154483333 | H65: 0.2287591667 | I65: 0.2334191667 | J65: 0.2540266667 | K65: 0.2539575 | L65: 0.2688525 | M65: 0.2721966667 | N65: 0.2749591667 | O65: 0.27993 | P65: 0.2817433333 | Q65: 0.2880341667 | R65: 0.2887358333 | S65: 0.2912458333 | T65: 0.292595 | U65: 0.2912258333 | V65: 0.2945491667 | W65: 0.2948933333 | X65: 0.2952541667 | Y65: 0.2966816667 | Z65: 0.3010208333 | AA65: 0.3028491667 | AB65: 0.3023633333 | AC65: 0.30311 | AD65: 0.3068025 | AE65: 0.3060133333 | AF65: 0.305965 | AG65: 0.3072166667 | AH65: 0.3095558333 | AI65: 0.3116633333 | AJ65: 0.3121658333 | AK65: 0.3159583333 | AL65: 0.314665 | AM65: 0.3151 | AN65: 0.3155125 | AO65: 0.316595 | AP65: 0.3184583333 | AQ65: 0.3184091667 | AR65: 0.3196541667 | AS65: 0.3202366667 | AT65: 0.32039 | AU65: 0.3220383333 | AV65: 0.321805 | AW65: 0.3219483333 | AX65: 0.32043 | AY65: 0.3194933333 | AZ65: 0.3205075 | BA65: 0.322815 | BB65: 0.32476 | BC65: 0.3254958333 | BD65: 0.326255 | BE65: 0.3273133333 | BF65: 0.3276425 | BG65: 0.3293275 | BH65: 0.3316716667 | BI65: 0.3308291667 | BJ65: 0.3316666667 | BK65: 0.3344141667 | BL65: 0.335185 | BM65: 0.33712 | BN65: 0.3367916667 | BO65: 0.338735 | BP65: 0.3403191667 | BQ65: 0.3417475 | BR65: 0.3410333333 | BS65: 0.3426258333 | BT65: 0.341735 | BU65: 0.3436166667 | BV65: 0.3477975 | BW65: 0.3490508333 | BX65: 0.3488933333 | BY65: 0.3529758333 | BZ65: 0.3527966667 | CA65: 0.3540016667 | CB65: 0.3552433333 | CC65: 0.3546166667 | CD65: 0.3586758333 | CE65: 0.36025 | CF65: 0.3593125 | CG65: 0.3610416667 | CH65: 0.3648975 | CI65: 0.3655283333 | CJ65: 0.3691058333 | CK65: 0.3681916667 | CL65: 0.3693133333 | CM65: 0.3738858333 | CN65: 0.371885 | CO65: 0.3742308333 | CP65: 0.3785683333 | CQ65: 0.3764933333 | CR65: 0.3800783333 | CS65: 0.3807016667 | CT65: 0.3833391667 | CU65: 0.3851641667 | CV65: 0.38662 | CW65: 0.3894775 | CX65: 0.3940691667
B66: 9y4x | C66: 0.1251758333 | D66: 0.1240183333 | E66: 0.1455333333 | F66: 0.2016508333 | G66: 0.2021983333 | H66: 0.2271725 | I66: 0.2329116667 | J66: 0.2490166667 | K66: 0.2511425 | L66: 0.2648416667 | M66: 0.2647916667 | N66: 0.2704158333 | O66: 0.274845 | P66: 0.27617 | Q66: 0.2755466667 | R66: 0.2743108333 | S66: 0.2783616667 | T66: 0.2800916667 | U66: 0.28487 | V66: 0.2857825 | W66: 0.2872508333 | X66: 0.287345 | Y66: 0.2880591667 | Z66: 0.2911816667 | AA66: 0.2932558333 | AB66: 0.2951825 | AC66: 0.2922991667 | AD66: 0.2961716667 | AE66: 0.2960533333 | AF66: 0.2972091667 | AG66: 0.2968416667 | AH66: 0.3019066667 | AI66: 0.3006975 | AJ66: 0.3021591667 | AK66: 0.3046583333 | AL66: 0.3068833333 | AM66: 0.30675 | AN66: 0.30559 | AO66: 0.3061158333 | AP66: 0.3097008333 | AQ66: 0.3091816667 | AR66: 0.3118033333 | AS66: 0.3148525 | AT66: 0.3151816667 | AU66: 0.3168825 | AV66: 0.3182541667 | AW66: 0.318335 | AX66: 0.3188433333 | AY66: 0.3180558333 | AZ66: 0.3191091667 | BA66: 0.3212283333 | BB66: 0.3228183333 | BC66: 0.3229358333 | BD66: 0.3245583333 | BE66: 0.3266566667 | BF66: 0.3272175 | BG66: 0.3284225 | BH66: 0.333135 | BI66: 0.3329833333 | BJ66: 0.3329241667 | BK66: 0.3353133333 | BL66: 0.3356775 | BM66: 0.3385916667 | BN66: 0.3389308333 | BO66: 0.3418508333 | BP66: 0.3406 | BQ66: 0.3421075 | BR66: 0.3449466667 | BS66: 0.3465508333 | BT66: 0.3456683333 | BU66: 0.3486308333 | BV66: 0.3516116667 | BW66: 0.3532108333 | BX66: 0.3527958333 | BY66: 0.3575458333 | BZ66: 0.3580675 | CA66: 0.3612541667 | CB66: 0.3625325 | CC66: 0.363605 | CD66: 0.3655758333 | CE66: 0.3674458333 | CF66: 0.3658483333 | CG66: 0.367375 | CH66: 0.37196 | CI66: 0.3713366667 | CJ66: 0.3746433333 | CK66: 0.3768825 | CL66: 0.3774708333 | CM66: 0.3795391667 | CN66: 0.3811916667 | CO66: 0.3842983333 | CP66: 0.3861308333 | CQ66: 0.3874175 | CR66: 0.3903158333 | CS66: 0.3926083333 | CT66: 0.394855 | CU66: 0.3966733333 | CV66: 0.4004608333 | CW66: 0.4010558333 | CX66: 0.40683
B67: Ty4x | C67: 0.1291325 | D67: 0.1273525 | E67: 0.1459566667 | F67: 0.2052316667 | G67: 0.2205925 | H67: 0.2421383333 | I67: 0.2421716667 | J67: 0.2568983333 | K67: 0.2585775 | L67: 0.2621191667 | M67: 0.2632883333 | N67: 0.271335 | O67: 0.2734108333 | P67: 0.2746191667 | Q67: 0.2815275 | R67: 0.2834241667 | S67: 0.2812325 | T67: 0.2826858333 | U67: 0.2877875 | V67: 0.2908908333 | W67: 0.2932383333 | X67: 0.2929141667 | Y67: 0.29151 | Z67: 0.2955925 | AA67: 0.2975983333 | AB67: 0.2971625 | AC67: 0.2991216667 | AD67: 0.303175 | AE67: 0.30192 | AF67: 0.3062333333 | AG67: 0.3048841667 | AH67: 0.3092191667 | AI67: 0.3108016667 | AJ67: 0.311135 | AK67: 0.3142491667 | AL67: 0.316225 | AM67: 0.3183425 | AN67: 0.3178808333 | AO67: 0.3192441667 | AP67: 0.322965 | AQ67: 0.3232516667 | AR67: 0.32269 | AS67: 0.3267916667 | AT67: 0.32792 | AU67: 0.3308558333 | AV67: 0.3315783333 | AW67: 0.3313758333 | AX67: 0.3346766667 | AY67: 0.334475 | AZ67: 0.3352391667 | BA67: 0.3371133333 | BB67: 0.338925 | BC67: 0.338655 | BD67: 0.33972 | BE67: 0.3429525 | BF67: 0.3415925 | BG67: 0.3443933333 | BH67: 0.3480933333 | BI67: 0.352045 | BJ67: 0.3535025 | BK67: 0.3558175 | BL67: 0.3540808333 | BM67: 0.3577475 | BN67: 0.35913 | BO67: 0.3612825 | BP67: 0.36101 | BQ67: 0.3622291667 | BR67: 0.3653133333 | BS67: 0.3667933333 | BT67: 0.36916 | BU67: 0.3710216667 | BV67: 0.3759533333 | BW67: 0.3755691667 | BX67: 0.3745875 | BY67: 0.3794866667 | BZ67: 0.3794033333 | CA67: 0.3824708333 | CB67: 0.3834283333 | CC67: 0.3862591667 | CD67: 0.388165 | CE67: 0.389115 | CF67: 0.3906741667 | CG67: 0.3922125 | CH67: 0.3949083333 | CI67: 0.3974741667 | CJ67: 0.4006291667 | CK67: 0.4021441667 | CL67: 0.4025958333 | CM67: 0.4065316667 | CN67: 0.4091175 | CO67: 0.4132575 | CP67: 0.4161258333 | CQ67: 0.4175775 | CR67: 0.4203275 | CS67: 0.4219291667 | CT67: 0.423765 | CU67: 0.4262225 | CV67: 0.42797 | CW67: 0.4308358333 | CX67: 0.4345091667
B68: Jy4x | C68: 0.1239025 | D68: 0.1154533333 | E68: 0.1715433333 | F68: 0.2223741667 | G68: 0.2282375 | H68: 0.2486083333 | I68: 0.2524925 | J68: 0.2555208333 | K68: 0.254315 | L68: 0.2711158333 | M68: 0.2747666667 | N68: 0.2786225 | O68: 0.2764783333 | P68: 0.279455 | Q68: 0.2858125 | R68: 0.2871316667 | S68: 0.2892458333 | T68: 0.2914516667 | U68: 0.294675 | V68: 0.2962208333 | W68: 0.2970258333 | X68: 0.3002366667 | Y68: 0.3010333333 | Z68: 0.3041533333 | AA68: 0.3077783333 | AB68: 0.3059066667 | AC68: 0.3071775 | AD68: 0.310605 | AE68: 0.3149041667 | AF68: 0.3162983333 | AG68: 0.3162875 | AH68: 0.3186866667 | AI68: 0.3194791667 | AJ68: 0.3205258333 | AK68: 0.3215741667 | AL68: 0.3242433333 | AM68: 0.327735 | AN68: 0.3320166667 | AO68: 0.33518 | AP68: 0.3369508333 | AQ68: 0.3369358333 | AR68: 0.33723 | AS68: 0.3416841667 | AT68: 0.3424666667 | AU68: 0.3445533333 | AV68: 0.3448408333 | AW68: 0.3489475 | AX68: 0.3540841667 | AY68: 0.3506133333 | AZ68: 0.3538491667 | BA68: 0.3546475 | BB68: 0.3558666667 | BC68: 0.3553083333 | BD68: 0.3580508333 | BE68: 0.3610633333 | BF68: 0.3642066667 | BG68: 0.36534 | BH68: 0.3708216667 | BI68: 0.3726283333 | BJ68: 0.373565 | BK68: 0.3773516667 | BL68: 0.3758666667 | BM68: 0.3783183333 | BN68: 0.379695 | BO68: 0.380875 | BP68: 0.3862458333 | BQ68: 0.3862108333 | BR68: 0.3902258333 | BS68: 0.3907366667 | BT68: 0.3934975 | BU68: 0.3946533333 | BV68: 0.398495 | BW68: 0.39919 | BX68: 0.3993341667 | BY68: 0.4041091667 | BZ68: 0.4051083333 | CA68: 0.407645 | CB68: 0.4115308333 | CC68: 0.413215 | CD68: 0.4147508333 | CE68: 0.4164158333 | CF68: 0.4205691667 | CG68: 0.4204475 | CH68: 0.4233316667 | CI68: 0.4276341667 | CJ68: 0.4293633333 | CK68: 0.4319441667 | CL68: 0.4332375 | CM68: 0.4358558333 | CN68: 0.4385358333 | CO68: 0.442915 | CP68: 0.4447916667 | CQ68: 0.4478741667 | CR68: 0.4474633333 | CS68: 0.449895 | CT68: 0.4519741667 | CU68: 0.4527066667 | CV68: 0.4564458333 | CW68: 0.4583175 | CX68: 0.4616066667
B69: Qy4x | C69: 0.12041 | D69: 0.15751 | E69: 0.2003875 | F69: 0.2322525 | G69: 0.2447958333 | H69: 0.2476775 | I69: 0.2523058333 | J69: 0.2670566667 | K69: 0.2693866667 | L69: 0.2755875 | M69: 0.2790816667 | N69: 0.2828208333 | O69: 0.2872383333 | P69: 0.2880783333 | Q69: 0.2985891667 | R69: 0.2994808333 | S69: 0.301605 | T69: 0.3026183333 | U69: 0.3066575 | V69: 0.3063591667 | W69: 0.3107066667 | X69: 0.3138866667 | Y69: 0.3115816667 | Z69: 0.3142025 | AA69: 0.3159483333 | AB69: 0.3244625 | AC69: 0.3264916667 | AD69: 0.330075 | AE69: 0.3326675 | AF69: 0.3331933333 | AG69: 0.3341466667 | AH69: 0.3358408333 | AI69: 0.335045 | AJ69: 0.3358941667 | AK69: 0.3399533333 | AL69: 0.340515 | AM69: 0.34993 | AN69: 0.3543533333 | AO69: 0.3561066667 | AP69: 0.3581491667 | AQ69: 0.3583325 | AR69: 0.3599133333 | AS69: 0.3628008333 | AT69: 0.3635883333 | AU69: 0.3652491667 | AV69: 0.370995 | AW69: 0.3767925 | AX69: 0.378875 | AY69: 0.3782 | AZ69: 0.3791991667 | BA69: 0.3805016667 | BB69: 0.3822041667 | BC69: 0.3828933333 | BD69: 0.3871808333 | BE69: 0.3910691667 | BF69: 0.3925166667 | BG69: 0.3925466667 | BH69: 0.3972366667 | BI69: 0.401185 | BJ69: 0.4023266667 | BK69: 0.404885 | BL69: 0.4049766667 | BM69: 0.408135 | BN69: 0.413235 | BO69: 0.4134625 | BP69: 0.4177366667 | BQ69: 0.417495 | BR69: 0.421065 | BS69: 0.4246233333 | BT69: 0.42555 | BU69: 0.4284341667 | BV69: 0.4317266667 | BW69: 0.4326575 | BX69: 0.4362216667 | BY69: 0.4389291667 | BZ69: 0.4429433333 | CA69: 0.4431408333 | CB69: 0.4472883333 | CC69: 0.4467958333 | CD69: 0.4500058333 | CE69: 0.453825 | CF69: 0.4558741667 | CG69: 0.4559566667 | CH69: 0.458935 | CI69: 0.4618258333 | CJ69: 0.4646375 | CK69: 0.466255 | CL69: 0.4676975 | CM69: 0.4696916667 | CN69: 0.4707416667 | CO69: 0.4745591667 | CP69: 0.4769575 | CQ69: 0.4772458333 | CR69: 0.47931 | CS69: 0.4830591667 | CT69: 0.4844191667 | CU69: 0.4846991667 | CV69: 0.4868866667 | CW69: 0.4888741667 | CX69: 0.4909183333
B70: Ky4x | C70: 0.09737166667 | D70: 0.2009133333 | E70: 0.2186716667 | F70: 0.2326841667 | G70: 0.2456083333 | H70: 0.2675225 | I70: 0.2705416667 | J70: 0.2824708333 | K70: 0.2807008333 | L70: 0.28592 | M70: 0.28799 | N70: 0.2978825 | O70: 0.2964366667 | P70: 0.3039241667 | Q70: 0.3124558333 | R70: 0.3114725 | S70: 0.3091116667 | T70: 0.3103783333 | U70: 0.3120141667 | V70: 0.3300316667 | W70: 0.33377 | X70: 0.3356058333 | Y70: 0.3467025 | Z70: 0.3456041667 | AA70: 0.346065 | AB70: 0.3560216667 | AC70: 0.3541375 | AD70: 0.3573566667 | AE70: 0.360895 | AF70: 0.3607566667 | AG70: 0.3606825 | AH70: 0.3655041667 | AI70: 0.3723491667 | AJ70: 0.373995 | AK70: 0.3763641667 | AL70: 0.3752358333 | AM70: 0.3831633333 | AN70: 0.3870333333 | AO70: 0.3899325 | AP70: 0.39236 | AQ70: 0.3921933333 | AR70: 0.39501 | AS70: 0.4018533333 | AT70: 0.4025741667 | AU70: 0.40313 | AV70: 0.4089883333 | AW70: 0.4136808333 | AX70: 0.4169016667 | AY70: 0.4172116667 | AZ70: 0.4197975 | BA70: 0.4252141667 | BB70: 0.4289225 | BC70: 0.4310275 | BD70: 0.4339091667 | BE70: 0.4359816667 | BF70: 0.4367141667 | BG70: 0.4389366667 | BH70: 0.4423208333 | BI70: 0.44424 | BJ70: 0.4474725 | BK70: 0.4501233333 | BL70: 0.4537783333 | BM70: 0.4562025 | BN70: 0.4580908333 | BO70: 0.4609366667 | BP70: 0.46393 | BQ70: 0.4649716667 | BR70: 0.4669533333 | BS70: 0.4695141667 | BT70: 0.4709725 | BU70: 0.4725 | BV70: 0.4751708333 | BW70: 0.4759291667 | BX70: 0.4800825 | BY70: 0.4827783333 | BZ70: 0.4834683333 | CA70: 0.48528 | CB70: 0.4863866667 | CC70: 0.4869633333 | CD70: 0.4899125 | CE70: 0.4925025 | CF70: 0.4937075 | CG70: 0.4957883333 | CH70: 0.4980233333 | CI70: 0.4997741667 | CJ70: 0.5006033333 | CK70: 0.5030466667 | CL70: 0.5048308333 | CM70: 0.5059975 | CN70: 0.5076158333 | CO70: 0.5107541667 | CP70: 0.5120583333 | CQ70: 0.5149683333 | CR70: 0.5146341667 | CS70: 0.5151158333 | CT70: 0.51756 | CU70: 0.5177575 | CV70: 0.52006 | CW70: 0.52127 | CX70: 0.5241375
B71: Ay4x | C71: 0.2220608333 | D71: 0.2630191667 | E71: 0.2681075 | F71: 0.2688208333 | G71: 0.272855 | H71: 0.2753858333 | I71: 0.2753408333 | J71: 0.2904575 | K71: 0.3022666667 | L71: 0.3319283333 | M71: 0.3379166667 | N71: 0.3419133333 | O71: 0.362125 | P71: 0.3676475 | Q71: 0.3689966667 | R71: 0.3714725 | S71: 0.385105 | T71: 0.38551 | U71: 0.3840758333 | V71: 0.4007966667 | W71: 0.4052758333 | X71: 0.4069483333 | Y71: 0.414575 | Z71: 0.4151666667 | AA71: 0.4163075 | AB71: 0.4233083333 | AC71: 0.4295308333 | AD71: 0.4320608333 | AE71: 0.4334466667 | AF71: 0.4370375 | AG71: 0.4386033333 | AH71: 0.4437291667 | AI71: 0.4494666667 | AJ71: 0.452175 | AK71: 0.4535433333 | AL71: 0.45866 | AM71: 0.4620633333 | AN71: 0.4655216667 | AO71: 0.4673241667 | AP71: 0.4730625 | AQ71: 0.4740108333 | AR71: 0.4757941667 | AS71: 0.4806866667 | AT71: 0.4808258333 | AU71: 0.4846908333 | AV71: 0.4866741667 | AW71: 0.48902 | AX71: 0.4906791667 | AY71: 0.4949408333 | AZ71: 0.4951025 | BA71: 0.4982566667 | BB71: 0.5018116667 | BC71: 0.5038833333 | BD71: 0.5058133333 | BE71: 0.5073041667 | BF71: 0.5069825 | BG71: 0.5099216667 | BH71: 0.5135033333 | BI71: 0.51319 | BJ71: 0.5161 | BK71: 0.5189458333 | BL71: 0.5205283333 | BM71: 0.519095 | BN71: 0.5212275 | BO71: 0.52424 | BP71: 0.5259925 | BQ71: 0.5265125 | BR71: 0.52639 | BS71: 0.528645 | BT71: 0.5294466667 | BU71: 0.5312533333 | BV71: 0.5322691667 | BW71: 0.5344591667 | BX71: 0.5358033333 | BY71: 0.5371708333 | BZ71: 0.5382241667 | CA71: 0.5389466667 | CB71: 0.5404366667 | CC71: 0.5405391667 | CD71: 0.5430533333 | CE71: 0.5440191667 | CF71: 0.54629 | CG71: 0.5452958333 | CH71: 0.5472158333 | CI71: 0.5481466667 | CJ71: 0.5516891667 | CK71: 0.5524066667 | CL71: 0.5535591667 | CM71: 0.5535516667 | CN71: 0.5550616667 | CO71: 0.5578475 | CP71: 0.5585291667 | CQ71: 0.55993 | CR71: 0.5615883333 | CS71: 0.560475 | CT71: 0.5626083333 | CU71: 0.562595 | CV71: 0.5646958333 | CW71: 0.5661025 | CX71: 0.5673858333
B72: 6x5x | C72: 0.2252908333 | D72: 0.2237425 | E72: 0.242355 | F72: 0.2950491667 | G72: 0.2929566667 | H72: 0.3042808333 | I72: 0.30886 | J72: 0.3159075 | K72: 0.3184091667 | L72: 0.3348425 | M72: 0.3380091667 | N72: 0.3383908333 | O72: 0.3437866667 | P72: 0.3439808333 | Q72: 0.3479833333 | R72: 0.3511108333 | S72: 0.3537633333 | T72: 0.35573 | U72: 0.3586016667 | V72: 0.3623041667 | W72: 0.3662116667 | X72: 0.3662716667 | Y72: 0.3681766667 | Z72: 0.3693341667 | AA72: 0.3682041667 | AB72: 0.3677366667 | AC72: 0.3702941667 | AD72: 0.3699258333 | AE72: 0.3693483333 | AF72: 0.3742708333 | AG72: 0.3761691667 | AH72: 0.3775866667 | AI72: 0.3786758333 | AJ72: 0.378995 | AK72: 0.3815708333 | AL72: 0.3820975 | AM72: 0.383815 | AN72: 0.3834958333 | AO72: 0.3833416667 | AP72: 0.3856191667 | AQ72: 0.3846316667 | AR72: 0.3848333333 | AS72: 0.3851066667 | AT72: 0.38522 | AU72: 0.3845358333 | AV72: 0.3852158333 | AW72: 0.3850033333 | AX72: 0.3848091667 | AY72: 0.387405 | AZ72: 0.3880341667 | BA72: 0.3882691667 | BB72: 0.3880066667 | BC72: 0.3896641667 | BD72: 0.3911775 | BE72: 0.3900858333 | BF72: 0.3902033333 | BG72: 0.3908108333 | BH72: 0.3922341667 | BI72: 0.3923375 | BJ72: 0.3918775 | BK72: 0.3927941667 | BL72: 0.3951941667 | BM72: 0.393925 | BN72: 0.3940641667 | BO72: 0.3948991667 | BP72: 0.3956333333 | BQ72: 0.3957666667 | BR72: 0.3949425 | BS72: 0.3954575 | BT72: 0.3949683333 | BU72: 0.3985025 | BV72: 0.3982258333 | BW72: 0.3990275 | BX72: 0.3999583333 | BY72: 0.40131 | BZ72: 0.4017791667 | CA72: 0.4022933333 | CB72: 0.4003691667 | CC72: 0.4026925 | CD72: 0.40416 | CE72: 0.40623 | CF72: 0.4067358333 | CG72: 0.4063266667 | CH72: 0.409935 | CI72: 0.40981 | CJ72: 0.4110358333 | CK72: 0.4123341667 | CL72: 0.412265 | CM72: 0.41408 | CN72: 0.41542 | CO72: 0.4193025 | CP72: 0.4184975 | CQ72: 0.418905 | CR72: 0.421425 | CS72: 0.423605 | CT72: 0.4231741667 | CU72: 0.4253641667 | CV72: 0.4267283333 | CW72: 0.4291375 | CX72: 0.4313475
B73: 7x5x | C73: 0.2109541667 | D73: 0.209375 | E73: 0.229395 | F73: 0.28266 | G73: 0.2802208333 | H73: 0.2915233333 | I73: 0.2948791667 | J73: 0.3072275 | K73: 0.3086475 | L73: 0.3256858333 | M73: 0.3287175 | N73: 0.3300766667 | O73: 0.3349941667 | P73: 0.3354625 | Q73: 0.3415516667 | R73: 0.3429766667 | S73: 0.3471525 | T73: 0.3495575 | U73: 0.351735 | V73: 0.3560658333 | W73: 0.3581333333 | X73: 0.3580908333 | Y73: 0.357545 | Z73: 0.3577508333 | AA73: 0.3575533333 | AB73: 0.3588116667 | AC73: 0.3591908333 | AD73: 0.3630025 | AE73: 0.3623033333 | AF73: 0.367395 | AG73: 0.3685516667 | AH73: 0.3712466667 | AI73: 0.3713991667 | AJ73: 0.3736175 | AK73: 0.3744233333 | AL73: 0.3756458333 | AM73: 0.37541 | AN73: 0.3757375 | AO73: 0.3739891667 | AP73: 0.3758425 | AQ73: 0.3771933333 | AR73: 0.3779991667 | AS73: 0.3787791667 | AT73: 0.3792766667 | AU73: 0.3781566667 | AV73: 0.3795291667 | AW73: 0.3778583333 | AX73: 0.3793483333 | AY73: 0.3804958333 | AZ73: 0.3825441667 | BA73: 0.3818191667 | BB73: 0.3831775 | BC73: 0.38455 | BD73: 0.3849241667 | BE73: 0.3832516667 | BF73: 0.3831616667 | BG73: 0.3845725 | BH73: 0.3853425 | BI73: 0.3852516667 | BJ73: 0.38455 | BK73: 0.3867666667 | BL73: 0.3880691667 | BM73: 0.3883525 | BN73: 0.3900141667 | BO73: 0.389495 | BP73: 0.390845 | BQ73: 0.39234 | BR73: 0.3914816667 | BS73: 0.3918608333 | BT73: 0.3925491667 | BU73: 0.3952133333 | BV73: 0.3984183333 | BW73: 0.4000816667 | BX73: 0.4003358333 | BY73: 0.4022258333 | BZ73: 0.403235 | CA73: 0.4032116667 | CB73: 0.4015658333 | CC73: 0.4010633333 | CD73: 0.4054291667 | CE73: 0.4051458333 | CF73: 0.4069683333 | CG73: 0.407855 | CH73: 0.4120291667 | CI73: 0.41218 | CJ73: 0.4122341667 | CK73: 0.4152225 | CL73: 0.414805 | CM73: 0.4169508333 | CN73: 0.4191141667 | CO73: 0.4211108333 | CP73: 0.4240708333 | CQ73: 0.4242158333 | CR73: 0.4250383333 | CS73: 0.426205 | CT73: 0.4285908333 | CU73: 0.4287108333 | CV73: 0.4314541667 | CW73: 0.4319158333 | CX73: 0.4366908333
B74: 8x5x | C74: 0.1969466667 | D74: 0.1974216667 | E74: 0.2148183333 | F74: 0.2691291667 | G74: 0.2672275 | H74: 0.2812825 | I74: 0.2862633333 | J74: 0.3034375 | K74: 0.306405 | L74: 0.3212858333 | M74: 0.3240758333 | N74: 0.324795 | O74: 0.3299258333 | P74: 0.3306808333 | Q74: 0.3355791667 | R74: 0.3379933333 | S74: 0.3402433333 | T74: 0.3424183333 | U74: 0.341605 | V74: 0.3438191667 | W74: 0.3477191667 | X74: 0.3483975 | Y74: 0.349485 | Z74: 0.3531033333 | AA74: 0.3505 | AB74: 0.35303 | AC74: 0.3525858333 | AD74: 0.3552058333 | AE74: 0.3533075 | AF74: 0.3589591667 | AG74: 0.3605941667 | AH74: 0.3631208333 | AI74: 0.3641875 | AJ74: 0.3639075 | AK74: 0.3685266667 | AL74: 0.3679258333 | AM74: 0.3672708333 | AN74: 0.3674125 | AO74: 0.3673491667 | AP74: 0.3698441667 | AQ74: 0.371205 | AR74: 0.3713816667 | AS74: 0.3712666667 | AT74: 0.373055 | AU74: 0.3721241667 | AV74: 0.3713333333 | AW74: 0.3716258333 | AX74: 0.3701333333 | AY74: 0.37206 | AZ74: 0.3744041667 | BA74: 0.3758975 | BB74: 0.3770025 | BC74: 0.3783825 | BD74: 0.3800558333 | BE74: 0.3795558333 | BF74: 0.3788108333 | BG74: 0.3802033333 | BH74: 0.3835691667 | BI74: 0.3822391667 | BJ74: 0.3825375 | BK74: 0.3858291667 | BL74: 0.3866108333 | BM74: 0.3884091667 | BN74: 0.3910075 | BO74: 0.3906641667 | BP74: 0.3920133333 | BQ74: 0.3938158333 | BR74: 0.3926058333 | BS74: 0.3930691667 | BT74: 0.392015 | BU74: 0.39572 | BV74: 0.3978125 | BW74: 0.3999833333 | BX74: 0.401305 | BY74: 0.4062708333 | BZ74: 0.4059833333 | CA74: 0.4076075 | CB74: 0.4071708333 | CC74: 0.4073291667 | CD74: 0.4093508333 | CE74: 0.4098883333 | CF74: 0.4116483333 | CG74: 0.4109116667 | CH74: 0.4171958333 | CI74: 0.4169141667 | CJ74: 0.4188225 | CK74: 0.4202491667 | CL74: 0.4213258333 | CM74: 0.42414 | CN74: 0.42506 | CO74: 0.4276383333 | CP74: 0.4282383333 | CQ74: 0.4293983333 | CR74: 0.4323275 | CS74: 0.433675 | CT74: 0.4360116667 | CU74: 0.4362166667 | CV74: 0.4383016667 | CW74: 0.4416716667 | CX74: 0.4453033333
B75: 9x5x | C75: 0.183175 | D75: 0.1815058333 | E75: 0.2017166667 | F75: 0.255565 | G75: 0.2567991667 | H75: 0.2820366667 | I75: 0.2841791667 | J75: 0.30082 | K75: 0.3025583333 | L75: 0.3155566667 | M75: 0.3160933333 | N75: 0.3213716667 | O75: 0.324855 | P75: 0.3253266667 | Q75: 0.32471 | R75: 0.3277391667 | S75: 0.3291666667 | T75: 0.3302075 | U75: 0.3338816667 | V75: 0.33664 | W75: 0.3416825 | X75: 0.3398408333 | Y75: 0.3418925 | Z75: 0.3444833333 | AA75: 0.3421033333 | AB75: 0.3432358333 | AC75: 0.34333 | AD75: 0.344935 | AE75: 0.3455016667 | AF75: 0.3506866667 | AG75: 0.3514791667 | AH75: 0.3546991667 | AI75: 0.3548541667 | AJ75: 0.3555891667 | AK75: 0.358105 | AL75: 0.3599175 | AM75: 0.3608291667 | AN75: 0.3588875 | AO75: 0.3580466667 | AP75: 0.3624633333 | AQ75: 0.3627316667 | AR75: 0.3632916667 | AS75: 0.3679941667 | AT75: 0.3679475 | AU75: 0.36708 | AV75: 0.3678466667 | AW75: 0.3678191667 | AX75: 0.3676475 | AY75: 0.3693741667 | AZ75: 0.3715425 | BA75: 0.3730016667 | BB75: 0.37509 | BC75: 0.3762733333 | BD75: 0.376615 | BE75: 0.3778725 | BF75: 0.3782208333 | BG75: 0.3794491667 | BH75: 0.3834808333 | BI75: 0.3840716667 | BJ75: 0.3840791667 | BK75: 0.3869683333 | BL75: 0.3869975 | BM75: 0.3905116667 | BN75: 0.3916233333 | BO75: 0.3923183333 | BP75: 0.3942416667 | BQ75: 0.3947791667 | BR75: 0.3986275 | BS75: 0.3980333333 | BT75: 0.3978258333 | BU75: 0.399865 | BV75: 0.4032441667 | BW75: 0.403945 | BX75: 0.4062575 | BY75: 0.4104683333 | BZ75: 0.41002 | CA75: 0.4129983333 | CB75: 0.4141691667 | CC75: 0.4127808333 | CD75: 0.416925 | CE75: 0.4188575 | CF75: 0.4188508333 | CG75: 0.4201283333 | CH75: 0.4241575 | CI75: 0.423845 | CJ75: 0.425815 | CK75: 0.4282241667 | CL75: 0.42918 | CM75: 0.4312275 | CN75: 0.4335475 | CO75: 0.4358316667 | CP75: 0.4399458333 | CQ75: 0.4401683333 | CR75: 0.4414216667 | CS75: 0.4458341667 | CT75: 0.4465783333 | CU75: 0.4499 | CV75: 0.4514908333 | CW75: 0.4521558333 | CX75: 0.4575858333
B76: Tx5x | C76: 0.1702625 | D76: 0.1682791667 | E76: 0.1862358333 | F76: 0.2463083333 | G76: 0.2604766667 | H76: 0.2812658333 | I76: 0.2808583333 | J76: 0.2957325 | K76: 0.29664 | L76: 0.3004516667 | M76: 0.3030458333 | N76: 0.3083275 | O76: 0.3121508333 | P76: 0.3107075 | Q76: 0.3182525 | R76: 0.3214166667 | S76: 0.3200416667 | T76: 0.3211458333 | U76: 0.3272975 | V76: 0.3292116667 | W76: 0.3334283333 | X76: 0.3330758333 | Y76: 0.332345 | Z76: 0.3354783333 | AA76: 0.3345783333 | AB76: 0.3335341667 | AC76: 0.3343925 | AD76: 0.3374608333 | AE76: 0.3382141667 | AF76: 0.3460633333 | AG76: 0.3471683333 | AH76: 0.34988 | AI76: 0.3509008333 | AJ76: 0.3523025 | AK76: 0.3549558333 | AL76: 0.3554166667 | AM76: 0.3571658333 | AN76: 0.3590508333 | AO76: 0.35899 | AP76: 0.3629433333 | AQ76: 0.3640233333 | AR76: 0.3636491667 | AS76: 0.3666058333 | AT76: 0.3681075 | AU76: 0.3676575 | AV76: 0.367405 | AW76: 0.3682075 | AX76: 0.37227 | AY76: 0.373415 | AZ76: 0.3741033333 | BA76: 0.3771541667 | BB76: 0.3780333333 | BC76: 0.379035 | BD76: 0.3803383333 | BE76: 0.3824116667 | BF76: 0.381925 | BG76: 0.3832475 | BH76: 0.3881691667 | BI76: 0.3906916667 | BJ76: 0.3909566667 | BK76: 0.3928708333 | BL76: 0.394325 | BM76: 0.3967683333 | BN76: 0.3977016667 | BO76: 0.39987 | BP76: 0.4020708333 | BQ76: 0.4015925 | BR76: 0.4050258333 | BS76: 0.4043566667 | BT76: 0.407415 | BU76: 0.4090216667 | BV76: 0.4122491667 | BW76: 0.4135658333 | BX76: 0.4145208333 | BY76: 0.4193825 | BZ76: 0.4186525 | CA76: 0.4211491667 | CB76: 0.4235616667 | CC76: 0.4272258333 | CD76: 0.4295458333 | CE76: 0.42939 | CF76: 0.4314683333 | CG76: 0.432235 | CH76: 0.4364766667 | CI76: 0.437745 | CJ76: 0.4394375 | CK76: 0.4424075 | CL76: 0.4434958333 | CM76: 0.4452525 | CN76: 0.4480258333 | CO76: 0.4523691667 | CP76: 0.45282 | CQ76: 0.4558616667 | CR76: 0.4578666667 | CS76: 0.4594175 | CT76: 0.4627883333 | CU76: 0.4639191667 | CV76: 0.4655391667 | CW76: 0.468155 | CX76: 0.4721525
B77: Jx5x | C77: 0.1695141667 | D77: 0.1629475 | E77: 0.2148058333 | F77: 0.2645741667 | G77: 0.2714758333 | H77: 0.2901291667 | I77: 0.2956508333 | J77: 0.2983541667 | K77: 0.2970825 | L77: 0.3110725 | M77: 0.3167358333 | N77: 0.31816 | O77: 0.3173958333 | P77: 0.3165891667 | Q77: 0.3241966667 | R77: 0.3277808333 | S77: 0.3297858333 | T77: 0.3323633333 | U77: 0.33529 | V77: 0.3369925 | W77: 0.3399483333 | X77: 0.3432016667 | Y77: 0.3445866667 | Z77: 0.3481525 | AA77: 0.3448125 | AB77: 0.3458066667 | AC77: 0.3482175 | AD77: 0.3489258333 | AE77: 0.3508608333 | AF77: 0.3587608333 | AG77: 0.3588408333 | AH77: 0.3606291667 | AI77: 0.3623775 | AJ77: 0.3635041667 | AK77: 0.366725 | AL77: 0.3665225 | AM77: 0.3696891667 | AN77: 0.3746 | AO77: 0.3763625 | AP77: 0.3777133333 | AQ77: 0.3782625 | AR77: 0.3790425 | AS77: 0.38326 | AT77: 0.3835291667 | AU77: 0.38414 | AV77: 0.3836791667 | AW77: 0.3881191667 | AX77: 0.3927975 | AY77: 0.3931816667 | AZ77: 0.3944816667 | BA77: 0.3971958333 | BB77: 0.3976058333 | BC77: 0.3979858333 | BD77: 0.3996325 | BE77: 0.4027316667 | BF77: 0.4053591667 | BG77: 0.4057466667 | BH77: 0.41054 | BI77: 0.4142783333 | BJ77: 0.4148158333 | BK77: 0.4178233333 | BL77: 0.41702 | BM77: 0.4203241667 | BN77: 0.4211016667 | BO77: 0.4225216667 | BP77: 0.4263441667 | BQ77: 0.4268108333 | BR77: 0.42979 | BS77: 0.4314225 | BT77: 0.4338125 | BU77: 0.4339166667 | BV77: 0.4384766667 | BW77: 0.4385866667 | BX77: 0.44118 | BY77: 0.4461825 | BZ77: 0.4455508333 | CA77: 0.4484066667 | CB77: 0.4518408333 | CC77: 0.45387 | CD77: 0.4581883333 | CE77: 0.4601333333 | CF77: 0.4612775 | CG77: 0.4628358333 | CH77: 0.4658491667 | CI77: 0.4676958333 | CJ77: 0.470695 | CK77: 0.4730491667 | CL77: 0.4747841667 | CM77: 0.4760016667 | CN77: 0.4786991667 | CO77: 0.482315 | CP77: 0.4846916667 | CQ77: 0.4866391667 | CR77: 0.4868433333 | CS77: 0.4884691667 | CT77: 0.4917958333 | CU77: 0.4927116667 | CV77: 0.4944433333 | CW77: 0.4955741667 | CX77: 0.4992266667
B78: Qx5x | C78: 0.1658408333 | D78: 0.2026083333 | E78: 0.2427241667 | F78: 0.27612 | G78: 0.2864633333 | H78: 0.2906133333 | I78: 0.2952825 | J78: 0.3092166667 | K78: 0.3103158333 | L78: 0.3170191667 | M78: 0.32168 | N78: 0.3235291667 | O78: 0.3289291667 | P78: 0.326235 | Q78: 0.3373791667 | R78: 0.3384708333 | S78: 0.3428516667 | T78: 0.3435333333 | U78: 0.3470725 | V78: 0.3463891667 | W78: 0.3522258333 | X78: 0.3559808333 | Y78: 0.355435 | Z78: 0.3580016667 | AA78: 0.3551241667 | AB78: 0.3630533333 | AC78: 0.3646266667 | AD78: 0.3677783333 | AE78: 0.3695858333 | AF78: 0.3749833333 | AG78: 0.3751933333 | AH78: 0.3782925 | AI78: 0.3773266667 | AJ78: 0.3779091667 | AK78: 0.3814325 | AL78: 0.3821916667 | AM78: 0.3913058333 | AN78: 0.39567 | AO78: 0.3981666667 | AP78: 0.399725 | AQ78: 0.4006566667 | AR78: 0.4009841667 | AS78: 0.4045783333 | AT78: 0.4064975 | AU78: 0.4044391667 | AV78: 0.4104691667 | AW78: 0.41435 | AX78: 0.419235 | AY78: 0.4177016667 | AZ78: 0.4213291667 | BA78: 0.4238358333 | BB78: 0.4238866667 | BC78: 0.4227575 | BD78: 0.4287825 | BE78: 0.4304433333 | BF78: 0.4332766667 | BG78: 0.43503 | BH78: 0.4384525 | BI78: 0.4409391667 | BJ78: 0.4426475 | BK78: 0.4443783333 | BL78: 0.4472225 | BM78: 0.4491891667 | BN78: 0.4533858333 | BO78: 0.4551658333 | BP78: 0.4568325 | BQ78: 0.4587475 | BR78: 0.46196 | BS78: 0.4643066667 | BT78: 0.4669691667 | BU78: 0.4698033333 | BV78: 0.4738383333 | BW78: 0.4731508333 | BX78: 0.4755183333 | BY78: 0.4787866667 | BZ78: 0.4823075 | CA78: 0.4837833333 | CB78: 0.48727 | CC78: 0.4895116667 | CD78: 0.49238 | CE78: 0.4940825 | CF78: 0.4974183333 | CG78: 0.4975075 | CH78: 0.4996633333 | CI78: 0.5011783333 | CJ78: 0.5038991667 | CK78: 0.504125 | CL78: 0.5081108333 | CM78: 0.5080975 | CN78: 0.5110741667 | CO78: 0.5126925 | CP78: 0.514745 | CQ78: 0.5151283333 | CR78: 0.5184775 | CS78: 0.5196258333 | CT78: 0.5206041667 | CU78: 0.5221733333 | CV78: 0.5234558333 | CW78: 0.5243966667 | CX78: 0.527965
B79: Kx5x | C79: 0.1471708333 | D79: 0.2459958333 | E79: 0.2619141667 | F79: 0.2768091667 | G79: 0.2883333333 | H79: 0.3096341667 | I79: 0.3115633333 | J79: 0.3224491667 | K79: 0.32267 | L79: 0.3280325 | M79: 0.3293783333 | N79: 0.3387325 | O79: 0.3357691667 | P79: 0.340705 | Q79: 0.3499333333 | R79: 0.350415 | S79: 0.3497916667 | T79: 0.34979 | U79: 0.3541591667 | V79: 0.3705791667 | W79: 0.37547 | X79: 0.3785891667 | Y79: 0.3868708333 | Z79: 0.3874725 | AA79: 0.3849491667 | AB79: 0.3936008333 | AC79: 0.3925 | AD79: 0.3958725 | AE79: 0.39835 | AF79: 0.4003908333 | AG79: 0.4036358333 | AH79: 0.4083566667 | AI79: 0.4144283333 | AJ79: 0.4162033333 | AK79: 0.4173916667 | AL79: 0.4166333333 | AM79: 0.4225991667 | AN79: 0.4270975 | AO79: 0.4310816667 | AP79: 0.4337008333 | AQ79: 0.4337183333 | AR79: 0.4339108333 | AS79: 0.4410508333 | AT79: 0.4426533333 | AU79: 0.4453108333 | AV79: 0.4496283333 | AW79: 0.4528525 | AX79: 0.4560016667 | AY79: 0.4580516667 | AZ79: 0.4609033333 | BA79: 0.4643791667 | BB79: 0.4690083333 | BC79: 0.4685858333 | BD79: 0.4738883333 | BE79: 0.4752166667 | BF79: 0.47806 | BG79: 0.4797341667 | BH79: 0.4813916667 | BI79: 0.4850683333 | BJ79: 0.4880308333 | BK79: 0.4907266667 | BL79: 0.4938433333 | BM79: 0.4948116667 | BN79: 0.4977116667 | BO79: 0.49861 | BP79: 0.5008125 | BQ79: 0.5029166667 | BR79: 0.5057933333 | BS79: 0.5073308333 | BT79: 0.5090041667 | BU79: 0.5114916667 | BV79: 0.5144491667 | BW79: 0.5154116667 | BX79: 0.5173283333 | BY79: 0.52047 | BZ79: 0.523705 | CA79: 0.52393 | CB79: 0.5272775 | CC79: 0.5286916667 | CD79: 0.52954 | CE79: 0.53214 | CF79: 0.5343333333 | CG79: 0.5340608333 | CH79: 0.5365066667 | CI79: 0.5361866667 | CJ79: 0.5396091667 | CK79: 0.5406333333 | CL79: 0.5401466667 | CM79: 0.5433716667 | CN79: 0.5442883333 | CO79: 0.5465266667 | CP79: 0.54763 | CQ79: 0.5490983333 | CR79: 0.54841 | CS79: 0.5508808333 | CT79: 0.5519116667 | CU79: 0.5539666667 | CV79: 0.554575 | CW79: 0.5563191667 | CX79: 0.5571133333
B80: Ax5x | C80: 0.2668566667 | D80: 0.3047908333 | E80: 0.3083425 | F80: 0.3099491667 | G80: 0.3139883333 | H80: 0.3171058333 | I80: 0.3178541667 | J80: 0.3332625 | K80: 0.34232 | L80: 0.3704633333 | M80: 0.3758775 | N80: 0.380275 | O80: 0.3987775 | P80: 0.4040466667 | Q80: 0.4061075 | R80: 0.4119175 | S80: 0.4231525 | T80: 0.4254525 | U80: 0.4228891667 | V80: 0.4391183333 | W80: 0.4460291667 | X80: 0.4463183333 | Y80: 0.4538441667 | Z80: 0.4547083333 | AA80: 0.4553683333 | AB80: 0.4622683333 | AC80: 0.4697141667 | AD80: 0.4712883333 | AE80: 0.4723325 | AF80: 0.4750566667 | AG80: 0.4787625 | AH80: 0.4836133333 | AI80: 0.4887083333 | AJ80: 0.4910116667 | AK80: 0.4937933333 | AL80: 0.4976766667 | AM80: 0.5014083333 | AN80: 0.5029758333 | AO80: 0.5052575 | AP80: 0.509525 | AQ80: 0.5124308333 | AR80: 0.5124691667 | AS80: 0.5158341667 | AT80: 0.5181433333 | AU80: 0.5218408333 | AV80: 0.5253791667 | AW80: 0.5289825 | AX80: 0.5282625 | AY80: 0.530065 | AZ80: 0.5332466667 | BA80: 0.5355991667 | BB80: 0.5374316667 | BC80: 0.5402266667 | BD80: 0.5418141667 | BE80: 0.5424291667 | BF80: 0.54596 | BG80: 0.5468366667 | BH80: 0.5495766667 | BI80: 0.54944 | BJ80: 0.5530391667 | BK80: 0.55317 | BL80: 0.555405 | BM80: 0.5554775 | BN80: 0.5563683333 | BO80: 0.5571441667 | BP80: 0.5594933333 | BQ80: 0.5615233333 | BR80: 0.5619516667 | BS80: 0.5647733333 | BT80: 0.5643491667 | BU80: 0.5657616667 | BV80: 0.5678758333 | BW80: 0.5675491667 | BX80: 0.5698691667 | BY80: 0.5713241667 | BZ80: 0.5734558333 | CA80: 0.5754266667 | CB80: 0.5781533333 | CC80: 0.5787591667 | CD80: 0.5808625 | CE80: 0.5807991667 | CF80: 0.582905 | CG80: 0.5834333333 | CH80: 0.583705 | CI80: 0.5853341667 | CJ80: 0.5854733333 | CK80: 0.5854991667 | CL80: 0.5873566667 | CM80: 0.5883816667 | CN80: 0.5888141667 | CO80: 0.5905025 | CP80: 0.5913008333 | CQ80: 0.5926933333 | CR80: 0.593665 | CS80: 0.5944258333 | CT80: 0.5949791667 | CU80: 0.5964116667 | CV80: 0.5970716667 | CW80: 0.59724 | CX80: 0.5992466667
B81: 5y5x | C81: 0.1932375 | D81: 0.1936316667 | E81: 0.2323633333 | F81: 0.3297108333 | G81: 0.3287783333 | H81: 0.3508158333 | I81: 0.3586966667 | J81: 0.3741791667 | K81: 0.3800808333 | L81: 0.4064533333 | M81: 0.4129883333 | N81: 0.4115575 | O81: 0.4202116667 | P81: 0.4246033333 | Q81: 0.43641 | R81: 0.4420575 | S81: 0.4467775 | T81: 0.4503441667 | U81: 0.4554233333 | V81: 0.4632083333 | W81: 0.471245 | X81: 0.4724583333 | Y81: 0.472045 | Z81: 0.4790008333 | AA81: 0.4818491667 | AB81: 0.4846533333 | AC81: 0.4843466667 | AD81: 0.4893591667 | AE81: 0.4889875 | AF81: 0.5008716667 | AG81: 0.5027483333 | AH81: 0.5084533333 | AI81: 0.5101316667 | AJ81: 0.5125625 | AK81: 0.517325 | AL81: 0.5183608333 | AM81: 0.5185575 | AN81: 0.5172075 | AO81: 0.5189216667 | AP81: 0.522315 | AQ81: 0.5241566667 | AR81: 0.5248358333 | AS81: 0.5234233333 | AT81: 0.5258925 | AU81: 0.5279991667 | AV81: 0.5280008333 | AW81: 0.5267766667 | AX81: 0.5281833333 | AY81: 0.5309666667 | AZ81: 0.5313166667 | BA81: 0.53371 | BB81: 0.53335 | BC81: 0.5369983333 | BD81: 0.5368958333 | BE81: 0.53827 | BF81: 0.5387466667 | BG81: 0.5404516667 | BH81: 0.5418025 | BI81: 0.53957 | BJ81: 0.54237 | BK81: 0.54418 | BL81: 0.5471441667 | BM81: 0.5466416667 | BN81: 0.5483791667 | BO81: 0.5484433333 | BP81: 0.5499833333 | BQ81: 0.5520983333 | BR81: 0.5512091667 | BS81: 0.5526691667 | BT81: 0.5514558333 | BU81: 0.5556566667 | BV81: 0.5570733333 | BW81: 0.5581116667 | BX81: 0.5600766667 | BY81: 0.5611441667 | BZ81: 0.5617916667 | CA81: 0.5639783333 | CB81: 0.56617 | CC81: 0.5649883333 | CD81: 0.5669025 | CE81: 0.5696266667 | CF81: 0.5722475 | CG81: 0.5713891667 | CH81: 0.573695 | CI81: 0.5777675 | CJ81: 0.5774875 | CK81: 0.5785741667 | CL81: 0.5806966667 | CM81: 0.5813933333 | CN81: 0.5828241667 | CO81: 0.5870133333 | CP81: 0.5892708333 | CQ81: 0.5894525 | CR81: 0.5916158333 | CS81: 0.5921241667 | CT81: 0.5948541667 | CU81: 0.59448 | CV81: 0.599005 | CW81: 0.5993558333 | CX81: 0.60287
B82: 6y5x | C82: 0.1862233333 | D82: 0.1851 | E82: 0.2048183333 | F82: 0.2587083333 | G82: 0.25652 | H82: 0.2679416667 | I82: 0.2724316667 | J82: 0.2799283333 | K82: 0.281915 | L82: 0.2994575 | M82: 0.3026491667 | N82: 0.3028566667 | O82: 0.3082975 | P82: 0.3084575 | Q82: 0.3134275 | R82: 0.316875 | S82: 0.3201583333 | T82: 0.3209583333 | U82: 0.3243766667 | V82: 0.3286141667 | W82: 0.3318 | X82: 0.3329075 | Y82: 0.3338291667 | Z82: 0.3355858333 | AA82: 0.3338908333 | AB82: 0.3344908333 | AC82: 0.3366358333 | AD82: 0.3340683333 | AE82: 0.3345683333 | AF82: 0.3412308333 | AG82: 0.341145 | AH82: 0.34321 | AI82: 0.3447816667 | AJ82: 0.3457425 | AK82: 0.3489741667 | AL82: 0.3498866667 | AM82: 0.3500941667 | AN82: 0.3490925 | AO82: 0.3492591667 | AP82: 0.3513516667 | AQ82: 0.351415 | AR82: 0.3524116667 | AS82: 0.3503016667 | AT82: 0.3512941667 | AU82: 0.3512866667 | AV82: 0.3506408333 | AW82: 0.3511683333 | AX82: 0.3530316667 | AY82: 0.3539641667 | AZ82: 0.35373 | BA82: 0.35412 | BB82: 0.3543916667 | BC82: 0.3549766667 | BD82: 0.3562008333 | BE82: 0.3557158333 | BF82: 0.3550566667 | BG82: 0.3575325 | BH82: 0.3574983333 | BI82: 0.3566916667 | BJ82: 0.3572925 | BK82: 0.3596916667 | BL82: 0.3613375 | BM82: 0.3600641667 | BN82: 0.3597133333 | BO82: 0.359895 | BP82: 0.3617433333 | BQ82: 0.3621233333 | BR82: 0.3612791667 | BS82: 0.3616725 | BT82: 0.3611433333 | BU82: 0.3631975 | BV82: 0.3643533333 | BW82: 0.36593 | BX82: 0.3674175 | BY82: 0.3671716667 | BZ82: 0.3683616667 | CA82: 0.3680941667 | CB82: 0.3682491667 | CC82: 0.3679266667 | CD82: 0.3707183333 | CE82: 0.3725358333 | CF82: 0.3730716667 | CG82: 0.3745616667 | CH82: 0.3768525 | CI82: 0.3773583333 | CJ82: 0.3785158333 | CK82: 0.3787333333 | CL82: 0.3806516667 | CM82: 0.3821375 | CN82: 0.3820425 | CO82: 0.3855116667 | CP82: 0.3870091667 | CQ82: 0.3883075 | CR82: 0.3893241667 | CS82: 0.3890291667 | CT82: 0.3909083333 | CU82: 0.3920466667 | CV82: 0.39471 | CW82: 0.397345 | CX82: 0.3985483333
B83: 7y5x | C83: 0.1714066667 | D83: 0.1720775 | E83: 0.1919075 | F83: 0.2450875 | G83: 0.2439133333 | H83: 0.253895 | I83: 0.2578491667 | J83: 0.2702208333 | K83: 0.2731325 | L83: 0.2893375 | M83: 0.2913458333 | N83: 0.2938616667 | O83: 0.2995758333 | P83: 0.3006108333 | Q83: 0.30624 | R83: 0.3091558333 | S83: 0.3124625 | T83: 0.31297 | U83: 0.3161658333 | V83: 0.3197483333 | W83: 0.3239975 | X83: 0.3228675 | Y83: 0.3244541667 | Z83: 0.323435 | AA83: 0.3223808333 | AB83: 0.3242841667 | AC83: 0.3244691667 | AD83: 0.3271816667 | AE83: 0.3280691667 | AF83: 0.3326041667 | AG83: 0.3340241667 | AH83: 0.3351283333 | AI83: 0.3376016667 | AJ83: 0.337475 | AK83: 0.340775 | AL83: 0.3408191667 | AM83: 0.3412858333 | AN83: 0.3404808333 | AO83: 0.3396641667 | AP83: 0.3408508333 | AQ83: 0.3431775 | AR83: 0.342365 | AS83: 0.3440025 | AT83: 0.3444783333 | AU83: 0.34508 | AV83: 0.3439366667 | AW83: 0.3435733333 | AX83: 0.3440533333 | AY83: 0.3467183333 | AZ83: 0.3472033333 | BA83: 0.3464725 | BB83: 0.3496283333 | BC83: 0.3504191667 | BD83: 0.3500666667 | BE83: 0.3487308333 | BF83: 0.3473575 | BG83: 0.349385 | BH83: 0.3508191667 | BI83: 0.3501858333 | BJ83: 0.3489983333 | BK83: 0.3524358333 | BL83: 0.3531641667 | BM83: 0.3533783333 | BN83: 0.3550466667 | BO83: 0.3561566667 | BP83: 0.3564016667 | BQ83: 0.3589575 | BR83: 0.3571258333 | BS83: 0.3578758333 | BT83: 0.3581808333 | BU83: 0.3607116667 | BV83: 0.3644783333 | BW83: 0.3651391667 | BX83: 0.3658566667 | BY83: 0.3683925 | BZ83: 0.3691858333 | CA83: 0.3679741667 | CB83: 0.3679716667 | CC83: 0.3679316667 | CD83: 0.371045 | CE83: 0.373245 | CF83: 0.3728166667 | CG83: 0.37402 | CH83: 0.3782791667 | CI83: 0.379565 | CJ83: 0.3802941667 | CK83: 0.38054 | CL83: 0.3819116667 | CM83: 0.3842941667 | CN83: 0.3844275 | CO83: 0.3895783333 | CP83: 0.3915725 | CQ83: 0.3907908333 | CR83: 0.3931866667 | CS83: 0.3941233333 | CT83: 0.3966991667 | CU83: 0.3968791667 | CV83: 0.3993625 | CW83: 0.4009483333 | CX83: 0.4059916667
B84: 8y5x | C84: 0.157455 | D84: 0.1571383333 | E84: 0.1765883333 | F84: 0.2313325 | G84: 0.2301575 | H84: 0.2440908333 | I84: 0.2490575 | J84: 0.2674891667 | K84: 0.2689783333 | L84: 0.2847241667 | M84: 0.2870225 | N84: 0.2895741667 | O84: 0.2943416667 | P84: 0.2948308333 | Q84: 0.2996358333 | R84: 0.3036108333 | S84: 0.3047141667 | T84: 0.3071141667 | U84: 0.304975 | V84: 0.3087616667 | W84: 0.3132275 | X84: 0.3127141667 | Y84: 0.3138191667 | Z84: 0.3165041667 | AA84: 0.3160233333 | AB84: 0.3163558333 | AC84: 0.3175733333 | AD84: 0.3185366667 | AE84: 0.318445 | AF84: 0.3245133333 | AG84: 0.3239 | AH84: 0.3292566667 | AI84: 0.3301741667 | AJ84: 0.3316691667 | AK84: 0.3322066667 | AL84: 0.3316758333 | AM84: 0.3327258333 | AN84: 0.3322091667 | AO84: 0.33095 | AP84: 0.3356083333 | AQ84: 0.3365866667 | AR84: 0.337445 | AS84: 0.33749 | AT84: 0.3377633333 | AU84: 0.337685 | AV84: 0.3353841667 | AW84: 0.3351608333 | AX84: 0.3347875 | AY84: 0.3369875 | AZ84: 0.3381683333 | BA84: 0.3406166667 | BB84: 0.3418625 | BC84: 0.3436816667 | BD84: 0.3440716667 | BE84: 0.3438175 | BF84: 0.3438816667 | BG84: 0.3461816667 | BH84: 0.3475408333 | BI84: 0.34905 | BJ84: 0.3482958333 | BK84: 0.3499091667 | BL84: 0.3525575 | BM84: 0.3551875 | BN84: 0.3568716667 | BO84: 0.3555166667 | BP84: 0.35797 | BQ84: 0.3582575 | BR84: 0.3592533333 | BS84: 0.3589116667 | BT84: 0.3588358333 | BU84: 0.3618208333 | BV84: 0.3654708333 | BW84: 0.36556 | BX84: 0.3676858333 | BY84: 0.3718266667 | BZ84: 0.3728966667 | CA84: 0.3731141667 | CB84: 0.3734925 | CC84: 0.37261 | CD84: 0.3764225 | CE84: 0.3769058333 | CF84: 0.3776283333 | CG84: 0.3786208333 | CH84: 0.3824808333 | CI84: 0.3834958333 | CJ84: 0.3857591667 | CK84: 0.3874816667 | CL84: 0.38805 | CM84: 0.3913375 | CN84: 0.3927858333 | CO84: 0.3941575 | CP84: 0.396505 | CQ84: 0.3978575 | CR84: 0.4002008333 | CS84: 0.4018316667 | CT84: 0.4042591667 | CU84: 0.4050258333 | CV84: 0.4071833333 | CW84: 0.4094033333 | CX84: 0.4141091667
B85: 9y5x | C85: 0.1419316667 | D85: 0.1416841667 | E85: 0.1622208333 | F85: 0.2176583333 | G85: 0.2184358333 | H85: 0.242925 | I85: 0.2473633333 | J85: 0.2634491667 | K85: 0.2667783333 | L85: 0.278835 | M85: 0.2781358333 | N85: 0.2839325 | O85: 0.2879658333 | P85: 0.2876475 | Q85: 0.2888025 | R85: 0.2900625 | S85: 0.292665 | T85: 0.293775 | U85: 0.2982091667 | V85: 0.3006491667 | W85: 0.3036366667 | X85: 0.3046925 | Y85: 0.305785 | Z85: 0.3081816667 | AA85: 0.3076433333 | AB85: 0.3092141667 | AC85: 0.3051 | AD85: 0.3083666667 | AE85: 0.3101016667 | AF85: 0.313575 | AG85: 0.3149866667 | AH85: 0.31879 | AI85: 0.3191458333 | AJ85: 0.3199008333 | AK85: 0.3219325 | AL85: 0.3236383333 | AM85: 0.3246141667 | AN85: 0.3229641667 | AO85: 0.323045 | AP85: 0.3271766667 | AQ85: 0.327245 | AR85: 0.3281641667 | AS85: 0.3328833333 | AT85: 0.3321566667 | AU85: 0.3312666667 | AV85: 0.331765 | AW85: 0.3327816667 | AX85: 0.3330958333 | AY85: 0.3341291667 | AZ85: 0.3356083333 | BA85: 0.3384058333 | BB85: 0.33899 | BC85: 0.3407308333 | BD85: 0.3426625 | BE85: 0.3432808333 | BF85: 0.3428841667 | BG85: 0.3442766667 | BH85: 0.3488183333 | BI85: 0.34967 | BJ85: 0.3477233333 | BK85: 0.3510883333 | BL85: 0.3524 | BM85: 0.3561158333 | BN85: 0.3580691667 | BO85: 0.3586775 | BP85: 0.3594583333 | BQ85: 0.3598841667 | BR85: 0.3638625 | BS85: 0.3629025 | BT85: 0.3644416667 | BU85: 0.365705 | BV85: 0.3689575 | BW85: 0.3692608333 | BX85: 0.3723308333 | BY85: 0.3771508333 | BZ85: 0.376595 | CA85: 0.3794591667 | CB85: 0.3805591667 | CC85: 0.3823016667 | CD85: 0.3840216667 | CE85: 0.385415 | CF85: 0.3861575 | CG85: 0.3863041667 | CH85: 0.391375 | CI85: 0.3909383333 | CJ85: 0.3935983333 | CK85: 0.39621 | CL85: 0.3961991667 | CM85: 0.3987508333 | CN85: 0.4008841667 | CO85: 0.4039008333 | CP85: 0.4072983333 | CQ85: 0.4085325 | CR85: 0.4116758333 | CS85: 0.4133083333 | CT85: 0.4160366667 | CU85: 0.4181641667 | CV85: 0.4207825 | CW85: 0.4224408333 | CX85: 0.4257225
B86: Ty5x | C86: 0.1290908333 | D86: 0.127 | E86: 0.1446166667 | F86: 0.2054708333 | G86: 0.2212425 | H86: 0.2429858333 | I86: 0.2420866667 | J86: 0.2567433333 | K86: 0.258925 | L86: 0.263595 | M86: 0.2644041667 | N86: 0.2714108333 | O86: 0.2753758333 | P86: 0.2731425 | Q86: 0.27993 | R86: 0.2838425 | S86: 0.2833466667 | T86: 0.284835 | U86: 0.2882566667 | V86: 0.2914441667 | W86: 0.29749 | X86: 0.2973358333 | Y86: 0.2963841667 | Z86: 0.298725 | AA86: 0.2979633333 | AB86: 0.2964225 | AC86: 0.2988666667 | AD86: 0.3000891667 | AE86: 0.3011 | AF86: 0.3094266667 | AG86: 0.3100208333 | AH86: 0.3134416667 | AI86: 0.315855 | AJ86: 0.3154883333 | AK86: 0.3182241667 | AL86: 0.3191175 | AM86: 0.321735 | AN86: 0.3223041667 | AO86: 0.32261 | AP86: 0.3259858333 | AQ86: 0.3265625 | AR86: 0.3272366667 | AS86: 0.3301841667 | AT86: 0.330465 | AU86: 0.3317308333 | AV86: 0.331115 | AW86: 0.3314258333 | AX86: 0.3360833333 | AY86: 0.3377133333 | AZ86: 0.3392225 | BA86: 0.3412275 | BB86: 0.342035 | BC86: 0.3425725 | BD86: 0.3452591667 | BE86: 0.3462766667 | BF86: 0.3462433333 | BG86: 0.3474075 | BH86: 0.3530341667 | BI86: 0.3572658333 | BJ86: 0.3558583333 | BK86: 0.3587625 | BL86: 0.3599533333 | BM86: 0.3634783333 | BN86: 0.3643625 | BO86: 0.3661841667 | BP86: 0.36662 | BQ86: 0.3672516667 | BR86: 0.3704333333 | BS86: 0.3717866667 | BT86: 0.3734483333 | BU86: 0.3752883333 | BV86: 0.379725 | BW86: 0.3798058333 | BX86: 0.3815333333 | BY86: 0.385845 | BZ86: 0.3863458333 | CA86: 0.3884458333 | CB86: 0.3903725 | CC86: 0.392905 | CD86: 0.3966083333 | CE86: 0.3973391667 | CF86: 0.3988791667 | CG86: 0.3994183333 | CH86: 0.40395 | CI86: 0.40499 | CJ86: 0.406555 | CK86: 0.41011 | CL86: 0.4109208333 | CM86: 0.4132866667 | CN86: 0.4167733333 | CO86: 0.4222858333 | CP86: 0.424025 | CQ86: 0.4252 | CR86: 0.4269608333 | CS86: 0.4294783333 | CT86: 0.4329475 | CU86: 0.4348333333 | CV86: 0.4359525 | CW86: 0.438575 | CX86: 0.44356
B87: Jy5x | C87: 0.1290975 | D87: 0.1200966667 | E87: 0.1749025 | F87: 0.2260616667 | G87: 0.2320816667 | H87: 0.25207 | I87: 0.2558658333 | J87: 0.2579058333 | K87: 0.2585733333 | L87: 0.2743508333 | M87: 0.2768708333 | N87: 0.2811883333 | O87: 0.278445 | P87: 0.2787458333 | Q87: 0.2866575 | R87: 0.29033 | S87: 0.2941766667 | T87: 0.2948516667 | U87: 0.2993308333 | V87: 0.2996575 | W87: 0.3048941667 | X87: 0.307065 | Y87: 0.3077041667 | Z87: 0.3102841667 | AA87: 0.3085966667 | AB87: 0.3093525 | AC87: 0.3111516667 | AD87: 0.3119108333 | AE87: 0.3136466667 | AF87: 0.3223433333 | AG87: 0.3224475 | AH87: 0.3253091667 | AI87: 0.3265683333 | AJ87: 0.3278166667 | AK87: 0.3288841667 | AL87: 0.33008 | AM87: 0.3336983333 | AN87: 0.3391483333 | AO87: 0.3390016667 | AP87: 0.34253 | AQ87: 0.3437375 | AR87: 0.3437058333 | AS87: 0.3481666667 | AT87: 0.3484908333 | AU87: 0.3491841667 | AV87: 0.3478316667 | AW87: 0.3532691667 | AX87: 0.3573783333 | AY87: 0.3579541667 | AZ87: 0.3610666667 | BA87: 0.3627808333 | BB87: 0.3619583333 | BC87: 0.3627241667 | BD87: 0.3651408333 | BE87: 0.3670383333 | BF87: 0.371985 | BG87: 0.3726725 | BH87: 0.3781758333 | BI87: 0.3799683333 | BJ87: 0.3790833333 | BK87: 0.3836491667 | BL87: 0.3833958333 | BM87: 0.3871725 | BN87: 0.3883633333 | BO87: 0.3890591667 | BP87: 0.3934741667 | BQ87: 0.3943875 | BR87: 0.3966166667 | BS87: 0.3990275 | BT87: 0.4006875 | BU87: 0.4028858333 | BV87: 0.40567 | BW87: 0.407015 | BX87: 0.4088016667 | BY87: 0.4143683333 | BZ87: 0.4147858333 | CA87: 0.4166675 | CB87: 0.4199041667 | CC87: 0.4243358333 | CD87: 0.4268641667 | CE87: 0.4290575 | CF87: 0.4314633333 | CG87: 0.4325266667 | CH87: 0.4353825 | CI87: 0.4378383333 | CJ87: 0.4401191667 | CK87: 0.4419791667 | CL87: 0.4440875 | CM87: 0.4469191667 | CN87: 0.4493966667 | CO87: 0.4520758333 | CP87: 0.4546975 | CQ87: 0.4558741667 | CR87: 0.4586766667 | CS87: 0.4603608333 | CT87: 0.4630216667 | CU87: 0.465955 | CV87: 0.4654058333 | CW87: 0.4691475 | CX87: 0.4710725
B88: Qy5x | C88: 0.1245166667 | D88: 0.1621983333 | E88: 0.2032725 | F88: 0.2359783333 | G88: 0.2483333333 | H88: 0.2519083333 | I88: 0.2560508333 | J88: 0.2711341667 | K88: 0.27358 | L88: 0.2786341667 | M88: 0.2820933333 | N88: 0.2858816667 | O88: 0.2910758333 | P88: 0.2895433333 | Q88: 0.3007525 | R88: 0.3037591667 | S88: 0.30497 | T88: 0.30555 | U88: 0.3097725 | V88: 0.30952 | W88: 0.3169608333 | X88: 0.3203 | Y88: 0.3180475 | Z88: 0.3207591667 | AA88: 0.3194491667 | AB88: 0.3270058333 | AC88: 0.32979 | AD88: 0.3316891667 | AE88: 0.3339058333 | AF88: 0.3392433333 | AG88: 0.3397991667 | AH88: 0.3418841667 | AI88: 0.3422275 | AJ88: 0.3422383333 | AK88: 0.3454225 | AL88: 0.3469316667 | AM88: 0.3550075 | AN88: 0.3607116667 | AO88: 0.362785 | AP88: 0.3654608333 | AQ88: 0.3639708333 | AR88: 0.3654466667 | AS88: 0.3686508333 | AT88: 0.3698191667 | AU88: 0.37037 | AV88: 0.3757633333 | AW88: 0.3806975 | AX88: 0.3844858333 | AY88: 0.3843325 | AZ88: 0.3878891667 | BA88: 0.3884941667 | BB88: 0.3909916667 | BC88: 0.3909808333 | BD88: 0.3959091667 | BE88: 0.3973566667 | BF88: 0.4006975 | BG88: 0.4020241667 | BH88: 0.4057933333 | BI88: 0.4089 | BJ88: 0.4108558333 | BK88: 0.4133033333 | BL88: 0.4152416667 | BM88: 0.4186591667 | BN88: 0.4215125 | BO88: 0.4224158333 | BP88: 0.4261308333 | BQ88: 0.4266533333 | BR88: 0.429825 | BS88: 0.4342658333 | BT88: 0.4369441667 | BU88: 0.4386875 | BV88: 0.4415883333 | BW88: 0.4421066667 | BX88: 0.4469941667 | BY88: 0.4499791667 | BZ88: 0.4523 | CA88: 0.4549008333 | CB88: 0.4572966667 | CC88: 0.4619491667 | CD88: 0.4631041667 | CE88: 0.4653991667 | CF88: 0.4677208333 | CG88: 0.4691391667 | CH88: 0.47171 | CI88: 0.4731966667 | CJ88: 0.4760116667 | CK88: 0.4761283333 | CL88: 0.4775441667 | CM88: 0.4803791667 | CN88: 0.4820233333 | CO88: 0.4856108333 | CP88: 0.4876875 | CQ88: 0.4876875 | CR88: 0.4894816667 | CS88: 0.4930783333 | CT88: 0.4944416667 | CU88: 0.4950108333 | CV88: 0.4968141667 | CW88: 0.4986516667 | CX88: 0.5018
B89: Ky5x | C89: 0.1026733333 | D89: 0.2056083333 | E89: 0.2222791667 | F89: 0.2357541667 | G89: 0.249985 | H89: 0.2710241667 | I89: 0.2748583333 | J89: 0.2851175 | K89: 0.2845166667 | L89: 0.2897841667 | M89: 0.2901125 | N89: 0.3001008333 | O89: 0.29868 | P89: 0.30315 | Q89: 0.3136966667 | R89: 0.31514 | S89: 0.3120066667 | T89: 0.313475 | U89: 0.3159316667 | V89: 0.3328516667 | W89: 0.3396225 | X89: 0.3415691667 | Y89: 0.3513258333 | Z89: 0.3524133333 | AA89: 0.3482058333 | AB89: 0.3586133333 | AC89: 0.3577491667 | AD89: 0.3609283333 | AE89: 0.3632625 | AF89: 0.3663966667 | AG89: 0.3676591667 | AH89: 0.3739166667 | AI89: 0.3802191667 | AJ89: 0.3808941667 | AK89: 0.3827066667 | AL89: 0.3821683333 | AM89: 0.3895733333 | AN89: 0.3942525 | AO89: 0.396055 | AP89: 0.3989658333 | AQ89: 0.3994883333 | AR89: 0.3999358333 | AS89: 0.4077225 | AT89: 0.4090208333 | AU89: 0.411215 | AV89: 0.4163633333 | AW89: 0.4210558333 | AX89: 0.4242233333 | AY89: 0.4269458333 | AZ89: 0.4283691667 | BA89: 0.4332108333 | BB89: 0.4380858333 | BC89: 0.4391925 | BD89: 0.4430158333 | BE89: 0.4451775 | BF89: 0.4473033333 | BG89: 0.4491125 | BH89: 0.4517733333 | BI89: 0.4545425 | BJ89: 0.4588908333 | BK89: 0.4606275 | BL89: 0.4641233333 | BM89: 0.4661483333 | BN89: 0.4689025 | BO89: 0.4698016667 | BP89: 0.4717508333 | BQ89: 0.47442 | BR89: 0.476345 | BS89: 0.4805941667 | BT89: 0.481585 | BU89: 0.4835591667 | BV89: 0.4869408333 | BW89: 0.4871866667 | BX89: 0.4899058333 | BY89: 0.4921958333 | BZ89: 0.49415 | CA89: 0.496445 | CB89: 0.4994633333 | CC89: 0.5016691667 | CD89: 0.5032158333 | CE89: 0.5055983333 | CF89: 0.5059716667 | CG89: 0.5072808333 | CH89: 0.5091675 | CI89: 0.5123191667 | CJ89: 0.5131241667 | CK89: 0.5142741667 | CL89: 0.5140591667 | CM89: 0.517495 | CN89: 0.5179091667 | CO89: 0.5215275 | CP89: 0.5206508333 | CQ89: 0.52272 | CR89: 0.523945 | CS89: 0.5262233333 | CT89: 0.5279083333 | CU89: 0.5280166667 | CV89: 0.5295241667 | CW89: 0.53048 | CX89: 0.5341325
B90: Ay5x | C90: 0.2258633333 | D90: 0.2677075 | E90: 0.2731283333 | F90: 0.271855 | G90: 0.2766308333 | H90: 0.2800475 | I90: 0.280235 | J90: 0.2944125 | K90: 0.306835 | L90: 0.3342766667 | M90: 0.3406141667 | N90: 0.3458708333 | O90: 0.3640441667 | P90: 0.3686725 | Q90: 0.370895 | R90: 0.3769825 | S90: 0.3884375 | T90: 0.3926566667 | U90: 0.3897608333 | V90: 0.4069883333 | W90: 0.4134775 | X90: 0.41475 | Y90: 0.420755 | Z90: 0.423045 | AA90: 0.4237025 | AB90: 0.4314108333 | AC90: 0.4374125 | AD90: 0.4420041667 | AE90: 0.4424316667 | AF90: 0.4461708333 | AG90: 0.4484891667 | AH90: 0.4536916667 | AI90: 0.4590358333 | AJ90: 0.4599516667 | AK90: 0.4642433333 | AL90: 0.4687741667 | AM90: 0.4717933333 | AN90: 0.474265 | AO90: 0.4765 | AP90: 0.4811275 | AQ90: 0.4836141667 | AR90: 0.4853316667 | AS90: 0.4878791667 | AT90: 0.4909733333 | AU90: 0.494875 | AV90: 0.4981558333 | AW90: 0.4997516667 | AX90: 0.5011075 | AY90: 0.5039683333 | AZ90: 0.5050391667 | BA90: 0.5090458333 | BB90: 0.5117641667 | BC90: 0.5127125 | BD90: 0.5155283333 | BE90: 0.5176591667 | BF90: 0.5183125 | BG90: 0.5206775 | BH90: 0.5234458333 | BI90: 0.523595 | BJ90: 0.5272133333 | BK90: 0.5280708333 | BL90: 0.5296475 | BM90: 0.5302683333 | BN90: 0.5323808333 | BO90: 0.5325483333 | BP90: 0.534395 | BQ90: 0.5347308333 | BR90: 0.53609 | BS90: 0.5392 | BT90: 0.5402891667 | BU90: 0.5418291667 | BV90: 0.5436383333 | BW90: 0.5431166667 | BX90: 0.5457208333 | BY90: 0.5478525 | BZ90: 0.5492541667 | CA90: 0.5511 | CB90: 0.5528116667 | CC90: 0.5554291667 | CD90: 0.5569166667 | CE90: 0.5580583333 | CF90: 0.5586316667 | CG90: 0.5591133333 | CH90: 0.5608508333 | CI90: 0.561445 | CJ90: 0.5608633333 | CK90: 0.5628408333 | CL90: 0.5625833333 | CM90: 0.5655491667 | CN90: 0.5659491667 | CO90: 0.56841 | CP90: 0.5685625 | CQ90: 0.5696991667 | CR90: 0.5701075 | CS90: 0.5717158333 | CT90: 0.5734383333 | CU90: 0.5733533333 | CV90: 0.5739 | CW90: 0.5754416667 | CX90: 0.5773366667
B91: 7x6x | C91: 0.2242441667 | D91: 0.2221091667 | E91: 0.23975 | F91: 0.2931208333 | G91: 0.2896433333 | H91: 0.2996166667 | I91: 0.3043083333 | J91: 0.3155591667 | K91: 0.3185391667 | L91: 0.3367191667 | M91: 0.33822 | N91: 0.3411266667 | O91: 0.34535 | P91: 0.3492408333 | Q91: 0.3516183333 | R91: 0.3611866667 | S91: 0.36158 | T91: 0.3639491667 | U91: 0.3651433333 | V91: 0.3691941667 | W91: 0.3712366667 | X91: 0.3715308333 | Y91: 0.3722658333 | Z91: 0.3715725 | AA91: 0.3753375 | AB91: 0.3753416667 | AC91: 0.3771116667 | AD91: 0.3763933333 | AE91: 0.3759866667 | AF91: 0.38043 | AG91: 0.3817958333 | AH91: 0.385345 | AI91: 0.3863041667 | AJ91: 0.3866491667 | AK91: 0.3882183333 | AL91: 0.3888958333 | AM91: 0.38917 | AN91: 0.3881425 | AO91: 0.388005 | AP91: 0.3891275 | AQ91: 0.389235 | AR91: 0.38925 | AS91: 0.3891483333 | AT91: 0.389945 | AU91: 0.392285 | AV91: 0.390725 | AW91: 0.3928866667 | AX91: 0.3932583333 | AY91: 0.3939233333 | AZ91: 0.3959958333 | BA91: 0.3948425 | BB91: 0.3949283333 | BC91: 0.3974625 | BD91: 0.3972525 | BE91: 0.3972608333 | BF91: 0.3959566667 | BG91: 0.3982075 | BH91: 0.3978558333 | BI91: 0.3983366667 | BJ91: 0.3989166667 | BK91: 0.4008991667 | BL91: 0.4018791667 | BM91: 0.4036525 | BN91: 0.4029675 | BO91: 0.4037341667 | BP91: 0.4052041667 | BQ91: 0.4050025 | BR91: 0.4059033333 | BS91: 0.4054725 | BT91: 0.4051691667 | BU91: 0.40825 | BV91: 0.41063 | BW91: 0.4109058333 | BX91: 0.4132608333 | BY91: 0.4166525 | BZ91: 0.4179833333 | CA91: 0.4175475 | CB91: 0.4188016667 | CC91: 0.4182683333 | CD91: 0.4224566667 | CE91: 0.4229325 | CF91: 0.4235741667 | CG91: 0.4253875 | CH91: 0.4290833333 | CI91: 0.4292025 | CJ91: 0.4310383333 | CK91: 0.4321033333 | CL91: 0.4333625 | CM91: 0.4349541667 | CN91: 0.4355883333 | CO91: 0.4375275 | CP91: 0.4414141667 | CQ91: 0.4405675 | CR91: 0.4437208333 | CS91: 0.4428191667 | CT91: 0.4452791667 | CU91: 0.4471675 | CV91: 0.4481383333 | CW91: 0.4507641667 | CX91: 0.4537441667
B92: 8x6x | C92: 0.2099516667 | D92: 0.208925 | E92: 0.22604 | F92: 0.2803941667 | G92: 0.2776816667 | H92: 0.2929316667 | I92: 0.2976991667 | J92: 0.3137666667 | K92: 0.3165633333 | L92: 0.3312341667 | M92: 0.3350558333 | N92: 0.3375316667 | O92: 0.34186 | P92: 0.3428808333 | Q92: 0.3470983333 | R92: 0.3530791667 | S92: 0.3556733333 | T92: 0.3566458333 | U92: 0.3567791667 | V92: 0.3589641667 | W92: 0.364475 | X92: 0.3631283333 | Y92: 0.36389 | Z92: 0.3664091667 | AA92: 0.369015 | AB92: 0.3699475 | AC92: 0.3689958333 | AD92: 0.3698233333 | AE92: 0.3689441667 | AF92: 0.37425 | AG92: 0.3747491667 | AH92: 0.3770783333 | AI92: 0.3790508333 | AJ92: 0.3797 | AK92: 0.3823116667 | AL92: 0.3820875 | AM92: 0.3809608333 | AN92: 0.3810758333 | AO92: 0.3819083333 | AP92: 0.3844741667 | AQ92: 0.3843533333 | AR92: 0.3835258333 | AS92: 0.3839008333 | AT92: 0.3856325 | AU92: 0.3866791667 | AV92: 0.3862066667 | AW92: 0.3857333333 | AX92: 0.3849008333 | AY92: 0.3850125 | AZ92: 0.3877175 | BA92: 0.389475 | BB92: 0.388635 | BC92: 0.390395 | BD92: 0.3915458333 | BE92: 0.3929033333 | BF92: 0.3937116667 | BG92: 0.3943233333 | BH92: 0.3956725 | BI92: 0.3958383333 | BJ92: 0.3986508333 | BK92: 0.4005375 | BL92: 0.4018958333 | BM92: 0.4044066667 | BN92: 0.4038425 | BO92: 0.40558 | BP92: 0.4074008333 | BQ92: 0.4071833333 | BR92: 0.4085425 | BS92: 0.4087741667 | BT92: 0.4082125 | BU92: 0.4096808333 | BV92: 0.4123608333 | BW92: 0.413685 | BX92: 0.4150441667 | BY92: 0.4204833333 | BZ92: 0.4201758333 | CA92: 0.4231008333 | CB92: 0.4241833333 | CC92: 0.4238391667 | CD92: 0.4281875 | CE92: 0.4276575 | CF92: 0.42893 | CG92: 0.4291666667 | CH92: 0.43347 | CI92: 0.4348791667 | CJ92: 0.4357483333 | CK92: 0.4378083333 | CL92: 0.4385166667 | CM92: 0.4419633333 | CN92: 0.4401225 | CO92: 0.4436483333 | CP92: 0.4469733333 | CQ92: 0.44669 | CR92: 0.4497816667 | CS92: 0.4507916667 | CT92: 0.4515783333 | CU92: 0.4541275 | CV92: 0.4560308333 | CW92: 0.45767 | CX92: 0.462215
B93: 9x6x | C93: 0.1963883333 | D93: 0.1942033333 | E93: 0.2120866667 | F93: 0.2678725 | G93: 0.2682241667 | H93: 0.2935266667 | I93: 0.296555 | J93: 0.313135 | K93: 0.31304 | L93: 0.3270425 | M93: 0.3261866667 | N93: 0.3311816667 | O93: 0.3341516667 | P93: 0.3389541667 | Q93: 0.3364291667 | R93: 0.3419341667 | S93: 0.3449591667 | T93: 0.3459025 | U93: 0.3501975 | V93: 0.3525641667 | W93: 0.3555483333 | X93: 0.35529 | Y93: 0.355975 | Z93: 0.3578208333 | AA93: 0.3616908333 | AB93: 0.3623583333 | AC93: 0.3610816667 | AD93: 0.3592791667 | AE93: 0.3605658333 | AF93: 0.36553 | AG93: 0.365905 | AH93: 0.3684608333 | AI93: 0.3680241667 | AJ93: 0.3698616667 | AK93: 0.3725983333 | AL93: 0.3748016667 | AM93: 0.37529 | AN93: 0.3733225 | AO93: 0.3735616667 | AP93: 0.3775416667 | AQ93: 0.3756108333 | AR93: 0.3748308333 | AS93: 0.3801508333 | AT93: 0.3791141667 | AU93: 0.3816366667 | AV93: 0.3830775 | AW93: 0.3830641667 | AX93: 0.3832608333 | AY93: 0.3853308333 | AZ93: 0.38682 | BA93: 0.3884008333 | BB93: 0.3873783333 | BC93: 0.3894616667 | BD93: 0.3910133333 | BE93: 0.3913591667 | BF93: 0.3935183333 | BG93: 0.3948 | BH93: 0.3987625 | BI93: 0.3981908333 | BJ93: 0.4011116667 | BK93: 0.4025825 | BL93: 0.4033916667 | BM93: 0.4056133333 | BN93: 0.4081425 | BO93: 0.408 | BP93: 0.4073741667 | BQ93: 0.4095225 | BR93: 0.4126825 | BS93: 0.4120908333 | BT93: 0.4133183333 | BU93: 0.4155283333 | BV93: 0.418175 | BW93: 0.4201108333 | BX93: 0.4227275 | BY93: 0.4257216667 | BZ93: 0.42612 | CA93: 0.4284208333 | CB93: 0.4294383333 | CC93: 0.43237 | CD93: 0.4346933333 | CE93: 0.43619 | CF93: 0.4354641667 | CG93: 0.43758 | CH93: 0.4415708333 | CI93: 0.4422625 | CJ93: 0.4450716667 | CK93: 0.445835 | CL93: 0.4461441667 | CM93: 0.4493566667 | CN93: 0.4493308333 | CO93: 0.4535641667 | CP93: 0.4568716667 | CQ93: 0.4583116667 | CR93: 0.4587983333 | CS93: 0.46296 | CT93: 0.4653066667 | CU93: 0.4670241667 | CV93: 0.4681658333 | CW93: 0.4694641667 | CX93: 0.4751016667
B94: Tx6x | C94: 0.1844816667 | D94: 0.1817733333 | E94: 0.1989558333 | F94: 0.258245 | G94: 0.2701208333 | H94: 0.29267 | I94: 0.2917775 | J94: 0.3065983333 | K94: 0.3091516667 | L94: 0.3130641667 | M94: 0.3149475 | N94: 0.3195358333 | O94: 0.3229441667 | P94: 0.3248633333 | Q94: 0.329125 | R94: 0.3369616667 | S94: 0.3358758333 | T94: 0.337835 | U94: 0.3407733333 | V94: 0.3435466667 | W94: 0.3487775 | X94: 0.3476975 | Y94: 0.3464425 | Z94: 0.3497108333 | AA94: 0.3527675 | AB94: 0.3509158333 | AC94: 0.351875 | AD94: 0.3525933333 | AE94: 0.354 | AF94: 0.3606808333 | AG94: 0.3615266667 | AH94: 0.3639416667 | AI94: 0.36572 | AJ94: 0.365865 | AK94: 0.368435 | AL94: 0.3703641667 | AM94: 0.371355 | AN94: 0.3721008333 | AO94: 0.3734391667 | AP94: 0.3771375 | AQ94: 0.3758058333 | AR94: 0.3753125 | AS94: 0.378755 | AT94: 0.3807958333 | AU94: 0.3832025 | AV94: 0.3832116667 | AW94: 0.3839433333 | AX94: 0.3874725 | AY94: 0.3892825 | AZ94: 0.389705 | BA94: 0.3920266667 | BB94: 0.3911291667 | BC94: 0.3921133333 | BD94: 0.3940791667 | BE94: 0.3958541667 | BF94: 0.3952883333 | BG94: 0.3975083333 | BH94: 0.4016141667 | BI94: 0.4032408333 | BJ94: 0.4061358333 | BK94: 0.4094266667 | BL94: 0.4101141667 | BM94: 0.4133508333 | BN94: 0.4137725 | BO94: 0.4150608333 | BP94: 0.4160958333 | BQ94: 0.4176841667 | BR94: 0.4199058333 | BS94: 0.4211266667 | BT94: 0.426235 | BU94: 0.4258641667 | BV94: 0.4297366667 | BW94: 0.4303916667 | BX94: 0.4323191667 | BY94: 0.4372208333 | BZ94: 0.436205 | CA94: 0.4402225 | CB94: 0.4421475 | CC94: 0.4453608333 | CD94: 0.44764 | CE94: 0.4478175 | CF94: 0.4496208333 | CG94: 0.4508008333 | CH94: 0.4541316667 | CI94: 0.4551891667 | CJ94: 0.457455 | CK94: 0.4597475 | CL94: 0.4626808333 | CM94: 0.4641041667 | CN94: 0.4661708333 | CO94: 0.470405 | CP94: 0.4727466667 | CQ94: 0.474865 | CR94: 0.4762933333 | CS94: 0.4778591667 | CT94: 0.4808191667 | CU94: 0.4813541667 | CV94: 0.4838983333 | CW94: 0.485195 | CX94: 0.488895
B95: Jx6x | C95: 0.1670125 | D95: 0.159675 | E95: 0.2134366667 | F95: 0.2630025 | G95: 0.2686516667 | H95: 0.2887466667 | I95: 0.2929775 | J95: 0.2966866667 | K95: 0.2965566667 | L95: 0.309955 | M95: 0.31354 | N95: 0.3181966667 | O95: 0.3155275 | P95: 0.3185716667 | Q95: 0.3234058333 | R95: 0.331715 | S95: 0.3346066667 | T95: 0.3352341667 | U95: 0.3376741667 | V95: 0.3381283333 | W95: 0.3417941667 | X95: 0.346595 | Y95: 0.3460916667 | Z95: 0.3490941667 | AA95: 0.3512008333 | AB95: 0.3506291667 | AC95: 0.3519958333 | AD95: 0.3517558333 | AE95: 0.3539616667 | AF95: 0.3607116667 | AG95: 0.3605791667 | AH95: 0.3628325 | AI95: 0.3649775 | AJ95: 0.3652841667 | AK95: 0.3671733333 | AL95: 0.3680175 | AM95: 0.3725875 | AN95: 0.3772825 | AO95: 0.3777991667 | AP95: 0.3802383333 | AQ95: 0.3789016667 | AR95: 0.379895 | AS95: 0.3844383333 | AT95: 0.3858041667 | AU95: 0.3879566667 | AV95: 0.3884733333 | AW95: 0.3926725 | AX95: 0.397095 | AY95: 0.3969408333 | AZ95: 0.3983658333 | BA95: 0.4013483333 | BB95: 0.4012508333 | BC95: 0.4007491667 | BD95: 0.4020108333 | BE95: 0.4039566667 | BF95: 0.4078633333 | BG95: 0.4082583333 | BH95: 0.4149183333 | BI95: 0.41754 | BJ95: 0.4184475 | BK95: 0.4218708333 | BL95: 0.4219341667 | BM95: 0.42353 | BN95: 0.4256441667 | BO95: 0.4280183333 | BP95: 0.4324083333 | BQ95: 0.432645 | BR95: 0.4364183333 | BS95: 0.4381125 | BT95: 0.4420008333 | BU95: 0.44308 | BV95: 0.4465825 | BW95: 0.4473658333 | BX95: 0.4484641667 | BY95: 0.4526483333 | BZ95: 0.4539541667 | CA95: 0.4573441667 | CB95: 0.4598991667 | CC95: 0.4627791667 | CD95: 0.4638541667 | CE95: 0.4669841667 | CF95: 0.4696775 | CG95: 0.470255 | CH95: 0.4737041667 | CI95: 0.47564 | CJ95: 0.4763333333 | CK95: 0.4789175 | CL95: 0.4809041667 | CM95: 0.4833058333 | CN95: 0.4858291667 | CO95: 0.4887858333 | CP95: 0.4902208333 | CQ95: 0.4919866667 | CR95: 0.4940008333 | CS95: 0.4960766667 | CT95: 0.4963325 | CU95: 0.4984358333 | CV95: 0.5016975 | CW95: 0.5029891667 | CX95: 0.5075241667
B96: Qx6x | C96: 0.1677283333 | D96: 0.2029441667 | E96: 0.2417708333 | F96: 0.27719 | G96: 0.2870941667 | H96: 0.290265 | I96: 0.2951633333 | J96: 0.3095008333 | K96: 0.3120175 | L96: 0.3178325 | M96: 0.3201241667 | N96: 0.325445 | O96: 0.3295316667 | P96: 0.3290458333 | Q96: 0.3399233333 | R96: 0.3451533333 | S96: 0.3478025 | T96: 0.3480466667 | U96: 0.3518808333 | V96: 0.3514666667 | W96: 0.3581466667 | X96: 0.3598175 | Y96: 0.3595375 | Z96: 0.3598925 | AA96: 0.3637991667 | AB96: 0.3714275 | AC96: 0.3705025 | AD96: 0.3727475 | AE96: 0.3744225 | AF96: 0.3808358333 | AG96: 0.3808608333 | AH96: 0.3831333333 | AI96: 0.3842883333 | AJ96: 0.3840366667 | AK96: 0.3880425 | AL96: 0.3887758333 | AM96: 0.3964891667 | AN96: 0.4005233333 | AO96: 0.4035291667 | AP96: 0.4056383333 | AQ96: 0.4030325 | AR96: 0.40551 | AS96: 0.4101541667 | AT96: 0.4101366667 | AU96: 0.4124908333 | AV96: 0.4181008333 | AW96: 0.4230483333 | AX96: 0.4248183333 | AY96: 0.4259558333 | AZ96: 0.4280608333 | BA96: 0.4292375 | BB96: 0.429955 | BC96: 0.431455 | BD96: 0.4368641667 | BE96: 0.4382758333 | BF96: 0.4418075 | BG96: 0.4412933333 | BH96: 0.4465908333 | BI96: 0.4478033333 | BJ96: 0.4507066667 | BK96: 0.4535358333 | BL96: 0.4557958333 | BM96: 0.4585575 | BN96: 0.4627325 | BO96: 0.4644458333 | BP96: 0.4700416667 | BQ96: 0.4703608333 | BR96: 0.4727508333 | BS96: 0.475065 | BT96: 0.4798691667 | BU96: 0.4818066667 | BV96: 0.4845583333 | BW96: 0.4861808333 | BX96: 0.4893775 | BY96: 0.4904691667 | BZ96: 0.4940791667 | CA96: 0.4936333333 | CB96: 0.497775 | CC96: 0.4996783333 | CD96: 0.5023891667 | CE96: 0.50462 | CF96: 0.5057041667 | CG96: 0.50637 | CH96: 0.5089175 | CI96: 0.5114633333 | CJ96: 0.5131391667 | CK96: 0.5140958333 | CL96: 0.5154133333 | CM96: 0.5170158333 | CN96: 0.5187641667 | CO96: 0.52217 | CP96: 0.5224666667 | CQ96: 0.52488 | CR96: 0.52652 | CS96: 0.52786 | CT96: 0.5285758333 | CU96: 0.5302691667 | CV96: 0.53141 | CW96: 0.5330425 | CX96: 0.536965
B97: Kx6x | C97: 0.1493216667 | D97: 0.2454125 | E97: 0.2625866667 | F97: 0.2780916667 | G97: 0.2886691667 | H97: 0.311715 | I97: 0.3141991667 | J97: 0.3239833333 | K97: 0.321585 | L97: 0.3297608333 | M97: 0.3294575 | N97: 0.3389983333 | O97: 0.3386091667 | P97: 0.3448433333 | Q97: 0.35235 | R97: 0.3571233333 | S97: 0.3560941667 | T97: 0.3566425 | U97: 0.3584991667 | V97: 0.3744733333 | W97: 0.3811058333 | X97: 0.3842425 | Y97: 0.3908191667 | Z97: 0.3917625 | AA97: 0.3945308333 | AB97: 0.4036316667 | AC97: 0.4017575 | AD97: 0.4022291667 | AE97: 0.4039558333 | AF97: 0.4088283333 | AG97: 0.4111516667 | AH97: 0.4138441667 | AI97: 0.42108 | AJ97: 0.42317 | AK97: 0.4248666667 | AL97: 0.4253083333 | AM97: 0.4314241667 | AN97: 0.4354216667 | AO97: 0.4359783333 | AP97: 0.4380041667 | AQ97: 0.4399683333 | AR97: 0.4413075 | AS97: 0.4504058333 | AT97: 0.4502758333 | AU97: 0.4562091667 | AV97: 0.4595058333 | AW97: 0.4637725 | AX97: 0.4673958333 | AY97: 0.4680983333 | AZ97: 0.4699925 | BA97: 0.47561 | BB97: 0.4793091667 | BC97: 0.4820458333 | BD97: 0.4853058333 | BE97: 0.48645 | BF97: 0.4886566667 | BG97: 0.4902066667 | BH97: 0.4930025 | BI97: 0.4952708333 | BJ97: 0.49754 | BK97: 0.5006433333 | BL97: 0.5037158333 | BM97: 0.505275 | BN97: 0.5087125 | BO97: 0.51008 | BP97: 0.5135283333 | BQ97: 0.5148616667 | BR97: 0.5183 | BS97: 0.5201825 | BT97: 0.5217908333 | BU97: 0.5241408333 | BV97: 0.5277375 | BW97: 0.52901 | BX97: 0.530125 | BY97: 0.5311883333 | BZ97: 0.5347525 | CA97: 0.5345583333 | CB97: 0.5369291667 | CC97: 0.5376466667 | CD97: 0.539605 | CE97: 0.5413158333 | CF97: 0.5433475 | CG97: 0.54398 | CH97: 0.5453541667 | CI97: 0.5464325 | CJ97: 0.548595 | CK97: 0.5499141667 | CL97: 0.5497741667 | CM97: 0.5519233333 | CN97: 0.55226 | CO97: 0.5537066667 | CP97: 0.5577291667 | CQ97: 0.5570275 | CR97: 0.5582041667 | CS97: 0.5607591667 | CT97: 0.561015 | CU97: 0.5618133333 | CV97: 0.5639383333 | CW97: 0.5644075 | CX97: 0.5660791667
B98: Ax6x | C98: 0.2519641667 | D98: 0.289475 | E98: 0.2945333333 | F98: 0.2975091667 | G98: 0.3013291667 | H98: 0.3036266667 | I98: 0.3033216667 | J98: 0.3181283333 | K98: 0.3294058333 | L98: 0.3591783333 | M98: 0.3642925 | N98: 0.3689708333 | O98: 0.38929 | P98: 0.3959591667 | Q98: 0.3994708333 | R98: 0.4085525 | S98: 0.4194158333 | T98: 0.422345 | U98: 0.4193741667 | V98: 0.4361466667 | W98: 0.4413675 | X98: 0.4440416667 | Y98: 0.45013 | Z98: 0.4506733333 | AA98: 0.4561408333 | AB98: 0.4615066667 | AC98: 0.4674883333 | AD98: 0.4721391667 | AE98: 0.47313 | AF98: 0.4776466667 | AG98: 0.4795491667 | AH98: 0.4868883333 | AI98: 0.4913208333 | AJ98: 0.49144 | AK98: 0.496015 | AL98: 0.4997408333 | AM98: 0.5027483333 | AN98: 0.5055041667 | AO98: 0.5067283333 | AP98: 0.5103116667 | AQ98: 0.5148358333 | AR98: 0.5166033333 | AS98: 0.5216441667 | AT98: 0.5225775 | AU98: 0.5279708333 | AV98: 0.5294383333 | AW98: 0.5305541667 | AX98: 0.53055 | AY98: 0.5354916667 | AZ98: 0.5357433333 | BA98: 0.5376825 | BB98: 0.5421258333 | BC98: 0.5443041667 | BD98: 0.5455208333 | BE98: 0.5469925 | BF98: 0.5471875 | BG98: 0.5488158333 | BH98: 0.5503475 | BI98: 0.5515308333 | BJ98: 0.5540958333 | BK98: 0.5548491667 | BL98: 0.5570516667 | BM98: 0.558205 | BN98: 0.5610258333 | BO98: 0.562245 | BP98: 0.564645 | BQ98: 0.5651466667 | BR98: 0.5687416667 | BS98: 0.5686875 | BT98: 0.5700516667 | BU98: 0.5730341667 | BV98: 0.5740716667 | BW98: 0.5737358333 | BX98: 0.5770625 | BY98: 0.5773991667 | BZ98: 0.5777816667 | CA98: 0.578155 | CB98: 0.5796733333 | CC98: 0.5789525 | CD98: 0.5815608333 | CE98: 0.5826166667 | CF98: 0.5826608333 | CG98: 0.5828341667 | CH98: 0.5856975 | CI98: 0.585545 | CJ98: 0.5855016667 | CK98: 0.587265 | CL98: 0.5885116667 | CM98: 0.58906 | CN98: 0.5900891667 | CO98: 0.5920083333 | CP98: 0.5921191667 | CQ98: 0.5925858333 | CR98: 0.5939491667 | CS98: 0.593715 | CT98: 0.5954975 | CU98: 0.5959941667 | CV98: 0.5962616667 | CW98: 0.5988658333 | CX98: 0.5984341667
B99: 6y6x | C99: 0.1948208333 | D99: 0.1945816667 | E99: 0.2328175 | F99: 0.3309233333 | G99: 0.3286525 | H99: 0.3520708333 | I99: 0.3607966667 | J99: 0.3766925 | K99: 0.3809933333 | L99: 0.4086425 | M99: 0.415615 | N99: 0.4254166667 | O99: 0.4319175 | P99: 0.4387891667 | Q99: 0.4503808333 | R99: 0.465645 | S99: 0.4696358333 | T99: 0.4718066667 | U99: 0.4777283333 | V99: 0.4837083333 | W99: 0.4921733333 | X99: 0.4928183333 | Y99: 0.4928925 | Z99: 0.4972566667 | AA99: 0.5056625 | AB99: 0.5053516667 | AC99: 0.5067733333 | AD99: 0.5114575 | AE99: 0.5108275 | AF99: 0.522325 | AG99: 0.5237291667 | AH99: 0.5280683333 | AI99: 0.530015 | AJ99: 0.5308091667 | AK99: 0.5369583333 | AL99: 0.5369541667 | AM99: 0.5361791667 | AN99: 0.5355541667 | AO99: 0.5356716667 | AP99: 0.5415108333 | AQ99: 0.5424858333 | AR99: 0.5435566667 | AS99: 0.5437775 | AT99: 0.5456825 | AU99: 0.54871 | AV99: 0.549 | AW99: 0.5498883333 | AX99: 0.5484041667 | AY99: 0.550945 | AZ99: 0.55348 | BA99: 0.5541025 | BB99: 0.5561966667 | BC99: 0.5591083333 | BD99: 0.5588708333 | BE99: 0.5619466667 | BF99: 0.5606025 | BG99: 0.5627783333 | BH99: 0.5645208333 | BI99: 0.5641991667 | BJ99: 0.5670383333 | BK99: 0.5678475 | BL99: 0.5699625 | BM99: 0.5712958333 | BN99: 0.5726883333 | BO99: 0.5736141667 | BP99: 0.5744183333 | BQ99: 0.5772883333 | BR99: 0.5781158333 | BS99: 0.5791658333 | BT99: 0.5791816667 | BU99: 0.5837358333 | BV99: 0.5851075 | BW99: 0.5865375 | BX99: 0.5878808333 | BY99: 0.5922658333 | BZ99: 0.5918158333 | CA99: 0.5932841667 | CB99: 0.5959683333 | CC99: 0.5959066667 | CD99: 0.59838 | CE99: 0.6017458333 | CF99: 0.6033325 | CG99: 0.6034333333 | CH99: 0.6055533333 | CI99: 0.6076766667 | CJ99: 0.6094441667 | CK99: 0.6099508333 | CL99: 0.6107866667 | CM99: 0.6131758333 | CN99: 0.6146841667 | CO99: 0.6192825 | CP99: 0.6190841667 | CQ99: 0.6210291667 | CR99: 0.6209683333 | CS99: 0.623985 | CT99: 0.6246316667 | CU99: 0.6252433333 | CV99: 0.6274908333 | CW99: 0.6294458333 | CX99: 0.63283
B100: 7y6x | C100: 0.1870408333 | D100: 0.1839466667 | E100: 0.2029808333 | F100: 0.258105 | G100: 0.2530108333 | H100: 0.2648166667 | I100: 0.26897 | J100: 0.2801225 | K100: 0.2834916667 | L100: 0.2997441667 | M100: 0.3028783333 | N100: 0.30535 | O100: 0.3110058333 | P100: 0.3126083333 | Q100: 0.3174716667 | R100: 0.3258058333 | S100: 0.3278091667 | T100: 0.3289483333 | U100: 0.3309958333 | V100: 0.33548 | W100: 0.3376258333 | X100: 0.3375816667 | Y100: 0.3385175 | Z100: 0.3360508333 | AA100: 0.3411583333 | AB100: 0.3406991667 | AC100: 0.3427716667 | AD100: 0.3422183333 | AE100: 0.3418883333 | AF100: 0.3474616667 | AG100: 0.3484133333 | AH100: 0.3500583333 | AI100: 0.3527366667 | AJ100: 0.3533216667 | AK100: 0.3548866667 | AL100: 0.3557491667 | AM100: 0.3554416667 | AN100: 0.3545758333 | AO100: 0.3545758333 | AP100: 0.3567133333 | AQ100: 0.355485 | AR100: 0.3553058333 | AS100: 0.3554191667 | AT100: 0.3563208333 | AU100: 0.3570475 | AV100: 0.3582416667 | AW100: 0.3586908333 | AX100: 0.3587225 | AY100: 0.3593066667 | AZ100: 0.3606766667 | BA100: 0.3612533333 | BB100: 0.361765 | BC100: 0.3636658333 | BD100: 0.3631433333 | BE100: 0.3631916667 | BF100: 0.3617141667 | BG100: 0.3632541667 | BH100: 0.3644241667 | BI100: 0.3658508333 | BJ100: 0.3651383333 | BK100: 0.3684791667 | BL100: 0.3688225 | BM100: 0.3701083333 | BN100: 0.3699075 | BO100: 0.37085 | BP100: 0.37029 | BQ100: 0.3728041667 | BR100: 0.3715683333 | BS100: 0.3723058333 | BT100: 0.3726458333 | BU100: 0.3742083333 | BV100: 0.3778066667 | BW100: 0.3784341667 | BX100: 0.3807983333 | BY100: 0.3830033333 | BZ100: 0.3843825 | CA100: 0.384985 | CB100: 0.3866316667 | CC100: 0.3873408333 | CD100: 0.3895116667 | CE100: 0.3913025 | CF100: 0.39232 | CG100: 0.3940441667 | CH100: 0.3972608333 | CI100: 0.3975216667 | CJ100: 0.3986291667 | CK100: 0.4003483333 | CL100: 0.3998533333 | CM100: 0.4026925 | CN100: 0.4034783333 | CO100: 0.4061791667 | CP100: 0.4089341667 | CQ100: 0.4099283333 | CR100: 0.4117733333 | CS100: 0.4128808333 | CT100: 0.4146841667 | CU100: 0.4150125 | CV100: 0.4172008333 | CW100: 0.42121 | CX100: 0.4227925
B101: 8y6x | C101: 0.1711108333 | D101: 0.1702658333 | E101: 0.1882691667 | F101: 0.2440541667 | G101: 0.2405891667 | H101: 0.2559591667 | I101: 0.2605 | J101: 0.2784933333 | K101: 0.2802225 | L101: 0.2952675 | M101: 0.29845 | N101: 0.3010075 | O101: 0.3054983333 | P101: 0.3083566667 | Q101: 0.3122875 | R101: 0.3187658333 | S101: 0.3209483333 | T101: 0.3232108333 | U101: 0.3209566667 | V101: 0.3245841667 | W101: 0.3268808333 | X101: 0.3268333333 | Y101: 0.3291375 | Z101: 0.3308333333 | AA101: 0.3344183333 | AB101: 0.3344716667 | AC101: 0.336565 | AD101: 0.3351858333 | AE101: 0.334235 | AF101: 0.3403566667 | AG101: 0.33967 | AH101: 0.3430316667 | AI101: 0.3441658333 | AJ101: 0.3450116667 | AK101: 0.3485166667 | AL101: 0.346085 | AM101: 0.3462116667 | AN101: 0.34615 | AO101: 0.3480875 | AP101: 0.351115 | AQ101: 0.3486641667 | AR101: 0.3493608333 | AS101: 0.3513158333 | AT101: 0.3504 | AU101: 0.3528291667 | AV101: 0.3510933333 | AW101: 0.3502958333 | AX101: 0.3495341667 | AY101: 0.3513758333 | AZ101: 0.3535933333 | BA101: 0.3550708333 | BB101: 0.353965 | BC101: 0.357435 | BD101: 0.3573791667 | BE101: 0.3580183333 | BF101: 0.3596183333 | BG101: 0.3605766667 | BH101: 0.3606966667 | BI101: 0.3630775 | BJ101: 0.3634791667 | BK101: 0.3663858333 | BL101: 0.367195 | BM101: 0.3710225 | BN101: 0.3710575 | BO101: 0.3728866667 | BP101: 0.3732708333 | BQ101: 0.3726691667 | BR101: 0.3740816667 | BS101: 0.375575 | BT101: 0.37424 | BU101: 0.3777783333 | BV101: 0.3793583333 | BW101: 0.3815691667 | BX101: 0.382705 | BY101: 0.3869558333 | BZ101: 0.3884333333 | CA101: 0.3896933333 | CB101: 0.3910075 | CC101: 0.39143 | CD101: 0.3941633333 | CE101: 0.3960658333 | CF101: 0.3965458333 | CG101: 0.3966825 | CH101: 0.4027458333 | CI101: 0.4017508333 | CJ101: 0.4047833333 | CK101: 0.4067091667 | CL101: 0.4072833333 | CM101: 0.4096408333 | CN101: 0.4092691667 | CO101: 0.4125325 | CP101: 0.4150366667 | CQ101: 0.41526 | CR101: 0.4186125 | CS101: 0.4199566667 | CT101: 0.4218866667 | CU101: 0.42365 | CV101: 0.4260033333 | CW101: 0.4283425 | CX101: 0.4325025
B102: 9y6x | C102: 0.1556075 | D102: 0.1548983333 | E102: 0.1733991667 | F102: 0.2303966667 | G102: 0.2298066667 | H102: 0.2556666667 | I102: 0.2603833333 | J102: 0.2747958333 | K102: 0.2773708333 | L102: 0.2895583333 | M102: 0.2902783333 | N102: 0.2956825 | O102: 0.2989391667 | P102: 0.30275 | Q102: 0.299605 | R102: 0.3077741667 | S102: 0.3082625 | T102: 0.3116775 | U102: 0.3140491667 | V102: 0.3176625 | W102: 0.3199725 | X102: 0.320245 | Y102: 0.3203958333 | Z102: 0.3232808333 | AA102: 0.3270033333 | AB102: 0.3264483333 | AC102: 0.32506 | AD102: 0.3246225 | AE102: 0.3250608333 | AF102: 0.3311475 | AG102: 0.3318541667 | AH102: 0.3334075 | AI102: 0.3340283333 | AJ102: 0.33379 | AK102: 0.33742 | AL102: 0.3390816667 | AM102: 0.3387641667 | AN102: 0.3382475 | AO102: 0.33909 | AP102: 0.3403575 | AQ102: 0.3413366667 | AR102: 0.3404633333 | AS102: 0.3442408333 | AT102: 0.34602 | AU102: 0.3479783333 | AV102: 0.3478925 | AW102: 0.3494516667 | AX102: 0.3475358333 | AY102: 0.3505225 | AZ102: 0.3520433333 | BA102: 0.352525 | BB102: 0.3522791667 | BC102: 0.3549658333 | BD102: 0.3560191667 | BE102: 0.357805 | BF102: 0.3579133333 | BG102: 0.3600483333 | BH102: 0.3646983333 | BI102: 0.3636991667 | BJ102: 0.3660591667 | BK102: 0.3680141667 | BL102: 0.3703433333 | BM102: 0.3725166667 | BN102: 0.3733933333 | BO102: 0.3740725 | BP102: 0.3748466667 | BQ102: 0.3742041667 | BR102: 0.3785183333 | BS102: 0.379765 | BT102: 0.3808683333 | BU102: 0.3826975 | BV102: 0.3861008333 | BW102: 0.387145 | BX102: 0.3882575 | BY102: 0.3946141667 | BZ102: 0.3932433333 | CA102: 0.3974358333 | CB102: 0.3978558333 | CC102: 0.4006108333 | CD102: 0.4028408333 | CE102: 0.4053641667 | CF102: 0.4055416667 | CG102: 0.4053258333 | CH102: 0.4095858333 | CI102: 0.4105708333 | CJ102: 0.4115208333 | CK102: 0.4149433333 | CL102: 0.4151508333 | CM102: 0.4169591667 | CN102: 0.4190283333 | CO102: 0.4237508333 | CP102: 0.4261758333 | CQ102: 0.42688 | CR102: 0.4290425 | CS102: 0.4323966667 | CT102: 0.4341333333 | CU102: 0.43549 | CV102: 0.4389583333 | CW102: 0.4403433333 | CX102: 0.4448575
B103: Ty6x | C103: 0.1436758333 | D103: 0.140295 | E103: 0.1591825 | F103: 0.2192975 | G103: 0.2330391667 | H103: 0.2537758333 | I103: 0.2532991667 | J103: 0.2683475 | K103: 0.27096 | L103: 0.2752125 | M103: 0.2764283333 | N103: 0.2831825 | O103: 0.2857466667 | P103: 0.2878308333 | Q103: 0.2928508333 | R103: 0.3016225 | S103: 0.29986 | T103: 0.3005166667 | U103: 0.3046241667 | V103: 0.3082791667 | W103: 0.3132325 | X103: 0.3129025 | Y103: 0.3109391667 | Z103: 0.3125508333 | AA103: 0.3181958333 | AB103: 0.31582 | AC103: 0.317595 | AD103: 0.3169425 | AE103: 0.3173158333 | AF103: 0.3256616667 | AG103: 0.3258891667 | AH103: 0.3290866667 | AI103: 0.3292275 | AJ103: 0.3303708333 | AK103: 0.33364 | AL103: 0.3340025 | AM103: 0.3359191667 | AN103: 0.3361608333 | AO103: 0.3386725 | AP103: 0.3407316667 | AQ103: 0.3396966667 | AR103: 0.34001 | AS103: 0.3442425 | AT103: 0.3445741667 | AU103: 0.3476825 | AV103: 0.3468866667 | AW103: 0.3481916667 | AX103: 0.3531333333 | AY103: 0.3545016667 | AZ103: 0.3562983333 | BA103: 0.3577825 | BB103: 0.3565 | BC103: 0.3579641667 | BD103: 0.3595783333 | BE103: 0.36122 | BF103: 0.3607641667 | BG103: 0.3634616667 | BH103: 0.3677866667 | BI103: 0.3717383333 | BJ103: 0.3722566667 | BK103: 0.3750975 | BL103: 0.3771966667 | BM103: 0.3805558333 | BN103: 0.3791708333 | BO103: 0.3815966667 | BP103: 0.3835791667 | BQ103: 0.3844783333 | BR103: 0.3873366667 | BS103: 0.389185 | BT103: 0.39178 | BU103: 0.3953183333 | BV103: 0.3986991667 | BW103: 0.3991641667 | BX103: 0.3994775 | BY103: 0.4054933333 | BZ103: 0.4051833333 | CA103: 0.4069366667 | CB103: 0.40951 | CC103: 0.4120858333 | CD103: 0.4152866667 | CE103: 0.415915 | CF103: 0.4188183333 | CG103: 0.4196733333 | CH103: 0.42432 | CI103: 0.4252275 | CJ103: 0.4276116667 | CK103: 0.4296591667 | CL103: 0.4311475 | CM103: 0.432305 | CN103: 0.4361508333 | CO103: 0.4409375 | CP103: 0.4428533333 | CQ103: 0.4441908333 | CR103: 0.4476675 | CS103: 0.4483666667 | CT103: 0.45097 | CU103: 0.4525283333 | CV103: 0.4544008333 | CW103: 0.45596 | CX103: 0.4610675
B104: Jy6x | C104: 0.1266041667 | D104: 0.1167216667 | E104: 0.1717691667 | F104: 0.2244008333 | G104: 0.2301983333 | H104: 0.2498883333 | I104: 0.2544666667 | J104: 0.2576808333 | K104: 0.2570975 | L104: 0.2721933333 | M104: 0.27518 | N104: 0.2802133333 | O104: 0.2766491667 | P104: 0.2806575 | Q104: 0.2858991667 | R104: 0.2935841667 | S104: 0.2968891667 | T104: 0.2978283333 | U104: 0.3025316667 | V104: 0.3024908333 | W104: 0.3054316667 | X104: 0.3095375 | Y104: 0.3102991667 | Z104: 0.3125233333 | AA104: 0.3155358333 | AB104: 0.3151116667 | AC104: 0.3154708333 | AD104: 0.3155858333 | AE104: 0.3174041667 | AF104: 0.3229016667 | AG104: 0.3247291667 | AH104: 0.32786 | AI104: 0.3285341667 | AJ104: 0.3284441667 | AK104: 0.3305508333 | AL104: 0.33165 | AM104: 0.33485 | AN104: 0.3419908333 | AO104: 0.3435175 | AP104: 0.3454483333 | AQ104: 0.3431833333 | AR104: 0.34363 | AS104: 0.3494916667 | AT104: 0.349925 | AU104: 0.352265 | AV104: 0.3529508333 | AW104: 0.357125 | AX104: 0.3626908333 | AY104: 0.3635375 | AZ104: 0.3661325 | BA104: 0.3661925 | BB104: 0.3655875 | BC104: 0.3663008333 | BD104: 0.36821 | BE104: 0.3707216667 | BF104: 0.3743558333 | BG104: 0.3756083333 | BH104: 0.379565 | BI104: 0.3828925 | BJ104: 0.3849025 | BK104: 0.3870658333 | BL104: 0.3888391667 | BM104: 0.3916275 | BN104: 0.3932475 | BO104: 0.3949108333 | BP104: 0.3994183333 | BQ104: 0.4007741667 | BR104: 0.40378 | BS104: 0.4068408333 | BT104: 0.4095675 | BU104: 0.4099791667 | BV104: 0.4148566667 | BW104: 0.41584 | BX104: 0.4179508333 | BY104: 0.4219416667 | BZ104: 0.423555 | CA104: 0.4264175 | CB104: 0.4282783333 | CC104: 0.4325008333 | CD104: 0.4336625 | CE104: 0.4368258333 | CF104: 0.4391108333 | CG104: 0.4399116667 | CH104: 0.4438791667 | CI104: 0.44657 | CJ104: 0.4484333333 | CK104: 0.4494358333 | CL104: 0.4515608333 | CM104: 0.4544583333 | CN104: 0.4557908333 | CO104: 0.4603033333 | CP104: 0.4612333333 | CQ104: 0.4632308333 | CR104: 0.4663325 | CS104: 0.468475 | CT104: 0.4687658333 | CU104: 0.4719258333 | CV104: 0.4740991667 | CW104: 0.4753541667 | CX104: 0.4786533333
B105: Qy6x | C105: 0.1259266667 | D105: 0.1615441667 | E105: 0.2028108333 | F105: 0.2381791667 | G105: 0.2501116667 | H105: 0.2527708333 | I105: 0.25783 | J105: 0.2714166667 | K105: 0.2738408333 | L105: 0.2800941667 | M105: 0.2838908333 | N105: 0.2876025 | O105: 0.2912316667 | P105: 0.29395 | Q105: 0.3016691667 | R105: 0.3087541667 | S105: 0.311525 | T105: 0.3121166667 | U105: 0.315825 | V105: 0.315295 | W105: 0.321665 | X105: 0.3254116667 | Y105: 0.3233708333 | Z105: 0.3248166667 | AA105: 0.3279016667 | AB105: 0.3355791667 | AC105: 0.3363783333 | AD105: 0.3367808333 | AE105: 0.3394933333 | AF105: 0.3455508333 | AG105: 0.3460025 | AH105: 0.347745 | AI105: 0.3485483333 | AJ105: 0.3493783333 | AK105: 0.3513191667 | AL105: 0.3524233333 | AM105: 0.361535 | AN105: 0.3664508333 | AO105: 0.3689925 | AP105: 0.3705741667 | AQ105: 0.3687391667 | AR105: 0.3710858333 | AS105: 0.374465 | AT105: 0.3766508333 | AU105: 0.3787666667 | AV105: 0.3849283333 | AW105: 0.3888433333 | AX105: 0.3921558333 | AY105: 0.3929283333 | AZ105: 0.3953783333 | BA105: 0.3971858333 | BB105: 0.39922 | BC105: 0.3975358333 | BD105: 0.40303 | BE105: 0.4057033333 | BF105: 0.4091075 | BG105: 0.4090883333 | BH105: 0.4141133333 | BI105: 0.4156216667 | BJ105: 0.4212475 | BK105: 0.4216525 | BL105: 0.4258266667 | BM105: 0.4269641667 | BN105: 0.43264 | BO105: 0.4331925 | BP105: 0.4380591667 | BQ105: 0.4395033333 | BR105: 0.4437433333 | BS105: 0.4470408333 | BT105: 0.4494283333 | BU105: 0.4521791667 | BV105: 0.4543516667 | BW105: 0.4554066667 | BX105: 0.45852 | BY105: 0.461645 | BZ105: 0.4639008333 | CA105: 0.4678908333 | CB105: 0.4694408333 | CC105: 0.4718283333 | CD105: 0.4734108333 | CE105: 0.4751191667 | CF105: 0.4782616667 | CG105: 0.4779991667 | CH105: 0.4811133333 | CI105: 0.4837458333 | CJ105: 0.4842558333 | CK105: 0.4867033333 | CL105: 0.488795 | CM105: 0.4899391667 | CN105: 0.4911016667 | CO105: 0.4956275 | CP105: 0.4964941667 | CQ105: 0.4970291667 | CR105: 0.4991816667 | CS105: 0.5010791667 | CT105: 0.5022233333 | CU105: 0.5044641667 | CV105: 0.5064016667 | CW105: 0.5069791667 | CX105: 0.511195
B106: Ky6x | C106: 0.1041141667 | D106: 0.204985 | E106: 0.2238216667 | F106: 0.2386008333 | G106: 0.2516008333 | H106: 0.2733766667 | I106: 0.27553 | J106: 0.2860808333 | K106: 0.285135 | L106: 0.28974 | M106: 0.2916675 | N106: 0.3021925 | O106: 0.3004608333 | P106: 0.3077975 | Q106: 0.3157133333 | R106: 0.320025 | S106: 0.3188483333 | T106: 0.31966 | U106: 0.32288 | V106: 0.3389375 | W106: 0.3452633333 | X106: 0.3490583333 | Y106: 0.3567441667 | Z106: 0.3580366667 | AA106: 0.3595416667 | AB106: 0.36866 | AC106: 0.3677125 | AD106: 0.3681325 | AE106: 0.370705 | AF106: 0.3736416667 | AG106: 0.3752933333 | AH106: 0.3809591667 | AI106: 0.3883116667 | AJ106: 0.3911641667 | AK106: 0.3916616667 | AL106: 0.3914858333 | AM106: 0.3987491667 | AN106: 0.4022358333 | AO106: 0.4047191667 | AP106: 0.4071583333 | AQ106: 0.40861 | AR106: 0.4103083333 | AS106: 0.4172291667 | AT106: 0.41996 | AU106: 0.4239008333 | AV106: 0.4287216667 | AW106: 0.433645 | AX106: 0.4357975 | AY106: 0.4381283333 | AZ106: 0.4408158333 | BA106: 0.4450641667 | BB106: 0.4498725 | BC106: 0.4525275 | BD106: 0.4555833333 | BE106: 0.45772 | BF106: 0.459795 | BG106: 0.4612041667 | BH106: 0.4636758333 | BI106: 0.4675791667 | BJ106: 0.4698825 | BK106: 0.4722583333 | BL106: 0.47454 | BM106: 0.4768308333 | BN106: 0.4807425 | BO106: 0.4809241667 | BP106: 0.4862941667 | BQ106: 0.487525 | BR106: 0.4897283333 | BS106: 0.4930241667 | BT106: 0.4945541667 | BU106: 0.4974725 | BV106: 0.5012808333 | BW106: 0.5006 | BX106: 0.5030491667 | BY106: 0.504515 | BZ106: 0.5083183333 | CA106: 0.5085966667 | CB106: 0.5110566667 | CC106: 0.5124025 | CD106: 0.5126558333 | CE106: 0.5160458333 | CF106: 0.5185016667 | CG106: 0.5176583333 | CH106: 0.5206833333 | CI106: 0.5214425 | CJ106: 0.5219458333 | CK106: 0.5237641667 | CL106: 0.5256833333 | CM106: 0.5261366667 | CN106: 0.5283133333 | CO106: 0.5306825 | CP106: 0.5320708333 | CQ106: 0.5326716667 | CR106: 0.5330208333 | CS106: 0.5338941667 | CT106: 0.5360891667 | CU106: 0.5379633333 | CV106: 0.5387608333 | CW106: 0.5391183333 | CX106: 0.5422791667
B107: Ay6x | C107: 0.210085 | D107: 0.2508458333 | E107: 0.2569475 | F107: 0.2570008333 | G107: 0.2620225 | H107: 0.2651366667 | I107: 0.2641708333 | J107: 0.2794641667 | K107: 0.2907833333 | L107: 0.3210841667 | M107: 0.3271108333 | N107: 0.3326941667 | O107: 0.3534533333 | P107: 0.3609908333 | Q107: 0.3636408333 | R107: 0.3737458333 | S107: 0.386505 | T107: 0.3870183333 | U107: 0.3866266667 | V107: 0.4014016667 | W107: 0.4087916667 | X107: 0.410325 | Y107: 0.4171216667 | Z107: 0.4187641667 | AA107: 0.423765 | AB107: 0.4315633333 | AC107: 0.4380541667 | AD107: 0.4415591667 | AE107: 0.4435541667 | AF107: 0.4480033333 | AG107: 0.4498108333 | AH107: 0.4563633333 | AI107: 0.4622941667 | AJ107: 0.4627216667 | AK107: 0.467915 | AL107: 0.4703341667 | AM107: 0.475165 | AN107: 0.4757666667 | AO107: 0.4772141667 | AP107: 0.4827275 | AQ107: 0.4877891667 | AR107: 0.4886158333 | AS107: 0.4942391667 | AT107: 0.4950308333 | AU107: 0.4988266667 | AV107: 0.5022225 | AW107: 0.5024508333 | AX107: 0.5062108333 | AY107: 0.50792 | AZ107: 0.5098208333 | BA107: 0.5119816667 | BB107: 0.5161225 | BC107: 0.5177058333 | BD107: 0.5191016667 | BE107: 0.52091 | BF107: 0.521385 | BG107: 0.5235058333 | BH107: 0.5250241667 | BI107: 0.5258758333 | BJ107: 0.5284858333 | BK107: 0.52944 | BL107: 0.5331233333 | BM107: 0.532365 | BN107: 0.5368525 | BO107: 0.5362158333 | BP107: 0.54034 | BQ107: 0.5403125 | BR107: 0.5429316667 | BS107: 0.5443016667 | BT107: 0.5465641667 | BU107: 0.5480558333 | BV107: 0.5483183333 | BW107: 0.5501758333 | BX107: 0.5511691667 | BY107: 0.55309 | BZ107: 0.55352 | CA107: 0.5554375 | CB107: 0.5553741667 | CC107: 0.5567891667 | CD107: 0.5577716667 | CE107: 0.5588616667 | CF107: 0.5594158333 | CG107: 0.5598633333 | CH107: 0.5617416667 | CI107: 0.5618783333 | CJ107: 0.5628408333 | CK107: 0.5643683333 | CL107: 0.5646366667 | CM107: 0.5638083333 | CN107: 0.5663616667 | CO107: 0.5682433333 | CP107: 0.5699216667 | CQ107: 0.5700208333 | CR107: 0.5702566667 | CS107: 0.5710825 | CT107: 0.5724325 | CU107: 0.57193 | CV107: 0.5734991667 | CW107: 0.5749283333 | CX107: 0.5760666667
B108: 8x7x | C108: 0.221965 | D108: 0.2175341667 | E108: 0.2354641667 | F108: 0.2882875 | G108: 0.2837616667 | H108: 0.3007708333 | I108: 0.3045175 | J108: 0.3225208333 | K108: 0.3246108333 | L108: 0.3394208333 | M108: 0.3422841667 | N108: 0.3487233333 | O108: 0.3522783333 | P108: 0.3537 | Q108: 0.36065 | R108: 0.3659733333 | S108: 0.3689383333 | T108: 0.3704283333 | U108: 0.3689808333 | V108: 0.3713558333 | W108: 0.37382 | X108: 0.3726658333 | Y108: 0.37446 | Z108: 0.3753491667 | AA108: 0.3773933333 | AB108: 0.3778533333 | AC108: 0.3787808333 | AD108: 0.3821883333 | AE108: 0.3816841667 | AF108: 0.3862141667 | AG108: 0.3868 | AH108: 0.3904525 | AI108: 0.3913966667 | AJ108: 0.391095 | AK108: 0.3936391667 | AL108: 0.3920016667 | AM108: 0.3929991667 | AN108: 0.3928791667 | AO108: 0.3922133333 | AP108: 0.3941375 | AQ108: 0.3961175 | AR108: 0.3950341667 | AS108: 0.3978733333 | AT108: 0.39856 | AU108: 0.4001366667 | AV108: 0.3988916667 | AW108: 0.3982225 | AX108: 0.398165 | AY108: 0.3992533333 | AZ108: 0.4020666667 | BA108: 0.4017991667 | BB108: 0.4038733333 | BC108: 0.4050775 | BD108: 0.40498 | BE108: 0.4054891667 | BF108: 0.4049683333 | BG108: 0.4056608333 | BH108: 0.4087241667 | BI108: 0.4083416667 | BJ108: 0.4091375 | BK108: 0.4111441667 | BL108: 0.4128033333 | BM108: 0.4158483333 | BN108: 0.4179541667 | BO108: 0.4186825 | BP108: 0.4201916667 | BQ108: 0.4202166667 | BR108: 0.4236583333 | BS108: 0.4240458333 | BT108: 0.4249283333 | BU108: 0.4249066667 | BV108: 0.4304625 | BW108: 0.4299666667 | BX108: 0.4328983333 | BY108: 0.436775 | BZ108: 0.4380508333 | CA108: 0.4400908333 | CB108: 0.4420591667 | CC108: 0.4401316667 | CD108: 0.44334 | CE108: 0.444925 | CF108: 0.4450716667 | CG108: 0.4462125 | CH108: 0.4513916667 | CI108: 0.450265 | CJ108: 0.4544433333 | CK108: 0.4556416667 | CL108: 0.4550825 | CM108: 0.4583308333 | CN108: 0.4575508333 | CO108: 0.4600183333 | CP108: 0.4631116667 | CQ108: 0.4636425 | CR108: 0.46599 | CS108: 0.4675416667 | CT108: 0.4697866667 | CU108: 0.4703316667 | CV108: 0.4724433333 | CW108: 0.4755075 | CX108: 0.4789658333
B109: 9x7x | C109: 0.2090933333 | D109: 0.2037375 | E109: 0.2201008333 | F109: 0.27577 | G109: 0.2764583333 | H109: 0.3003041667 | I109: 0.3043258333 | J109: 0.3209958333 | K109: 0.3228658333 | L109: 0.33562 | M109: 0.3351333333 | N109: 0.3440508333 | O109: 0.3468925 | P109: 0.3495308333 | Q109: 0.3507291667 | R109: 0.35553 | S109: 0.3585266667 | T109: 0.3595575 | U109: 0.3637733333 | V109: 0.3652066667 | W109: 0.3677408333 | X109: 0.3665033333 | Y109: 0.3673 | Z109: 0.3671916667 | AA109: 0.370395 | AB109: 0.370235 | AC109: 0.3701391667 | AD109: 0.374 | AE109: 0.3745116667 | AF109: 0.3786141667 | AG109: 0.3792491667 | AH109: 0.3823408333 | AI109: 0.3814475 | AJ109: 0.3820191667 | AK109: 0.3845866667 | AL109: 0.3853991667 | AM109: 0.3853525 | AN109: 0.3849091667 | AO109: 0.3866108333 | AP109: 0.3869183333 | AQ109: 0.3889575 | AR109: 0.3889975 | AS109: 0.3937175 | AT109: 0.39449 | AU109: 0.3975591667 | AV109: 0.3967466667 | AW109: 0.3977 | AX109: 0.3968808333 | AY109: 0.3980608333 | AZ109: 0.4012258333 | BA109: 0.4007825 | BB109: 0.4022125 | BC109: 0.4046441667 | BD109: 0.4030458333 | BE109: 0.4055541667 | BF109: 0.4053258333 | BG109: 0.40577 | BH109: 0.4108858333 | BI109: 0.4115375 | BJ109: 0.4136941667 | BK109: 0.4153958333 | BL109: 0.4168766667 | BM109: 0.4187483333 | BN109: 0.4217775 | BO109: 0.4241616667 | BP109: 0.4244683333 | BQ109: 0.4242883333 | BR109: 0.4272041667 | BS109: 0.4281116667 | BT109: 0.431345 | BU109: 0.4335216667 | BV109: 0.4378366667 | BW109: 0.43813 | BX109: 0.4398016667 | BY109: 0.443605 | BZ109: 0.4446775 | CA109: 0.4467825 | CB109: 0.4478658333 | CC109: 0.450045 | CD109: 0.4531066667 | CE109: 0.4536625 | CF109: 0.4531425 | CG109: 0.45553 | CH109: 0.4581108333 | CI109: 0.4588683333 | CJ109: 0.461925 | CK109: 0.464165 | CL109: 0.4641166667 | CM109: 0.4658625 | CN109: 0.4676483333 | CO109: 0.4711625 | CP109: 0.4728025 | CQ109: 0.475155 | CR109: 0.47683 | CS109: 0.47948 | CT109: 0.4819041667 | CU109: 0.4834125 | CV109: 0.4856833333 | CW109: 0.487565 | CX109: 0.4909408333
B110: Tx7x | C110: 0.1963258333 | D110: 0.1914691667 | E110: 0.2093166667 | F110: 0.2674091667 | G110: 0.280175 | H110: 0.3000758333 | I110: 0.3010016667 | J110: 0.3159808333 | K110: 0.3163725 | L110: 0.3213558333 | M110: 0.3248525 | N110: 0.3328058333 | O110: 0.3348533333 | P110: 0.3370175 | Q110: 0.34303 | R110: 0.3505608333 | S110: 0.3495233333 | T110: 0.3516875 | U110: 0.3552541667 | V110: 0.3566791667 | W110: 0.3602291667 | X110: 0.360545 | Y110: 0.3578591667 | Z110: 0.357985 | AA110: 0.3613333333 | AB110: 0.3609766667 | AC110: 0.3621866667 | AD110: 0.3672658333 | AE110: 0.3660575 | AF110: 0.3746591667 | AG110: 0.3753883333 | AH110: 0.3769283333 | AI110: 0.3792841667 | AJ110: 0.3788233333 | AK110: 0.3802291667 | AL110: 0.3829275 | AM110: 0.3852741667 | AN110: 0.384805 | AO110: 0.3868833333 | AP110: 0.3874191667 | AQ110: 0.3891525 | AR110: 0.3898758333 | AS110: 0.3937366667 | AT110: 0.3948683333 | AU110: 0.3973375 | AV110: 0.3984883333 | AW110: 0.3982966667 | AX110: 0.4013566667 | AY110: 0.4042558333 | AZ110: 0.4047583333 | BA110: 0.40463 | BB110: 0.4059133333 | BC110: 0.4080058333 | BD110: 0.4089575 | BE110: 0.4096366667 | BF110: 0.4106275 | BG110: 0.4122041667 | BH110: 0.4165616667 | BI110: 0.4212858333 | BJ110: 0.4232333333 | BK110: 0.4252858333 | BL110: 0.4263116667 | BM110: 0.4286691667 | BN110: 0.4304816667 | BO110: 0.4324025 | BP110: 0.4360616667 | BQ110: 0.4356608333 | BR110: 0.4396258333 | BS110: 0.4404716667 | BT110: 0.4439891667 | BU110: 0.4447958333 | BV110: 0.44828 | BW110: 0.4492058333 | BX110: 0.4508225 | BY110: 0.4540466667 | BZ110: 0.4544191667 | CA110: 0.4587033333 | CB110: 0.4603583333 | CC110: 0.4628625 | CD110: 0.464845 | CE110: 0.4658508333 | CF110: 0.4669325 | CG110: 0.4684191667 | CH110: 0.4721616667 | CI110: 0.4731283333 | CJ110: 0.47494 | CK110: 0.4786908333 | CL110: 0.4793758333 | CM110: 0.4802425 | CN110: 0.4830991667 | CO110: 0.4873175 | CP110: 0.4894158333 | CQ110: 0.491275 | CR110: 0.4914683333 | CS110: 0.4953766667 | CT110: 0.4973291667 | CU110: 0.5002991667 | CV110: 0.5007516667 | CW110: 0.5022325 | CX110: 0.5067758333
B111: Jx7x | C111: 0.1800458333 | D111: 0.1711866667 | E111: 0.22229 | F111: 0.2719291667 | G111: 0.2781433333 | H111: 0.2985725 | I111: 0.3008275 | J111: 0.3037725 | K111: 0.30467 | L111: 0.3194666667 | M111: 0.32237 | N111: 0.3292275 | O111: 0.328845 | P111: 0.3305941667 | Q111: 0.3375875 | R111: 0.343635 | S111: 0.348175 | T111: 0.3472133333 | U111: 0.3505316667 | V111: 0.3516433333 | W111: 0.3533841667 | X111: 0.3567075 | Y111: 0.3582433333 | Z111: 0.3568625 | AA111: 0.3607541667 | AB111: 0.3585475 | AC111: 0.3598283333 | AD111: 0.3651591667 | AE111: 0.36598 | AF111: 0.3736908333 | AG111: 0.3744675 | AH111: 0.3772666667 | AI111: 0.3777408333 | AJ111: 0.3783558333 | AK111: 0.3807166667 | AL111: 0.3824733333 | AM111: 0.3856041667 | AN111: 0.3898708333 | AO111: 0.3918225 | AP111: 0.3933325 | AQ111: 0.3947833333 | AR111: 0.3949616667 | AS111: 0.4003708333 | AT111: 0.3998025 | AU111: 0.402165 | AV111: 0.404825 | AW111: 0.4068441667 | AX111: 0.4114391667 | AY111: 0.41303 | AZ111: 0.4143675 | BA111: 0.4137658333 | BB111: 0.41572 | BC111: 0.4169083333 | BD111: 0.4201366667 | BE111: 0.4216516667 | BF111: 0.4253866667 | BG111: 0.4253283333 | BH111: 0.4319616667 | BI111: 0.4359083333 | BJ111: 0.4356716667 | BK111: 0.4402033333 | BL111: 0.4398175 | BM111: 0.4422791667 | BN111: 0.4457766667 | BO111: 0.4489241667 | BP111: 0.4528566667 | BQ111: 0.4524891667 | BR111: 0.4547308333 | BS111: 0.459095 | BT111: 0.4597841667 | BU111: 0.4613725 | BV111: 0.4642008333 | BW111: 0.4648683333 | BX111: 0.4678225 | BY111: 0.4721516667 | BZ111: 0.4738833333 | CA111: 0.4761908333 | CB111: 0.4792966667 | CC111: 0.4816191667 | CD111: 0.4835583333 | CE111: 0.4847683333 | CF111: 0.488505 | CG111: 0.4882708333 | CH111: 0.49111 | CI111: 0.4929533333 | CJ111: 0.4957966667 | CK111: 0.4981725 | CL111: 0.4999866667 | CM111: 0.5013591667 | CN111: 0.5029308333 | CO111: 0.5052775 | CP111: 0.5081808333 | CQ111: 0.5104291667 | CR111: 0.51308 | CS111: 0.5129783333 | CT111: 0.5153641667 | CU111: 0.5167016667 | CV111: 0.5186683333 | CW111: 0.5204875 | CX111: 0.5234991667
B112: Qx7x | C112: 0.1643158333 | D112: 0.1998833333 | E112: 0.2385108333 | F112: 0.2732925 | G112: 0.2839133333 | H112: 0.288915 | I112: 0.29199 | J112: 0.305805 | K112: 0.30807 | L112: 0.3141591667 | M112: 0.3173608333 | N112: 0.3239541667 | O112: 0.3280358333 | P112: 0.3302083333 | Q112: 0.340595 | R112: 0.3479708333 | S112: 0.3489616667 | T112: 0.349945 | U112: 0.35183 | V112: 0.3515241667 | W112: 0.3579933333 | X112: 0.3604 | Y112: 0.3580166667 | Z112: 0.3567691667 | AA112: 0.3607566667 | AB112: 0.3685991667 | AC112: 0.3711583333 | AD112: 0.3738325 | AE112: 0.3764525 | AF112: 0.3820158333 | AG112: 0.3822583333 | AH112: 0.3851141667 | AI112: 0.386605 | AJ112: 0.3865766667 | AK112: 0.3903475 | AL112: 0.3904166667 | AM112: 0.4003758333 | AN112: 0.4054716667 | AO112: 0.407865 | AP112: 0.4071316667 | AQ112: 0.4086191667 | AR112: 0.410345 | AS112: 0.414795 | AT112: 0.4151825 | AU112: 0.4172216667 | AV112: 0.4218041667 | AW112: 0.4267591667 | AX112: 0.4292416667 | AY112: 0.4292633333 | AZ112: 0.4324933333 | BA112: 0.4341808333 | BB112: 0.4390641667 | BC112: 0.4384625 | BD112: 0.4440633333 | BE112: 0.4455391667 | BF112: 0.4498008333 | BG112: 0.4502683333 | BH112: 0.45434 | BI112: 0.4579108333 | BJ112: 0.4619758333 | BK112: 0.4645925 | BL112: 0.4664766667 | BM112: 0.4700158333 | BN112: 0.473025 | BO112: 0.4757991667 | BP112: 0.4776891667 | BQ112: 0.4804858333 | BR112: 0.4820141667 | BS112: 0.4859925 | BT112: 0.4882891667 | BU112: 0.4899433333 | BV112: 0.49221 | BW112: 0.492775 | BX112: 0.4962941667 | BY112: 0.4995633333 | BZ112: 0.5019808333 | CA112: 0.5029183333 | CB112: 0.505965 | CC112: 0.5070425 | CD112: 0.5099008333 | CE112: 0.5117958333 | CF112: 0.513435 | CG112: 0.5136316667 | CH112: 0.5152333333 | CI112: 0.5183283333 | CJ112: 0.520575 | CK112: 0.521125 | CL112: 0.5234533333 | CM112: 0.5251808333 | CN112: 0.5259558333 | CO112: 0.52842 | CP112: 0.5311666667 | CQ112: 0.5320183333 | CR112: 0.5328116667 | CS112: 0.5340858333 | CT112: 0.5367475 | CU112: 0.536905 | CV112: 0.5378475 | CW112: 0.5396175 | CX112: 0.5437241667
B113: Kx7x | C113: 0.1499775 | D113: 0.2449516667 | E113: 0.2620241667 | F113: 0.2762083333 | G113: 0.2891375 | H113: 0.3101516667 | I113: 0.312475 | J113: 0.3233541667 | K113: 0.3227725 | L113: 0.3281516667 | M113: 0.3290508333 | N113: 0.3415625 | O113: 0.3395875 | P113: 0.3463158333 | Q113: 0.3571716667 | R113: 0.3597025 | S113: 0.3600266667 | T113: 0.3609375 | U113: 0.3615241667 | V113: 0.3786883333 | W113: 0.3840266667 | X113: 0.38648 | Y113: 0.395225 | Z113: 0.3951308333 | AA113: 0.3966925 | AB113: 0.4054191667 | AC113: 0.4032616667 | AD113: 0.4087666667 | AE113: 0.4109633333 | AF113: 0.4142191667 | AG113: 0.4161558333 | AH113: 0.4208341667 | AI113: 0.4289008333 | AJ113: 0.4290566667 | AK113: 0.4321225 | AL113: 0.43042 | AM113: 0.4394425 | AN113: 0.442275 | AO113: 0.4451783333 | AP113: 0.4492191667 | AQ113: 0.4523375 | AR113: 0.4534758333 | AS113: 0.4614758333 | AT113: 0.4626416667 | AU113: 0.466885 | AV113: 0.4707291667 | AW113: 0.4742666667 | AX113: 0.4772216667 | AY113: 0.4801816667 | AZ113: 0.4807558333 | BA113: 0.4858466667 | BB113: 0.4909241667 | BC113: 0.4917633333 | BD113: 0.49722 | BE113: 0.4988491667 | BF113: 0.5017558333 | BG113: 0.5036683333 | BH113: 0.5076241667 | BI113: 0.5118916667 | BJ113: 0.5140716667 | BK113: 0.5168958333 | BL113: 0.5168591667 | BM113: 0.5207175 | BN113: 0.5225208333 | BO113: 0.5248058333 | BP113: 0.5258608333 | BQ113: 0.528005 | BR113: 0.5299275 | BS113: 0.5328758333 | BT113: 0.5341741667 | BU113: 0.5346608333 | BV113: 0.5382666667 | BW113: 0.5382608333 | BX113: 0.5402291667 | BY113: 0.5427816667 | BZ113: 0.545575 | CA113: 0.5464525 | CB113: 0.5485866667 | CC113: 0.5467558333 | CD113: 0.5491291667 | CE113: 0.5497266667 | CF113: 0.5535166667 | CG113: 0.55312 | CH113: 0.5557066667 | CI113: 0.5560466667 | CJ113: 0.5588775 | CK113: 0.5590975 | CL113: 0.5601416667 | CM113: 0.5604525 | CN113: 0.5624741667 | CO113: 0.5641241667 | CP113: 0.5665558333 | CQ113: 0.5655933333 | CR113: 0.5676958333 | CS113: 0.5693583333 | CT113: 0.5695408333 | CU113: 0.5710408333 | CV113: 0.5720016667 | CW113: 0.5738866667 | CX113: 0.57509
B114: Ax7x | C114: 0.2550591667 | D114: 0.2928283333 | E114: 0.2977325 | F114: 0.2997641667 | G114: 0.30236 | H114: 0.3047416667 | I114: 0.30622 | J114: 0.3205658333 | K114: 0.3313558333 | L114: 0.3610391667 | M114: 0.3669075 | N114: 0.3802566667 | O114: 0.3981925 | P114: 0.4060441667 | Q114: 0.4105908333 | R114: 0.4202025 | S114: 0.4301041667 | T114: 0.4314975 | U114: 0.4296183333 | V114: 0.4459516667 | W114: 0.4518691667 | X114: 0.4537991667 | Y114: 0.4588233333 | Z114: 0.4650208333 | AA114: 0.4693225 | AB114: 0.4751783333 | AC114: 0.4814308333 | AD114: 0.4882425 | AE114: 0.4899908333 | AF114: 0.4944925 | AG114: 0.49648 | AH114: 0.501635 | AI114: 0.5065058333 | AJ114: 0.5079958333 | AK114: 0.5130166667 | AL114: 0.5147625 | AM114: 0.5213166667 | AN114: 0.5224525 | AO114: 0.523705 | AP114: 0.529295 | AQ114: 0.5314408333 | AR114: 0.53363 | AS114: 0.5375575 | AT114: 0.5370791667 | AU114: 0.5425633333 | AV114: 0.5418583333 | AW114: 0.5454358333 | AX114: 0.5461733333 | AY114: 0.5484233333 | AZ114: 0.5500258333 | BA114: 0.5532775 | BB114: 0.5552375 | BC114: 0.5563541667 | BD114: 0.5606341667 | BE114: 0.5606325 | BF114: 0.5632241667 | BG114: 0.56608 | BH114: 0.5678066667 | BI114: 0.5705241667 | BJ114: 0.5731041667 | BK114: 0.5734133333 | BL114: 0.57321 | BM114: 0.575915 | BN114: 0.5770208333 | BO114: 0.5786975 | BP114: 0.5785441667 | BQ114: 0.5816941667 | BR114: 0.5823725 | BS114: 0.5829016667 | BT114: 0.5826008333 | BU114: 0.5840575 | BV114: 0.585675 | BW114: 0.5848708333 | BX114: 0.586525 | BY114: 0.5889816667 | BZ114: 0.5889866667 | CA114: 0.5905066667 | CB114: 0.5912108333 | CC114: 0.5922666667 | CD114: 0.5913083333 | CE114: 0.5934116667 | CF114: 0.5940575 | CG114: 0.5941833333 | CH114: 0.5964175 | CI114: 0.5968383333 | CJ114: 0.599085 | CK114: 0.5987558333 | CL114: 0.5987741667 | CM114: 0.5994283333 | CN114: 0.6004608333 | CO114: 0.60093 | CP114: 0.6022483333 | CQ114: 0.6026291667 | CR114: 0.6044341667 | CS114: 0.6054475 | CT114: 0.6053716667 | CU114: 0.6062458333 | CV114: 0.6079225 | CW114: 0.6082775 | CX114: 0.6102858333
B115: 7y7x | C115: 0.1947125 | D115: 0.1930133333 | E115: 0.2304083333 | F115: 0.3298866667 | G115: 0.3286233333 | H115: 0.3506733333 | I115: 0.3590333333 | J115: 0.3878775 | K115: 0.3933366667 | L115: 0.4215066667 | M115: 0.4295491667 | N115: 0.4511416667 | O115: 0.4569733333 | P115: 0.46406 | Q115: 0.4752691667 | R115: 0.4891016667 | S115: 0.4921791667 | T115: 0.4954966667 | U115: 0.4983066667 | V115: 0.5036016667 | W115: 0.5105241667 | X115: 0.511365 | Y115: 0.5112608333 | Z115: 0.5175725 | AA115: 0.526025 | AB115: 0.52508 | AC115: 0.5254375 | AD115: 0.5330541667 | AE115: 0.5342783333 | AF115: 0.5434825 | AG115: 0.5432583333 | AH115: 0.5502508333 | AI115: 0.5513 | AJ115: 0.5506566667 | AK115: 0.5567441667 | AL115: 0.55564 | AM115: 0.55582 | AN115: 0.5555416667 | AO115: 0.5574783333 | AP115: 0.5622908333 | AQ115: 0.5667208333 | AR115: 0.5659991667 | AS115: 0.5697066667 | AT115: 0.5690283333 | AU115: 0.5730166667 | AV115: 0.5742033333 | AW115: 0.57269 | AX115: 0.5734433333 | AY115: 0.5752516667 | AZ115: 0.5774325 | BA115: 0.57874 | BB115: 0.5812558333 | BC115: 0.5834141667 | BD115: 0.5853591667 | BE115: 0.5867275 | BF115: 0.5874875 | BG115: 0.5902191667 | BH115: 0.5916133333 | BI115: 0.5929575 | BJ115: 0.5935075 | BK115: 0.5967316667 | BL115: 0.5988175 | BM115: 0.6002125 | BN115: 0.6025233333 | BO115: 0.6039466667 | BP115: 0.6057108333 | BQ115: 0.6075775 | BR115: 0.6094641667 | BS115: 0.6107175 | BT115: 0.6115733333 | BU115: 0.6147533333 | BV115: 0.6186533333 | BW115: 0.6171758333 | BX115: 0.6195416667 | BY115: 0.6228758333 | BZ115: 0.6239225 | CA115: 0.6248808333 | CB115: 0.62678 | CC115: 0.6278433333 | CD115: 0.6291916667 | CE115: 0.6320708333 | CF115: 0.6327333333 | CG115: 0.6329433333 | CH115: 0.6372125 | CI115: 0.6376166667 | CJ115: 0.640325 | CK115: 0.6396966667 | CL115: 0.6404933333 | CM115: 0.6428891667 | CN115: 0.6440025 | CO115: 0.6471291667 | CP115: 0.6482208333 | CQ115: 0.6505283333 | CR115: 0.6526975 | CS115: 0.653065 | CT115: 0.6548525 | CU115: 0.6548475 | CV115: 0.657015 | CW115: 0.6594625 | CX115: 0.66166
B116: 8y7x | C116: 0.1842975 | D116: 0.1799766667 | E116: 0.1965783333 | F116: 0.2526725 | G116: 0.24866 | H116: 0.2636 | I116: 0.2688783333 | J116: 0.2859141667 | K116: 0.2893308333 | L116: 0.3035608333 | M116: 0.3061908333 | N116: 0.3130483333 | O116: 0.3179375 | P116: 0.3209733333 | Q116: 0.3249641667 | R116: 0.3332541667 | S116: 0.3343841667 | T116: 0.3354591667 | U116: 0.3344433333 | V116: 0.3363175 | W116: 0.3395391667 | X116: 0.3401458333 | Y116: 0.340805 | Z116: 0.3402825 | AA116: 0.3430975 | AB116: 0.3426591667 | AC116: 0.34582 | AD116: 0.3481291667 | AE116: 0.3478591667 | AF116: 0.3538675 | AG116: 0.3538616667 | AH116: 0.3567425 | AI116: 0.3578233333 | AJ116: 0.359035 | AK116: 0.3584033333 | AL116: 0.3601866667 | AM116: 0.3582441667 | AN116: 0.3582675 | AO116: 0.3587258333 | AP116: 0.3599933333 | AQ116: 0.3617633333 | AR116: 0.36243 | AS116: 0.3638091667 | AT116: 0.3649241667 | AU116: 0.3662216667 | AV116: 0.3658366667 | AW116: 0.36599 | AX116: 0.36273 | AY116: 0.3650008333 | AZ116: 0.3683633333 | BA116: 0.3693075 | BB116: 0.3711925 | BC116: 0.3704875 | BD116: 0.3695883333 | BE116: 0.3732925 | BF116: 0.3711208333 | BG116: 0.3728466667 | BH116: 0.3759891667 | BI116: 0.37484 | BJ116: 0.3750816667 | BK116: 0.3798375 | BL116: 0.37922 | BM116: 0.3840683333 | BN116: 0.3856525 | BO116: 0.3857916667 | BP116: 0.38803 | BQ116: 0.3879075 | BR116: 0.39185 | BS116: 0.3940483333 | BT116: 0.3922291667 | BU116: 0.3949733333 | BV116: 0.398835 | BW116: 0.40007 | BX116: 0.4008241667 | BY116: 0.40473 | BZ116: 0.4064033333 | CA116: 0.4085175 | CB116: 0.4097883333 | CC116: 0.4099283333 | CD116: 0.4128258333 | CE116: 0.4146733333 | CF116: 0.4135008333 | CG116: 0.4158208333 | CH116: 0.4199766667 | CI116: 0.4202066667 | CJ116: 0.4220333333 | CK116: 0.42584 | CL116: 0.4251383333 | CM116: 0.42707 | CN116: 0.4267558333 | CO116: 0.4309791667 | CP116: 0.4326375 | CQ116: 0.4350075 | CR116: 0.4355241667 | CS116: 0.4373525 | CT116: 0.4398533333 | CU116: 0.4422341667 | CV116: 0.44382 | CW116: 0.4468225 | CX116: 0.4491533333
B117: 9y7x | C117: 0.1696566667 | D117: 0.16498 | E117: 0.1817008333 | F117: 0.2380975 | G117: 0.238975 | H117: 0.2634133333 | I117: 0.2667791667 | J117: 0.2838416667 | K117: 0.2860075 | L117: 0.2999816667 | M117: 0.2996633333 | N117: 0.30815 | O117: 0.3123916667 | P117: 0.315705 | Q117: 0.3147416667 | R117: 0.3205475 | S117: 0.3233675 | T117: 0.3247316667 | U117: 0.3290816667 | V117: 0.3310541667 | W117: 0.3325958333 | X117: 0.3322566667 | Y117: 0.332615 | Z117: 0.3314608333 | AA117: 0.33731 | AB117: 0.3357758333 | AC117: 0.3345175 | AD117: 0.3393908333 | AE117: 0.3394125 | AF117: 0.3457016667 | AG117: 0.3441941667 | AH117: 0.3479425 | AI117: 0.3474283333 | AJ117: 0.3475825 | AK117: 0.3504341667 | AL117: 0.352535 | AM117: 0.3508966667 | AN117: 0.3502716667 | AO117: 0.3517441667 | AP117: 0.35328 | AQ117: 0.3547541667 | AR117: 0.3544441667 | AS117: 0.3588408333 | AT117: 0.3599866667 | AU117: 0.3623075 | AV117: 0.3626141667 | AW117: 0.3634608333 | AX117: 0.36366 | AY117: 0.3645341667 | AZ117: 0.3670008333 | BA117: 0.3681141667 | BB117: 0.3687691667 | BC117: 0.3703066667 | BD117: 0.3708683333 | BE117: 0.3710708333 | BF117: 0.3710516667 | BG117: 0.3723408333 | BH117: 0.3768825 | BI117: 0.3792075 | BJ117: 0.3812066667 | BK117: 0.3812025 | BL117: 0.3836641667 | BM117: 0.3879316667 | BN117: 0.38965 | BO117: 0.3902116667 | BP117: 0.3925375 | BQ117: 0.3923516667 | BR117: 0.3944741667 | BS117: 0.3972183333 | BT117: 0.4013358333 | BU117: 0.4009308333 | BV117: 0.4053991667 | BW117: 0.4076766667 | BX117: 0.4071641667 | BY117: 0.41171 | BZ117: 0.4133391667 | CA117: 0.4151591667 | CB117: 0.4174933333 | CC117: 0.4195975 | CD117: 0.4221808333 | CE117: 0.4227183333 | CF117: 0.422335 | CG117: 0.42441 | CH117: 0.4278125 | CI117: 0.4289308333 | CJ117: 0.4311208333 | CK117: 0.4321383333 | CL117: 0.43388 | CM117: 0.4378183333 | CN117: 0.4378083333 | CO117: 0.4415241667 | CP117: 0.4444608333 | CQ117: 0.4452408333 | CR117: 0.4479575 | CS117: 0.4502983333 | CT117: 0.4524233333 | CU117: 0.4537425 | CV117: 0.4570716667 | CW117: 0.4600133333 | CX117: 0.46272
B118: Ty7x | C118: 0.1568583333 | D118: 0.1508475 | E118: 0.1707175 | F118: 0.2294483333 | G118: 0.2424283333 | H118: 0.2640858333 | I118: 0.2640583333 | J118: 0.2794241667 | K118: 0.2791341667 | L118: 0.2845775 | M118: 0.2872158333 | N118: 0.2963866667 | O118: 0.2998008333 | P118: 0.30072 | Q118: 0.3072983333 | R118: 0.3163875 | S118: 0.3124508333 | T118: 0.3153466667 | U118: 0.31946 | V118: 0.3212341667 | W118: 0.3247958333 | X118: 0.3243975 | Y118: 0.3228625 | Z118: 0.3232025 | AA118: 0.3259741667 | AB118: 0.3262158333 | AC118: 0.3270733333 | AD118: 0.3312875 | AE118: 0.3320308333 | AF118: 0.3381008333 | AG118: 0.3397066667 | AH118: 0.3427333333 | AI118: 0.3447158333 | AJ118: 0.3441916667 | AK118: 0.3473858333 | AL118: 0.3483408333 | AM118: 0.3496041667 | AN118: 0.3504216667 | AO118: 0.3513741667 | AP118: 0.3545441667 | AQ118: 0.3541816667 | AR118: 0.3546341667 | AS118: 0.3604983333 | AT118: 0.359895 | AU118: 0.3638825 | AV118: 0.3628816667 | AW118: 0.3645608333 | AX118: 0.3681016667 | AY118: 0.3709925 | AZ118: 0.3715908333 | BA118: 0.3711633333 | BB118: 0.373145 | BC118: 0.373215 | BD118: 0.3745741667 | BE118: 0.375655 | BF118: 0.377125 | BG118: 0.37853 | BH118: 0.3839008333 | BI118: 0.3886341667 | BJ118: 0.389945 | BK118: 0.3926608333 | BL118: 0.3936941667 | BM118: 0.3972816667 | BN118: 0.3985758333 | BO118: 0.40046 | BP118: 0.4039416667 | BQ118: 0.4050508333 | BR118: 0.4085075 | BS118: 0.4084458333 | BT118: 0.4129058333 | BU118: 0.4129608333 | BV118: 0.4176991667 | BW118: 0.4187933333 | BX118: 0.4180391667 | BY118: 0.4251233333 | BZ118: 0.4245091667 | CA118: 0.4274483333 | CB118: 0.4296925 | CC118: 0.432765 | CD118: 0.4345125 | CE118: 0.4359733333 | CF118: 0.43663 | CG118: 0.4384675 | CH118: 0.4414833333 | CI118: 0.444475 | CJ118: 0.4475741667 | CK118: 0.4490475 | CL118: 0.4488766667 | CM118: 0.4526266667 | CN118: 0.4539508333 | CO118: 0.4590425 | CP118: 0.4608008333 | CQ118: 0.4621583333 | CR118: 0.4663716667 | CS118: 0.4668091667 | CT118: 0.4697558333 | CU118: 0.4712566667 | CV118: 0.4733991667 | CW118: 0.474805 | CX118: 0.4788966667
B119: Jy7x | C119: 0.13957 | D119: 0.1297225 | E119: 0.1826175 | F119: 0.23305 | G119: 0.240735 | H119: 0.2585008333 | I119: 0.2631091667 | J119: 0.2673733333 | K119: 0.2660516667 | L119: 0.2805341667 | M119: 0.2855541667 | N119: 0.291485 | O119: 0.29008 | P119: 0.2943258333 | Q119: 0.3011791667 | R119: 0.3090691667 | S119: 0.3106708333 | T119: 0.3121441667 | U119: 0.3159458333 | V119: 0.3158458333 | W119: 0.3182916667 | X119: 0.3204783333 | Y119: 0.3213375 | Z119: 0.3207208333 | AA119: 0.3243291667 | AB119: 0.3238216667 | AC119: 0.3250425 | AD119: 0.3294091667 | AE119: 0.3304566667 | AF119: 0.3386816667 | AG119: 0.3390733333 | AH119: 0.3420433333 | AI119: 0.3421358333 | AJ119: 0.3430525 | AK119: 0.3462641667 | AL119: 0.3460033333 | AM119: 0.3496916667 | AN119: 0.3556958333 | AO119: 0.35784 | AP119: 0.35763 | AQ119: 0.3596683333 | AR119: 0.3614841667 | AS119: 0.3654433333 | AT119: 0.3666575 | AU119: 0.3705716667 | AV119: 0.3702958333 | AW119: 0.3733883333 | AX119: 0.37831 | AY119: 0.3785391667 | AZ119: 0.3819208333 | BA119: 0.3815641667 | BB119: 0.3827833333 | BC119: 0.3847266667 | BD119: 0.38589 | BE119: 0.3884258333 | BF119: 0.3937783333 | BG119: 0.393745 | BH119: 0.400055 | BI119: 0.4036841667 | BJ119: 0.4049891667 | BK119: 0.4074175 | BL119: 0.4083108333 | BM119: 0.4117891667 | BN119: 0.4152325 | BO119: 0.4167266667 | BP119: 0.4211308333 | BQ119: 0.4208825 | BR119: 0.4243875 | BS119: 0.4270691667 | BT119: 0.4297608333 | BU119: 0.4313575 | BV119: 0.4339841667 | BW119: 0.4337533333 | BX119: 0.43781 | BY119: 0.442565 | BZ119: 0.4429358333 | CA119: 0.4470483333 | CB119: 0.4498441667 | CC119: 0.4523275 | CD119: 0.4553466667 | CE119: 0.4577841667 | CF119: 0.4592791667 | CG119: 0.4598441667 | CH119: 0.462985 | CI119: 0.4641208333 | CJ119: 0.4680675 | CK119: 0.4696616667 | CL119: 0.4717166667 | CM119: 0.473235 | CN119: 0.4751816667 | CO119: 0.4780533333 | CP119: 0.4812008333 | CQ119: 0.4825541667 | CR119: 0.4851675 | CS119: 0.48625 | CT119: 0.4882891667 | CU119: 0.4894375 | CV119: 0.4911075 | CW119: 0.4938316667 | CX119: 0.496735
B120: Qy7x | C120: 0.1218358333 | D120: 0.1576316667 | E120: 0.2002583333 | F120: 0.23394 | G120: 0.2457733333 | H120: 0.2493775 | I120: 0.2538533333 | J120: 0.2676958333 | K120: 0.2695858333 | L120: 0.2764825 | M120: 0.2792325 | N120: 0.2857833333 | O120: 0.2922766667 | P120: 0.292465 | Q120: 0.3048558333 | R120: 0.3107866667 | S120: 0.3132141667 | T120: 0.3127458333 | U120: 0.3156691667 | V120: 0.3148141667 | W120: 0.3210716667 | X120: 0.323765 | Y120: 0.3222966667 | Z120: 0.3221416667 | AA120: 0.3236641667 | AB120: 0.33324 | AC120: 0.3338141667 | AD120: 0.3391175 | AE120: 0.3402958333 | AF120: 0.3456683333 | AG120: 0.347675 | AH120: 0.3522641667 | AI120: 0.3516558333 | AJ120: 0.3516658333 | AK120: 0.3552416667 | AL120: 0.3548425 | AM120: 0.3646325 | AN120: 0.370735 | AO120: 0.3727433333 | AP120: 0.3736708333 | AQ120: 0.3742516667 | AR120: 0.3756766667 | AS120: 0.3801083333 | AT120: 0.38114 | AU120: 0.3825283333 | AV120: 0.3893691667 | AW120: 0.3939908333 | AX120: 0.3986575 | AY120: 0.3986541667 | AZ120: 0.3994758333 | BA120: 0.401765 | BB120: 0.4076141667 | BC120: 0.4066808333 | BD120: 0.4135766667 | BE120: 0.415395 | BF120: 0.4186558333 | BG120: 0.4183883333 | BH120: 0.4239691667 | BI120: 0.4280991667 | BJ120: 0.4307925 | BK120: 0.4341925 | BL120: 0.4362191667 | BM120: 0.4394583333 | BN120: 0.4441258333 | BO120: 0.4452041667 | BP120: 0.4481283333 | BQ120: 0.4508033333 | BR120: 0.45242 | BS120: 0.45527 | BT120: 0.457165 | BU120: 0.4602066667 | BV120: 0.4637066667 | BW120: 0.4635108333 | BX120: 0.4679775 | BY120: 0.4716091667 | BZ120: 0.473935 | CA120: 0.4761408333 | CB120: 0.47801 | CC120: 0.4795941667 | CD120: 0.4824908333 | CE120: 0.4838108333 | CF120: 0.4852941667 | CG120: 0.4866858333 | CH120: 0.4891016667 | CI120: 0.4901041667 | CJ120: 0.4921216667 | CK120: 0.4945125 | CL120: 0.4951341667 | CM120: 0.4975791667 | CN120: 0.4984983333 | CO120: 0.5021066667 | CP120: 0.502945 | CQ120: 0.5059433333 | CR120: 0.50788 | CS120: 0.5084725 | CT120: 0.5104875 | CU120: 0.51151 | CV120: 0.5138366667 | CW120: 0.5152475 | CX120: 0.5166058333
B121: Ky7x | C121: 0.1044016667 | D121: 0.2034391667 | E121: 0.2216008333 | F121: 0.237135 | G121: 0.2511941667 | H121: 0.27123 | I121: 0.2751341667 | J121: 0.2850258333 | K121: 0.2848025 | L121: 0.2886916667 | M121: 0.2919083333 | N121: 0.3032158333 | O121: 0.30249 | P121: 0.3106258333 | Q121: 0.3196466667 | R121: 0.3239925 | S121: 0.32231 | T121: 0.323445 | U121: 0.3251875 | V121: 0.3419933333 | W121: 0.349285 | X121: 0.3522825 | Y121: 0.3612925 | Z121: 0.3598516667 | AA121: 0.3612125 | AB121: 0.370525 | AC121: 0.3680416667 | AD121: 0.3744208333 | AE121: 0.3761375 | AF121: 0.3798725 | AG121: 0.3820891667 | AH121: 0.3868075 | AI121: 0.3949108333 | AJ121: 0.3967283333 | AK121: 0.3988666667 | AL121: 0.3980233333 | AM121: 0.4058341667 | AN121: 0.4100358333 | AO121: 0.4130733333 | AP121: 0.4174416667 | AQ121: 0.4214116667 | AR121: 0.4214491667 | AS121: 0.4297375 | AT121: 0.4306216667 | AU121: 0.4361583333 | AV121: 0.4387683333 | AW121: 0.444325 | AX121: 0.44498 | AY121: 0.4490308333 | AZ121: 0.4508308333 | BA121: 0.4569833333 | BB121: 0.4619566667 | BC121: 0.4636608333 | BD121: 0.4676525 | BE121: 0.4695333333 | BF121: 0.4726416667 | BG121: 0.4759083333 | BH121: 0.479375 | BI121: 0.4837875 | BJ121: 0.4868333333 | BK121: 0.4878816667 | BL121: 0.4910741667 | BM121: 0.4914116667 | BN121: 0.4962616667 | BO121: 0.4973416667 | BP121: 0.499295 | BQ121: 0.5023433333 | BR121: 0.50172 | BS121: 0.5064925 | BT121: 0.5073 | BU121: 0.5100916667 | BV121: 0.5106541667 | BW121: 0.5114383333 | BX121: 0.5146066667 | BY121: 0.5176275 | BZ121: 0.5185083333 | CA121: 0.5205816667 | CB121: 0.520885 | CC121: 0.5231816667 | CD121: 0.5240516667 | CE121: 0.5262741667 | CF121: 0.5267075 | CG121: 0.5278341667 | CH121: 0.5294083333 | CI121: 0.531115 | CJ121: 0.5324591667 | CK121: 0.5351025 | CL121: 0.5352991667 | CM121: 0.53634 | CN121: 0.5379608333 | CO121: 0.5393 | CP121: 0.541595 | CQ121: 0.5428225 | CR121: 0.5430183333 | CS121: 0.5445183333 | CT121: 0.5456808333 | CU121: 0.5467475 | CV121: 0.548255 | CW121: 0.5492883333 | CX121: 0.5523158333
B122: Ay7x | C122: 0.2132341667 | D122: 0.2547891667 | E122: 0.2605575 | F122: 0.2600833333 | G122: 0.2638658333 | H122: 0.2653391667 | I122: 0.2661991667 | J122: 0.2808383333 | K122: 0.2926741667 | L122: 0.322605 | M122: 0.3301541667 | N122: 0.3429933333 | O122: 0.3624433333 | P122: 0.3718258333 | Q122: 0.3756933333 | R122: 0.3852183333 | S122: 0.3969816667 | T122: 0.3997016667 | U122: 0.3964108333 | V122: 0.4140958333 | W122: 0.4196391667 | X122: 0.4217383333 | Y122: 0.4277233333 | Z122: 0.433475 | AA122: 0.4378541667 | AB122: 0.4453308333 | AC122: 0.4516491667 | AD122: 0.4595566667 | AE122: 0.460165 | AF122: 0.4661116667 | AG122: 0.46709 | AH122: 0.4741066667 | AI122: 0.4783508333 | AJ122: 0.4798075 | AK122: 0.4844858333 | AL122: 0.4876541667 | AM122: 0.4935833333 | AN122: 0.4956566667 | AO122: 0.4962925 | AP122: 0.5025158333 | AQ122: 0.505965 | AR122: 0.5080725 | AS122: 0.5102516667 | AT122: 0.5119483333 | AU122: 0.51481 | AV122: 0.5175666667 | AW122: 0.5199458333 | AX122: 0.5207958333 | AY122: 0.5220191667 | AZ122: 0.5231083333 | BA122: 0.5272466667 | BB122: 0.5304433333 | BC122: 0.5326958333 | BD122: 0.535375 | BE122: 0.5364183333 | BF122: 0.5387408333 | BG122: 0.5402416667 | BH122: 0.5433925 | BI122: 0.544985 | BJ122: 0.5466941667 | BK122: 0.5474116667 | BL122: 0.5495983333 | BM122: 0.5529366667 | BN122: 0.5539633333 | BO122: 0.55471 | BP122: 0.5547225 | BQ122: 0.557445 | BR122: 0.5569608333 | BS122: 0.5582808333 | BT122: 0.5591275 | BU122: 0.5623275 | BV122: 0.56278 | BW122: 0.5622566667 | BX122: 0.5644025 | BY122: 0.5649358333 | BZ122: 0.5667425 | CA122: 0.56844 | CB122: 0.5687466667 | CC122: 0.5687533333 | CD122: 0.569815 | CE122: 0.5718391667 | CF122: 0.5708858333 | CG122: 0.5723833333 | CH122: 0.5724125 | CI122: 0.5752958333 | CJ122: 0.5743766667 | CK122: 0.5757008333 | CL122: 0.57724 | CM122: 0.57708 | CN122: 0.5785216667 | CO122: 0.57947 | CP122: 0.58032 | CQ122: 0.5804466667 | CR122: 0.5832708333 | CS122: 0.5821 | CT122: 0.5848541667 | CU122: 0.5845541667 | CV122: 0.5844133333 | CW122: 0.5851208333 | CX122: 0.5879991667
B123: 9x8x | C123: 0.2190166667 | D123: 0.2125725 | E123: 0.2248016667 | F123: 0.2787508333 | G123: 0.2804283333 | H123: 0.306895 | I123: 0.310165 | J123: 0.3363175 | K123: 0.3375591667 | L123: 0.3492783333 | M123: 0.3502066667 | N123: 0.359035 | O123: 0.3619866667 | P123: 0.3633816667 | Q123: 0.363925 | R123: 0.3699675 | S123: 0.37074 | T123: 0.3712658333 | U123: 0.3713583333 | V123: 0.3715033333 | W123: 0.3758716667 | X123: 0.3748341667 | Y123: 0.3758775 | Z123: 0.37961 | AA123: 0.38381 | AB123: 0.3825983333 | AC123: 0.3811441667 | AD123: 0.3844158333 | AE123: 0.3841441667 | AF123: 0.3909983333 | AG123: 0.3916466667 | AH123: 0.3953683333 | AI123: 0.3943025 | AJ123: 0.394435 | AK123: 0.3984433333 | AL123: 0.3964675 | AM123: 0.3963533333 | AN123: 0.395235 | AO123: 0.3989783333 | AP123: 0.40069 | AQ123: 0.4040758333 | AR123: 0.4024725 | AS123: 0.4055233333 | AT123: 0.4070041667 | AU123: 0.4095283333 | AV123: 0.4080483333 | AW123: 0.4074225 | AX123: 0.4092475 | AY123: 0.4108291667 | AZ123: 0.4112475 | BA123: 0.4149908333 | BB123: 0.4157366667 | BC123: 0.4166116667 | BD123: 0.419635 | BE123: 0.4210625 | BF123: 0.4223808333 | BG123: 0.421775 | BH123: 0.42694 | BI123: 0.429545 | BJ123: 0.4319091667 | BK123: 0.4336725 | BL123: 0.4353708333 | BM123: 0.4393816667 | BN123: 0.440455 | BO123: 0.4414008333 | BP123: 0.4413441667 | BQ123: 0.4422616667 | BR123: 0.447365 | BS123: 0.4481925 | BT123: 0.4499475 | BU123: 0.4517266667 | BV123: 0.4552033333 | BW123: 0.4562216667 | BX123: 0.4580566667 | BY123: 0.4634741667 | BZ123: 0.4626916667 | CA123: 0.4648416667 | CB123: 0.4661633333 | CC123: 0.4682816667 | CD123: 0.4702083333 | CE123: 0.4716491667 | CF123: 0.4706341667 | CG123: 0.47231 | CH123: 0.476435 | CI123: 0.476075 | CJ123: 0.4792816667 | CK123: 0.4799733333 | CL123: 0.4805458333 | CM123: 0.48279 | CN123: 0.4849341667 | CO123: 0.4892733333 | CP123: 0.4905066667 | CQ123: 0.4925108333 | CR123: 0.4957566667 | CS123: 0.4955433333 | CT123: 0.4992866667 | CU123: 0.4994516667 | CV123: 0.5018925 | CW123: 0.5051275 | CX123: 0.507335
B124: Tx8x | C124: 0.2084666667 | D124: 0.1993066667 | E124: 0.2164666667 | F124: 0.2766083333 | G124: 0.2892208333 | H124: 0.3095408333 | I124: 0.31027 | J124: 0.332825 | K124: 0.3336866667 | L124: 0.3372475 | M124: 0.3392216667 | N124: 0.34861 | O124: 0.3497783333 | P124: 0.3528825 | Q124: 0.3585441667 | R124: 0.3656066667 | S124: 0.3631566667 | T124: 0.3648433333 | U124: 0.3628908333 | V124: 0.3655816667 | W124: 0.368415 | X124: 0.3691658333 | Y124: 0.3673466667 | Z124: 0.37201 | AA124: 0.3756675 | AB124: 0.3723091667 | AC124: 0.374865 | AD124: 0.3786566667 | AE124: 0.3800491667 | AF124: 0.3880833333 | AG124: 0.3890266667 | AH124: 0.3925058333 | AI124: 0.3930066667 | AJ124: 0.3929166667 | AK124: 0.3955925 | AL124: 0.3957041667 | AM124: 0.3975125 | AN124: 0.3975475 | AO124: 0.3983766667 | AP124: 0.4040908333 | AQ124: 0.4046033333 | AR124: 0.4049133333 | AS124: 0.4078366667 | AT124: 0.40805 | AU124: 0.4122208333 | AV124: 0.4099025 | AW124: 0.4121741667 | AX124: 0.4159325 | AY124: 0.4179708333 | AZ124: 0.4202758333 | BA124: 0.4216991667 | BB124: 0.4228691667 | BC124: 0.4231016667 | BD124: 0.4257583333 | BE124: 0.4273883333 | BF124: 0.4325975 | BG124: 0.4318891667 | BH124: 0.4364141667 | BI124: 0.44052 | BJ124: 0.4429575 | BK124: 0.4447841667 | BL124: 0.4452191667 | BM124: 0.4496783333 | BN124: 0.4521883333 | BO124: 0.4523183333 | BP124: 0.4554558333 | BQ124: 0.4556841667 | BR124: 0.4584083333 | BS124: 0.4594466667 | BT124: 0.4634333333 | BU124: 0.4622183333 | BV124: 0.46822 | BW124: 0.4692208333 | BX124: 0.4689075 | BY124: 0.4722666667 | BZ124: 0.473135 | CA124: 0.4749416667 | CB124: 0.4782075 | CC124: 0.48228 | CD124: 0.4837666667 | CE124: 0.4844916667 | CF124: 0.4851241667 | CG124: 0.487185 | CH124: 0.4905008333 | CI124: 0.4906158333 | CJ124: 0.4937008333 | CK124: 0.4954483333 | CL124: 0.49811 | CM124: 0.4993383333 | CN124: 0.5013975 | CO124: 0.5063066667 | CP124: 0.5076975 | CQ124: 0.5083366667 | CR124: 0.5109841667 | CS124: 0.5126766667 | CT124: 0.5149625 | CU124: 0.5163133333 | CV124: 0.51826 | CW124: 0.520435 | CX124: 0.5233275
B125: Jx8x | C125: 0.1920683333 | D125: 0.1815141667 | E125: 0.2322833333 | F125: 0.2802775 | G125: 0.2873316667 | H125: 0.3071158333 | I125: 0.31093 | J125: 0.3236308333 | K125: 0.3224591667 | L125: 0.3352816667 | M125: 0.3375483333 | N125: 0.3462375 | O125: 0.3425933333 | P125: 0.3446175 | Q125: 0.3514916667 | R125: 0.3580475 | S125: 0.3606758333 | T125: 0.3617641667 | U125: 0.3602275 | V125: 0.3580466667 | W125: 0.36236 | X125: 0.3665008333 | Y125: 0.3659175 | Z125: 0.3698675 | AA125: 0.3746225 | AB125: 0.3719625 | AC125: 0.3737258333 | AD125: 0.3794033333 | AE125: 0.3807475 | AF125: 0.3887591667 | AG125: 0.390965 | AH125: 0.391965 | AI125: 0.3930358333 | AJ125: 0.3929066667 | AK125: 0.3970358333 | AL125: 0.3949741667 | AM125: 0.3993583333 | AN125: 0.4030741667 | AO125: 0.4051591667 | AP125: 0.4082716667 | AQ125: 0.4087666667 | AR125: 0.4111783333 | AS125: 0.4136633333 | AT125: 0.4143041667 | AU125: 0.4165058333 | AV125: 0.4191658333 | AW125: 0.4239616667 | AX125: 0.4282658333 | AY125: 0.42848 | AZ125: 0.4321783333 | BA125: 0.4329891667 | BB125: 0.4350683333 | BC125: 0.4343158333 | BD125: 0.4401133333 | BE125: 0.4431741667 | BF125: 0.4456075 | BG125: 0.4468233333 | BH125: 0.4527458333 | BI125: 0.4551933333 | BJ125: 0.4573491667 | BK125: 0.4604508333 | BL125: 0.4598466667 | BM125: 0.4640116667 | BN125: 0.4659708333 | BO125: 0.4682066667 | BP125: 0.4723733333 | BQ125: 0.4719625 | BR125: 0.4749283333 | BS125: 0.4789366667 | BT125: 0.4806225 | BU125: 0.4797208333 | BV125: 0.4839175 | BW125: 0.4829816667 | BX125: 0.4854466667 | BY125: 0.4906683333 | BZ125: 0.4920591667 | CA125: 0.4949466667 | CB125: 0.4988366667 | CC125: 0.5008041667 | CD125: 0.5023575 | CE125: 0.5050433333 | CF125: 0.5061933333 | CG125: 0.5064558333 | CH125: 0.5099791667 | CI125: 0.5108633333 | CJ125: 0.5134941667 | CK125: 0.5159183333 | CL125: 0.5180733333 | CM125: 0.5183416667 | CN125: 0.521585 | CO125: 0.5244916667 | CP125: 0.526065 | CQ125: 0.5261616667 | CR125: 0.5277758333 | CS125: 0.53106 | CT125: 0.5323083333 | CU125: 0.5343083333 | CV125: 0.5352683333 | CW125: 0.5377083333 | CX125: 0.5396916667
B126: Qx8x | C126: 0.1754958333 | D126: 0.2101841667 | E126: 0.2478725 | F126: 0.2829441667 | G126: 0.2942616667 | H126: 0.2959725 | I126: 0.3013341667 | J126: 0.3235191667 | K126: 0.326195 | L126: 0.3300308333 | M126: 0.33179 | N126: 0.337815 | O126: 0.3424483333 | P126: 0.3443608333 | Q126: 0.3546275 | R126: 0.3603733333 | S126: 0.3612 | T126: 0.3637991667 | U126: 0.3613008333 | V126: 0.3594933333 | W126: 0.36588 | X126: 0.3689566667 | Y126: 0.3678933333 | Z126: 0.3713816667 | AA126: 0.3727933333 | AB126: 0.3846225 | AC126: 0.3845058333 | AD126: 0.3895591667 | AE126: 0.3912233333 | AF126: 0.3972483333 | AG126: 0.39785 | AH126: 0.4041633333 | AI126: 0.4022983333 | AJ126: 0.4022508333 | AK126: 0.4064233333 | AL126: 0.404875 | AM126: 0.4124991667 | AN126: 0.418205 | AO126: 0.422415 | AP126: 0.4235725 | AQ126: 0.4252233333 | AR126: 0.4275483333 | AS126: 0.4327216667 | AT126: 0.4328133333 | AU126: 0.435555 | AV126: 0.4417016667 | AW126: 0.4467075 | AX126: 0.4502575 | AY126: 0.4521266667 | AZ126: 0.4533108333 | BA126: 0.4578541667 | BB126: 0.461965 | BC126: 0.4628358333 | BD126: 0.4664833333 | BE126: 0.4695708333 | BF126: 0.471165 | BG126: 0.4702683333 | BH126: 0.4762558333 | BI126: 0.4789425 | BJ126: 0.482655 | BK126: 0.4858908333 | BL126: 0.4877291667 | BM126: 0.490395 | BN126: 0.4939283333 | BO126: 0.4946575 | BP126: 0.4979283333 | BQ126: 0.499675 | BR126: 0.5034808333 | BS126: 0.5057483333 | BT126: 0.5070758333 | BU126: 0.5096283333 | BV126: 0.5128458333 | BW126: 0.5135483333 | BX126: 0.5150166667 | BY126: 0.5187191667 | BZ126: 0.5207075 | CA126: 0.5221375 | CB126: 0.52679 | CC126: 0.527535 | CD126: 0.5288616667 | CE126: 0.5304033333 | CF126: 0.5316833333 | CG126: 0.53349 | CH126: 0.5348766667 | CI126: 0.5371466667 | CJ126: 0.5382725 | CK126: 0.5399933333 | CL126: 0.5423033333 | CM126: 0.5429791667 | CN126: 0.5441066667 | CO126: 0.5469108333 | CP126: 0.5476583333 | CQ126: 0.5499958333 | CR126: 0.5512308333 | CS126: 0.553395 | CT126: 0.5536 | CU126: 0.5561725 | CV126: 0.5562683333 | CW126: 0.5572266667 | CX126: 0.5595525
B127: Kx8x | C127: 0.1452525 | D127: 0.241485 | E127: 0.2603941667 | F127: 0.2743491667 | G127: 0.2857016667 | H127: 0.3065675 | I127: 0.3100308333 | J127: 0.3284025 | K127: 0.3270808333 | L127: 0.3306866667 | M127: 0.3315841667 | N127: 0.34385 | O127: 0.3426666667 | P127: 0.3504191667 | Q127: 0.3582475 | R127: 0.362735 | S127: 0.3611858333 | T127: 0.3614975 | U127: 0.3580683333 | V127: 0.3762116667 | W127: 0.3864191667 | X127: 0.38714 | Y127: 0.3972575 | Z127: 0.4013733333 | AA127: 0.4011933333 | AB127: 0.4127941667 | AC127: 0.4095583333 | AD127: 0.4155658333 | AE127: 0.4172975 | AF127: 0.4213841667 | AG127: 0.4235116667 | AH127: 0.4280933333 | AI127: 0.4359191667 | AJ127: 0.4368408333 | AK127: 0.4387275 | AL127: 0.4393 | AM127: 0.4482025 | AN127: 0.4506916667 | AO127: 0.4532466667 | AP127: 0.4590441667 | AQ127: 0.462835 | AR127: 0.4651658333 | AS127: 0.4737008333 | AT127: 0.47456 | AU127: 0.4784016667 | AV127: 0.4842841667 | AW127: 0.489165 | AX127: 0.4938183333 | AY127: 0.4953975 | AZ127: 0.4977183333 | BA127: 0.5012416667 | BB127: 0.5049416667 | BC127: 0.5091083333 | BD127: 0.5116725 | BE127: 0.512105 | BF127: 0.5154783333 | BG127: 0.5158608333 | BH127: 0.521825 | BI127: 0.5222075 | BJ127: 0.5236008333 | BK127: 0.5266266667 | BL127: 0.5287691667 | BM127: 0.5314225 | BN127: 0.5332808333 | BO127: 0.5343366667 | BP127: 0.5357691667 | BQ127: 0.5374983333 | BR127: 0.5406658333 | BS127: 0.5423375 | BT127: 0.54285 | BU127: 0.5457691667 | BV127: 0.54699 | BW127: 0.5487083333 | BX127: 0.5486383333 | BY127: 0.5507166667 | BZ127: 0.55258 | CA127: 0.5533975 | CB127: 0.5565866667 | CC127: 0.5578683333 | CD127: 0.559305 | CE127: 0.5599691667 | CF127: 0.5613808333 | CG127: 0.561725 | CH127: 0.5630075 | CI127: 0.5649533333 | CJ127: 0.5661066667 | CK127: 0.5671516667 | CL127: 0.5681233333 | CM127: 0.57001 | CN127: 0.5705491667 | CO127: 0.5732225 | CP127: 0.5716633333 | CQ127: 0.5745816667 | CR127: 0.5751791667 | CS127: 0.5764858333 | CT127: 0.5777308333 | CU127: 0.5797166667 | CV127: 0.5793716667 | CW127: 0.58101 | CX127: 0.5840275
B128: Ax8x | C128: 0.252695 | D128: 0.29192 | E128: 0.2960733333 | F128: 0.2980466667 | G128: 0.3011841667 | H128: 0.3038725 | I128: 0.3042741667 | J128: 0.3286233333 | K128: 0.3400258333 | L128: 0.3663708333 | M128: 0.3718716667 | N128: 0.3903625 | O128: 0.4096475 | P128: 0.41752 | Q128: 0.4199616667 | R128: 0.42906 | S128: 0.4398408333 | T128: 0.4429458333 | U128: 0.444325 | V128: 0.4612066667 | W128: 0.4670841667 | X128: 0.46872 | Y128: 0.4728625 | Z128: 0.4830058333 | AA128: 0.4887791667 | AB128: 0.4950208333 | AC128: 0.5005683333 | AD128: 0.5086491667 | AE128: 0.5117 | AF128: 0.5148766667 | AG128: 0.5166991667 | AH128: 0.52331 | AI128: 0.5273416667 | AJ128: 0.5279966667 | AK128: 0.5317108333 | AL128: 0.5374475 | AM128: 0.540695 | AN128: 0.54038 | AO128: 0.5438 | AP128: 0.5466991667 | AQ128: 0.5493258333 | AR128: 0.5499116667 | AS128: 0.5553433333 | AT128: 0.5550175 | AU128: 0.5583808333 | AV128: 0.5611258333 | AW128: 0.5644733333 | AX128: 0.5674608333 | AY128: 0.5683391667 | AZ128: 0.56903 | BA128: 0.5720325 | BB128: 0.5738758333 | BC128: 0.575785 | BD128: 0.57682 | BE128: 0.5780808333 | BF128: 0.579245 | BG128: 0.5812166667 | BH128: 0.5821266667 | BI128: 0.5834341667 | BJ128: 0.5845275 | BK128: 0.5858008333 | BL128: 0.5869075 | BM128: 0.58815 | BN128: 0.5900825 | BO128: 0.5890516667 | BP128: 0.5894291667 | BQ128: 0.5920583333 | BR128: 0.5929175 | BS128: 0.5946016667 | BT128: 0.5947925 | BU128: 0.5964141667 | BV128: 0.5972625 | BW128: 0.597115 | BX128: 0.5984358333 | BY128: 0.59956 | BZ128: 0.6009925 | CA128: 0.6009475 | CB128: 0.60262 | CC128: 0.6046833333 | CD128: 0.6032283333 | CE128: 0.6052483333 | CF128: 0.604635 | CG128: 0.6061066667 | CH128: 0.6055925 | CI128: 0.6071741667 | CJ128: 0.6079183333 | CK128: 0.6088791667 | CL128: 0.6098916667 | CM128: 0.60928 | CN128: 0.6104091667 | CO128: 0.6121758333 | CP128: 0.6129775 | CQ128: 0.6135108333 | CR128: 0.6142466667 | CS128: 0.6148275 | CT128: 0.6146425 | CU128: 0.61661 | CV128: 0.6169941667 | CW128: 0.6182166667 | CX128: 0.619175
B129: 8y8x | C129: 0.1934675 | D129: 0.1924816667 | E129: 0.2305533333 | F129: 0.33072 | G129: 0.3288541667 | H129: 0.3677066667 | I129: 0.3750391667 | J129: 0.4292283333 | K129: 0.43184 | L129: 0.4551525 | M129: 0.4582841667 | N129: 0.4833866667 | O129: 0.4860375 | P129: 0.4913016667 | Q129: 0.4999783333 | R129: 0.5137225 | S129: 0.5153433333 | T129: 0.5171 | U129: 0.5229258333 | V129: 0.5266016667 | W129: 0.5358783333 | X129: 0.5359883333 | Y129: 0.5356133333 | Z129: 0.5445716667 | AA129: 0.548685 | AB129: 0.5499116667 | AC129: 0.549645 | AD129: 0.5577616667 | AE129: 0.5580933333 | AF129: 0.5662466667 | AG129: 0.567 | AH129: 0.5732725 | AI129: 0.573895 | AJ129: 0.5752916667 | AK129: 0.5797066667 | AL129: 0.5818566667 | AM129: 0.5816383333 | AN129: 0.5801016667 | AO129: 0.5830333333 | AP129: 0.5899258333 | AQ129: 0.5921383333 | AR129: 0.5929683333 | AS129: 0.5964091667 | AT129: 0.5973258333 | AU129: 0.5994841667 | AV129: 0.6024641667 | AW129: 0.6038325 | AX129: 0.6022683333 | AY129: 0.6053241667 | AZ129: 0.6059616667 | BA129: 0.6105916667 | BB129: 0.61306 | BC129: 0.6136666667 | BD129: 0.6160291667 | BE129: 0.6179758333 | BF129: 0.6186683333 | BG129: 0.620355 | BH129: 0.6250283333 | BI129: 0.6266525 | BJ129: 0.62618 | BK129: 0.6291483333 | BL129: 0.6301175 | BM129: 0.6341875 | BN129: 0.6371233333 | BO129: 0.635985 | BP129: 0.6384291667 | BQ129: 0.6387316667 | BR129: 0.6409525 | BS129: 0.6416925 | BT129: 0.6421533333 | BU129: 0.6452841667 | BV129: 0.6475825 | BW129: 0.6480125 | BX129: 0.6489575 | BY129: 0.6536808333 | BZ129: 0.6541366667 | CA129: 0.6558875 | CB129: 0.65722 | CC129: 0.6583091667 | CD129: 0.6600991667 | CE129: 0.6613033333 | CF129: 0.6625616667 | CG129: 0.6632525 | CH129: 0.6660783333 | CI129: 0.6669825 | CJ129: 0.6694608333 | CK129: 0.6697408333 | CL129: 0.671715 | CM129: 0.6726425 | CN129: 0.6734608333 | CO129: 0.6762433333 | CP129: 0.67708 | CQ129: 0.6794341667 | CR129: 0.6809441667 | CS129: 0.6816816667 | CT129: 0.6825941667 | CU129: 0.6851583333 | CV129: 0.6860933333 | CW129: 0.68769 | CX129: 0.6923383333
B130: 9y8x | C130: 0.1804916667 | D130: 0.1724383333 | E130: 0.1880733333 | F130: 0.2414883333 | G130: 0.2435 | H130: 0.2695766667 | I130: 0.2743666667 | J130: 0.3004566667 | K130: 0.3015666667 | L130: 0.3138625 | M130: 0.3147708333 | N130: 0.3243591667 | O130: 0.3259033333 | P130: 0.3283816667 | Q130: 0.3291483333 | R130: 0.3352658333 | S130: 0.3355475 | T130: 0.3384316667 | U130: 0.3357308333 | V130: 0.3365666667 | W130: 0.3414608333 | X130: 0.34027 | Y130: 0.3406208333 | Z130: 0.3460283333 | AA130: 0.3496891667 | AB130: 0.348315 | AC130: 0.3473083333 | AD130: 0.3510308333 | AE130: 0.3494741667 | AF130: 0.3556991667 | AG130: 0.3577966667 | AH130: 0.3607233333 | AI130: 0.3607866667 | AJ130: 0.3611633333 | AK130: 0.3646183333 | AL130: 0.3623525 | AM130: 0.3639441667 | AN130: 0.3611675 | AO130: 0.3642341667 | AP130: 0.368055 | AQ130: 0.3694991667 | AR130: 0.369785 | AS130: 0.37208 | AT130: 0.3744333333 | AU130: 0.3760083333 | AV130: 0.3757683333 | AW130: 0.3743491667 | AX130: 0.3760958333 | AY130: 0.3773316667 | AZ130: 0.3796266667 | BA130: 0.3824366667 | BB130: 0.382635 | BC130: 0.384455 | BD130: 0.3868991667 | BE130: 0.388985 | BF130: 0.3891675 | BG130: 0.389685 | BH130: 0.396475 | BI130: 0.3984583333 | BJ130: 0.4017 | BK130: 0.4022133333 | BL130: 0.4038266667 | BM130: 0.40883 | BN130: 0.4089008333 | BO130: 0.4100716667 | BP130: 0.4116308333 | BQ130: 0.4134016667 | BR130: 0.413815 | BS130: 0.4168508333 | BT130: 0.4189991667 | BU130: 0.4212733333 | BV130: 0.4248675 | BW130: 0.4265275 | BX130: 0.4274708333 | BY130: 0.4326308333 | BZ130: 0.4326441667 | CA130: 0.43564 | CB130: 0.435825 | CC130: 0.4387166667 | CD130: 0.4406658333 | CE130: 0.442345 | CF130: 0.4424466667 | CG130: 0.4429741667 | CH130: 0.4482716667 | CI130: 0.44779 | CJ130: 0.44994 | CK130: 0.4524166667 | CL130: 0.4507683333 | CM130: 0.4535983333 | CN130: 0.4562933333 | CO130: 0.46024 | CP130: 0.4626066667 | CQ130: 0.4648166667 | CR130: 0.4663883333 | CS130: 0.4702875 | CT130: 0.4708466667 | CU130: 0.47259 | CV130: 0.4745666667 | CW130: 0.4772825 | CX130: 0.4808408333
B131: Ty8x | C131: 0.1694866667 | D131: 0.1591183333 | E131: 0.1786641667 | F131: 0.2385666667 | G131: 0.2524091667 | H131: 0.272665 | I131: 0.2733758333 | J131: 0.2972991667 | K131: 0.29815 | L131: 0.3031333333 | M131: 0.3033891667 | N131: 0.3133616667 | O131: 0.3154208333 | P131: 0.31764 | Q131: 0.32235 | R131: 0.3302866667 | S131: 0.3278825 | T131: 0.3299475 | U131: 0.3284358333 | V131: 0.3305841667 | W131: 0.3352058333 | X131: 0.33554 | Y131: 0.333065 | Z131: 0.3378558333 | AA131: 0.3421266667 | AB131: 0.3385441667 | AC131: 0.3393816667 | AD131: 0.3444716667 | AE131: 0.3449233333 | AF131: 0.353015 | AG131: 0.3548783333 | AH131: 0.3573533333 | AI131: 0.3591083333 | AJ131: 0.3595416667 | AK131: 0.3627308333 | AL131: 0.3615716667 | AM131: 0.3651191667 | AN131: 0.3638616667 | AO131: 0.3671216667 | AP131: 0.3699966667 | AQ131: 0.3730391667 | AR131: 0.3713316667 | AS131: 0.3738891667 | AT131: 0.3750383333 | AU131: 0.3783525 | AV131: 0.377365 | AW131: 0.3791558333 | AX131: 0.3847258333 | AY131: 0.3849825 | AZ131: 0.3868683333 | BA131: 0.3899341667 | BB131: 0.3910033333 | BC131: 0.39199 | BD131: 0.3940725 | BE131: 0.3962991667 | BF131: 0.3998766667 | BG131: 0.4011575 | BH131: 0.4054975 | BI131: 0.4100575 | BJ131: 0.4106908333 | BK131: 0.4145366667 | BL131: 0.4148983333 | BM131: 0.4185033333 | BN131: 0.4202458333 | BO131: 0.4214216667 | BP131: 0.4244791667 | BQ131: 0.4251933333 | BR131: 0.4283075 | BS131: 0.4313783333 | BT131: 0.4334691667 | BU131: 0.4345241667 | BV131: 0.4372891667 | BW131: 0.4383216667 | BX131: 0.4393166667 | BY131: 0.4452983333 | BZ131: 0.4442191667 | CA131: 0.4463258333 | CB131: 0.4504566667 | CC131: 0.4517333333 | CD131: 0.4552983333 | CE131: 0.455425 | CF131: 0.4572525 | CG131: 0.4573058333 | CH131: 0.4616866667 | CI131: 0.4638433333 | CJ131: 0.4669158333 | CK131: 0.4682583333 | CL131: 0.47048 | CM131: 0.4718675 | CN131: 0.4734008333 | CO131: 0.4772866667 | CP131: 0.4808591667 | CQ131: 0.4822616667 | CR131: 0.4848566667 | CS131: 0.4852291667 | CT131: 0.4873991667 | CU131: 0.4892991667 | CV131: 0.4906791667 | CW131: 0.4933533333 | CX131: 0.4972016667
B132: Jy8x | C132: 0.1516475 | D132: 0.1406491667 | E132: 0.1918125 | F132: 0.24358 | G132: 0.2491766667 | H132: 0.2688358333 | I132: 0.2722583333 | J132: 0.2863808333 | K132: 0.2846625 | L132: 0.298085 | M132: 0.3015916667 | N132: 0.3089466667 | O132: 0.305635 | P132: 0.3090525 | Q132: 0.3157883333 | R132: 0.3235583333 | S132: 0.3236883333 | T132: 0.3262125 | U132: 0.3237233333 | V132: 0.3228766667 | W132: 0.3272383333 | X132: 0.3304925 | Y132: 0.3317041667 | Z132: 0.3355916667 | AA132: 0.3397233333 | AB132: 0.3376166667 | AC132: 0.33934 | AD132: 0.3428616667 | AE132: 0.3464791667 | AF132: 0.3537658333 | AG132: 0.3552808333 | AH132: 0.3583083333 | AI132: 0.3574733333 | AJ132: 0.3590658333 | AK132: 0.3621716667 | AL132: 0.3610283333 | AM132: 0.3643066667 | AN132: 0.36823 | AO132: 0.3713766667 | AP132: 0.3740975 | AQ132: 0.375985 | AR132: 0.37749 | AS132: 0.3809283333 | AT132: 0.3813283333 | AU132: 0.3836966667 | AV132: 0.3875008333 | AW132: 0.3926441667 | AX132: 0.3981433333 | AY132: 0.397095 | AZ132: 0.4007825 | BA132: 0.4021791667 | BB132: 0.4042916667 | BC132: 0.4046358333 | BD132: 0.4097475 | BE132: 0.4107816667 | BF132: 0.4157758333 | BG132: 0.4145016667 | BH132: 0.4208383333 | BI132: 0.4241425 | BJ132: 0.4264041667 | BK132: 0.4284183333 | BL132: 0.4291866667 | BM132: 0.43235 | BN132: 0.4361066667 | BO132: 0.4377166667 | BP132: 0.4421358333 | BQ132: 0.4423741667 | BR132: 0.4447725 | BS132: 0.44888 | BT132: 0.4518358333 | BU132: 0.4517191667 | BV132: 0.4550166667 | BW132: 0.4549575 | BX132: 0.4585633333 | BY132: 0.4627875 | BZ132: 0.4641183333 | CA132: 0.46796 | CB132: 0.4698258333 | CC132: 0.4726683333 | CD132: 0.474895 | CE132: 0.4776641667 | CF132: 0.47929 | CG132: 0.4807683333 | CH132: 0.4830858333 | CI132: 0.48354 | CJ132: 0.4863775 | CK132: 0.4903058333 | CL132: 0.491585 | CM132: 0.4926841667 | CN132: 0.4949366667 | CO132: 0.49811 | CP132: 0.4992075 | CQ132: 0.5016658333 | CR132: 0.5033883333 | CS132: 0.5054591667 | CT132: 0.50711 | CU132: 0.508385 | CV132: 0.5102908333 | CW132: 0.5122966667 | CX132: 0.5165658333
B133: Qy8x | C133: 0.1345908333 | D133: 0.1687608333 | E133: 0.2087791667 | F133: 0.2436366667 | G133: 0.254985 | H133: 0.2586041667 | I133: 0.2635941667 | J133: 0.286195 | K133: 0.2891383333 | L133: 0.29263 | M133: 0.2947441667 | N133: 0.302865 | O133: 0.3057708333 | P133: 0.3074308333 | Q133: 0.3180658333 | R133: 0.3242416667 | S133: 0.3262266667 | T133: 0.3277608333 | U133: 0.3248941667 | V133: 0.3233433333 | W133: 0.3305383333 | X133: 0.3334883333 | Y133: 0.3316475 | Z133: 0.3362691667 | AA133: 0.3385958333 | AB133: 0.3484083333 | AC133: 0.3482225 | AD133: 0.3554258333 | AE133: 0.3570483333 | AF133: 0.3640183333 | AG133: 0.36487 | AH133: 0.36978 | AI133: 0.3679916667 | AJ133: 0.3681108333 | AK133: 0.3725391667 | AL133: 0.3705166667 | AM133: 0.3795825 | AN133: 0.3843566667 | AO133: 0.3884866667 | AP133: 0.3906283333 | AQ133: 0.3914583333 | AR133: 0.3937991667 | AS133: 0.3993058333 | AT133: 0.4019558333 | AU133: 0.4018025 | AV133: 0.4092241667 | AW133: 0.4152 | AX133: 0.4197633333 | AY133: 0.42036 | AZ133: 0.4221291667 | BA133: 0.42647 | BB133: 0.432125 | BC133: 0.4316333333 | BD133: 0.4362675 | BE133: 0.4376333333 | BF133: 0.4422658333 | BG133: 0.4431141667 | BH133: 0.4470766667 | BI133: 0.4496075 | BJ133: 0.4534383333 | BK133: 0.4566666667 | BL133: 0.4579666667 | BM133: 0.4622308333 | BN133: 0.4649266667 | BO133: 0.4657741667 | BP133: 0.4700766667 | BQ133: 0.4724333333 | BR133: 0.4748191667 | BS133: 0.4770033333 | BT133: 0.4795883333 | BU133: 0.483595 | BV133: 0.4853116667 | BW133: 0.4870333333 | BX133: 0.4890966667 | BY133: 0.4920741667 | BZ133: 0.4930566667 | CA133: 0.4958708333 | CB133: 0.4990416667 | CC133: 0.5008541667 | CD133: 0.5023066667 | CE133: 0.5041808333 | CF133: 0.5057133333 | CG133: 0.5067408333 | CH133: 0.5082775 | CI133: 0.5110133333 | CJ133: 0.5125575 | CK133: 0.5131983333 | CL133: 0.5171383333 | CM133: 0.51713 | CN133: 0.5195366667 | CO133: 0.52097 | CP133: 0.522595 | CQ133: 0.5248808333 | CR133: 0.5259775 | CS133: 0.5276108333 | CT133: 0.5298541667 | CU133: 0.5300166667 | CV133: 0.5312308333 | CW133: 0.5326291667 | CX133: 0.536325
B134: Ky8x | C134: 0.09989416667 | D134: 0.2011983333 | E134: 0.2193225 | F134: 0.2337766667 | G134: 0.2474958333 | H134: 0.2671691667 | I134: 0.2712916667 | J134: 0.2904725 | K134: 0.2900533333 | L134: 0.2928283333 | M134: 0.2931133333 | N134: 0.3080358333 | O134: 0.3056508333 | P134: 0.3125775 | Q134: 0.3225225 | R134: 0.327005 | S134: 0.3255816667 | T134: 0.3251633333 | U134: 0.3222733333 | V134: 0.3411033333 | W134: 0.3518725 | X134: 0.353825 | Y134: 0.3637016667 | Z134: 0.3673325 | AA134: 0.3680333333 | AB134: 0.3779 | AC134: 0.376555 | AD134: 0.3825275 | AE134: 0.3847425 | AF134: 0.3880841667 | AG134: 0.3909475 | AH134: 0.3958675 | AI134: 0.402495 | AJ134: 0.4041583333 | AK134: 0.40715 | AL134: 0.4077325 | AM134: 0.41441 | AN134: 0.419895 | AO134: 0.42254 | AP134: 0.4297475 | AQ134: 0.4332241667 | AR134: 0.4356083333 | AS134: 0.4428558333 | AT134: 0.4448216667 | AU134: 0.4502875 | AV134: 0.4555641667 | AW134: 0.4607341667 | AX134: 0.4649258333 | AY134: 0.4673266667 | AZ134: 0.4676175 | BA134: 0.4727391667 | BB134: 0.4780191667 | BC134: 0.4806316667 | BD134: 0.483335 | BE134: 0.4854366667 | BF134: 0.4880816667 | BG134: 0.4899783333 | BH134: 0.4949066667 | BI134: 0.49577 | BJ134: 0.4988316667 | BK134: 0.5000825 | BL134: 0.5018641667 | BM134: 0.5047241667 | BN134: 0.5073141667 | BO134: 0.5076416667 | BP134: 0.5099216667 | BQ134: 0.5129916667 | BR134: 0.5143125 | BS134: 0.5176958333 | BT134: 0.5175933333 | BU134: 0.5201666667 | BV134: 0.5215525 | BW134: 0.5228658333 | BX134: 0.5247916667 | BY134: 0.5269425 | BZ134: 0.5285975 | CA134: 0.5295591667 | CB134: 0.531585 | CC134: 0.5336633333 | CD134: 0.534465 | CE134: 0.5367316667 | CF134: 0.5370966667 | CG134: 0.53683 | CH134: 0.538825 | CI134: 0.5402508333 | CJ134: 0.5415825 | CK134: 0.5437608333 | CL134: 0.5461983333 | CM134: 0.5446216667 | CN134: 0.5477233333 | CO134: 0.5490258333 | CP134: 0.5502625 | CQ134: 0.5520125 | CR134: 0.5512266667 | CS134: 0.5540458333 | CT134: 0.554205 | CU134: 0.55586 | CV134: 0.5569741667 | CW134: 0.5580008333 | CX134: 0.5597308333
B135: Ay8x | C135: 0.2116383333 | D135: 0.2521916667 | E135: 0.2575308333 | F135: 0.258425 | G135: 0.2626383333 | H135: 0.2653625 | I135: 0.2655991667 | J135: 0.2898016667 | K135: 0.3023066667 | L135: 0.3304558333 | M135: 0.3372491667 | N135: 0.3551933333 | O135: 0.37445 | P135: 0.3831016667 | Q135: 0.3870625 | R135: 0.395805 | S135: 0.4082633333 | T135: 0.4101408333 | U135: 0.4139466667 | V135: 0.4312941667 | W135: 0.4362666667 | X135: 0.4374516667 | Y135: 0.4440275 | Z135: 0.4541433333 | AA135: 0.4604666667 | AB135: 0.4664991667 | AC135: 0.4713766667 | AD135: 0.4818108333 | AE135: 0.4827433333 | AF135: 0.4877408333 | AG135: 0.4895525 | AH135: 0.4964108333 | AI135: 0.50075 | AJ135: 0.5009558333 | AK135: 0.5055166667 | AL135: 0.5114825 | AM135: 0.5152575 | AN135: 0.5165358333 | AO135: 0.5167408333 | AP135: 0.5207816667 | AQ135: 0.5234933333 | AR135: 0.5232341667 | AS135: 0.5315283333 | AT135: 0.5304016667 | AU135: 0.5340833333 | AV135: 0.5364733333 | AW135: 0.5400025 | AX135: 0.543225 | AY135: 0.5448916667 | AZ135: 0.5444975 | BA135: 0.5473383333 | BB135: 0.5512133333 | BC135: 0.551795 | BD135: 0.5529666667 | BE135: 0.5543808333 | BF135: 0.5551591667 | BG135: 0.5570058333 | BH135: 0.5592125 | BI135: 0.5597775 | BJ135: 0.5609883333 | BK135: 0.5625433333 | BL135: 0.5632858333 | BM135: 0.5648716667 | BN135: 0.5657683333 | BO135: 0.5664733333 | BP135: 0.5685216667 | BQ135: 0.5694191667 | BR135: 0.5689408333 | BS135: 0.5719158333 | BT135: 0.5722991667 | BU135: 0.5747075 | BV135: 0.5754375 | BW135: 0.5748216667 | BX135: 0.5758641667 | BY135: 0.5769333333 | BZ135: 0.5784375 | CA135: 0.5789916667 | CB135: 0.5816166667 | CC135: 0.5818333333 | CD135: 0.5811741667 | CE135: 0.5831316667 | CF135: 0.5839425 | CG135: 0.5842658333 | CH135: 0.5858708333 | CI135: 0.5849141667 | CJ135: 0.5858141667 | CK135: 0.5876008333 | CL135: 0.5880475 | CM135: 0.5890258333 | CN135: 0.5886883333 | CO135: 0.5913116667 | CP135: 0.591075 | CQ135: 0.5925625 | CR135: 0.5936233333 | CS135: 0.5930858333 | CT135: 0.59437 | CU135: 0.5957 | CV135: 0.5968625 | CW135: 0.5968116667 | CX135: 0.5980675
B136: Tx9x | C136: 0.2165991667 | D136: 0.2027475 | E136: 0.2234533333 | F136: 0.2829791667 | G136: 0.2959366667 | H136: 0.3297208333 | I136: 0.3280316667 | J136: 0.3504208333 | K136: 0.3509283333 | L136: 0.3523825 | M136: 0.35086 | N136: 0.3623641667 | O136: 0.3643916667 | P136: 0.3657725 | Q136: 0.3658633333 | R136: 0.3722966667 | S136: 0.3703183333 | T136: 0.3711575 | U136: 0.3765016667 | V136: 0.3779508333 | W136: 0.3808558333 | X136: 0.3833441667 | Y136: 0.3813625 | Z136: 0.3861991667 | AA136: 0.3908341667 | AB136: 0.3876816667 | AC136: 0.38588 | AD136: 0.3909833333 | AE136: 0.3940225 | AF136: 0.400625 | AG136: 0.4014358333 | AH136: 0.4049758333 | AI136: 0.4041408333 | AJ136: 0.4049275 | AK136: 0.4075441667 | AL136: 0.4089425 | AM136: 0.4111875 | AN136: 0.4126333333 | AO136: 0.4159308333 | AP136: 0.4175691667 | AQ136: 0.420415 | AR136: 0.4182908333 | AS136: 0.4259641667 | AT136: 0.4252558333 | AU136: 0.428825 | AV136: 0.4299816667 | AW136: 0.43494 | AX136: 0.4400733333 | AY136: 0.4396741667 | AZ136: 0.4410733333 | BA136: 0.4441583333 | BB136: 0.4449275 | BC136: 0.4453216667 | BD136: 0.4459641667 | BE136: 0.4503491667 | BF136: 0.4522233333 | BG136: 0.4540891667 | BH136: 0.4574741667 | BI136: 0.46118 | BJ136: 0.4623266667 | BK136: 0.4656941667 | BL136: 0.4665875 | BM136: 0.4680358333 | BN136: 0.469865 | BO136: 0.4706208333 | BP136: 0.4755183333 | BQ136: 0.4747541667 | BR136: 0.4798191667 | BS136: 0.4806416667 | BT136: 0.482655 | BU136: 0.4841708333 | BV136: 0.48707 | BW136: 0.4867041667 | BX136: 0.4879475 | BY136: 0.49265 | BZ136: 0.49233 | CA136: 0.4942125 | CB136: 0.4968966667 | CC136: 0.499825 | CD136: 0.5029525 | CE136: 0.5021025 | CF136: 0.5038825 | CG136: 0.5040716667 | CH136: 0.50923 | CI136: 0.5104833333 | CJ136: 0.51288 | CK136: 0.5141366667 | CL136: 0.5161366667 | CM136: 0.51828 | CN136: 0.5191066667 | CO136: 0.5236358333 | CP136: 0.5246266667 | CQ136: 0.5273358333 | CR136: 0.528895 | CS136: 0.5294408333 | CT136: 0.5318233333 | CU136: 0.533885 | CV136: 0.5352325 | CW136: 0.5365091667 | CX136: 0.5397625
B137: Jx9x | C137: 0.1993191667 | D137: 0.1889916667 | E137: 0.2385508333 | F137: 0.2878241667 | G137: 0.2950941667 | H137: 0.3253766667 | I137: 0.3295883333 | J137: 0.3391225 | K137: 0.33904 | L137: 0.34957 | M137: 0.3490566667 | N137: 0.3599958333 | O137: 0.3580233333 | P137: 0.3589233333 | Q137: 0.3594441667 | R137: 0.3645491667 | S137: 0.3674541667 | T137: 0.367415 | U137: 0.3735425 | V137: 0.3720033333 | W137: 0.3778758333 | X137: 0.3826175 | Y137: 0.3834025 | Z137: 0.38579 | AA137: 0.3897766667 | AB137: 0.38803 | AC137: 0.3861566667 | AD137: 0.3929908333 | AE137: 0.3955408333 | AF137: 0.4016566667 | AG137: 0.4033675 | AH137: 0.4057675 | AI137: 0.4054116667 | AJ137: 0.40517 | AK137: 0.4086308333 | AL137: 0.4098808333 | AM137: 0.4157 | AN137: 0.4216875 | AO137: 0.4234808333 | AP137: 0.4259691667 | AQ137: 0.4276958333 | AR137: 0.4295266667 | AS137: 0.4336883333 | AT137: 0.4346875 | AU137: 0.4372833333 | AV137: 0.4423566667 | AW137: 0.4472975 | AX137: 0.45161 | AY137: 0.452345 | AZ137: 0.4534975 | BA137: 0.455125 | BB137: 0.4572516667 | BC137: 0.4572591667 | BD137: 0.4620191667 | BE137: 0.4647658333 | BF137: 0.4672808333 | BG137: 0.4674208333 | BH137: 0.4734666667 | BI137: 0.4751175 | BJ137: 0.4777808333 | BK137: 0.4803308333 | BL137: 0.4795416667 | BM137: 0.4820033333 | BN137: 0.4871208333 | BO137: 0.4881341667 | BP137: 0.4920141667 | BQ137: 0.4896783333 | BR137: 0.49464 | BS137: 0.4981025 | BT137: 0.4989083333 | BU137: 0.5001475 | BV137: 0.5033541667 | BW137: 0.5034033333 | BX137: 0.5066666667 | BY137: 0.5105341667 | BZ137: 0.5112433333 | CA137: 0.5136125 | CB137: 0.5167991667 | CC137: 0.5194516667 | CD137: 0.521025 | CE137: 0.522835 | CF137: 0.5235766667 | CG137: 0.5252041667 | CH137: 0.5286166667 | CI137: 0.5293466667 | CJ137: 0.5313225 | CK137: 0.534525 | CL137: 0.5351516667 | CM137: 0.5361491667 | CN137: 0.5383841667 | CO137: 0.5418891667 | CP137: 0.5423791667 | CQ137: 0.5451591667 | CR137: 0.5453891667 | CS137: 0.5490033333 | CT137: 0.5494975 | CU137: 0.5509141667 | CV137: 0.5526291667 | CW137: 0.5535133333 | CX137: 0.5570358333
B138: Qx9x | C138: 0.1842758333 | D138: 0.2177141667 | E138: 0.2549416667 | F138: 0.2893941667 | G138: 0.2995541667 | H138: 0.3163275 | I138: 0.3187258333 | J138: 0.3412175 | K138: 0.3422016667 | L138: 0.34427 | M138: 0.3442616667 | N138: 0.3545441667 | O138: 0.3578283333 | P138: 0.3591383333 | Q138: 0.3632741667 | R138: 0.3671466667 | S138: 0.3678358333 | T138: 0.3706966667 | U138: 0.3738283333 | V138: 0.37579 | W138: 0.3830391667 | X138: 0.3868308333 | Y138: 0.3851025 | Z138: 0.3887758333 | AA138: 0.3911041667 | AB138: 0.40158 | AC138: 0.3980158333 | AD138: 0.4038841667 | AE138: 0.406485 | AF138: 0.4122866667 | AG138: 0.4125325 | AH138: 0.4188125 | AI138: 0.4192241667 | AJ138: 0.4201341667 | AK138: 0.4229141667 | AL138: 0.4242883333 | AM138: 0.4342008333 | AN138: 0.4403158333 | AO138: 0.4431633333 | AP138: 0.44629 | AQ138: 0.445975 | AR138: 0.447765 | AS138: 0.4562575 | AT138: 0.4583891667 | AU138: 0.4601925 | AV138: 0.4638933333 | AW138: 0.4703941667 | AX138: 0.4731491667 | AY138: 0.4732558333 | AZ138: 0.4758841667 | BA138: 0.48103 | BB138: 0.4841283333 | BC138: 0.4848391667 | BD138: 0.4895908333 | BE138: 0.4904875 | BF138: 0.49398 | BG138: 0.492595 | BH138: 0.4972375 | BI138: 0.5014216667 | BJ138: 0.5032616667 | BK138: 0.5053708333 | BL138: 0.5077141667 | BM138: 0.5113016667 | BN138: 0.51338 | BO138: 0.5158458333 | BP138: 0.5186666667 | BQ138: 0.5206825 | BR138: 0.522715 | BS138: 0.526155 | BT138: 0.5275516667 | BU138: 0.5308475 | BV138: 0.5331966667 | BW138: 0.53305 | BX138: 0.5362058333 | BY138: 0.5380625 | BZ138: 0.5403483333 | CA138: 0.5415683333 | CB138: 0.543125 | CC138: 0.5463591667 | CD138: 0.5471008333 | CE138: 0.5502158333 | CF138: 0.550805 | CG138: 0.5512625 | CH138: 0.55399 | CI138: 0.5550883333 | CJ138: 0.5562325 | CK138: 0.5572708333 | CL138: 0.5581158333 | CM138: 0.5597025 | CN138: 0.5605575 | CO138: 0.56448 | CP138: 0.5656716667 | CQ138: 0.5671008333 | CR138: 0.5686533333 | CS138: 0.5699691667 | CT138: 0.5700483333 | CU138: 0.5731775 | CV138: 0.5738391667 | CW138: 0.5749941667 | CX138: 0.5765733333
B139: Kx9x | C139: 0.1578583333 | D139: 0.24966 | E139: 0.2649083333 | F139: 0.2789475 | G139: 0.2902116667 | H139: 0.3260708333 | I139: 0.3270808333 | J139: 0.3444816667 | K139: 0.3427391667 | L139: 0.3457916667 | M139: 0.3435183333 | N139: 0.3590533333 | O139: 0.3562816667 | P139: 0.3631108333 | Q139: 0.365605 | R139: 0.3728483333 | S139: 0.3700158333 | T139: 0.37286 | U139: 0.3751033333 | V139: 0.3965583333 | W139: 0.4054716667 | X139: 0.4085875 | Y139: 0.416485 | Z139: 0.420255 | AA139: 0.4205233333 | AB139: 0.4308616667 | AC139: 0.4340158333 | AD139: 0.43692 | AE139: 0.4406933333 | AF139: 0.4439533333 | AG139: 0.44609 | AH139: 0.4487358333 | AI139: 0.4582375 | AJ139: 0.4585541667 | AK139: 0.4607791667 | AL139: 0.46561 | AM139: 0.4741566667 | AN139: 0.4796383333 | AO139: 0.4823008333 | AP139: 0.4876158333 | AQ139: 0.4930791667 | AR139: 0.49334 | AS139: 0.5000116667 | AT139: 0.5018533333 | AU139: 0.5047958333 | AV139: 0.5106825 | AW139: 0.5128158333 | AX139: 0.5165 | AY139: 0.5196358333 | AZ139: 0.521185 | BA139: 0.52513 | BB139: 0.5277083333 | BC139: 0.5308391667 | BD139: 0.5337316667 | BE139: 0.5350766667 | BF139: 0.5383783333 | BG139: 0.5393925 | BH139: 0.542295 | BI139: 0.5428633333 | BJ139: 0.5467725 | BK139: 0.5491216667 | BL139: 0.5511241667 | BM139: 0.5525225 | BN139: 0.5548533333 | BO139: 0.5562808333 | BP139: 0.5564225 | BQ139: 0.558765 | BR139: 0.5603858333 | BS139: 0.5614633333 | BT139: 0.5638983333 | BU139: 0.5656441667 | BV139: 0.5673358333 | BW139: 0.5689475 | BX139: 0.5696441667 | BY139: 0.57243 | BZ139: 0.573215 | CA139: 0.5742591667 | CB139: 0.5759025 | CC139: 0.5771633333 | CD139: 0.5780933333 | CE139: 0.5807 | CF139: 0.5802133333 | CG139: 0.5799708333 | CH139: 0.5817508333 | CI139: 0.5829591667 | CJ139: 0.5846325 | CK139: 0.5847208333 | CL139: 0.5858391667 | CM139: 0.587165 | CN139: 0.589445 | CO139: 0.5902491667 | CP139: 0.5909066667 | CQ139: 0.5932275 | CR139: 0.5937166667 | CS139: 0.5949291667 | CT139: 0.5953766667 | CU139: 0.5968541667 | CV139: 0.5979425 | CW139: 0.5982791667 | CX139: 0.6013091667
